Workbook

Sheet Design
AW1: =Inverter!A1 -> 12
C6: =INDEX(languagearea,5,Language!$R$1) -> Inverter Type | G6: =INDEX(languagearea,7,Language!$R$1) -> PV Module Type
H7: MPPT A | N7: MPPT B | T7: MPPT C | Z7: MPPT D | AH7: mon | AI7: 1 | AJ7: 2 | AK7: 3 | AL7: 4 | AM7: 5 | AN7: 6 | AO7: 7 | AP7: 8 | AQ7: 9 | AR7: 10 | AS7: 11 | AT7: 12
H9: =INDEX(languagearea,8,Language!$R$1) -> Manufacturer | N9: =INDEX(languagearea,8,Language!$R$1) -> Manufacturer | T9: =INDEX(languagearea,8,Language!$R$1) -> Manufacturer | Z9: =INDEX(languagearea,8,Language!$R$1) -> Manufacturer | AH9: globle | AI9: =INDEX(geomet,MATCH(INDEX(GeoMet!$BS$4:$BS$348,city),GeoMet!$BO$4:$BO$940,0),4) -> 128.7 | AJ9: =INDEX(geomet,MATCH(INDEX(GeoMet!$BS$4:$BS$348,city),GeoMet!$BO$4:$BO$940,0),5) -> 135 | AK9: =INDEX(geomet,MATCH(INDEX(GeoMet!$BS$4:$BS$348,city),GeoMet!$BO$4:$BO$940,0),6) -> 179.9 | AL9: =INDEX(geomet,MATCH(INDEX(GeoMet!$BS$4:$BS$348,city),GeoMet!$BO$4:$BO$940,0),7) -> 187.9 | AM9: =INDEX(geomet,MATCH(INDEX(GeoMet!$BS$4:$BS$348,city),GeoMet!$BO$4:$BO$940,0),8) -> 174.1 | AN9: =INDEX(geomet,MATCH(INDEX(GeoMet!$BS$4:$BS$348,city),GeoMet!$BO$4:$BO$940,0),9) -> 165.6 | AO9: =INDEX(geomet,MATCH(INDEX(GeoMet!$BS$4:$BS$348,city),GeoMet!$BO$4:$BO$940,0),10) -> 149.5 | AP9: =INDEX(geomet,MATCH(INDEX(GeoMet!$BS$4:$BS$348,city),GeoMet!$BO$4:$BO$940,0),11) -> 130.2 | AQ9: =INDEX(geomet,MATCH(INDEX(GeoMet!$BS$4:$BS$348,city),GeoMet!$BO$4:$BO$940,0),12) -> 140.9 | AR9: =INDEX(geomet,MATCH(INDEX(GeoMet!$BS$4:$BS$348,city),GeoMet!$BO$4:$BO$940,0),13) -> 132.4 | AS9: =INDEX(geomet,MATCH(INDEX(GeoMet!$BS$4:$BS$348,city),GeoMet!$BO$4:$BO$940,0),14) -> 128.2 | AT9: =INDEX(geomet,MATCH(INDEX(GeoMet!$BS$4:$BS$348,city),GeoMet!$BO$4:$BO$940,0),15) -> 126.5 | AU9: =SUM(AI9:AT9) -> 1778.9
C10: =INDEX(languagearea,6,Language!$R$1) -> Ambient Temperature | AH10: incident | AI10: =AI9-AI11 -> 59.7 | AJ10: =AJ9-AJ11 -> 75.8 | AK10: 104 | AL10: 115 | AM10: 90.8 | AN10: 79.4 | AO10: 62.8 | AP10: 46.8 | AQ10: 59.3 | AR10: 54.2 | AS10: 60.6 | AT10: 65
C11: min： | D11: nom： | E11: max： | AH11: diffuse | AI11: =IF(AI12=0,AI38,AI12) -> 69 | AJ11: =IF(AJ12=0,AJ38,AJ12) -> 59.2 | AK11: 75.9 | AL11: 72.9 | AM11: 83.3 | AN11: 86.2 | AO11: 86.7 | AP11: 83.4 | AQ11: 81.6 | AR11: 78.2 | AS11: 67.6 | AT11: 61.5
C12: 10 | D12: 20 | E12: 46 | AI12: =INDEX(geomet,MATCH(INDEX(GeoMet!$BS$4:$BS$348,city),GeoMet!$BO$4:$BO$940,0),17) -> 69 | AJ12: =INDEX(geomet,MATCH(INDEX(GeoMet!$BS$4:$BS$348,city),GeoMet!$BO$4:$BO$940,0),18) -> 59.2 | AK12: =INDEX(geomet,MATCH(INDEX(GeoMet!$BS$4:$BS$348,city),GeoMet!$BO$4:$BO$940,0),19) -> 75.9 | AL12: =INDEX(geomet,MATCH(INDEX(GeoMet!$BS$4:$BS$348,city),GeoMet!$BO$4:$BO$940,0),20) -> 72.9 | AM12: =INDEX(geomet,MATCH(INDEX(GeoMet!$BS$4:$BS$348,city),GeoMet!$BO$4:$BO$940,0),21) -> 83.3 | AN12: =INDEX(geomet,MATCH(INDEX(GeoMet!$BS$4:$BS$348,city),GeoMet!$BO$4:$BO$940,0),22) -> 86.2 | AO12: =INDEX(geomet,MATCH(INDEX(GeoMet!$BS$4:$BS$348,city),GeoMet!$BO$4:$BO$940,0),23) -> 86.7 | AP12: =INDEX(geomet,MATCH(INDEX(GeoMet!$BS$4:$BS$348,city),GeoMet!$BO$4:$BO$940,0),24) -> 83.4 | AQ12: =INDEX(geomet,MATCH(INDEX(GeoMet!$BS$4:$BS$348,city),GeoMet!$BO$4:$BO$940,0),25) -> 81.6 | AR12: =INDEX(geomet,MATCH(INDEX(GeoMet!$BS$4:$BS$348,city),GeoMet!$BO$4:$BO$940,0),26) -> 78.2 | AS12: =INDEX(geomet,MATCH(INDEX(GeoMet!$BS$4:$BS$348,city),GeoMet!$BO$4:$BO$940,0),27) -> 67.6 | AT12: =INDEX(geomet,MATCH(INDEX(GeoMet!$BS$4:$BS$348,city),GeoMet!$BO$4:$BO$940,0),28) -> 61.5
C13: =INDEX(languagearea,85,Language!$R$1) -> Mounting Mode | H13: =INDEX(languagearea,9,Language!$R$1) -> Model | N13: =INDEX(languagearea,9,Language!$R$1) -> Model | T13: =INDEX(languagearea,9,Language!$R$1) -> Model | AG13: 方位角α | AH13: =J20 -> 8 | AI13: =AH13*PI()/180 -> 0.1396263402 | AJ13: =AI13 -> 0.1396263402 | AK13: 0.1396263402 | AL13: 0.1396263402 | AM13: 0.1396263402 | AN13: 0.1396263402 | AO13: 0.1396263402 | AP13: 0.1396263402 | AQ13: 0.1396263402 | AR13: 0.1396263402 | AS13: 0.1396263402 | AT13: 0.1396263402
E14: =INDEX(languagearea,94,Language!$R$1) -> Temperature rise | AG14: 倾角β | AH14: =H20 -> 15 | AI14: =AH14*PI()/180 -> 0.2617993878 | AJ14: 0.2617993878 | AK14: 0.2617993878 | AL14: 0.2617993878 | AM14: 0.2617993878 | AN14: 0.2617993878 | AO14: 0.2617993878 | AP14: 0.2617993878 | AQ14: 0.2617993878 | AR14: 0.2617993878 | AS14: 0.2617993878 | AT14: 0.2617993878
F16: =IF(Language!R2=1,40,IF(Language!R2=2,30,25)) -> 30 | AG16: 水平日落ωt | AI16: =ACOS(-TAN(AI26)*TAN(AI18)) -> 1.469807689 | AJ16: =ACOS(-TAN(AJ26)*TAN(AJ18)) -> 1.509587218 | AK16: 1.558043714 | AL16: 1.613754229 | AM16: 1.659037428 | AN16: 1.682645344 | AO16: 1.673084021 | AP16: 1.634374433 | AQ16: 1.580822334 | AR16: 1.526980226 | AS16: 1.480749213 | AT16: 1.458835055
C17: =INDEX(languagearea,43,Language!$R$1) -> Location | H17: =INDEX(languagearea,3,Language!$R$1) -> Module in Series | J17: =INDEX(languagearea,4,Language!$R$1) -> Number of strings | N17: =INDEX(languagearea,3,Language!$R$1) -> Module in Series | P17: =INDEX(languagearea,4,Language!$R$1) -> Number of strings | T17: =INDEX(languagearea,3,Language!$R$1) -> Module in Series | V17: =INDEX(languagearea,4,Language!$R$1) -> Number of strings | Z17: =INDEX(languagearea,3,Language!$R$1) -> Module in Series | AB17: =INDEX(languagearea,4,Language!$R$1) -> Number of strings | AG17: 斜面日落ωp | AI17: 15 | AJ17: 46 | AK17: 74 | AL17: 105 | AM17: 135 | AN17: 166 | AO17: 196 | AP17: 227 | AQ17: 258 | AR17: 288 | AS17: 319 | AT17: 349
H18: 18 | J18: 2 | N18: 18 | P18: 2 | T18: 18 | V18: 2 | Z18: 18 | AB18: 2 | AG18: 赤纬角δ | AI18: =23.45*PI()/180*SIN(2*PI()*(AI17+284)/365) -> -0.3712223499 | AJ18: -0.2319395302 | AK18: -0.04919871371 | AL18: 0.1643208876 | AM18: 0.3279808334 | AN18: 0.4069132162 | AO18: 0.37554836 | AP18: 0.2405685774 | AQ18: 0.03869197351 | AR18: -0.1675410879 | AS18: -0.3341924566 | AT18: -0.4072764127
E19: =INDEX(languagearea,54,Language!$R$1) -> Latitude | F19: =INDEX(geomet,MATCH(INDEX(GeoMet!$BS$4:$BS$348,city),GeoMet!$BO$4:$BO$940,0),1) -> 14.52 | H19: =INDEX(languagearea,44,Language!$R$1) -> Inclination | J19: =INDEX(languagearea,39,Language!$R$1) -> Azimuth | N19: =INDEX(languagearea,44,Language!$R$1) -> Inclination | P19: =INDEX(languagearea,39,Language!$R$1) -> Azimuth | T19: =INDEX(languagearea,44,Language!$R$1) -> Inclination | V19: =INDEX(languagearea,39,Language!$R$1) -> Azimuth | Z19: =INDEX(languagearea,44,Language!$R$1) -> Inclination | AB19: =INDEX(languagearea,39,Language!$R$1) -> Azimuth | AI19: =10.443*AI29*AI28*31 -> 255.4111365 | AJ19: =10.443*AJ29*AJ28*28 -> 255.4901872 | AK19: =10.443*AK29*AK28*31 -> 309.8210886 | AL19: =10.443*AL29*AL28*30 -> 317.1087763 | AM19: =10.443*AM29*AM28*31 -> 331.0297306 | AN19: 318.3472623 | AO19: =10.443*AO29*AO28*31 -> 328.5918981 | AP19: =10.443*AP29*AP28*31 -> 327.1417246 | AQ19: 305.0413825 | AR19: =10.443*AR29*AR28*31 -> 290.4188158 | AS19: 253.0981308 | AT19: =10.443*AT29*AT28*31 -> 246.8759287
E20: =INDEX(languagearea,53,Language!$R$1) -> Longitude | F20: =INDEX(geomet,MATCH(INDEX(GeoMet!$BS$4:$BS$348,city),GeoMet!$BO$4:$BO$940,0),2) -> 121 | H20: 15 | J20: 8 | N20: 15 | P20: 8 | T20: 15 | V20: 8 | Z20: 15 | AB20: 8 | AI20: =IF(ISERROR(-1*MIN(AI16,ABS(-1*ACOS(-1*AI22/AI25)+ASIN(AI24/AI25)))),0,-1*MIN(AI16,ABS(-1*ACOS(-1*AI22/AI25)+ASIN(AI24/AI25)))) -> -1.469807689 | AJ20: =IF(ISERROR(-1*MIN(AJ16,ABS(-1*ACOS(-1*AJ22/AJ25)+ASIN(AJ24/AJ25)))),0,-1*MIN(AJ16,ABS(-1*ACOS(-1*AJ22/AJ25)+ASIN(AJ24/AJ25)))) -> -1.509587218 | AK20: -1.535059686 | AL20: -1.533782429 | AM20: -1.532746303 | AN20: -1.532207638 | AO20: -1.532425646 | AP20: -1.53331024 | AQ20: -1.534537333 | AR20: -1.526980226 | AS20: -1.480749213 | AT20: -1.458835055
C21: =INDEX(languagearea,45,Language!$R$1) -> Global Irradiation | E21: =AU9 -> 1778.9 | G21: =INDEX(languagearea,46,Language!$R$1) -> Irradiation on module | J21: =AU35 -> 1798.230393 | M21: =INDEX(languagearea,46,Language!$R$1) -> Irradiation on module | P21: =AU70 -> 1798.230393 | S21: =INDEX(languagearea,46,Language!$R$1) -> Irradiation on module | V21: =AU104 -> 1798.230393 | Y21: =INDEX(languagearea,46,Language!$R$1) -> Irradiation on module | AB21: =AU138 -> 1798.230393 | AI21: =IF(ISERROR(MIN(AI16,ACOS(-1*AI22/AI25)+ASIN(AI24/AI25))),0,MIN(AI16,ACOS(-1*AI22/AI25)+ASIN(AI24/AI25))) -> 1.469807689 | AJ21: =IF(ISERROR(MIN(AJ16,ACOS(-1*AJ22/AJ25)+ASIN(AJ24/AJ25))),0,MIN(AJ16,ACOS(-1*AJ22/AJ25)+ASIN(AJ24/AJ25))) -> 1.509587218 | AK21: 1.558043714 | AL21: 1.605840586 | AM21: 1.604804461 | AN21: 1.604265796 | AO21: 1.604483803 | AP21: 1.605368397 | AQ21: 1.580822334 | AR21: 1.526980226 | AS21: 1.480749213 | AT21: 1.458835055
E22: =INDEX(languagearea,1,Language!$R$1) -> Module number: | H22: =H18*J18 -> 36 | N22: =N18*P18 -> 36 | T22: =T18*V18 -> 36 | Z22: =Z18*AB18 -> 36 | AI22: =SIN(AI18)*(SIN(AI26)*COS(AI14)-COS(AI26)*SIN(AI14)*COS(AI13)) -> 0.002154445532 | AJ22: =SIN(AJ18)*(SIN(AJ26)*COS(AJ14)-COS(AJ26)*SIN(AJ14)*COS(AJ13)) -> 0.001365199899 | AK22: 0.0002920793763 | AL22: -0.0009715361119 | AM22: -0.001913182655 | AN22: -0.002350565417 | AO22: -0.002178367938 | AP22: -0.001415025105 | AQ22: -0.0002297390791 | AR22: 0.0009903985874 | AS22: 0.001948070601 | AT22: 0.0023525462
E23: =INDEX(languagearea,2,Language!$R$1) -> PV Nominal Power: | H23: =H22*I35 -> 9000 | I23: Wp | N23: =N22*O35 -> 9000 | O23: Wp | T23: =T22*U35 -> 9000 | U23: Wp | Z23: =Z22*AA35 -> 9000 | AA23: Wp | AI23: =COS(AI18)*(COS(AI26)*COS(AI14)+SIN(AI26)*SIN(AI14)*COS(AI13)) -> 0.9312634321 | AJ23: =COS(AJ18)*(COS(AJ26)*COS(AJ14)+SIN(AJ26)*SIN(AJ14)*COS(AJ13)) -> 0.9725736423 | AK23: 0.9981241916 | AL23: 0.9858720507 | AM23: 0.9460636425 | AN23: 0.9177347002 | AO23: 0.9296864882 | AP23: 0.9705552595 | AQ23: 0.9985854555 | AR23: 0.985340523 | AS23: 0.9440457741 | AT23: 0.9175909909
E24: Umpp(min) at | F24: =E12+IF(Language!R2=1,40,IF(Language!R2=2,30,25)) -> 76 | H24: =(I$38+($F24-25)*I$40/1000)*H$18 -> 459.4032 | N24: =(O$38+($F24-25)*O$40/1000)*N$18 -> 459.4032 | T24: =(U$38+($F24-25)*U$40/1000)*T$18 -> 459.4032 | Z24: =(AA$38+($F24-25)*AA$40/1000)*Z$18 -> 459.4032 | AI24: =COS(AI18)*SIN(AI14)*SIN(AI13) -> 0.0335670892 | AJ24: =COS(AJ18)*SIN(AJ14)*SIN(AJ13) -> 0.03505610237 | AK24: 0.03597706365 | AL24: 0.0355354392 | AM24: 0.034100558 | AN24: 0.03307945044 | AO24: 0.03351024877 | AP24: 0.03498335041 | AQ24: 0.03599368976 | AR24: 0.03551628045 | AS24: 0.03402782459 | AT24: 0.03307427048
E25: Umpp at | F25: =D12+IF(Language!R2=1,40,IF(Language!R2=2,30,25)) -> 50 | H25: =(I$38+($F25-25)*I$40/1000)*H$18 -> 505.08 | N25: =(O$38+($F25-25)*O$40/1000)*N$18 -> 505.08 | T25: =(U$38+($F25-25)*U$40/1000)*T$18 -> 505.08 | Z25: =(AA$38+($F25-25)*AA$40/1000)*Z$18 -> 505.08 | AI25: =SQRT(AI23^2+AI24^2) -> 0.9318681932 | AJ25: =SQRT(AJ23^2+AJ24^2) -> 0.9732052301 | AK25: 0.998772372 | AL25: 0.9865122745 | AM25: 0.9466780148 | AN25: 0.9183306758 | AO25: 0.9302902252 | AP25: 0.9711855367 | AQ25: 0.9992339354 | AR25: 0.9859804017 | AS25: 0.944658836 | AT25: 0.9181868731
E26: Umpp(max) at | F26: =C12 -> 10 | H26: =(I$38+($F26-25)*I$40/1000)*H$18 -> 575.352 | N26: =(O$38+($F26-25)*O$40/1000)*N$18 -> 575.352 | T26: =(U$38+($F26-25)*U$40/1000)*T$18 -> 575.352 | Z26: =(AA$38+($F26-25)*AA$40/1000)*Z$18 -> 575.352 | AG26: 纬度Ф | AH26: =INDEX(geomet,MATCH(INDEX(GeoMet!$BS$4:$BS$348,city),GeoMet!$BO$4:$BO$940,0),1) -> 14.52 | AI26: =AH26*PI()/180 -> 0.2534218074 | AJ26: =AI26 -> 0.2534218074 | AK26: =AJ26 -> 0.2534218074 | AL26: 0.2534218074 | AM26: 0.2534218074 | AN26: 0.2534218074 | AO26: 0.2534218074 | AP26: 0.2534218074 | AQ26: 0.2534218074 | AR26: 0.2534218074 | AS26: 0.2534218074 | AT26: 0.2534218074
E27: Uoc(max) at | F27: =C12 -> 10 | H27: =(I36+($F27-25)*I41/1000)*H18 -> 711.1728 | J27: =IF((H27>=300)*(H27<=MIN(I48,I43)),"OK",IF(H27<300,INDEX(languagearea,74,Language!$R$1),INDEX(languagearea,73,Language!$R$1))) -> OK | N27: =(O36+($F27-25)*O41/1000)*N18 -> 711.1728 | P27: =IF((N27>=300)*(N27<=MIN(I48,O43)),"OK",IF(N27<300,INDEX(languagearea,74,Language!$R$1),INDEX(languagearea,73,Language!$R$1))) -> OK | T27: =(U36+($F27-25)*U41/1000)*T18 -> 711.1728 | V27: =IF((T27>=300)*(T27<=MIN(I48,U43)),"OK",IF(T27<300,INDEX(languagearea,74,Language!$R$1),INDEX(languagearea,73,Language!$R$1))) -> OK | Z27: =(AA36+($F27-25)*AA41/1000)*Z18 -> 711.1728 | AB27: =IF((Z27>=300)*(Z27<=MIN(O48,AA43)),"OK",IF(Z27<300,INDEX(languagearea,74,Language!$R$1),INDEX(languagearea,73,Language!$R$1))) -> OK | AG27: 经度η | AH27: =INDEX(geomet,MATCH(INDEX(GeoMet!$BS$4:$BS$348,city),GeoMet!$BO$4:$BO$940,0),2) -> 121 | AI27: =AH27*PI()/180 -> 2.111848395 | AJ27: =AI27 -> 2.111848395 | AK27: 2.111848395 | AL27: 2.111848395 | AM27: 2.111848395 | AN27: 2.111848395 | AO27: 2.111848395 | AP27: 2.111848395 | AQ27: 2.111848395 | AR27: 2.111848395 | AS27: 2.111848395 | AT27: 2.111848395
E28: Uoc at | F28: =D12 -> 20 | H28: =(I36+($F28-25)*I41/1000)*H18 -> 689.4576 | J28: =IF((H28>=300)*(H28<=I48),"OK",IF(H28<300,INDEX(languagearea,74,Language!$R$1),INDEX(languagearea,73,Language!$R$1))) -> OK | N28: =(O36+($F28-25)*O41/1000)*N18 -> 689.4576 | P28: =IF((N28>=300)*(N28<=I48),"OK",IF(N28<300,INDEX(languagearea,74,Language!$R$1),INDEX(languagearea,73,Language!$R$1))) -> OK | T28: =(U36+($F28-25)*U41/1000)*T18 -> 689.4576 | V28: =IF((T28>=300)*(T28<=I48),"OK",IF(T28<300,INDEX(languagearea,74,Language!$R$1),INDEX(languagearea,73,Language!$R$1))) -> OK | Z28: =(AA36+($F28-25)*AA41/1000)*Z18 -> 689.4576 | AB28: =IF((Z28>=300)*(Z28<=I48),"OK",IF(Z28<300,INDEX(languagearea,74,Language!$R$1),INDEX(languagearea,73,Language!$R$1))) -> OK | AG28: Al | AI28: =1+0.034*COS(2*PI()*AI17/365) -> 1.032872826 | AJ28: =1+0.034*COS(2*PI()*AJ17/365) -> 1.023885934 | AK28: 1.009948411 | AL28: 0.9920272928 | AM28: 0.9767467397 | AN28: 0.9673622886 | AO28: 0.9669139765 | AP28: 0.9754973169 | AQ28: 0.9908943136 | AR28: 1.008256891 | AS28: 1.023885934 | AT28: 1.032718509
E29: =INDEX(languagearea,27,Language!$R$1) -> Max. MPP Current： | H29: =J18*I39 -> 16.4 | J29: =IF(H29<=(I54*1.1),"OK",INDEX(languagearea,75,Language!$R$1)) -> OK | N29: =P18*O39 -> 16.4 | P29: =IF(N29<=(I54*1.1),"OK",INDEX(languagearea,75,Language!$R$1)) -> OK | T29: =V18*U39 -> 16.4 | V29: =IF(T29<=(I54*1.1),"OK",INDEX(languagearea,75,Language!$R$1)) -> OK | Z29: =AB18*AA39 -> 16.4 | AB29: =IF(Z29<=(I54*1.1),"OK",INDEX(languagearea,75,Language!$R$1)) -> OK | AI29: =COS(AI26)*COS(AI18)*SIN(AI16)+AI16*SIN(AI26)*SIN(AI18) -> 0.7638463474 | AJ29: =COS(AJ26)*COS(AJ18)*SIN(AJ16)+AJ16*SIN(AJ26)*SIN(AJ18) -> 0.8533738651 | AK29: 0.9475994792 | AL29: 1.020324014 | AM29: 1.046882786 | AN29: 1.05042593 | AO29: 1.049740714 | AP29: 1.035912057 | AQ29: 0.9826183987 | AR29: 0.8897470969 | AS29: 0.789025117 | AT29: 0.7384308194
E30: =INDEX(languagearea,76,Language!$R$1) -> Defined Layout factor | H30: =ROUNDDOWN(1+AX31/100,2) -> 1.12 | P30: =INDEX(languagearea,14,Language!$R$1) -> Total Input Power: | Q30: =IF(Inverter!$A$1<3,H23+N23,IF(Inverter!$A$1>11,H23+N23+T23+Z23,H23+N23+T23)) -> 36000 | T30: =IF(V48<=H30, "OK",INDEX(languagearea,78,Language!$R$1)) -> OK | AG30: Rb | AI30: =IF(((AI21-AI20)*AI22+(SIN(AI21)-SIN(AI20))*AI23+(COS(AI21)-COS(AI20))*AI24)/(COS(AI26)*COS(AI18)*SIN(AI16)+AI16*SIN(AI26)*SIN(AI18))/2>0,((AI21-AI20)*AI22+(SIN(AI21)-SIN(AI20))*AI23+(COS(AI21)-COS(AI20))*AI24)/(COS(AI26)*COS(AI18)*SIN(AI16)+AI16*SIN(AI26)*SIN(AI18))/2,0) -> 1.217110287 | AJ30: =IF(((AJ21-AJ20)*AJ22+(SIN(AJ21)-SIN(AJ20))*AJ23+(COS(AJ21)-COS(AJ20))*AJ24)/(COS(AJ26)*COS(AJ18)*SIN(AJ16)+AJ16*SIN(AJ26)*SIN(AJ18))/2>0,((AJ21-AJ20)*AJ22+(SIN(AJ21)-SIN(AJ20))*AJ23+(COS(AJ21)-COS(AJ20))*AJ24)/(COS(AJ26)*COS(AJ18)*SIN(AJ16)+AJ16*SIN(AJ26)*SIN(AJ18))/2,0) -> 1.139961322 | AK30: 1.052980069 | AL30: 0.9628574753 | AM30: 0.8990672633 | AN30: 0.8684651415 | AO30: 0.8806525588 | AP30: 0.9329397771 | AQ30: 1.014678218 | AR30: 1.108075703 | AS30: 1.195279534 | AT30: 1.239490278
AG31: ρR | AH31: 0.2 | AI31: =AH31 -> 0.2 | AJ31: =AI31 -> 0.2 | AK31: 0.2 | AL31: 0.2 | AM31: 0.2 | AN31: 0.2 | AO31: 0.2 | AP31: 0.2 | AQ31: 0.2 | AR31: =AQ31 -> 0.2 | AS31: 0.2 | AT31: 0.2 | AX31: 12
E32: =INDEX(languagearea,10,Language!$R$1) -> PV Parameters（STC：Irradiance 1000W/m²,module temperature 25℃,AM=1.5） | AG32: 直射St | AI32: =AI30*AI10 -> 72.66148412 | AJ32: =AJ30*AJ10 -> 86.40906817 | AK32: 109.5099271 | AL32: 110.7286097 | AM32: 81.63530751 | AN32: 68.95613224 | AO32: 55.30498069 | AP32: 43.66158157 | AQ32: 60.17041831 | AR32: 60.05770311 | AS32: 72.43393976 | AT32: 80.56686807 | AU32: =SUM(AI32:AT32) -> 902.0960204
E33: =INDEX(languagearea,8,Language!$R$1) -> Manufacturer | I33: =INDEX(Module!$A$2:$K$6231,Module!X$1,1) -> Jinkosolar | O33: =INDEX(Module!$A$2:$K$6231,Module!AA$1,1) -> Jinkosolar | U33: =INDEX(Module!$A$2:$K$6231,Module!AD$1,1) -> Jinkosolar | AA33: =INDEX(Module!$A$2:$K$6231,Module!AG$1,1) -> Jinkosolar | AG33: 漫射Dt | AI33: =AI11*0.5*(1+COS(AI14)) -> 67.82444101 | AJ33: =AJ11*0.5*(1+COS(AJ14)) -> 58.19140446 | AK33: 74.60688511 | AL33: 71.65799637 | AM33: 81.88081066 | AN33: 84.73140311 | AO33: 85.22288457 | AP33: 81.97910696 | AQ33: 80.20977371 | AR33: 76.86769981 | AS33: 66.44829293 | AT33: 60.45221916 | AU33: =SUM(AI33:AT33) -> 890.0729179
E34: =INDEX(languagearea,9,Language!$R$1) -> Model | I34: =INDEX(Module!$A$2:$K$6231,Module!X$1,2) -> JKM 250P-60 | O34: =INDEX(Module!$A$2:$K$6231,Module!AA$1,2) -> JKM 250P-60 | U34: =INDEX(Module!$A$2:$K$6231,Module!AD$1,2) -> JKM 250P-60 | AA34: =INDEX(Module!$A$2:$K$6231,Module!AG$1,2) -> JKM 250P-60 | AG34: 反射Rt | AI34: =0.5*AI31*AI9*(1-COS(AI14)) -> 0.4385346157 | AJ34: =0.5*AJ31*AJ9*(1-COS(AJ14)) -> 0.4600013451 | AK34: 0.6129943851 | AL34: 0.640253724 | AM34: 0.5932313643 | AN34: 0.5642683167 | AO34: 0.509408897 | AP34: 0.4436457417 | AQ34: 0.4801051076 | AR34: 0.4511420599 | AS34: 0.436830907 | AT34: 0.4310382974 | AU34: =SUM(AI34:AT34) -> 6.061454761
E35: Pmpp: | I35: =INDEX(Module!$A$2:$K$6231,Module!X$1,4) -> 250 | O35: =INDEX(Module!$A$2:$K$6231,Module!AA$1,4) -> 250 | U35: =INDEX(Module!$A$2:$K$6231,Module!AD$1,4) -> 250 | AA35: =INDEX(Module!$A$2:$K$6231,Module!AG$1,4) -> 250 | AG35: 总Qt | AI35: =SUM(AI32:AI34) -> 140.9244597 | AJ35: 145.060474 | AK35: 184.7298066 | AL35: 183.0268598 | AM35: 164.1093495 | AN35: 154.2518037 | AO35: 141.0372742 | AP35: 126.0843343 | AQ35: 140.8602971 | AR35: 137.376545 | AS35: 139.3190636 | AT35: =SUM(AT32:AT34) -> 141.4501255 | AU35: =SUM(AI35:AT35) -> 1798.230393
E36: Uoc: | I36: =INDEX(Module!$A$2:$K$6231,Module!X$1,5) -> 37.7 | O36: =INDEX(Module!$A$2:$K$6231,Module!AA$1,5) -> 37.7 | U36: =INDEX(Module!$A$2:$K$6231,Module!AD$1,5) -> 37.7 | AA36: =INDEX(Module!$A$2:$K$6231,Module!AG$1,5) -> 37.7 | AI36: =AI9/AI19 -> 0.5038934549 | AJ36: =AJ9/AJ19 -> 0.5283960277 | AK36: 0.5806576976 | AL36: 0.5925411532 | AM36: 0.5259346334 | AN36: 0.5201866628 | AO36: 0.4549716559 | AP36: 0.3979926442 | AQ36: 0.4619045418 | AR36: 0.4558933265 | AS36: 0.5065229031 | AT36: 0.5124031357
E37: Isc: | I37: =INDEX(Module!$A$2:$K$6231,Module!X$1,7) -> 8.85 | O37: =INDEX(Module!$A$2:$K$6231,Module!AA$1,7) -> 8.85 | U37: =INDEX(Module!$A$2:$K$6231,Module!AD$1,7) -> 8.85 | AA37: =INDEX(Module!$A$2:$K$6231,Module!AG$1,7) -> 8.85 | AI37: =1.236-1.422*AI36 -> 0.5194635071 | AJ37: =1.236-1.422*AJ36 -> 0.4846208487 | AK37: 0.410304754 | AL37: 0.3934064801 | AM37: 0.4881209513 | AN37: 0.4962945655 | AO37: 0.5890303054 | AP37: 0.67005446 | AQ37: 0.5791717416 | AR37: 0.5877196897 | AS37: 0.5157244318 | AT37: 0.507362741
E38: Umpp: | I38: =INDEX(Module!$A$2:$K$6231,Module!X$1,6) -> 30.5 | O38: =INDEX(Module!$A$2:$K$6231,Module!AA$1,6) -> 30.5 | U38: =INDEX(Module!$A$2:$K$6231,Module!AD$1,6) -> 30.5 | AA38: =INDEX(Module!$A$2:$K$6231,Module!AG$1,6) -> 30.5 | AI38: =AI37*AI9 -> 66.85495336 | AJ38: =AJ37*AJ9 -> 65.42381457 | AK38: 73.81382524 | AL38: 73.92107761 | AM38: 84.98185763 | AN38: 82.18638004 | AO38: 88.06003065 | AP38: 87.24109069 | AQ38: 81.60529839 | AR38: 77.81408692 | AS38: 66.11587216 | AT38: 64.18138674
E39: Impp: | I39: =INDEX(Module!$A$2:$K$6231,Module!X$1,8) -> 8.2 | O39: =INDEX(Module!$A$2:$K$6231,Module!AA$1,8) -> 8.2 | U39: =INDEX(Module!$A$2:$K$6231,Module!AD$1,8) -> 8.2 | AA39: =INDEX(Module!$A$2:$K$6231,Module!AG$1,8) -> 8.2
E40: TcoUmpp: | I40: =INDEX(Module!$A$2:$K$6231,Module!X$1,11) -> -97.6 | J40: mV/K | O40: =INDEX(Module!$A$2:$K$6231,Module!AA$1,11) -> -97.6 | P40: mV/K | U40: =INDEX(Module!$A$2:$K$6231,Module!AD$1,11) -> -97.6 | V40: mV/K | AA40: =INDEX(Module!$A$2:$K$6231,Module!AG$1,11) -> -97.6 | AB40: mV/K
E41: TcoUoc: | I41: =INDEX(Module!$A$2:$K$6231,Module!X$1,10) -> -120.64 | J41: mV/K | O41: =INDEX(Module!$A$2:$K$6231,Module!AA$1,10) -> -120.64 | P41: mV/K | U41: =INDEX(Module!$A$2:$K$6231,Module!AD$1,10) -> -120.64 | V41: mV/K | AA41: =INDEX(Module!$A$2:$K$6231,Module!AG$1,10) -> -120.64 | AB41: mV/K
E42: =INDEX(languagearea,47,Language!$R$1) -> Efficiency: | I42: =INDEX(Module!$A$2:$K$6231,Module!X$1,3) -> 0.1527370479 | O42: =INDEX(Module!$A$2:$K$6231,Module!AA$1,3) -> 0.1527370479 | U42: =INDEX(Module!$A$2:$K$6231,Module!AD$1,3) -> 0.1527370479 | AA42: =INDEX(Module!$A$2:$K$6231,Module!AG$1,3) -> 0.1527370479 | AH42: mon | AI42: 1 | AJ42: 2 | AK42: 3 | AL42: 4 | AM42: 5 | AN42: 6 | AO42: 7 | AP42: 8 | AQ42: 9 | AR42: 10 | AS42: 11 | AT42: 12
E43: =INDEX(languagearea,50,Language!$R$1) -> Max. Voltage: | I43: =IF(INDEX(Module!AM2:AM6231,Module!X$1)=0,1000,INDEX(Module!AM2:AM6231,Module!X$1)) -> 1000 | O43: =IF(INDEX(Module!AM2:AM6231,Module!AA$1)=0,1000,INDEX(Module!AM2:AM6231,Module!AA$1)) -> 1000 | U43: =IF(INDEX(Module!AM2:AM6231,Module!AD$1)=0,1000,INDEX(Module!AM2:AM6231,Module!AD$1)) -> 1000 | AA43: =IF(INDEX(Module!AS2:AS6231,Module!AG$1)=0,1000,INDEX(Module!AS2:AS6231,Module!AJ$1)) -> 1000
AH44: globle | AI44: =INDEX(geomet,MATCH(INDEX(GeoMet!$BS$4:$BS$348,city),GeoMet!$BO$4:$BO$940,0),4) -> 128.7 | AJ44: =INDEX(geomet,MATCH(INDEX(GeoMet!$BS$4:$BS$348,city),GeoMet!$BO$4:$BO$940,0),5) -> 135 | AK44: =INDEX(geomet,MATCH(INDEX(GeoMet!$BS$4:$BS$348,city),GeoMet!$BO$4:$BO$940,0),6) -> 179.9 | AL44: =INDEX(geomet,MATCH(INDEX(GeoMet!$BS$4:$BS$348,city),GeoMet!$BO$4:$BO$940,0),7) -> 187.9 | AM44: =INDEX(geomet,MATCH(INDEX(GeoMet!$BS$4:$BS$348,city),GeoMet!$BO$4:$BO$940,0),8) -> 174.1 | AN44: =INDEX(geomet,MATCH(INDEX(GeoMet!$BS$4:$BS$348,city),GeoMet!$BO$4:$BO$940,0),9) -> 165.6 | AO44: =INDEX(geomet,MATCH(INDEX(GeoMet!$BS$4:$BS$348,city),GeoMet!$BO$4:$BO$940,0),10) -> 149.5 | AP44: =INDEX(geomet,MATCH(INDEX(GeoMet!$BS$4:$BS$348,city),GeoMet!$BO$4:$BO$940,0),11) -> 130.2 | AQ44: =INDEX(geomet,MATCH(INDEX(GeoMet!$BS$4:$BS$348,city),GeoMet!$BO$4:$BO$940,0),12) -> 140.9 | AR44: =INDEX(geomet,MATCH(INDEX(GeoMet!$BS$4:$BS$348,city),GeoMet!$BO$4:$BO$940,0),13) -> 132.4 | AS44: =INDEX(geomet,MATCH(INDEX(GeoMet!$BS$4:$BS$348,city),GeoMet!$BO$4:$BO$940,0),14) -> 128.2 | AT44: =INDEX(geomet,MATCH(INDEX(GeoMet!$BS$4:$BS$348,city),GeoMet!$BO$4:$BO$940,0),15) -> 126.5 | AU44: =SUM(AI44:AT44) -> 1778.9
E45: =INDEX(languagearea,11,Language!$R$1) -> Inverter Parameters | H45: =INDEX(Inverter!$A$2:$A$20,Inverter!$A$1) -> SUN2000-33KTL-A | T45: =INDEX(languagearea,16,Language!$R$1) -> System Result | AH45: incident | AI45: =AI44-AI46 -> 59.7 | AJ45: =AJ44-AJ46 -> 75.8 | AK45: 104 | AL45: 115 | AM45: 90.8 | AN45: 79.4 | AO45: 62.8 | AP45: 46.8 | AQ45: 59.3 | AR45: 54.2 | AS45: 60.6 | AT45: 65
E46: =INDEX(languagearea,19,Language!$R$1) -> Rated output power ： | I46: =INDEX(inverter,Inverter!$A$1,10) -> 30000 | J46: W | K46: =INDEX(languagearea,28,Language!$R$1) -> Max. output Power： | P46: =INDEX(inverter,Inverter!$A$1,11) -> 33000 | Q46: VA | T46: =INDEX(languagearea,13,Language!$R$1) -> Total modules: | V46: =IF(Inverter!$A$1<3,H22+N22,IF(Inverter!$A$1>11,H22+N22+T22+Z22,H22+N22+T22)) -> 144 | AH46: diffuse | AI46: =IF(AI47=0,AI73,AI47) -> 69 | AJ46: =IF(AJ47=0,AJ73,AJ47) -> 59.2 | AK46: 75.9 | AL46: 72.9 | AM46: 83.3 | AN46: 86.2 | AO46: 86.7 | AP46: 83.4 | AQ46: 81.6 | AR46: 78.2 | AS46: 67.6 | AT46: 61.5
E47: =INDEX(languagearea,20,Language!$R$1) -> Max.input Power： | I47: =INDEX(inverter,Inverter!$A$1,1) -> 30600 | J47: W | K47: =INDEX(languagearea,29,Language!$R$1) -> Rated output Voltage： | P47: =INDEX(inverter,Inverter!$A$1,16) -> 3×230/400V | T47: =INDEX(languagearea,14,Language!$R$1) -> Total Input Power: | V47: =Q30 -> 36000 | W47: Wp | AI47: =INDEX(geomet,MATCH(INDEX(GeoMet!$BS$4:$BS$348,city),GeoMet!$BO$4:$BO$940,0),17) -> 69 | AJ47: =INDEX(geomet,MATCH(INDEX(GeoMet!$BS$4:$BS$348,city),GeoMet!$BO$4:$BO$940,0),18) -> 59.2 | AK47: =INDEX(geomet,MATCH(INDEX(GeoMet!$BS$4:$BS$348,city),GeoMet!$BO$4:$BO$940,0),19) -> 75.9 | AL47: =INDEX(geomet,MATCH(INDEX(GeoMet!$BS$4:$BS$348,city),GeoMet!$BO$4:$BO$940,0),20) -> 72.9 | AM47: =INDEX(geomet,MATCH(INDEX(GeoMet!$BS$4:$BS$348,city),GeoMet!$BO$4:$BO$940,0),21) -> 83.3 | AN47: =INDEX(geomet,MATCH(INDEX(GeoMet!$BS$4:$BS$348,city),GeoMet!$BO$4:$BO$940,0),22) -> 86.2 | AO47: =INDEX(geomet,MATCH(INDEX(GeoMet!$BS$4:$BS$348,city),GeoMet!$BO$4:$BO$940,0),23) -> 86.7 | AP47: =INDEX(geomet,MATCH(INDEX(GeoMet!$BS$4:$BS$348,city),GeoMet!$BO$4:$BO$940,0),24) -> 83.4 | AQ47: =INDEX(geomet,MATCH(INDEX(GeoMet!$BS$4:$BS$348,city),GeoMet!$BO$4:$BO$940,0),25) -> 81.6 | AR47: =INDEX(geomet,MATCH(INDEX(GeoMet!$BS$4:$BS$348,city),GeoMet!$BO$4:$BO$940,0),26) -> 78.2 | AS47: =INDEX(geomet,MATCH(INDEX(GeoMet!$BS$4:$BS$348,city),GeoMet!$BO$4:$BO$940,0),27) -> 67.6 | AT47: =INDEX(geomet,MATCH(INDEX(GeoMet!$BS$4:$BS$348,city),GeoMet!$BO$4:$BO$940,0),28) -> 61.5
E48: =INDEX(languagearea,21,Language!$R$1) -> Max.input Voltage： | I48: =INDEX(inverter,Inverter!$A$1,2) -> 1100 | J48: V | K48: =INDEX(languagearea,30,Language!$R$1) -> AC Power Frequency： | P48: =INDEX(inverter,Inverter!$A$1,19) -> 50/60 | Q48: Hz | T48: =INDEX(languagearea,17,Language!$R$1) -> Layout factor: | V48: =ROUNDDOWN(AW57,2) -> 1.09 | AG48: 方位角α | AH48: =P20 -> 8 | AI48: =AH48*PI()/180 -> 0.1396263402 | AJ48: =AI48 -> 0.1396263402 | AK48: =AJ48 -> 0.1396263402 | AL48: =AK48 -> 0.1396263402 | AM48: =AL48 -> 0.1396263402 | AN48: =AM48 -> 0.1396263402 | AO48: =AN48 -> 0.1396263402 | AP48: =AO48 -> 0.1396263402 | AQ48: =AP48 -> 0.1396263402 | AR48: =AQ48 -> 0.1396263402 | AS48: =AR48 -> 0.1396263402 | AT48: =AS48 -> 0.1396263402
E49: =INDEX(languagearea,23,Language!$R$1) -> MPP Voltage Range： | I49: =INDEX(inverter,Inverter!$A$1,4) -> 480 | J49: =INDEX(inverter,Inverter!$A$1,5) -> 800 | K49: =INDEX(languagearea,31,Language!$R$1) -> Max. output current： | P49: =INDEX(inverter,Inverter!$A$1,12) -> 48 | Q49: A | T49: =INDEX(languagearea,18,Language!$R$1) -> (Nominal PV Power / Inverter active power ) | AG49: 倾角β | AH49: =N20 -> 15 | AI49: =AH49*PI()/180 -> 0.2617993878 | AJ49: 0.2617993878 | AK49: 0.2617993878 | AL49: 0.2617993878 | AM49: 0.2617993878 | AN49: 0.2617993878 | AO49: 0.2617993878 | AP49: 0.2617993878 | AQ49: 0.2617993878 | AR49: 0.2617993878 | AS49: 0.2617993878 | AT49: 0.2617993878 | AW49: =Q30/(P46*V51) -> 1.090909091 | AX49: 1 | AY49: <=28kw,500kw,40kw
E50: =INDEX(languagearea,22,Language!$R$1) -> Operating Voltage： | I50: =INDEX(inverter,Inverter!$A$1,6) -> 200-1000 | J50: V | K50: =INDEX(languagearea,32,Language!$R$1) -> Power Factor： | P50: ±0.8 | T50: =INDEX(languagearea,48,Language!$R$1) -> Module area: | V50: =IF(Inverter!$A$1<3,H23/I42+N23/O42,IF(Inverter!$A$1>11,H23/I42+N23/O42+T23/U42+Z23/AA42, H23/I42+N23/O42+T23/U42))/1000 -> 235.6992 | W50: m² | AW50: =Q30/(33000*V51) -> 1.090909091 | AX50: 2 | AY50: 33kw中国
E51: =INDEX(languagearea,24,Language!$R$1) -> Rated input Voltage： | I51: =INDEX(inverter,Inverter!$A$1,7) -> 620 | J51: V | K51: =INDEX(languagearea,33,Language!$R$1) -> Max. Total Harmonic Distortion(THD)： | P51: ＜3% | T51: cos(φ): | V51: 1 | AG51: 水平日落ωt | AI51: =ACOS(-TAN(AI61)*TAN(AI53)) -> 1.469807689 | AJ51: =ACOS(-TAN(AJ61)*TAN(AJ53)) -> 1.509587218 | AK51: 1.558043714 | AL51: 1.613754229 | AM51: 1.659037428 | AN51: 1.682645344 | AO51: 1.673084021 | AP51: 1.634374433 | AQ51: 1.580822334 | AR51: 1.526980226 | AS51: 1.480749213 | AT51: 1.458835055 | AW51: =Q30/(33000*V51) -> 1.090909091 | AX51: 3 | AY51: 33kw英法德 cos<0.91
E52: =INDEX(languagearea,25,Language!$R$1) -> Number of input： | I52: =INDEX(inverter,Inverter!$A$1,8) -> 8 | K52: =INDEX(languagearea,34,Language!$R$1) -> Operating Temperature： | P52: =INDEX(inverter,Inverter!$A$1,15) -> -25℃~+60℃ | T52: =INDEX(languagearea,49,Language!$R$1) -> Yield yearly: | V52: =IF(Inverter!$A$1<3,(J21*H23+P21*N23)*0.001*V53,IF(Inverter!$A$1>11, (J21*H23+P21*N23+V21*T23+AB21*Z23)*0.001*V53, (J21*H23+P21*N23+V21*T23)*0.001*V53)) -> 52889.55232 | W52: kWh | AG52: 斜面日落ωp | AI52: 15 | AJ52: 46 | AK52: 74 | AL52: 105 | AM52: 135 | AN52: 166 | AO52: 196 | AP52: 227 | AQ52: 258 | AR52: 288 | AS52: 319 | AT52: 349 | AW52: =Q30/30000 -> 1.2 | AX52: 4 | AY52: 33kw英法德 cos>=0.91
E53: =INDEX(languagearea,26,Language!$R$1) -> Number of MPP trackers： | I53: =INDEX(inverter,Inverter!$A$1,9) -> 4 | K53: =INDEX(languagearea,35,Language!$R$1) -> Max. efficiency： | P53: =INDEX(inverter,Inverter!$A$1,13) -> 0.986 | T53: =INDEX(languagearea,72,Language!$R$1) -> Performance Ratio: | V53: 0.817 | AG53: 赤纬角δ | AI53: =23.45*PI()/180*SIN(2*PI()*(AI52+284)/365) -> -0.3712223499 | AJ53: -0.2319395302 | AK53: -0.04919871371 | AL53: 0.1643208876 | AM53: 0.3279808334 | AN53: 0.4069132162 | AO53: 0.37554836 | AP53: 0.2405685774 | AQ53: 0.03869197351 | AR53: -0.1675410879 | AS53: -0.3341924566 | AT53: -0.4072764127
E54: =INDEX(languagearea,27,Language!$R$1) -> Max. MPP Current： | I54: =INDEX(inverter,Inverter!$A$1,3) -> 22 | J54: A | K54: =INDEX(languagearea,36,Language!$R$1) -> Euro. Efficiency： | P54: =INDEX(inverter,Inverter!$A$1,14) -> 0.984 | AI54: =10.443*AI64*AI63*31 -> 255.4111365 | AJ54: =10.443*AJ64*AJ63*28 -> 255.4901872 | AK54: =10.443*AK64*AK63*31 -> 309.8210886 | AL54: =10.443*AL64*AL63*30 -> 317.1087763 | AM54: =10.443*AM64*AM63*31 -> 331.0297306 | AN54: =10.443*AN64*AN63*30 -> 318.3472623 | AO54: =10.443*AO64*AO63*31 -> 328.5918981 | AP54: =10.443*AP64*AP63*31 -> 327.1417246 | AQ54: =10.443*AQ64*AQ63*30 -> 305.0413825 | AR54: =10.443*AR64*AR63*31 -> 290.4188158 | AS54: =10.443*AS64*AS63*30 -> 253.0981308 | AT54: =10.443*AT64*AT63*31 -> 246.8759287
AI55: =IF(ISERROR(-1*MIN(AI51,ABS(-1*ACOS(-1*AI57/AI60)+ASIN(AI59/AI60)))),0,-1*MIN(AI51,ABS(-1*ACOS(-1*AI57/AI60)+ASIN(AI59/AI60)))) -> -1.469807689 | AJ55: =IF(ISERROR(-1*MIN(AJ51,ABS(-1*ACOS(-1*AJ57/AJ60)+ASIN(AJ59/AJ60)))),0,-1*MIN(AJ51,ABS(-1*ACOS(-1*AJ57/AJ60)+ASIN(AJ59/AJ60)))) -> -1.509587218 | AK55: -1.535059686 | AL55: -1.533782429 | AM55: -1.532746303 | AN55: -1.532207638 | AO55: -1.532425646 | AP55: -1.53331024 | AQ55: -1.534537333 | AR55: -1.526980226 | AS55: -1.480749213 | AT55: -1.458835055
AI56: =IF(ISERROR(MIN(AI51,ACOS(-1*AI57/AI60)+ASIN(AI59/AI60))),0,MIN(AI51,ACOS(-1*AI57/AI60)+ASIN(AI59/AI60))) -> 1.469807689 | AJ56: =IF(ISERROR(MIN(AJ51,ACOS(-1*AJ57/AJ60)+ASIN(AJ59/AJ60))),0,MIN(AJ51,ACOS(-1*AJ57/AJ60)+ASIN(AJ59/AJ60))) -> 1.509587218 | AK56: 1.558043714 | AL56: 1.605840586 | AM56: 1.604804461 | AN56: 1.604265796 | AO56: 1.604483803 | AP56: 1.605368397 | AQ56: 1.580822334 | AR56: 1.526980226 | AS56: 1.480749213 | AT56: 1.458835055
AI57: =SIN(AI53)*(SIN(AI61)*COS(AI49)-COS(AI61)*SIN(AI49)*COS(AI48)) -> 0.002154445532 | AJ57: =SIN(AJ53)*(SIN(AJ61)*COS(AJ49)-COS(AJ61)*SIN(AJ49)*COS(AJ48)) -> 0.001365199899 | AK57: 0.0002920793763 | AL57: -0.0009715361119 | AM57: -0.001913182655 | AN57: -0.002350565417 | AO57: -0.002178367938 | AP57: -0.001415025105 | AQ57: -0.0002297390791 | AR57: 0.0009903985874 | AS57: 0.001948070601 | AT57: 0.0023525462 | AW57: =IF(OR(Inverter!A$1<7,Inverter!A$1>7),AW49,IF(AND(Language!R$1=1,Inverter!A$1=7),AW50,IF(V51<0.91,AW51,AW52))) -> 1.090909091
AI58: =COS(AI53)*(COS(AI61)*COS(AI49)+SIN(AI61)*SIN(AI49)*COS(AI48)) -> 0.9312634321 | AJ58: =COS(AJ53)*(COS(AJ61)*COS(AJ49)+SIN(AJ61)*SIN(AJ49)*COS(AJ48)) -> 0.9725736423 | AK58: 0.9981241916 | AL58: 0.9858720507 | AM58: 0.9460636425 | AN58: 0.9177347002 | AO58: 0.9296864882 | AP58: 0.9705552595 | AQ58: 0.9985854555 | AR58: 0.985340523 | AS58: 0.9440457741 | AT58: 0.9175909909 | AW58: =IF(OR(Inverter!A$1<7,Inverter!A$1>7),AX49,IF(AND(Language!R$1=1,Inverter!A$1=7),AX50,IF(V51<0.91,AX51,AX52))) -> 1
AI59: =COS(AI53)*SIN(AI49)*SIN(AI48) -> 0.0335670892 | AJ59: =COS(AJ53)*SIN(AJ49)*SIN(AJ48) -> 0.03505610237 | AK59: 0.03597706365 | AL59: 0.0355354392 | AM59: 0.034100558 | AN59: 0.03307945044 | AO59: 0.03351024877 | AP59: 0.03498335041 | AQ59: 0.03599368976 | AR59: 0.03551628045 | AS59: 0.03402782459 | AT59: 0.03307427048
AI60: =SQRT(AI58^2+AI59^2) -> 0.9318681932 | AJ60: =SQRT(AJ58^2+AJ59^2) -> 0.9732052301 | AK60: 0.998772372 | AL60: 0.9865122745 | AM60: 0.9466780148 | AN60: 0.9183306758 | AO60: 0.9302902252 | AP60: 0.9711855367 | AQ60: 0.9992339354 | AR60: 0.9859804017 | AS60: 0.944658836 | AT60: 0.9181868731
AG61: 纬度Ф | AH61: =INDEX(geomet,MATCH(INDEX(GeoMet!$BS$4:$BS$348,city),GeoMet!$BO$4:$BO$940,0),1) -> 14.52 | AI61: =AH61*PI()/180 -> 0.2534218074 | AJ61: =AI61 -> 0.2534218074 | AK61: =AJ61 -> 0.2534218074 | AL61: =AK61 -> 0.2534218074 | AM61: =AL61 -> 0.2534218074 | AN61: =AM61 -> 0.2534218074 | AO61: =AN61 -> 0.2534218074 | AP61: =AO61 -> 0.2534218074 | AQ61: =AP61 -> 0.2534218074 | AR61: =AQ61 -> 0.2534218074 | AS61: =AR61 -> 0.2534218074 | AT61: =AS61 -> 0.2534218074
AG62: 经度η | AH62: =INDEX(geomet,MATCH(INDEX(GeoMet!$BS$4:$BS$348,city),GeoMet!$BO$4:$BO$940,0),2) -> 121 | AI62: =AH62*PI()/180 -> 2.111848395 | AJ62: =AI62 -> 2.111848395 | AK62: 2.111848395 | AL62: 2.111848395 | AM62: 2.111848395 | AN62: 2.111848395 | AO62: 2.111848395 | AP62: 2.111848395 | AQ62: 2.111848395 | AR62: 2.111848395 | AS62: 2.111848395 | AT62: 2.111848395
AG63: Al | AI63: =1+0.034*COS(2*PI()*AI52/365) -> 1.032872826 | AJ63: =1+0.034*COS(2*PI()*AJ52/365) -> 1.023885934 | AK63: 1.009948411 | AL63: 0.9920272928 | AM63: 0.9767467397 | AN63: 0.9673622886 | AO63: 0.9669139765 | AP63: 0.9754973169 | AQ63: 0.9908943136 | AR63: 1.008256891 | AS63: 1.023885934 | AT63: 1.032718509
AI64: =COS(AI61)*COS(AI53)*SIN(AI51)+AI51*SIN(AI61)*SIN(AI53) -> 0.7638463474 | AJ64: =COS(AJ61)*COS(AJ53)*SIN(AJ51)+AJ51*SIN(AJ61)*SIN(AJ53) -> 0.8533738651 | AK64: 0.9475994792 | AL64: 1.020324014 | AM64: 1.046882786 | AN64: 1.05042593 | AO64: 1.049740714 | AP64: 1.035912057 | AQ64: 0.9826183987 | AR64: 0.8897470969 | AS64: 0.789025117 | AT64: 0.7384308194
AG65: Rb | AI65: =IF(((AI56-AI55)*AI57+(SIN(AI56)-SIN(AI55))*AI58+(COS(AI56)-COS(AI55))*AI59)/(COS(AI61)*COS(AI53)*SIN(AI51)+AI51*SIN(AI61)*SIN(AI53))/2>0,((AI56-AI55)*AI57+(SIN(AI56)-SIN(AI55))*AI58+(COS(AI56)-COS(AI55))*AI59)/(COS(AI61)*COS(AI53)*SIN(AI51)+AI51*SIN(AI61)*SIN(AI53))/2,0) -> 1.217110287 | AJ65: =IF(((AJ56-AJ55)*AJ57+(SIN(AJ56)-SIN(AJ55))*AJ58+(COS(AJ56)-COS(AJ55))*AJ59)/(COS(AJ61)*COS(AJ53)*SIN(AJ51)+AJ51*SIN(AJ61)*SIN(AJ53))/2>0,((AJ56-AJ55)*AJ57+(SIN(AJ56)-SIN(AJ55))*AJ58+(COS(AJ56)-COS(AJ55))*AJ59)/(COS(AJ61)*COS(AJ53)*SIN(AJ51)+AJ51*SIN(AJ61)*SIN(AJ53))/2,0) -> 1.139961322 | AK65: 1.052980069 | AL65: 0.9628574753 | AM65: 0.8990672633 | AN65: 0.8684651415 | AO65: 0.8806525588 | AP65: 0.9329397771 | AQ65: 1.014678218 | AR65: 1.108075703 | AS65: 1.195279534 | AT65: 1.239490278
AG66: ρR | AH66: 0.2 | AI66: =AH66 -> 0.2 | AJ66: =AI66 -> 0.2 | AK66: =AJ66 -> 0.2 | AL66: =AK66 -> 0.2 | AM66: =AL66 -> 0.2 | AN66: =AM66 -> 0.2 | AO66: =AN66 -> 0.2 | AP66: =AO66 -> 0.2 | AQ66: =AP66 -> 0.2 | AR66: =AQ66 -> 0.2 | AS66: =AR66 -> 0.2 | AT66: =AS66 -> 0.2
AG67: 直射St | AI67: =AI65*AI45 -> 72.66148412 | AJ67: =AJ65*AJ45 -> 86.40906817 | AK67: 109.5099271 | AL67: 110.7286097 | AM67: 81.63530751 | AN67: 68.95613224 | AO67: 55.30498069 | AP67: 43.66158157 | AQ67: 60.17041831 | AR67: 60.05770311 | AS67: 72.43393976 | AT67: 80.56686807 | AU67: =SUM(AI67:AT67) -> 902.0960204
AG68: 漫射Dt | AI68: =AI46*0.5*(1+COS(AI49)) -> 67.82444101 | AJ68: =AJ46*0.5*(1+COS(AJ49)) -> 58.19140446 | AK68: 74.60688511 | AL68: 71.65799637 | AM68: 81.88081066 | AN68: 84.73140311 | AO68: 85.22288457 | AP68: 81.97910696 | AQ68: 80.20977371 | AR68: 76.86769981 | AS68: 66.44829293 | AT68: 60.45221916 | AU68: =SUM(AI68:AT68) -> 890.0729179
AG69: 反射Rt | AI69: =0.5*AI66*AI44*(1-COS(AI49)) -> 0.4385346157 | AJ69: =0.5*AJ66*AJ44*(1-COS(AJ49)) -> 0.4600013451 | AK69: 0.6129943851 | AL69: 0.640253724 | AM69: 0.5932313643 | AN69: 0.5642683167 | AO69: 0.509408897 | AP69: 0.4436457417 | AQ69: 0.4801051076 | AR69: 0.4511420599 | AS69: 0.436830907 | AT69: 0.4310382974 | AU69: =SUM(AI69:AT69) -> 6.061454761
AG70: 总Qt | AI70: =SUM(AI67:AI69) -> 140.9244597 | AJ70: 145.060474 | AK70: 184.7298066 | AL70: 183.0268598 | AM70: 164.1093495 | AN70: 154.2518037 | AO70: 141.0372742 | AP70: 126.0843343 | AQ70: 140.8602971 | AR70: 137.376545 | AS70: 139.3190636 | AT70: =SUM(AT67:AT69) -> 141.4501255 | AU70: =SUM(AI70:AT70) -> 1798.230393
AI71: =AI44/AI54 -> 0.5038934549 | AJ71: =AJ44/AJ54 -> 0.5283960277 | AK71: 0.5806576976 | AL71: 0.5925411532 | AM71: 0.5259346334 | AN71: 0.5201866628 | AO71: 0.4549716559 | AP71: 0.3979926442 | AQ71: 0.4619045418 | AR71: 0.4558933265 | AS71: 0.5065229031 | AT71: 0.5124031357
AI72: =1.236-1.422*AI71 -> 0.5194635071 | AJ72: =1.236-1.422*AJ71 -> 0.4846208487 | AK72: 0.410304754 | AL72: 0.3934064801 | AM72: 0.4881209513 | AN72: 0.4962945655 | AO72: 0.5890303054 | AP72: 0.67005446 | AQ72: 0.5791717416 | AR72: 0.5877196897 | AS72: 0.5157244318 | AT72: 0.507362741
AI73: =AI72*AI44 -> 66.85495336 | AJ73: =AJ72*AJ44 -> 65.42381457 | AK73: 73.81382524 | AL73: 73.92107761 | AM73: 84.98185763 | AN73: 82.18638004 | AO73: 88.06003065 | AP73: 87.24109069 | AQ73: 81.60529839 | AR73: 77.81408692 | AS73: 66.11587216 | AT73: 64.18138674
AH76: mon | AI76: 1 | AJ76: 2 | AK76: 3 | AL76: 4 | AM76: 5 | AN76: 6 | AO76: 7 | AP76: 8 | AQ76: 9 | AR76: 10 | AS76: 11 | AT76: 12
AH78: globle | AI78: =INDEX(geomet,MATCH(INDEX(GeoMet!$BS$4:$BS$348,city),GeoMet!$BO$4:$BO$940,0),4) -> 128.7 | AJ78: =INDEX(geomet,MATCH(INDEX(GeoMet!$BS$4:$BS$348,city),GeoMet!$BO$4:$BO$940,0),5) -> 135 | AK78: =INDEX(geomet,MATCH(INDEX(GeoMet!$BS$4:$BS$348,city),GeoMet!$BO$4:$BO$940,0),6) -> 179.9 | AL78: =INDEX(geomet,MATCH(INDEX(GeoMet!$BS$4:$BS$348,city),GeoMet!$BO$4:$BO$940,0),7) -> 187.9 | AM78: =INDEX(geomet,MATCH(INDEX(GeoMet!$BS$4:$BS$348,city),GeoMet!$BO$4:$BO$940,0),8) -> 174.1 | AN78: =INDEX(geomet,MATCH(INDEX(GeoMet!$BS$4:$BS$348,city),GeoMet!$BO$4:$BO$940,0),9) -> 165.6 | AO78: =INDEX(geomet,MATCH(INDEX(GeoMet!$BS$4:$BS$348,city),GeoMet!$BO$4:$BO$940,0),10) -> 149.5 | AP78: =INDEX(geomet,MATCH(INDEX(GeoMet!$BS$4:$BS$348,city),GeoMet!$BO$4:$BO$940,0),11) -> 130.2 | AQ78: =INDEX(geomet,MATCH(INDEX(GeoMet!$BS$4:$BS$348,city),GeoMet!$BO$4:$BO$940,0),12) -> 140.9 | AR78: =INDEX(geomet,MATCH(INDEX(GeoMet!$BS$4:$BS$348,city),GeoMet!$BO$4:$BO$940,0),13) -> 132.4 | AS78: =INDEX(geomet,MATCH(INDEX(GeoMet!$BS$4:$BS$348,city),GeoMet!$BO$4:$BO$940,0),14) -> 128.2 | AT78: =INDEX(geomet,MATCH(INDEX(GeoMet!$BS$4:$BS$348,city),GeoMet!$BO$4:$BO$940,0),15) -> 126.5 | AU78: =SUM(AI78:AT78) -> 1778.9
AH79: incident | AI79: =AI78-AI80 -> 59.7 | AJ79: =AJ78-AJ80 -> 75.8 | AK79: 104 | AL79: 115 | AM79: 90.8 | AN79: 79.4 | AO79: 62.8 | AP79: 46.8 | AQ79: 59.3 | AR79: 54.2 | AS79: 60.6 | AT79: 65
AH80: diffuse | AI80: =IF(AI81=0,AI107,AI81) -> 69 | AJ80: =IF(AJ81=0,AJ107,AJ81) -> 59.2 | AK80: 75.9 | AL80: 72.9 | AM80: 83.3 | AN80: 86.2 | AO80: 86.7 | AP80: 83.4 | AQ80: 81.6 | AR80: 78.2 | AS80: 67.6 | AT80: 61.5
AI81: =INDEX(geomet,MATCH(INDEX(GeoMet!$BS$4:$BS$348,city),GeoMet!$BO$4:$BO$940,0),17) -> 69 | AJ81: =INDEX(geomet,MATCH(INDEX(GeoMet!$BS$4:$BS$348,city),GeoMet!$BO$4:$BO$940,0),18) -> 59.2 | AK81: =INDEX(geomet,MATCH(INDEX(GeoMet!$BS$4:$BS$348,city),GeoMet!$BO$4:$BO$940,0),19) -> 75.9 | AL81: =INDEX(geomet,MATCH(INDEX(GeoMet!$BS$4:$BS$348,city),GeoMet!$BO$4:$BO$940,0),20) -> 72.9 | AM81: =INDEX(geomet,MATCH(INDEX(GeoMet!$BS$4:$BS$348,city),GeoMet!$BO$4:$BO$940,0),21) -> 83.3 | AN81: =INDEX(geomet,MATCH(INDEX(GeoMet!$BS$4:$BS$348,city),GeoMet!$BO$4:$BO$940,0),22) -> 86.2 | AO81: =INDEX(geomet,MATCH(INDEX(GeoMet!$BS$4:$BS$348,city),GeoMet!$BO$4:$BO$940,0),23) -> 86.7 | AP81: =INDEX(geomet,MATCH(INDEX(GeoMet!$BS$4:$BS$348,city),GeoMet!$BO$4:$BO$940,0),24) -> 83.4 | AQ81: =INDEX(geomet,MATCH(INDEX(GeoMet!$BS$4:$BS$348,city),GeoMet!$BO$4:$BO$940,0),25) -> 81.6 | AR81: =INDEX(geomet,MATCH(INDEX(GeoMet!$BS$4:$BS$348,city),GeoMet!$BO$4:$BO$940,0),26) -> 78.2 | AS81: =INDEX(geomet,MATCH(INDEX(GeoMet!$BS$4:$BS$348,city),GeoMet!$BO$4:$BO$940,0),27) -> 67.6 | AT81: =INDEX(geomet,MATCH(INDEX(GeoMet!$BS$4:$BS$348,city),GeoMet!$BO$4:$BO$940,0),28) -> 61.5
AG82: 方位角α | AH82: =V20 -> 8 | AI82: =AH82*PI()/180 -> 0.1396263402 | AJ82: =AI82 -> 0.1396263402 | AK82: =AJ82 -> 0.1396263402 | AL82: =AK82 -> 0.1396263402 | AM82: =AL82 -> 0.1396263402 | AN82: =AM82 -> 0.1396263402 | AO82: =AN82 -> 0.1396263402 | AP82: =AO82 -> 0.1396263402 | AQ82: =AP82 -> 0.1396263402 | AR82: =AQ82 -> 0.1396263402 | AS82: =AR82 -> 0.1396263402 | AT82: =AS82 -> 0.1396263402
AG83: 倾角β | AH83: =T20 -> 15 | AI83: =AH83*PI()/180 -> 0.2617993878 | AJ83: 0.2617993878 | AK83: 0.2617993878 | AL83: 0.2617993878 | AM83: 0.2617993878 | AN83: 0.2617993878 | AO83: 0.2617993878 | AP83: 0.2617993878 | AQ83: 0.2617993878 | AR83: 0.2617993878 | AS83: 0.2617993878 | AT83: 0.2617993878
AG85: 水平日落ωt | AI85: =ACOS(-TAN(AI95)*TAN(AI87)) -> 1.469807689 | AJ85: =ACOS(-TAN(AJ95)*TAN(AJ87)) -> 1.509587218 | AK85: 1.558043714 | AL85: 1.613754229 | AM85: 1.659037428 | AN85: 1.682645344 | AO85: 1.673084021 | AP85: 1.634374433 | AQ85: 1.580822334 | AR85: 1.526980226 | AS85: 1.480749213 | AT85: 1.458835055
AG86: 斜面日落ωp | AI86: 15 | AJ86: 46 | AK86: 74 | AL86: 105 | AM86: 135 | AN86: 166 | AO86: 196 | AP86: 227 | AQ86: 258 | AR86: 288 | AS86: 319 | AT86: 349
AG87: 赤纬角δ | AI87: =23.45*PI()/180*SIN(2*PI()*(AI86+284)/365) -> -0.3712223499 | AJ87: -0.2319395302 | AK87: -0.04919871371 | AL87: 0.1643208876 | AM87: 0.3279808334 | AN87: 0.4069132162 | AO87: 0.37554836 | AP87: 0.2405685774 | AQ87: 0.03869197351 | AR87: -0.1675410879 | AS87: -0.3341924566 | AT87: -0.4072764127
AI88: =10.443*AI98*AI97*31 -> 255.4111365 | AJ88: =10.443*AJ98*AJ97*28 -> 255.4901872 | AK88: =10.443*AK98*AK97*31 -> 309.8210886 | AL88: =10.443*AL98*AL97*30 -> 317.1087763 | AM88: =10.443*AM98*AM97*31 -> 331.0297306 | AN88: =10.443*AN98*AN97*30 -> 318.3472623 | AO88: =10.443*AO98*AO97*31 -> 328.5918981 | AP88: =10.443*AP98*AP97*31 -> 327.1417246 | AQ88: =10.443*AQ98*AQ97*30 -> 305.0413825 | AR88: =10.443*AR98*AR97*31 -> 290.4188158 | AS88: =10.443*AS98*AS97*30 -> 253.0981308 | AT88: =10.443*AT98*AT97*31 -> 246.8759287
AI89: =IF(ISERROR(-1*MIN(AI85,ABS(-1*ACOS(-1*AI91/AI94)+ASIN(AI93/AI94)))),0,-1*MIN(AI85,ABS(-1*ACOS(-1*AI91/AI94)+ASIN(AI93/AI94)))) -> -1.469807689 | AJ89: =IF(ISERROR(-1*MIN(AJ85,ABS(-1*ACOS(-1*AJ91/AJ94)+ASIN(AJ93/AJ94)))),0,-1*MIN(AJ85,ABS(-1*ACOS(-1*AJ91/AJ94)+ASIN(AJ93/AJ94)))) -> -1.509587218 | AK89: -1.535059686 | AL89: -1.533782429 | AM89: -1.532746303 | AN89: -1.532207638 | AO89: -1.532425646 | AP89: -1.53331024 | AQ89: -1.534537333 | AR89: -1.526980226 | AS89: -1.480749213 | AT89: -1.458835055
AI90: =IF(ISERROR(MIN(AI85,ACOS(-1*AI91/AI94)+ASIN(AI93/AI94))),0,MIN(AI85,ACOS(-1*AI91/AI94)+ASIN(AI93/AI94))) -> 1.469807689 | AJ90: =IF(ISERROR(MIN(AJ85,ACOS(-1*AJ91/AJ94)+ASIN(AJ93/AJ94))),0,MIN(AJ85,ACOS(-1*AJ91/AJ94)+ASIN(AJ93/AJ94))) -> 1.509587218 | AK90: 1.558043714 | AL90: 1.605840586 | AM90: 1.604804461 | AN90: 1.604265796 | AO90: 1.604483803 | AP90: 1.605368397 | AQ90: 1.580822334 | AR90: 1.526980226 | AS90: 1.480749213 | AT90: 1.458835055
AI91: =SIN(AI87)*(SIN(AI95)*COS(AI83)-COS(AI95)*SIN(AI83)*COS(AI82)) -> 0.002154445532 | AJ91: =SIN(AJ87)*(SIN(AJ95)*COS(AJ83)-COS(AJ95)*SIN(AJ83)*COS(AJ82)) -> 0.001365199899 | AK91: 0.0002920793763 | AL91: -0.0009715361119 | AM91: -0.001913182655 | AN91: -0.002350565417 | AO91: -0.002178367938 | AP91: -0.001415025105 | AQ91: -0.0002297390791 | AR91: 0.0009903985874 | AS91: 0.001948070601 | AT91: 0.0023525462
AI92: =COS(AI87)*(COS(AI95)*COS(AI83)+SIN(AI95)*SIN(AI83)*COS(AI82)) -> 0.9312634321 | AJ92: =COS(AJ87)*(COS(AJ95)*COS(AJ83)+SIN(AJ95)*SIN(AJ83)*COS(AJ82)) -> 0.9725736423 | AK92: 0.9981241916 | AL92: 0.9858720507 | AM92: 0.9460636425 | AN92: 0.9177347002 | AO92: 0.9296864882 | AP92: 0.9705552595 | AQ92: 0.9985854555 | AR92: 0.985340523 | AS92: 0.9440457741 | AT92: 0.9175909909
AI93: =COS(AI87)*SIN(AI83)*SIN(AI82) -> 0.0335670892 | AJ93: =COS(AJ87)*SIN(AJ83)*SIN(AJ82) -> 0.03505610237 | AK93: 0.03597706365 | AL93: 0.0355354392 | AM93: 0.034100558 | AN93: 0.03307945044 | AO93: 0.03351024877 | AP93: 0.03498335041 | AQ93: 0.03599368976 | AR93: 0.03551628045 | AS93: 0.03402782459 | AT93: 0.03307427048
AI94: =SQRT(AI92^2+AI93^2) -> 0.9318681932 | AJ94: =SQRT(AJ92^2+AJ93^2) -> 0.9732052301 | AK94: 0.998772372 | AL94: 0.9865122745 | AM94: 0.9466780148 | AN94: 0.9183306758 | AO94: 0.9302902252 | AP94: 0.9711855367 | AQ94: 0.9992339354 | AR94: 0.9859804017 | AS94: 0.944658836 | AT94: 0.9181868731
AG95: 纬度Ф | AH95: =INDEX(geomet,MATCH(INDEX(GeoMet!$BS$4:$BS$348,city),GeoMet!$BO$4:$BO$940,0),1) -> 14.52 | AI95: =AH95*PI()/180 -> 0.2534218074 | AJ95: =AI95 -> 0.2534218074 | AK95: =AJ95 -> 0.2534218074 | AL95: =AK95 -> 0.2534218074 | AM95: =AL95 -> 0.2534218074 | AN95: =AM95 -> 0.2534218074 | AO95: =AN95 -> 0.2534218074 | AP95: =AO95 -> 0.2534218074 | AQ95: =AP95 -> 0.2534218074 | AR95: =AQ95 -> 0.2534218074 | AS95: =AR95 -> 0.2534218074 | AT95: =AS95 -> 0.2534218074
AG96: 经度η | AH96: =INDEX(geomet,MATCH(INDEX(GeoMet!$BS$4:$BS$348,city),GeoMet!$BO$4:$BO$940,0),2) -> 121 | AI96: =AH96*PI()/180 -> 2.111848395 | AJ96: =AI96 -> 2.111848395 | AK96: 2.111848395 | AL96: 2.111848395 | AM96: 2.111848395 | AN96: 2.111848395 | AO96: 2.111848395 | AP96: 2.111848395 | AQ96: 2.111848395 | AR96: 2.111848395 | AS96: 2.111848395 | AT96: 2.111848395
AG97: Al | AI97: =1+0.034*COS(2*PI()*AI86/365) -> 1.032872826 | AJ97: =1+0.034*COS(2*PI()*AJ86/365) -> 1.023885934 | AK97: 1.009948411 | AL97: 0.9920272928 | AM97: 0.9767467397 | AN97: 0.9673622886 | AO97: 0.9669139765 | AP97: 0.9754973169 | AQ97: 0.9908943136 | AR97: 1.008256891 | AS97: 1.023885934 | AT97: 1.032718509
AI98: =COS(AI95)*COS(AI87)*SIN(AI85)+AI85*SIN(AI95)*SIN(AI87) -> 0.7638463474 | AJ98: =COS(AJ95)*COS(AJ87)*SIN(AJ85)+AJ85*SIN(AJ95)*SIN(AJ87) -> 0.8533738651 | AK98: 0.9475994792 | AL98: 1.020324014 | AM98: 1.046882786 | AN98: 1.05042593 | AO98: 1.049740714 | AP98: 1.035912057 | AQ98: 0.9826183987 | AR98: 0.8897470969 | AS98: 0.789025117 | AT98: 0.7384308194
AG99: Rb | AI99: =IF(((AI90-AI89)*AI91+(SIN(AI90)-SIN(AI89))*AI92+(COS(AI90)-COS(AI89))*AI93)/(COS(AI95)*COS(AI87)*SIN(AI85)+AI85*SIN(AI95)*SIN(AI87))/2>0,((AI90-AI89)*AI91+(SIN(AI90)-SIN(AI89))*AI92+(COS(AI90)-COS(AI89))*AI93)/(COS(AI95)*COS(AI87)*SIN(AI85)+AI85*SIN(AI95)*SIN(AI87))/2,0) -> 1.217110287 | AJ99: =IF(((AJ90-AJ89)*AJ91+(SIN(AJ90)-SIN(AJ89))*AJ92+(COS(AJ90)-COS(AJ89))*AJ93)/(COS(AJ95)*COS(AJ87)*SIN(AJ85)+AJ85*SIN(AJ95)*SIN(AJ87))/2>0,((AJ90-AJ89)*AJ91+(SIN(AJ90)-SIN(AJ89))*AJ92+(COS(AJ90)-COS(AJ89))*AJ93)/(COS(AJ95)*COS(AJ87)*SIN(AJ85)+AJ85*SIN(AJ95)*SIN(AJ87))/2,0) -> 1.139961322 | AK99: 1.052980069 | AL99: 0.9628574753 | AM99: 0.8990672633 | AN99: 0.8684651415 | AO99: 0.8806525588 | AP99: 0.9329397771 | AQ99: 1.014678218 | AR99: 1.108075703 | AS99: 1.195279534 | AT99: 1.239490278
AG100: ρR | AH100: 0.2 | AI100: =AH100 -> 0.2 | AJ100: =AI100 -> 0.2 | AK100: =AJ100 -> 0.2 | AL100: =AK100 -> 0.2 | AM100: =AL100 -> 0.2 | AN100: =AM100 -> 0.2 | AO100: =AN100 -> 0.2 | AP100: =AO100 -> 0.2 | AQ100: =AP100 -> 0.2 | AR100: =AQ100 -> 0.2 | AS100: =AR100 -> 0.2 | AT100: =AS100 -> 0.2
AG101: 直射St | AI101: =AI99*AI79 -> 72.66148412 | AJ101: =AJ99*AJ79 -> 86.40906817 | AK101: 109.5099271 | AL101: 110.7286097 | AM101: 81.63530751 | AN101: 68.95613224 | AO101: 55.30498069 | AP101: 43.66158157 | AQ101: 60.17041831 | AR101: 60.05770311 | AS101: 72.43393976 | AT101: 80.56686807 | AU101: =SUM(AI101:AT101) -> 902.0960204
AG102: 漫射Dt | AI102: =AI80*0.5*(1+COS(AI83)) -> 67.82444101 | AJ102: =AJ80*0.5*(1+COS(AJ83)) -> 58.19140446 | AK102: 74.60688511 | AL102: 71.65799637 | AM102: 81.88081066 | AN102: 84.73140311 | AO102: 85.22288457 | AP102: 81.97910696 | AQ102: 80.20977371 | AR102: 76.86769981 | AS102: 66.44829293 | AT102: 60.45221916 | AU102: =SUM(AI102:AT102) -> 890.0729179
AG103: 反射Rt | AI103: =0.5*AI100*AI78*(1-COS(AI83)) -> 0.4385346157 | AJ103: =0.5*AJ100*AJ78*(1-COS(AJ83)) -> 0.4600013451 | AK103: 0.6129943851 | AL103: 0.640253724 | AM103: 0.5932313643 | AN103: 0.5642683167 | AO103: 0.509408897 | AP103: 0.4436457417 | AQ103: 0.4801051076 | AR103: 0.4511420599 | AS103: 0.436830907 | AT103: 0.4310382974 | AU103: =SUM(AI103:AT103) -> 6.061454761
AG104: 总Qt | AI104: =SUM(AI101:AI103) -> 140.9244597 | AJ104: 145.060474 | AK104: 184.7298066 | AL104: 183.0268598 | AM104: 164.1093495 | AN104: 154.2518037 | AO104: 141.0372742 | AP104: 126.0843343 | AQ104: 140.8602971 | AR104: 137.376545 | AS104: 139.3190636 | AT104: =SUM(AT101:AT103) -> 141.4501255 | AU104: =SUM(AI104:AT104) -> 1798.230393
AI105: =AI78/AI88 -> 0.5038934549 | AJ105: =AJ78/AJ88 -> 0.5283960277 | AK105: 0.5806576976 | AL105: 0.5925411532 | AM105: 0.5259346334 | AN105: 0.5201866628 | AO105: 0.4549716559 | AP105: 0.3979926442 | AQ105: 0.4619045418 | AR105: 0.4558933265 | AS105: 0.5065229031 | AT105: 0.5124031357
AI106: =1.236-1.422*AI105 -> 0.5194635071 | AJ106: =1.236-1.422*AJ105 -> 0.4846208487 | AK106: 0.410304754 | AL106: 0.3934064801 | AM106: 0.4881209513 | AN106: 0.4962945655 | AO106: 0.5890303054 | AP106: 0.67005446 | AQ106: 0.5791717416 | AR106: 0.5877196897 | AS106: 0.5157244318 | AT106: 0.507362741
AI107: =AI106*AI78 -> 66.85495336 | AJ107: =AJ106*AJ78 -> 65.42381457 | AK107: 73.81382524 | AL107: 73.92107761 | AM107: 84.98185763 | AN107: 82.18638004 | AO107: 88.06003065 | AP107: 87.24109069 | AQ107: 81.60529839 | AR107: 77.81408692 | AS107: 66.11587216 | AT107: 64.18138674
AH110: mon | AI110: 1 | AJ110: 2 | AK110: 3 | AL110: 4 | AM110: 5 | AN110: 6 | AO110: 7 | AP110: 8 | AQ110: 9 | AR110: 10 | AS110: 11 | AT110: 12
AH112: globle | AI112: =INDEX(geomet,MATCH(INDEX(GeoMet!$BS$4:$BS$348,city),GeoMet!$BO$4:$BO$940,0),4) -> 128.7 | AJ112: =INDEX(geomet,MATCH(INDEX(GeoMet!$BS$4:$BS$348,city),GeoMet!$BO$4:$BO$940,0),5) -> 135 | AK112: =INDEX(geomet,MATCH(INDEX(GeoMet!$BS$4:$BS$348,city),GeoMet!$BO$4:$BO$940,0),6) -> 179.9 | AL112: =INDEX(geomet,MATCH(INDEX(GeoMet!$BS$4:$BS$348,city),GeoMet!$BO$4:$BO$940,0),7) -> 187.9 | AM112: =INDEX(geomet,MATCH(INDEX(GeoMet!$BS$4:$BS$348,city),GeoMet!$BO$4:$BO$940,0),8) -> 174.1 | AN112: =INDEX(geomet,MATCH(INDEX(GeoMet!$BS$4:$BS$348,city),GeoMet!$BO$4:$BO$940,0),9) -> 165.6 | AO112: =INDEX(geomet,MATCH(INDEX(GeoMet!$BS$4:$BS$348,city),GeoMet!$BO$4:$BO$940,0),10) -> 149.5 | AP112: =INDEX(geomet,MATCH(INDEX(GeoMet!$BS$4:$BS$348,city),GeoMet!$BO$4:$BO$940,0),11) -> 130.2 | AQ112: =INDEX(geomet,MATCH(INDEX(GeoMet!$BS$4:$BS$348,city),GeoMet!$BO$4:$BO$940,0),12) -> 140.9 | AR112: =INDEX(geomet,MATCH(INDEX(GeoMet!$BS$4:$BS$348,city),GeoMet!$BO$4:$BO$940,0),13) -> 132.4 | AS112: =INDEX(geomet,MATCH(INDEX(GeoMet!$BS$4:$BS$348,city),GeoMet!$BO$4:$BO$940,0),14) -> 128.2 | AT112: =INDEX(geomet,MATCH(INDEX(GeoMet!$BS$4:$BS$348,city),GeoMet!$BO$4:$BO$940,0),15) -> 126.5 | AU112: =SUM(AI112:AT112) -> 1778.9
AH113: incident | AI113: =AI112-AI114 -> 59.7 | AJ113: =AJ112-AJ114 -> 75.8 | AK113: 104 | AL113: 115 | AM113: 90.8 | AN113: 79.4 | AO113: 62.8 | AP113: 46.8 | AQ113: 59.3 | AR113: 54.2 | AS113: 60.6 | AT113: 65
AH114: diffuse | AI114: =IF(AI115=0,AI141,AI115) -> 69 | AJ114: =IF(AJ115=0,AJ141,AJ115) -> 59.2 | AK114: 75.9 | AL114: 72.9 | AM114: 83.3 | AN114: 86.2 | AO114: 86.7 | AP114: 83.4 | AQ114: 81.6 | AR114: 78.2 | AS114: 67.6 | AT114: 61.5
AI115: =INDEX(geomet,MATCH(INDEX(GeoMet!$BS$4:$BS$348,city),GeoMet!$BO$4:$BO$940,0),17) -> 69 | AJ115: =INDEX(geomet,MATCH(INDEX(GeoMet!$BS$4:$BS$348,city),GeoMet!$BO$4:$BO$940,0),18) -> 59.2 | AK115: =INDEX(geomet,MATCH(INDEX(GeoMet!$BS$4:$BS$348,city),GeoMet!$BO$4:$BO$940,0),19) -> 75.9 | AL115: =INDEX(geomet,MATCH(INDEX(GeoMet!$BS$4:$BS$348,city),GeoMet!$BO$4:$BO$940,0),20) -> 72.9 | AM115: =INDEX(geomet,MATCH(INDEX(GeoMet!$BS$4:$BS$348,city),GeoMet!$BO$4:$BO$940,0),21) -> 83.3 | AN115: =INDEX(geomet,MATCH(INDEX(GeoMet!$BS$4:$BS$348,city),GeoMet!$BO$4:$BO$940,0),22) -> 86.2 | AO115: =INDEX(geomet,MATCH(INDEX(GeoMet!$BS$4:$BS$348,city),GeoMet!$BO$4:$BO$940,0),23) -> 86.7 | AP115: =INDEX(geomet,MATCH(INDEX(GeoMet!$BS$4:$BS$348,city),GeoMet!$BO$4:$BO$940,0),24) -> 83.4 | AQ115: =INDEX(geomet,MATCH(INDEX(GeoMet!$BS$4:$BS$348,city),GeoMet!$BO$4:$BO$940,0),25) -> 81.6 | AR115: =INDEX(geomet,MATCH(INDEX(GeoMet!$BS$4:$BS$348,city),GeoMet!$BO$4:$BO$940,0),26) -> 78.2 | AS115: =INDEX(geomet,MATCH(INDEX(GeoMet!$BS$4:$BS$348,city),GeoMet!$BO$4:$BO$940,0),27) -> 67.6 | AT115: =INDEX(geomet,MATCH(INDEX(GeoMet!$BS$4:$BS$348,city),GeoMet!$BO$4:$BO$940,0),28) -> 61.5
AG116: 方位角α | AH116: =AB20 -> 8 | AI116: =AH116*PI()/180 -> 0.1396263402 | AJ116: =AI116 -> 0.1396263402 | AK116: =AJ116 -> 0.1396263402 | AL116: =AK116 -> 0.1396263402 | AM116: =AL116 -> 0.1396263402 | AN116: =AM116 -> 0.1396263402 | AO116: =AN116 -> 0.1396263402 | AP116: =AO116 -> 0.1396263402 | AQ116: =AP116 -> 0.1396263402 | AR116: =AQ116 -> 0.1396263402 | AS116: =AR116 -> 0.1396263402 | AT116: =AS116 -> 0.1396263402
AG117: 倾角β | AH117: =Z20 -> 15 | AI117: =AH117*PI()/180 -> 0.2617993878 | AJ117: 0.2617993878 | AK117: 0.2617993878 | AL117: 0.2617993878 | AM117: 0.2617993878 | AN117: 0.2617993878 | AO117: 0.2617993878 | AP117: 0.2617993878 | AQ117: 0.2617993878 | AR117: 0.2617993878 | AS117: 0.2617993878 | AT117: 0.2617993878
AG119: 水平日落ωt | AI119: =ACOS(-TAN(AI129)*TAN(AI121)) -> 1.469807689 | AJ119: =ACOS(-TAN(AJ129)*TAN(AJ121)) -> 1.509587218 | AK119: 1.558043714 | AL119: 1.613754229 | AM119: 1.659037428 | AN119: 1.682645344 | AO119: 1.673084021 | AP119: 1.634374433 | AQ119: 1.580822334 | AR119: 1.526980226 | AS119: 1.480749213 | AT119: 1.458835055
AG120: 斜面日落ωp | AI120: 15 | AJ120: 46 | AK120: 74 | AL120: 105 | AM120: 135 | AN120: 166 | AO120: 196 | AP120: 227 | AQ120: 258 | AR120: 288 | AS120: 319 | AT120: 349
AG121: 赤纬角δ | AI121: =23.45*PI()/180*SIN(2*PI()*(AI120+284)/365) -> -0.3712223499 | AJ121: -0.2319395302 | AK121: -0.04919871371 | AL121: 0.1643208876 | AM121: 0.3279808334 | AN121: 0.4069132162 | AO121: 0.37554836 | AP121: 0.2405685774 | AQ121: 0.03869197351 | AR121: -0.1675410879 | AS121: -0.3341924566 | AT121: -0.4072764127
AI122: =10.443*AI132*AI131*31 -> 255.4111365 | AJ122: =10.443*AJ132*AJ131*28 -> 255.4901872 | AK122: =10.443*AK132*AK131*31 -> 309.8210886 | AL122: =10.443*AL132*AL131*30 -> 317.1087763 | AM122: =10.443*AM132*AM131*31 -> 331.0297306 | AN122: =10.443*AN132*AN131*30 -> 318.3472623 | AO122: =10.443*AO132*AO131*31 -> 328.5918981 | AP122: =10.443*AP132*AP131*31 -> 327.1417246 | AQ122: =10.443*AQ132*AQ131*30 -> 305.0413825 | AR122: =10.443*AR132*AR131*31 -> 290.4188158 | AS122: =10.443*AS132*AS131*30 -> 253.0981308 | AT122: =10.443*AT132*AT131*31 -> 246.8759287
AI123: =IF(ISERROR(-1*MIN(AI119,ABS(-1*ACOS(-1*AI125/AI128)+ASIN(AI127/AI128)))),0,-1*MIN(AI119,ABS(-1*ACOS(-1*AI125/AI128)+ASIN(AI127/AI128)))) -> -1.469807689 | AJ123: =IF(ISERROR(-1*MIN(AJ119,ABS(-1*ACOS(-1*AJ125/AJ128)+ASIN(AJ127/AJ128)))),0,-1*MIN(AJ119,ABS(-1*ACOS(-1*AJ125/AJ128)+ASIN(AJ127/AJ128)))) -> -1.509587218 | AK123: -1.535059686 | AL123: -1.533782429 | AM123: -1.532746303 | AN123: -1.532207638 | AO123: -1.532425646 | AP123: -1.53331024 | AQ123: -1.534537333 | AR123: -1.526980226 | AS123: -1.480749213 | AT123: -1.458835055
AI124: =IF(ISERROR(MIN(AI119,ACOS(-1*AI125/AI128)+ASIN(AI127/AI128))),0,MIN(AI119,ACOS(-1*AI125/AI128)+ASIN(AI127/AI128))) -> 1.469807689 | AJ124: =IF(ISERROR(MIN(AJ119,ACOS(-1*AJ125/AJ128)+ASIN(AJ127/AJ128))),0,MIN(AJ119,ACOS(-1*AJ125/AJ128)+ASIN(AJ127/AJ128))) -> 1.509587218 | AK124: 1.558043714 | AL124: 1.605840586 | AM124: 1.604804461 | AN124: 1.604265796 | AO124: 1.604483803 | AP124: 1.605368397 | AQ124: 1.580822334 | AR124: 1.526980226 | AS124: 1.480749213 | AT124: 1.458835055
AI125: =SIN(AI121)*(SIN(AI129)*COS(AI117)-COS(AI129)*SIN(AI117)*COS(AI116)) -> 0.002154445532 | AJ125: =SIN(AJ121)*(SIN(AJ129)*COS(AJ117)-COS(AJ129)*SIN(AJ117)*COS(AJ116)) -> 0.001365199899 | AK125: 0.0002920793763 | AL125: -0.0009715361119 | AM125: -0.001913182655 | AN125: -0.002350565417 | AO125: -0.002178367938 | AP125: -0.001415025105 | AQ125: -0.0002297390791 | AR125: 0.0009903985874 | AS125: 0.001948070601 | AT125: 0.0023525462
AI126: =COS(AI121)*(COS(AI129)*COS(AI117)+SIN(AI129)*SIN(AI117)*COS(AI116)) -> 0.9312634321 | AJ126: =COS(AJ121)*(COS(AJ129)*COS(AJ117)+SIN(AJ129)*SIN(AJ117)*COS(AJ116)) -> 0.9725736423 | AK126: 0.9981241916 | AL126: 0.9858720507 | AM126: 0.9460636425 | AN126: 0.9177347002 | AO126: 0.9296864882 | AP126: 0.9705552595 | AQ126: 0.9985854555 | AR126: 0.985340523 | AS126: 0.9440457741 | AT126: 0.9175909909
AI127: =COS(AI121)*SIN(AI117)*SIN(AI116) -> 0.0335670892 | AJ127: =COS(AJ121)*SIN(AJ117)*SIN(AJ116) -> 0.03505610237 | AK127: 0.03597706365 | AL127: 0.0355354392 | AM127: 0.034100558 | AN127: 0.03307945044 | AO127: 0.03351024877 | AP127: 0.03498335041 | AQ127: 0.03599368976 | AR127: 0.03551628045 | AS127: 0.03402782459 | AT127: 0.03307427048
AI128: =SQRT(AI126^2+AI127^2) -> 0.9318681932 | AJ128: =SQRT(AJ126^2+AJ127^2) -> 0.9732052301 | AK128: 0.998772372 | AL128: 0.9865122745 | AM128: 0.9466780148 | AN128: 0.9183306758 | AO128: 0.9302902252 | AP128: 0.9711855367 | AQ128: 0.9992339354 | AR128: 0.9859804017 | AS128: 0.944658836 | AT128: 0.9181868731
AG129: 纬度Ф | AH129: =INDEX(geomet,MATCH(INDEX(GeoMet!$BS$4:$BS$348,city),GeoMet!$BO$4:$BO$940,0),1) -> 14.52 | AI129: =AH129*PI()/180 -> 0.2534218074 | AJ129: =AI129 -> 0.2534218074 | AK129: =AJ129 -> 0.2534218074 | AL129: =AK129 -> 0.2534218074 | AM129: =AL129 -> 0.2534218074 | AN129: =AM129 -> 0.2534218074 | AO129: =AN129 -> 0.2534218074 | AP129: =AO129 -> 0.2534218074 | AQ129: =AP129 -> 0.2534218074 | AR129: =AQ129 -> 0.2534218074 | AS129: =AR129 -> 0.2534218074 | AT129: =AS129 -> 0.2534218074
AG130: 经度η | AH130: =INDEX(geomet,MATCH(INDEX(GeoMet!$BS$4:$BS$348,city),GeoMet!$BO$4:$BO$940,0),2) -> 121 | AI130: =AH130*PI()/180 -> 2.111848395 | AJ130: =AI130 -> 2.111848395 | AK130: 2.111848395 | AL130: 2.111848395 | AM130: 2.111848395 | AN130: 2.111848395 | AO130: 2.111848395 | AP130: 2.111848395 | AQ130: 2.111848395 | AR130: 2.111848395 | AS130: 2.111848395 | AT130: 2.111848395
AG131: Al | AI131: =1+0.034*COS(2*PI()*AI120/365) -> 1.032872826 | AJ131: =1+0.034*COS(2*PI()*AJ120/365) -> 1.023885934 | AK131: 1.009948411 | AL131: 0.9920272928 | AM131: 0.9767467397 | AN131: 0.9673622886 | AO131: 0.9669139765 | AP131: 0.9754973169 | AQ131: 0.9908943136 | AR131: 1.008256891 | AS131: 1.023885934 | AT131: 1.032718509
AI132: =COS(AI129)*COS(AI121)*SIN(AI119)+AI119*SIN(AI129)*SIN(AI121) -> 0.7638463474 | AJ132: =COS(AJ129)*COS(AJ121)*SIN(AJ119)+AJ119*SIN(AJ129)*SIN(AJ121) -> 0.8533738651 | AK132: 0.9475994792 | AL132: 1.020324014 | AM132: 1.046882786 | AN132: 1.05042593 | AO132: 1.049740714 | AP132: 1.035912057 | AQ132: 0.9826183987 | AR132: 0.8897470969 | AS132: 0.789025117 | AT132: 0.7384308194
AG133: Rb | AI133: =IF(((AI124-AI123)*AI125+(SIN(AI124)-SIN(AI123))*AI126+(COS(AI124)-COS(AI123))*AI127)/(COS(AI129)*COS(AI121)*SIN(AI119)+AI119*SIN(AI129)*SIN(AI121))/2>0,((AI124-AI123)*AI125+(SIN(AI124)-SIN(AI123))*AI126+(COS(AI124)-COS(AI123))*AI127)/(COS(AI129)*COS(AI121)*SIN(AI119)+AI119*SIN(AI129)*SIN(AI121))/2,0) -> 1.217110287 | AJ133: =IF(((AJ124-AJ123)*AJ125+(SIN(AJ124)-SIN(AJ123))*AJ126+(COS(AJ124)-COS(AJ123))*AJ127)/(COS(AJ129)*COS(AJ121)*SIN(AJ119)+AJ119*SIN(AJ129)*SIN(AJ121))/2>0,((AJ124-AJ123)*AJ125+(SIN(AJ124)-SIN(AJ123))*AJ126+(COS(AJ124)-COS(AJ123))*AJ127)/(COS(AJ129)*COS(AJ121)*SIN(AJ119)+AJ119*SIN(AJ129)*SIN(AJ121))/2,0) -> 1.139961322 | AK133: 1.052980069 | AL133: 0.9628574753 | AM133: 0.8990672633 | AN133: 0.8684651415 | AO133: 0.8806525588 | AP133: 0.9329397771 | AQ133: 1.014678218 | AR133: 1.108075703 | AS133: 1.195279534 | AT133: 1.239490278
AG134: ρR | AH134: 0.2 | AI134: =AH134 -> 0.2 | AJ134: =AI134 -> 0.2 | AK134: =AJ134 -> 0.2 | AL134: =AK134 -> 0.2 | AM134: =AL134 -> 0.2 | AN134: =AM134 -> 0.2 | AO134: =AN134 -> 0.2 | AP134: =AO134 -> 0.2 | AQ134: =AP134 -> 0.2 | AR134: =AQ134 -> 0.2 | AS134: =AR134 -> 0.2 | AT134: =AS134 -> 0.2
AG135: 直射St | AI135: =AI133*AI113 -> 72.66148412 | AJ135: =AJ133*AJ113 -> 86.40906817 | AK135: 109.5099271 | AL135: 110.7286097 | AM135: 81.63530751 | AN135: 68.95613224 | AO135: 55.30498069 | AP135: 43.66158157 | AQ135: 60.17041831 | AR135: 60.05770311 | AS135: 72.43393976 | AT135: 80.56686807 | AU135: =SUM(AI135:AT135) -> 902.0960204
AG136: 漫射Dt | AI136: =AI114*0.5*(1+COS(AI117)) -> 67.82444101 | AJ136: =AJ114*0.5*(1+COS(AJ117)) -> 58.19140446 | AK136: 74.60688511 | AL136: 71.65799637 | AM136: 81.88081066 | AN136: 84.73140311 | AO136: 85.22288457 | AP136: 81.97910696 | AQ136: 80.20977371 | AR136: 76.86769981 | AS136: 66.44829293 | AT136: 60.45221916 | AU136: =SUM(AI136:AT136) -> 890.0729179
AG137: 反射Rt | AI137: =0.5*AI134*AI112*(1-COS(AI117)) -> 0.4385346157 | AJ137: =0.5*AJ134*AJ112*(1-COS(AJ117)) -> 0.4600013451 | AK137: 0.6129943851 | AL137: 0.640253724 | AM137: 0.5932313643 | AN137: 0.5642683167 | AO137: 0.509408897 | AP137: 0.4436457417 | AQ137: 0.4801051076 | AR137: 0.4511420599 | AS137: 0.436830907 | AT137: 0.4310382974 | AU137: =SUM(AI137:AT137) -> 6.061454761
AG138: 总Qt | AI138: =SUM(AI135:AI137) -> 140.9244597 | AJ138: 145.060474 | AK138: 184.7298066 | AL138: 183.0268598 | AM138: 164.1093495 | AN138: 154.2518037 | AO138: 141.0372742 | AP138: 126.0843343 | AQ138: 140.8602971 | AR138: 137.376545 | AS138: 139.3190636 | AT138: =SUM(AT135:AT137) -> 141.4501255 | AU138: =SUM(AI138:AT138) -> 1798.230393
AI139: =AI112/AI122 -> 0.5038934549 | AJ139: =AJ112/AJ122 -> 0.5283960277 | AK139: 0.5806576976 | AL139: 0.5925411532 | AM139: 0.5259346334 | AN139: 0.5201866628 | AO139: 0.4549716559 | AP139: 0.3979926442 | AQ139: 0.4619045418 | AR139: 0.4558933265 | AS139: 0.5065229031 | AT139: 0.5124031357
AI140: =1.236-1.422*AI139 -> 0.5194635071 | AJ140: =1.236-1.422*AJ139 -> 0.4846208487 | AK140: 0.410304754 | AL140: 0.3934064801 | AM140: 0.4881209513 | AN140: 0.4962945655 | AO140: 0.5890303054 | AP140: 0.67005446 | AQ140: 0.5791717416 | AR140: 0.5877196897 | AS140: 0.5157244318 | AT140: 0.507362741
AI141: =AI140*AI112 -> 66.85495336 | AJ141: =AJ140*AJ112 -> 65.42381457 | AK141: 73.81382524 | AL141: 73.92107761 | AM141: 84.98185763 | AN141: 82.18638004 | AO141: 88.06003065 | AP141: 87.24109069 | AQ141: 81.60529839 | AR141: 77.81408692 | AS141: 66.11587216 | AT141: 64.18138674

Sheet Result Print
C2: =Design!C6 -> Inverter Type | E2: =Design!H45 -> SUN2000-33KTL-A
E4: =Design!C10 -> Ambient Temperature
E5: =Design!C11 -> min： | F5: =Design!C12 -> 10
E6: =Design!D11 -> nom： | F6: =Design!D12 -> 20
E7: =Design!E11 -> max： | F7: =Design!E12 -> 46
C10: =Design!C13 -> Mounting Mode
D11: =INDEX(Language!A88:'Language'!D90, Language!R2, Language!R1) -> Ground mounted
D12: =INDEX(Language!A91:'Language'!D93, Language!R2, Language!R1) -> The module are on racks.
C13: =Design!E14 -> Temperature rise | D13: =Design!F16 -> 30
C15: =Design!C17 -> Location | D15: =INDEX(GeoMet!$B$4:'GeoMet'!$B$327, MATCH(INDEX(GeoMet!$BS$4:$BS$348,city),GeoMet!$BO$4:$BO$940,0), 1) -> Philippines | F15: =INDEX(GeoMet!$C$4:'GeoMet'!$C$327, MATCH(INDEX(GeoMet!$BS$4:$BS$348,city),GeoMet!$BO$4:$BO$940,0), 1) -> Manila/Naia
C16: =Design!E19 -> Latitude | E16: =Design!F19 -> 14.52
C17: =Design!E20 -> Longitude | E17: =Design!F20 -> 121
C18: =Design!C21 -> Global Irradiation | E18: =Design!AU9 -> 1778.9
C20: =Design!G6 -> PV Module Type | E20: =Design!H7 -> MPPT A
C21: =Design!H9 -> Manufacturer | E21: =Design!I33 -> Jinkosolar
C22: =Design!H13 -> Model | E22: =Design!I34 -> JKM 250P-60
C23: =Design!H17 -> Module in Series | E23: =Design!H18 -> 18
C24: =Design!J17 -> Number of strings | E24: =Design!J18 -> 2
C25: =Design!H19 -> Inclination | E25: =Design!H20 -> 15
C26: =Design!J19 -> Azimuth | E26: =Design!J20 -> 8
C27: =Design!G21 -> Irradiation on module | E27: =Design!J21 -> 1798.230393
C28: =Design!E22 -> Module number: | E28: =Design!H22 -> 36
C29: =Design!E23 -> PV Nominal Power: | E29: =Design!H23 -> 9000
C30: =Design!E24 -> Umpp(min) at | D30: =Design!F24 -> 76 | E30: =Design!H24 -> 459.4032
C31: =Design!E25 -> Umpp at | D31: =Design!F25 -> 50 | E31: =Design!H25 -> 505.08
C32: =Design!E26 -> Umpp(max) at | D32: =Design!F26 -> 10 | E32: =Design!H26 -> 575.352
C33: =Design!E27 -> Uoc(max) at | D33: =Design!F27 -> 10 | E33: =Design!H27 -> 711.1728 | F33: =Design!J27 -> OK
C34: =Design!E28 -> Uoc at | D34: =Design!F28 -> 20 | E34: =Design!H28 -> 689.4576 | F34: =Design!J28 -> OK
C35: =Design!E29 -> Max. MPP Current： | E35: =Design!H29 -> 16.4 | F35: =Design!J29 -> OK
C37: =C20 -> PV Module Type | E37: =Design!N7 -> MPPT B
C38: Manufacturer | E38: =Design!O33 -> Jinkosolar
C39: Model | E39: =Design!O34 -> JKM 250P-60
C40: Module in Series | E40: =Design!N18 -> 18
C41: Number of strings | E41: =Design!P18 -> 2
C42: Inclination | E42: =Design!N20 -> 15
C43: Azimuth | E43: =Design!P20 -> 8
C44: Irradiation on module | E44: =Design!P21 -> 1798.230393
C45: Module number: | E45: =Design!N22 -> 36
C46: PV Nominal Power: | E46: =Design!N23 -> 9000
C47: Umpp(min) at | D47: =D30 -> 76 | E47: =Design!N24 -> 459.4032
C48: Umpp at | D48: =D31 -> 50 | E48: =Design!N25 -> 505.08
C49: Umpp(max) at | D49: =D32 -> 10 | E49: =Design!N26 -> 575.352
C50: Uoc(max) at | D50: =D33 -> 10 | E50: =Design!N27 -> 711.1728 | F50: =Design!P27 -> OK
C51: Uoc at | D51: =D34 -> 20 | E51: =Design!N28 -> 689.4576 | F51: =Design!P28 -> OK
C52: Max. MPP Current： | E52: =Design!N29 -> 16.4 | F52: =Design!P29 -> OK
C54: =C20 -> PV Module Type | E54: =Design!T7 -> MPPT C
C55: =C21 -> Manufacturer | E55: =Design!U33 -> Jinkosolar
C56: =C22 -> Model | E56: =Design!U34 -> JKM 250P-60
C57: Module in Series | E57: =Design!T18 -> 18
C58: Number of strings | E58: =Design!V18 -> 2
C59: Inclination | E59: =Design!T20 -> 15
C60: Azimuth | E60: =Design!V20 -> 8
C61: Irradiation on module | E61: =Design!V21 -> 1798.230393
C62: Module number: | E62: =Design!T22 -> 36
C63: PV Nominal Power: | E63: =Design!T23 -> 9000
C64: Umpp(min) at | D64: =D47 -> 76 | E64: =Design!T24 -> 459.4032
C65: Umpp at | D65: =D48 -> 50 | E65: =Design!T25 -> 505.08
C66: Umpp(max) at | D66: =D49 -> 10 | E66: =Design!T26 -> 575.352
C67: Uoc(max) at | D67: =D50 -> 10 | E67: =Design!T27 -> 711.1728 | F67: =Design!V27 -> OK
C68: Uoc at | D68: =D51 -> 20 | E68: =Design!T28 -> 689.4576 | F68: =Design!V28 -> OK
C69: Max. MPP Current： | E69: =Design!T29 -> 16.4 | F69: =Design!V29 -> OK
C71: 组件选择 | E71: =Design!Z7 -> MPPT D
C72: =C21 -> Manufacturer | E72: =Design!AA33 -> Jinkosolar
C73: =C22 -> Model | E73: =Design!AA34 -> JKM 250P-60
C74: Module in Series | E74: =Design!Z18 -> 18
C75: Number of strings | E75: =Design!AB18 -> 2
C76: Inclination | E76: =Design!Z20 -> 15
C77: Azimuth | E77: =Design!AB20 -> 8
C78: Irradiation on module | E78: =Design!AB21 -> 1798.230393
C79: Module number: | E79: =Design!Z22 -> 36
C80: PV Nominal Power: | E80: =Design!Z23 -> 9000
C81: Umpp(min) at | D81: 76 | E81: =Design!Z24 -> 459.4032
C82: Umpp at | D82: 50 | E82: =Design!Z25 -> 505.08
C83: Umpp(max) at | D83: 10 | E83: =Design!Z26 -> 575.352
C84: Uoc(max) at | D84: 10 | E84: =Design!Z27 -> 711.1728 | F84: =Design!AB27 -> OK
C85: =C34 -> Uoc at | D85: =D34 -> 20 | E85: =Design!Z28 -> 689.4576 | F85: =Design!AB28 -> OK
C86: Max. MPP Current： | E86: =Design!Z29 -> 16.4 | F86: =Design!AB29 -> OK
C87: =Design!E30 -> Defined Layout factor | D87: =Design!H30 -> 1.12 | E87: =Design!P30 -> Total Input Power: | F87: =Design!Q30 -> 36000 | G87: =Design!T30 -> OK
C90: =Design!T45 -> System Result
C91: =Design!T46 -> Total modules: | E91: =Design!V46 -> 144
C92: =Design!T47 -> Total Input Power: | E92: =Design!V47 -> 36000 | F92: =Design!W47 -> Wp
C93: =Design!T51 -> cos(φ): | E93: =Design!V51 -> 1
C94: =Design!T48 -> Layout factor: | E94: =Design!V48 -> 1.09
C95: =Design!T49 -> (Nominal PV Power / Inverter active power )
C96: =Design!T50 -> Module area: | E96: =Design!V50 -> 235.6992 | F96: =Design!W50 -> m²
C98: =Design!T52 -> Yield yearly: | E98: =Design!V52 -> 52889.55232 | F98: =Design!W52 -> kWh
C99: =Design!T53 -> Performance Ratio: | E99: =Design!V53 -> 0.817

Sheet Add module
C4: =INDEX(languagearea,8,Language!$R$1) -> Manufacturer | J4: =INDEX(languagearea,8,Language!$R$1) -> Manufacturer | Q4: =INDEX(languagearea,8,Language!$R$1) -> Manufacturer
C5: =INDEX(languagearea,9,Language!$R$1) -> Model | J5: =INDEX(languagearea,9,Language!$R$1) -> Model | Q5: =INDEX(languagearea,9,Language!$R$1) -> Model
C6: Pmpp | F6: Wp | J6: Pmpp | M6: Wp | Q6: Pmpp | R6: =IF(Module!AI1=0,"",INDEX(Module!$A$2:$K$7986,Module!AJ$1,4)) -> 
C7: Uoc | F7: V | J7: Uoc | M7: V | Q7: Uoc | R7: =IF(Module!AI1=0,"",INDEX(Module!$A$2:$K$7986,Module!AJ$1,5)) -> 
C8: Umpp | F8: V | J8: Umpp | M8: V | Q8: Umpp | R8: =IF(Module!AI1=0,"",INDEX(Module!$A$2:$K$7986,Module!AJ$1,6)) -> 
C9: Isc | F9: A | J9: Isc | M9: A | Q9: Isc | R9: =IF(Module!AI1=0,"",INDEX(Module!$A$2:$K$7986,Module!AJ$1,7)) -> 
C10: Impp | F10: A | J10: Impp | M10: A | Q10: Impp | R10: =IF(Module!AI1=0,"",INDEX(Module!$A$2:$K$7986,Module!AJ$1,8)) -> 
C11: TcoIsc | F11: mA/K | J11: TcoIsc | M11: %/℃ | Q11: TcoIsc | R11: =IF(Module!AI1=0,"",INDEX(Module!$A$2:$K$7986,Module!AJ$1,9)) -> 
C12: TcoUoc | F12: mV/K | J12: TcoUoc | M12: %/℃ | Q12: TcoUoc | R12: =IF(Module!AI1=0,"",INDEX(Module!$A$2:$K$7986,Module!AJ$1,10)) -> 
C13: =INDEX(languagearea,47,Language!$R$1) -> Efficiency: | J13: =INDEX(languagearea,47,Language!$R$1) -> Efficiency: | Q13: =INDEX(languagearea,47,Language!$R$1) -> Efficiency: | R13: =IF(Module!AI1=0,"",INDEX(Module!$A$2:$K$7986,Module!AJ$1,3)) -> 
B16: =INDEX(languagearea,38,Language!$R$1) -> Please make sure that all parameters are correct! | J16: =INDEX(languagearea,41,Language!$R$1) -> Please make sure you want to delete the module
A17: =D4 -> 0 | B17: =D5 -> 0 | C17: =D13 -> 0 | D17: =D6 -> 0 | E17: =D7 -> 0 | F17: =D8 -> 0 | G17: =D9 -> 0 | H17: =D10 -> 0 | I17: =D11 -> 0 | J17: =D12 -> 0
A18: =K4 -> 0 | B18: =K5 -> 0 | C18: =K13 -> 0 | D18: =K6 -> 0 | E18: =K7 -> 0 | F18: =K8 -> 0 | G18: =K9 -> 0 | H18: =K10 -> 0 | I18: =K11*K9*10 -> 0 | J18: =K12*K7*10 -> 0
H25: ADD

Sheet Add Location
I7: =INDEX(languagearea,55,Language!$R$1)&"(kWh/m²)" -> Global Irradiation(kWh/m²)
F8: =INDEX(languagearea,51,Language!$R$1) -> Country | G8: =INDEX(languagearea,54,Language!$R$1) -> Latitude | H8: =INDEX(languagearea,57,Language!$R$1) -> Monthly | I8: 1 | J8: 2 | K8: 3 | L8: 4 | M8: 5 | N8: 6 | O8: 7 | P8: 8 | Q8: 9 | R8: 10 | S8: 11 | T8: 12
I10: =INDEX(languagearea,56,Language!$R$1)&"(kWh/m²)" -> Diffuse Irradiation(kWh/m²) | L10: =INDEX(languagearea,61,Language!$R$1) -> (It could be left blank if no information available for diffuse irradiation.)
F11: =INDEX(languagearea,52,Language!$R$1) -> City | G11: =INDEX(languagearea,53,Language!$R$1) -> Longitude | H11: =INDEX(languagearea,57,Language!$R$1) -> Monthly | I11: 1 | J11: 2 | K11: 3 | L11: 4 | M11: 5 | N11: 6 | O11: 7 | P11: 8 | Q11: 9 | R11: 10 | S11: 11 | T11: 12
G14: =INDEX(languagearea,38,Language!$R$1) -> Please make sure that all parameters are correct!
R16: ADD
I20: =INDEX(languagearea,55,Language!$R$1)&"(kWh/m²)" -> Global Irradiation(kWh/m²)
F21: =INDEX(languagearea,51,Language!$R$1) -> Country | G21: =INDEX(languagearea,54,Language!$R$1) -> Latitude | H21: =INDEX(languagearea,57,Language!$R$1) -> Monthly | I21: 1 | J21: 2 | K21: 3 | L21: 4 | M21: 5 | N21: 6 | O21: 7 | P21: 8 | Q21: 9 | R21: 10 | S21: 11 | T21: 12
G22: =IF(GeoMet!BU3=0,"",INDEX(geomet,MATCH(INDEX(GeoMet!$BU$4:$BU$348,GeoMet!BU3),GeoMet!$BO$4:$BO$940,0),1)) -> -16.24 | I22: =IF(GeoMet!BU3=0,"",INDEX(geomet,MATCH(INDEX(GeoMet!$BU$4:$BU$348,GeoMet!$BU3),GeoMet!$BO$4:$BO$940,0),4)) -> 229 | J22: =IF(GeoMet!BU3=0,"",INDEX(geomet,MATCH(INDEX(GeoMet!$BU$4:$BU$348,GeoMet!$BU3),GeoMet!$BO$4:$BO$940,0),5)) -> 179 | K22: =IF(GeoMet!BU3=0,"",INDEX(geomet,MATCH(INDEX(GeoMet!$BU$4:$BU$348,GeoMet!$BU3),GeoMet!$BO$4:$BO$940,0),6)) -> 201 | L22: =IF(GeoMet!BU3=0,"",INDEX(geomet,MATCH(INDEX(GeoMet!$BU$4:$BU$348,GeoMet!$BU3),GeoMet!$BO$4:$BO$940,0),7)) -> 196 | M22: =IF(GeoMet!BU3=0,"",INDEX(geomet,MATCH(INDEX(GeoMet!$BU$4:$BU$348,GeoMet!$BU3),GeoMet!$BO$4:$BO$940,0),7)) -> 196 | N22: =IF(GeoMet!BU3=0,"",INDEX(geomet,MATCH(INDEX(GeoMet!$BU$4:$BU$348,GeoMet!$BU3),GeoMet!$BO$4:$BO$940,0),9)) -> 165 | O22: =IF(GeoMet!BU3=0,"",INDEX(geomet,MATCH(INDEX(GeoMet!$BU$4:$BU$348,GeoMet!$BU3),GeoMet!$BO$4:$BO$940,0),10)) -> 179 | P22: =IF(GeoMet!BU3=0,"",INDEX(geomet,MATCH(INDEX(GeoMet!$BU$4:$BU$348,GeoMet!$BU3),GeoMet!$BO$4:$BO$940,0),11)) -> 202 | Q22: =IF(GeoMet!BU3=0,"",INDEX(geomet,MATCH(INDEX(GeoMet!$BU$4:$BU$348,GeoMet!$BU3),GeoMet!$BO$4:$BO$940,0),12)) -> 220 | R22: =IF(GeoMet!BU3=0,"",INDEX(geomet,MATCH(INDEX(GeoMet!$BU$4:$BU$348,GeoMet!$BU3),GeoMet!$BO$4:$BO$940,0),13)) -> 248 | S22: =IF(GeoMet!BU3=0,"",INDEX(geomet,MATCH(INDEX(GeoMet!$BU$4:$BU$348,GeoMet!$BU3),GeoMet!$BO$4:$BO$940,0),14)) -> 241 | T22: =IF(GeoMet!BU3=0,"",INDEX(geomet,MATCH(INDEX(GeoMet!$BU$4:$BU$348,GeoMet!$BU3),GeoMet!$BO$4:$BO$940,0),15)) -> 233
I23: =INDEX(languagearea,56,Language!$R$1)&"(kWh/m²)" -> Diffuse Irradiation(kWh/m²) | L23: =INDEX(languagearea,61,Language!$R$1) -> (It could be left blank if no information available for diffuse irradiation.)
F24: =INDEX(languagearea,52,Language!$R$1) -> City | G24: =INDEX(languagearea,53,Language!$R$1) -> Longitude | H24: =INDEX(languagearea,57,Language!$R$1) -> Monthly | I24: 1 | J24: 2 | K24: 3 | L24: 4 | M24: 5 | N24: 6 | O24: 7 | P24: 8 | Q24: 9 | R24: 10 | S24: 11 | T24: 12
G25: =IF(GeoMet!BU3=0,"",INDEX(geomet,MATCH(INDEX(GeoMet!$BU$4:$BU$348,GeoMet!BU3),GeoMet!$BO$4:$BO$940,0),2)) -> -67.39 | I25: =IF(GeoMet!BU3=0,"",INDEX(geomet,MATCH(INDEX(GeoMet!$BU$4:$BU$348,GeoMet!$BU3),GeoMet!$BO$4:$BO$940,0),17)) -> 68 | J25: =IF(GeoMet!BU3=0,"",INDEX(geomet,MATCH(INDEX(GeoMet!$BU$4:$BU$348,GeoMet!$BU3),GeoMet!$BO$4:$BO$940,0),18)) -> 65 | K25: =IF(GeoMet!BU3=0,"",INDEX(geomet,MATCH(INDEX(GeoMet!$BU$4:$BU$348,GeoMet!$BU3),GeoMet!$BO$4:$BO$940,0),19)) -> 62 | L25: =IF(GeoMet!BU3=0,"",INDEX(geomet,MATCH(INDEX(GeoMet!$BU$4:$BU$348,GeoMet!$BU3),GeoMet!$BO$4:$BO$940,0),20)) -> 44 | M25: =IF(GeoMet!BU3=0,"",INDEX(geomet,MATCH(INDEX(GeoMet!$BU$4:$BU$348,GeoMet!$BU3),GeoMet!$BO$4:$BO$940,0),21)) -> 36 | N25: =IF(GeoMet!BU3=0,"",INDEX(geomet,MATCH(INDEX(GeoMet!$BU$4:$BU$348,GeoMet!$BU3),GeoMet!$BO$4:$BO$940,0),22)) -> 32 | O25: =IF(GeoMet!BU3=0,"",INDEX(geomet,MATCH(INDEX(GeoMet!$BU$4:$BU$348,GeoMet!$BU3),GeoMet!$BO$4:$BO$940,0),23)) -> 32 | P25: =IF(GeoMet!BU3=0,"",INDEX(geomet,MATCH(INDEX(GeoMet!$BU$4:$BU$348,GeoMet!$BU3),GeoMet!$BO$4:$BO$940,0),24)) -> 37 | Q25: =IF(GeoMet!BU3=0,"",INDEX(geomet,MATCH(INDEX(GeoMet!$BU$4:$BU$348,GeoMet!$BU3),GeoMet!$BO$4:$BO$940,0),25)) -> 42 | R25: =IF(GeoMet!BU3=0,"",INDEX(geomet,MATCH(INDEX(GeoMet!$BU$4:$BU$348,GeoMet!$BU3),GeoMet!$BO$4:$BO$940,0),26)) -> 50 | S25: =IF(GeoMet!BU3=0,"",INDEX(geomet,MATCH(INDEX(GeoMet!$BU$4:$BU$348,GeoMet!$BU3),GeoMet!$BO$4:$BO$940,0),27)) -> 57 | T25: =IF(GeoMet!BU3=0,"",INDEX(geomet,MATCH(INDEX(GeoMet!$BU$4:$BU$348,GeoMet!$BU3),GeoMet!$BO$4:$BO$940,0),28)) -> 68
G27: =INDEX(languagearea,60,Language!$R$1) -> Please make sure you want to delete the site
G28: =INDEX(languagearea,42,Language!$R$1) -> before pressing the "DEL" button!
B33: =F9 -> 0 | C33: =F12 -> 0 | D33: =G9 -> 0 | E33: =G12 -> 0 | G33: =I9 -> 0 | H33: =J9 -> 0 | I33: 0 | J33: 0 | K33: 0 | L33: 0 | M33: 0 | N33: 0 | O33: 0 | P33: 0 | Q33: 0 | R33: 0 | T33: =I12 -> 0 | U33: =J12 -> 0 | V33: 0 | W33: 0 | X33: 0 | Y33: 0 | Z33: 0 | AA33: 0 | AB33: 0 | AC33: 0 | AD33: 0 | AE33: 0

Sheet Module (hidden)
A1: manufacturer | B1: model | C1: efficiency | D1: Pnom （W） | E1: Voc (V) | F1: Vmpp （V） | G1: Isc (A) | H1: Impp （A） | I1: TcoIsc (mA/K) | J1: TcoVoc (mV/K) | K1: TcoVmp (mV/K) | L1: 1000 | M1: 0 | O1: =MATCH(MAX(O4:O6182),O4:O6182,0) -> 1644 | P1: =COLUMN() -> 16 | V1: 30 | W1: 8 | X1: =INDEX(X2:X292,W1,1) -> 647 | Y1: 30 | Z1: 8 | AA1: =INDEX(AA2:AA292,Z1,1) -> 647 | AB1: 30 | AC1: 8 | AD1: =INDEX(AD2:AD292,AC1,1) -> 647 | AE1: 30 | AF1: 8 | AG1: =INDEX(AG2:AG292,AF1,1) -> 647 | AH1: 0 | AI1: 0 | AJ1: =INDEX(AJ2:AJ292,AI1,1) ->  | AK1: 6209 | AM1: =COLUMN() -> 39
A2: Anel | B2: ANP 220 NEC | C2: 0.1471627031 | D2: 220 | E2: 33.65 | F2: 26.66 | G2: 8.95 | H2: 8.25 | I2: 6.7125 | J2: -112.4583 | K2: =F2/E2*J2 -> -89.09772 | M2: 1 | N2: =IF(M2>MAX(Q$2:Q$7985),"",VLOOKUP(M2,Q$2:R$7985,2,FALSE)) -> Anel | O2: =IF($A2="","",COUNTIF($A$2:$A2,$A2)) -> 1 | P2: =IF($A2="","",$O2+thousand*VLOOKUP($A2,$A$1:Q2,17,FALSE)) -> 1001 | Q2: =IF(O2=1,MAX(Q$1:Q1)+1,"") -> 1 | R2: =IF(A2="","",A2) -> Anel | S2: =IF(B2="","",B2) -> ANP 220 NEC | T2: =$M2 -> 1 | V2: =V$1*thousand+$M2 -> 30001 | W2: =IF(COUNTIF($P$2:$P$7985,V2)>0,VLOOKUP(V2,$P$2:$S$7985,4,FALSE),"") -> JKM 205M-72 | X2: =IF(W2="","",VLOOKUP(V2,$P$2:$T$7985,5,FALSE)) -> 640 | Y2: =Y$1*thousand+$M2 -> 30001 | Z2: =IF(COUNTIF($P$2:$P$7985,Y2)>0,VLOOKUP(Y2,$P$2:$S$7985,4,FALSE),"") -> JKM 205M-72 | AA2: =IF(Z2="","",VLOOKUP(Y2,$P$2:$T$7985,5,FALSE)) -> 640 | AB2: =AB$1*thousand+$M2 -> 30001 | AC2: =IF(COUNTIF($P$2:$P$7985,AB2)>0,VLOOKUP(AB2,$P$2:$S$7985,4,FALSE),"") -> JKM 205M-72 | AD2: =IF(AC2="","",VLOOKUP(AB2,$P$2:$T$7985,5,FALSE)) -> 640 | AE2: =AE$1*thousand+$M2 -> 30001 | AF2: =IF(COUNTIF($P$2:$P$7985,AE2)>0,VLOOKUP(AE2,$P$2:$S$7985,4,FALSE),"") -> JKM 205M-72 | AG2: =IF(AF2="","",VLOOKUP(AE2,$P$2:$T$7985,5,FALSE)) -> 640 | AH2: =AH$1*thousand+$M2 -> 1 | AI2: =IF(COUNTIF($P$2:$P$7985,AH2)>0,VLOOKUP(AH2,$P$2:$S$7989,4,FALSE),"") ->  | AJ2: =IF(AI2="","",VLOOKUP(AH2,$P$2:$T$7985,5,FALSE)) ->  | AM2: 1000
A3: Anel | B3: ASP 230 NEC | C3: 0.1394196264 | D3: 230 | E3: 35.87 | F3: 29.57 | G3: 8.28 | H3: 7.78 | I3: 4.7196 | J3: -123.7515 | K3: =F3/E3*J3 -> -102.0165 | M3: 2 | N3: Auversun | O3: =IF($A3="","",COUNTIF($A$2:$A3,$A3)) -> 2 | P3: =IF($A3="","",$O3+thousand*VLOOKUP($A3,$A$1:Q3,17,FALSE)) -> 1002 | Q3: =IF(O3=1,MAX(Q$1:Q2)+1,"") ->  | R3: =IF(A3="","",A3) -> Anel | S3: =IF(B3="","",B3) -> ASP 230 NEC | T3: =$M3 -> 2 | V3: 30002 | W3: JKM 210M-72 | X3: 641 | Y3: 30002 | Z3: JKM 210M-72 | AA3: 641 | AB3: 30002 | AC3: JKM 210M-72 | AD3: 641 | AE3: 30002 | AF3: JKM 210M-72 | AG3: 641 | AH3: 2 | AI3: =IF(COUNTIF($P$2:$P$7985,AH3)>0,VLOOKUP(AH3,$P$2:$S$7985,4,FALSE),"") ->  | AM3: 1000
A4: Anel | B4: ASP 235 NEC | C4: 0.1424504878 | D4: 235 | E4: 36.09 | F4: 29.79 | G4: 8.4 | H4: 7.89 | I4: 4.788 | J4: -124.5105 | K4: -102.7755 | M4: 3 | N4: Avancis | O4: =IF($A4="","",COUNTIF($A$2:$A4,$A4)) -> 3 | P4: =IF($A4="","",$O4+thousand*VLOOKUP($A4,$A$1:Q4,17,FALSE)) -> 1003 | Q4: =IF(O4=1,MAX(Q$1:Q3)+1,"") ->  | R4: Anel | S4: ASP 235 NEC | T4: 3 | V4: 30003 | W4: JKM 245PP-60 | X4: 642 | Y4: 30003 | Z4: JKM 245PP-60 | AA4: 642 | AB4: 30003 | AC4: JKM 245PP-60 | AD4: 642 | AE4: 30003 | AF4: JKM 245PP-60 | AG4: 642 | AH4: 3 | AM4: 1000
A5: Anel | B5: ASP 240 NEC | C5: 0.1454813493 | D5: 240 | E5: 36.48 | F5: 30.12 | G5: 8.47 | H5: 7.97 | I5: 4.8279 | J5: -125.856 | K5: -103.914 | M5: 4 | N5: BenQ Solar | O5: =IF($A5="","",COUNTIF($A$2:$A5,$A5)) -> 4 | P5: =IF($A5="","",$O5+thousand*VLOOKUP($A5,$A$1:Q5,17,FALSE)) -> 1004 | Q5: =IF(O5=1,MAX(Q$1:Q4)+1,"") ->  | R5: Anel | S5: ASP 240 NEC | T5: 4 | V5: 30004 | W5: JKMS 245P-60 | X5: 643 | Y5: 30004 | Z5: JKMS 245P-60 | AA5: 643 | AB5: 30004 | AC5: JKMS 245P-60 | AD5: 643 | AE5: 30004 | AF5: JKMS 245P-60 | AG5: 643 | AH5: 4 | AM5: 1000
A6: Anel | B6: ASP 245 NEC | C6: 0.1485122107 | D6: 245 | E6: 36.82 | F6: 30.52 | G6: 8.52 | H6: 8.03 | I6: 4.8564 | J6: -127.029 | K6: -105.294 | M6: 5 | N6: Bisol | O6: =IF($A6="","",COUNTIF($A$2:$A6,$A6)) -> 5 | P6: =IF($A6="","",$O6+thousand*VLOOKUP($A6,$A$1:Q6,17,FALSE)) -> 1005 | Q6: =IF(O6=1,MAX(Q$1:Q5)+1,"") ->  | R6: Anel | S6: ASP 245 NEC | T6: 5 | V6: 30005 | W6: JKM 245P-60 | X6: 644 | Y6: 30005 | Z6: JKM 245P-60 | AA6: 644 | AB6: 30005 | AC6: JKM 245P-60 | AD6: 644 | AE6: 30005 | AF6: JKM 245P-60 | AG6: 644 | AH6: 5 | AM6: 1000
A7: Anel | B7: ASP 250 NEC | C7: 0.1515430722 | D7: 250 | E7: 36.94 | F7: 30.64 | G7: 8.61 | H7: 8.16 | I7: 4.9077 | J7: -127.443 | K7: -105.708 | M7: 6 | N7: Bosch Solar Energy AG | O7: =IF($A7="","",COUNTIF($A$2:$A7,$A7)) -> 6 | P7: =IF($A7="","",$O7+thousand*VLOOKUP($A7,$A$1:Q7,17,FALSE)) -> 1006 | Q7: =IF(O7=1,MAX(Q$1:Q6)+1,"") ->  | R7: Anel | S7: ASP 250 NEC | T7: 6 | V7: 30006 | W7: JKM 250PP-60 | X7: 645 | Y7: 30006 | Z7: JKM 250PP-60 | AA7: 645 | AB7: 30006 | AC7: JKM 250PP-60 | AD7: 645 | AE7: 30006 | AF7: JKM 250PP-60 | AG7: 645 | AH7: 6 | AM7: 1000
A8: Auversun | B8: AVA250C54NB | C8: 0.1639077711 | D8: 250 | E8: 34.1 | F8: 29.46 | G8: 9.21 | H8: 8.39 | I8: 2.4867 | J8: -114.576 | K8: -98.9856 | M8: 7 | N8: BYD | O8: =IF($A8="","",COUNTIF($A$2:$A8,$A8)) -> 1 | P8: =IF($A8="","",$O8+thousand*VLOOKUP($A8,$A$1:Q8,17,FALSE)) -> 2001 | Q8: =IF(O8=1,MAX(Q$1:Q7)+1,"") -> 2 | R8: Auversun | S8: AVA250C54NB | T8: 7 | V8: 30007 | W8: JKMS 250P-60 | X8: 646 | Y8: 30007 | Z8: JKMS 250P-60 | AA8: 646 | AB8: 30007 | AC8: JKMS 250P-60 | AD8: 646 | AE8: 30007 | AF8: JKMS 250P-60 | AG8: 646 | AH8: 7 | AM8: 1000
A9: Auversun | B9: AVS270C60NB | C9: 0.1308462847 | D9: 270 | E9: 37.7 | F9: 31.84 | G9: 9.01 | H9: 8.45 | I9: 4.3248 | J9: -130.065 | K9: -109.848 | M9: 8 | N9: Canadian Solar Inc. | O9: =IF($A9="","",COUNTIF($A$2:$A9,$A9)) -> 2 | P9: =IF($A9="","",$O9+thousand*VLOOKUP($A9,$A$1:Q9,17,FALSE)) -> 2002 | Q9: =IF(O9=1,MAX(Q$1:Q8)+1,"") ->  | R9: Auversun | S9: AVS270C60NB | T9: 8 | V9: 30008 | W9: JKM 250P-60 | X9: 647 | Y9: 30008 | Z9: JKM 250P-60 | AA9: 647 | AB9: 30008 | AC9: JKM 250P-60 | AD9: 647 | AE9: 30008 | AF9: JKM 250P-60 | AG9: 647 | AH9: 8 | AM9: 1000
A10: Auversun | B10: AV270C60NB | C10: 0.1708376359 | D10: 270 | E10: 37.7 | F10: 31.84 | G10: 9.01 | H10: 8.45 | I10: 4.3248 | J10: -130.065 | K10: -109.848 | M10: 9 | N10: Centrosolar | O10: =IF($A10="","",COUNTIF($A$2:$A10,$A10)) -> 3 | P10: =IF($A10="","",$O10+thousand*VLOOKUP($A10,$A$1:Q10,17,FALSE)) -> 2003 | Q10: =IF(O10=1,MAX(Q$1:Q9)+1,"") ->  | R10: Auversun | S10: AV270C60NB | T10: 9 | V10: 30009 | W10: JKM 255M-60 | X10: 648 | Y10: 30009 | Z10: JKM 255M-60 | AA10: 648 | AB10: 30009 | AC10: JKM 255M-60 | AD10: 648 | AE10: 30009 | AF10: JKM 255M-60 | AG10: 648 | AH10: 9 | AM10: 1000
A11: Auversun | B11: AV275M96NB-5P | C11: 0.1555658638 | D11: 275 | E11: 61.7 | F11: 51.23 | G11: 5.8 | H11: 5.45 | I11: 2.9 | J11: -146.846 | K11: -121.9274 | M11: 10 | N11: Centrosolar America | O11: =IF($A11="","",COUNTIF($A$2:$A11,$A11)) -> 4 | P11: =IF($A11="","",$O11+thousand*VLOOKUP($A11,$A$1:Q11,17,FALSE)) -> 2004 | Q11: =IF(O11=1,MAX(Q$1:Q10)+1,"") ->  | R11: Auversun | S11: AV275M96NB-5P | T11: 10 | V11: 30010 | W11: JKM 255PP-60 | X11: 649 | Y11: 30010 | Z11: JKM 255PP-60 | AA11: 649 | AB11: 30010 | AC11: JKM 255PP-60 | AD11: 649 | AE11: 30010 | AF11: JKM 255PP-60 | AG11: 649 | AH11: 10 | AM11: 1000
A12: Auversun | B12: AV300M104NB-5P | C12: 0.1833803602 | D12: 300 | E12: 66.8 | F12: 55.54 | G12: 5.8 | H12: 5.45 | I12: 2.9 | J12: -158.984 | K12: -132.1852 | M12: 11 | N12: Conergy | O12: =IF($A12="","",COUNTIF($A$2:$A12,$A12)) -> 5 | P12: =IF($A12="","",$O12+thousand*VLOOKUP($A12,$A$1:Q12,17,FALSE)) -> 2005 | Q12: =IF(O12=1,MAX(Q$1:Q11)+1,"") ->  | R12: Auversun | S12: AV300M104NB-5P | T12: 11 | V12: 30011 | W12: JKMS 255P-60 | X12: 650 | Y12: 30011 | Z12: JKMS 255P-60 | AA12: 650 | AB12: 30011 | AC12: JKMS 255P-60 | AD12: 650 | AE12: 30011 | AF12: JKMS 255P-60 | AG12: 650 | AH12: 11 | AM12: 1000
A13: Avancis | B13: PowerMax SMART 105W | C13: 0.09964242604 | D13: 105 | E13: 56 | F13: 39 | G13: 3.22 | H13: 2.7 | I13: 0.0966 | J13: -130.48 | K13: -90.87 | M13: 12 | N13: DMEGC | O13: =IF($A13="","",COUNTIF($A$2:$A13,$A13)) -> 1 | P13: =IF($A13="","",$O13+thousand*VLOOKUP($A13,$A$1:Q13,17,FALSE)) -> 3001 | Q13: =IF(O13=1,MAX(Q$1:Q12)+1,"") -> 3 | R13: Avancis | S13: PowerMax SMART 105W | T13: 12 | V13: 30012 | W13: JKM 255P-60 | X13: 651 | Y13: 30012 | Z13: JKM 255P-60 | AA13: 651 | AB13: 30012 | AC13: JKM 255P-60 | AD13: 651 | AE13: 30012 | AF13: JKM 255P-60 | AG13: 651 | AH13: 12 | AM13: 1000
A14: Avancis | B14: PowerMax SMART 110W | C14: 0.1043873035 | D14: 110 | E14: 56.7 | F14: 40.2 | G14: 3.23 | H14: 2.74 | I14: 0.0969 | J14: -132.111 | K14: -93.666 | M14: 13 | N14: DuPont Apollo | O14: =IF($A14="","",COUNTIF($A$2:$A14,$A14)) -> 2 | P14: =IF($A14="","",$O14+thousand*VLOOKUP($A14,$A$1:Q14,17,FALSE)) -> 3002 | Q14: =IF(O14=1,MAX(Q$1:Q13)+1,"") ->  | R14: Avancis | S14: PowerMax SMART 110W | T14: 13 | V14: 30013 | W14: JKM 260M-60 | X14: 652 | Y14: 30013 | Z14: JKM 260M-60 | AA14: 652 | AB14: 30013 | AC14: JKM 260M-60 | AD14: 652 | AE14: 30013 | AF14: JKM 260M-60 | AG14: 652 | AH14: 13 | AM14: 1000
A15: Avancis | B15: PowerMax STRONG 110W | C15: 0.1008267796 | D15: 110 | E15: 56.9 | F15: 40.4 | G15: 3.19 | H15: 2.72 | I15: 0.0957 | J15: -132.577 | K15: -94.132 | M15: 14 | N15: ecoSolargy | O15: =IF($A15="","",COUNTIF($A$2:$A15,$A15)) -> 3 | P15: =IF($A15="","",$O15+thousand*VLOOKUP($A15,$A$1:Q15,17,FALSE)) -> 3003 | Q15: =IF(O15=1,MAX(Q$1:Q14)+1,"") ->  | R15: Avancis | S15: PowerMax STRONG 110W | T15: 14 | V15: 30014 | W15: JKM 260PP-60 | X15: 653 | Y15: 30014 | Z15: JKM 260PP-60 | AA15: 653 | AB15: 30014 | AC15: JKM 260PP-60 | AD15: 653 | AE15: 30014 | AF15: JKM 260PP-60 | AG15: 653 | AH15: 14 | AM15: 1000
A16: Avancis | B16: PowerMax SMART 115W | C16: 0.1091321809 | D16: 115 | E16: 57.4 | F16: 41.4 | G16: 3.25 | H16: 2.78 | I16: 0.0975 | J16: -133.742 | K16: -96.462 | M16: 15 | N16: Empire PV systems | O16: =IF($A16="","",COUNTIF($A$2:$A16,$A16)) -> 4 | P16: =IF($A16="","",$O16+thousand*VLOOKUP($A16,$A$1:Q16,17,FALSE)) -> 3004 | Q16: =IF(O16=1,MAX(Q$1:Q15)+1,"") ->  | R16: Avancis | S16: PowerMax SMART 115W | T16: 15 | V16: 30015 | W16: JKM 260P-60 | X16: 654 | Y16: 30015 | Z16: JKM 260P-60 | AA16: 654 | AB16: 30015 | AC16: JKM 260P-60 | AD16: 654 | AE16: 30015 | AF16: JKM 260P-60 | AG16: 654 | AH16: 15 | AM16: 1000
A17: Avancis | B17: PowerMax STRONG 115W | C17: 0.1051024978 | D17: 115 | E17: 57.5 | F17: 41.7 | G17: 3.19 | H17: 2.77 | I17: 0.0957 | J17: -133.975 | K17: -97.161 | M17: 16 | N17: Eoplly | O17: =IF($A17="","",COUNTIF($A$2:$A17,$A17)) -> 5 | P17: =IF($A17="","",$O17+thousand*VLOOKUP($A17,$A$1:Q17,17,FALSE)) -> 3005 | Q17: =IF(O17=1,MAX(Q$1:Q16)+1,"") ->  | R17: Avancis | S17: PowerMax STRONG 115W | T17: 16 | V17: 30016 | W17: JKM 265M-60 | X17: 655 | Y17: 30016 | Z17: JKM 265M-60 | AA17: 655 | AB17: 30016 | AC17: JKM 265M-60 | AD17: 655 | AE17: 30016 | AF17: JKM 265M-60 | AG17: 655 | AH17: 16 | AM17: 1000
A18: Avancis | B18: PowerMax SMART 120W | C18: 0.1138770583 | D18: 120 | E18: 58.1 | F18: 42.5 | G18: 3.26 | H18: 2.82 | I18: 0.0978 | J18: -135.373 | K18: -99.025 | M18: 17 | N18: ET Solar | O18: =IF($A18="","",COUNTIF($A$2:$A18,$A18)) -> 6 | P18: =IF($A18="","",$O18+thousand*VLOOKUP($A18,$A$1:Q18,17,FALSE)) -> 3006 | Q18: =IF(O18=1,MAX(Q$1:Q17)+1,"") ->  | R18: Avancis | S18: PowerMax SMART 120W | T18: 17 | V18: 30017 | W18: JKM 265M-96 | X18: 656 | Y18: 30017 | Z18: JKM 265M-96 | AA18: 656 | AB18: 30017 | AC18: JKM 265M-96 | AD18: 656 | AE18: 30017 | AF18: JKM 265M-96 | AG18: 656 | AH18: 17 | AM18: 1000
A19: Avancis | B19: PowerMax STRONG 120W | C19: 0.1096721716 | D19: 120 | E19: 58.3 | F19: 42.8 | G19: 3.22 | H19: 2.81 | I19: 0.0966 | J19: -135.839 | K19: -99.724 | M19: 18 | N19: First Solar | O19: =IF($A19="","",COUNTIF($A$2:$A19,$A19)) -> 7 | P19: =IF($A19="","",$O19+thousand*VLOOKUP($A19,$A$1:Q19,17,FALSE)) -> 3007 | Q19: =IF(O19=1,MAX(Q$1:Q18)+1,"") ->  | R19: Avancis | S19: PowerMax STRONG 120W | T19: 18 | V19: 30018 | W19: JKM 265PP-60 | X19: 657 | Y19: 30018 | Z19: JKM 265PP-60 | AA19: 657 | AB19: 30018 | AC19: JKM 265PP-60 | AD19: 657 | AE19: 30018 | AF19: JKM 265PP-60 | AG19: 657 | AH19: 18 | AM19: 1000
A20: Avancis | B20: PowerMax SMART 125W | C20: 0.1186219358 | D20: 125 | E20: 58.8 | F20: 43.7 | G20: 3.27 | H20: 2.86 | I20: 0.0981 | J20: -137.004 | K20: -101.821 | M20: 19 | N20: Goldi Green | O20: =IF($A20="","",COUNTIF($A$2:$A20,$A20)) -> 8 | P20: =IF($A20="","",$O20+thousand*VLOOKUP($A20,$A$1:Q20,17,FALSE)) -> 3008 | Q20: =IF(O20=1,MAX(Q$1:Q19)+1,"") ->  | R20: Avancis | S20: PowerMax SMART 125W | T20: 19 | V20: 30019 | W20: JKM 265P-60 | X20: 658 | Y20: 30019 | Z20: JKM 265P-60 | AA20: 658 | AB20: 30019 | AC20: JKM 265P-60 | AD20: 658 | AE20: 30019 | AF20: JKM 265P-60 | AG20: 658 | AH20: 19 | AM20: 1000
A21: Avancis | B21: PowerMax STRONG 125W | C21: 0.1142418454 | D21: 125 | E21: 59.1 | F21: 43.8 | G21: 3.24 | H21: 2.85 | I21: 0.0972 | J21: -137.703 | K21: -102.054 | M21: 20 | N21: Great Energy | O21: =IF($A21="","",COUNTIF($A$2:$A21,$A21)) -> 9 | P21: =IF($A21="","",$O21+thousand*VLOOKUP($A21,$A$1:Q21,17,FALSE)) -> 3009 | Q21: =IF(O21=1,MAX(Q$1:Q20)+1,"") ->  | R21: Avancis | S21: PowerMax STRONG 125W | T21: 20 | V21: 30020 | W21: JKM 270M-60 | X21: 659 | Y21: 30020 | Z21: JKM 270M-60 | AA21: 659 | AB21: 30020 | AC21: JKM 270M-60 | AD21: 659 | AE21: 30020 | AF21: JKM 270M-60 | AG21: 659 | AH21: 20 | AM21: 1000
A22: Avancis | B22: PowerMax SMART 130W | C22: 0.1233668132 | D22: 130 | E22: 59.5 | F22: 44.9 | G22: 3.28 | H22: 2.9 | I22: 0.0984 | J22: -138.635 | K22: -104.617 | M22: 21 | N22: Hanwha Q Cells | O22: =IF($A22="","",COUNTIF($A$2:$A22,$A22)) -> 10 | P22: =IF($A22="","",$O22+thousand*VLOOKUP($A22,$A$1:Q22,17,FALSE)) -> 3010 | Q22: =IF(O22=1,MAX(Q$1:Q21)+1,"") ->  | R22: Avancis | S22: PowerMax SMART 130W | T22: 21 | V22: 30021 | W22: JKM 270M-96 | X22: 660 | Y22: 30021 | Z22: JKM 270M-96 | AA22: 660 | AB22: 30021 | AC22: JKM 270M-96 | AD22: 660 | AE22: 30021 | AF22: JKM 270M-96 | AG22: 660 | AH22: 21 | AM22: 1000
A23: Avancis | B23: PowerMax STRONG 130W | C23: 0.1188115192 | D23: 130 | E23: 59.9 | F23: 44.9 | G23: 3.26 | H23: 2.9 | I23: 0.0978 | J23: -139.567 | K23: -104.617 | M23: 22 | N23: Hanwha SolarOne | O23: =IF($A23="","",COUNTIF($A$2:$A23,$A23)) -> 11 | P23: =IF($A23="","",$O23+thousand*VLOOKUP($A23,$A$1:Q23,17,FALSE)) -> 3011 | Q23: =IF(O23=1,MAX(Q$1:Q22)+1,"") ->  | R23: Avancis | S23: PowerMax STRONG 130W | T23: 22 | V23: 30022 | W23: JKM 290PP-72 | X23: 661 | Y23: 30022 | Z23: JKM 290PP-72 | AA23: 661 | AB23: 30022 | AC23: JKM 290PP-72 | AD23: 661 | AE23: 30022 | AF23: JKM 290PP-72 | AG23: 661 | AH23: 22 | AM23: 1000
A24: Avancis | B24: PowerMax SMART 135W | C24: 0.1281116906 | D24: 135 | E24: 60.2 | F24: 46.1 | G24: 3.29 | H24: 2.94 | I24: 0.0987 | J24: -140.266 | K24: -107.413 | M24: 23 | N24: Hareon | O24: =IF($A24="","",COUNTIF($A$2:$A24,$A24)) -> 12 | P24: =IF($A24="","",$O24+thousand*VLOOKUP($A24,$A$1:Q24,17,FALSE)) -> 3012 | Q24: =IF(O24=1,MAX(Q$1:Q23)+1,"") ->  | R24: Avancis | S24: PowerMax SMART 135W | T24: 23 | V24: 30023 | W24: JKMS 295M-72 | X24: 662 | Y24: 30023 | Z24: JKMS 295M-72 | AA24: 662 | AB24: 30023 | AC24: JKMS 295M-72 | AD24: 662 | AE24: 30023 | AF24: JKMS 295M-72 | AG24: 662 | AH24: 23 | AM24: 1000
A25: Avancis | B25: PowerMax STRONG 135W | C25: 0.1233811931 | D25: 135 | E25: 60.7 | F25: 45.9 | G25: 3.29 | H25: 2.94 | I25: 0.0987 | J25: -141.431 | K25: -106.947 | M25: 24 | N25: Heliene Inc | O25: =IF($A25="","",COUNTIF($A$2:$A25,$A25)) -> 13 | P25: =IF($A25="","",$O25+thousand*VLOOKUP($A25,$A$1:Q25,17,FALSE)) -> 3013 | Q25: =IF(O25=1,MAX(Q$1:Q24)+1,"") ->  | R25: Avancis | S25: PowerMax STRONG 135W | T25: 24 | V25: 30024 | W25: JKM 295PP-72 | X25: 663 | Y25: 30024 | Z25: JKM 295PP-72 | AA25: 663 | AB25: 30024 | AC25: JKM 295PP-72 | AD25: 663 | AE25: 30024 | AF25: JKM 295PP-72 | AG25: 663 | AH25: 24 | AM25: 1000
A26: Avancis | B26: PowerMax STRONG 140W | C26: 0.1279508669 | D26: 140 | E26: 61.5 | F26: 47 | G26: 3.31 | H26: 2.98 | I26: 0.0993 | J26: -143.295 | K26: -109.51 | M26: 25 | N26: Helios Energy Europe | O26: =IF($A26="","",COUNTIF($A$2:$A26,$A26)) -> 14 | P26: =IF($A26="","",$O26+thousand*VLOOKUP($A26,$A$1:Q26,17,FALSE)) -> 3014 | Q26: =IF(O26=1,MAX(Q$1:Q25)+1,"") ->  | R26: Avancis | S26: PowerMax STRONG 140W | T26: 25 | V26: 30025 | W26: JKMS 295P-72 | X26: 664 | Y26: 30025 | Z26: JKMS 295P-72 | AA26: 664 | AB26: 30025 | AC26: JKMS 295P-72 | AD26: 664 | AE26: 30025 | AF26: JKMS 295P-72 | AG26: 664 | AH26: 25 | AM26: 1000
A27: BenQ Solar | B27: PM250M01_250 | C27: 0.1551699204 | D27: 250 | E27: 37.86 | F27: 30.82 | G27: 8.66 | H27: 8.22 | I27: 5.196 | J27: -113.58 | K27: -92.46 | M27: 26 | N27: Helios USA | O27: =IF($A27="","",COUNTIF($A$2:$A27,$A27)) -> 1 | P27: =IF($A27="","",$O27+thousand*VLOOKUP($A27,$A$1:Q27,17,FALSE)) -> 4001 | Q27: =IF(O27=1,MAX(Q$1:Q26)+1,"") -> 4 | R27: BenQ Solar | S27: PM250M01_250 | T27: 26 | V27: 30026 | W27: JKM 295P-72 | X27: 665 | Y27: 30026 | Z27: JKM 295P-72 | AA27: 665 | AB27: 30026 | AC27: JKM 295P-72 | AD27: 665 | AE27: 30026 | AF27: JKM 295P-72 | AG27: 665 | AH27: 26 | AM27: 1000
A28: BenQ Solar | B28: PM245P00_255 | C28: 0.1582733188 | D28: 255 | E28: 37.6 | F28: 30.8 | G28: 8.76 | H28: 8.28 | I28: 3.504 | J28: -112.8 | K28: -92.4 | M28: 27 | N28: JA Solar | O28: =IF($A28="","",COUNTIF($A$2:$A28,$A28)) -> 2 | P28: =IF($A28="","",$O28+thousand*VLOOKUP($A28,$A$1:Q28,17,FALSE)) -> 4002 | Q28: =IF(O28=1,MAX(Q$1:Q27)+1,"") ->  | R28: BenQ Solar | S28: PM245P00_255 | T28: 27 | V28: 30027 | W28: JKMS 300M-72 | X28: 666 | Y28: 30027 | Z28: JKMS 300M-72 | AA28: 666 | AB28: 30027 | AC28: JKMS 300M-72 | AD28: 666 | AE28: 30027 | AF28: JKMS 300M-72 | AG28: 666 | AH28: 27 | AM28: 1000
A29: BenQ Solar | B29: PM250M01_255 | C29: 0.1582733188 | D29: 255 | E29: 37.8 | F29: 30.3 | G29: 8.94 | H29: 8.42 | I29: 5.364 | J29: -113.4 | K29: -90.9 | M29: 28 | N29: Jetion | O29: =IF($A29="","",COUNTIF($A$2:$A29,$A29)) -> 3 | P29: =IF($A29="","",$O29+thousand*VLOOKUP($A29,$A$1:Q29,17,FALSE)) -> 4003 | Q29: =IF(O29=1,MAX(Q$1:Q28)+1,"") ->  | R29: BenQ Solar | S29: PM250M01_255 | T29: 28 | V29: 30028 | W29: JKM 300M-72 | X29: 667 | Y29: 30028 | Z29: JKM 300M-72 | AA29: 667 | AB29: 30028 | AC29: JKM 300M-72 | AD29: 667 | AE29: 30028 | AF29: JKM 300M-72 | AG29: 667 | AH29: 28 | AM29: 1000
A30: BenQ Solar | B30: PM245P00_260 | C30: 0.1613767172 | D30: 260 | E30: 37.7 | F30: 31.2 | G30: 8.83 | H30: 8.34 | I30: 3.532 | J30: -113.1 | K30: -93.6 | M30: 29 | N30: Jiangsu Linyang | O30: =IF($A30="","",COUNTIF($A$2:$A30,$A30)) -> 4 | P30: =IF($A30="","",$O30+thousand*VLOOKUP($A30,$A$1:Q30,17,FALSE)) -> 4004 | Q30: =IF(O30=1,MAX(Q$1:Q29)+1,"") ->  | R30: BenQ Solar | S30: PM245P00_260 | T30: 29 | V30: 30029 | W30: JKM 300PP-72 | X30: 668 | Y30: 30029 | Z30: JKM 300PP-72 | AA30: 668 | AB30: 30029 | AC30: JKM 300PP-72 | AD30: 668 | AE30: 30029 | AF30: JKM 300PP-72 | AG30: 668 | AH30: 29 | AM30: 1000
A31: BenQ Solar | B31: PM250M01_260 | C31: 0.1613767172 | D31: 260 | E31: 38 | F31: 30.8 | G31: 8.96 | H31: 8.45 | I31: 5.376 | J31: -114 | K31: -92.4 | M31: 30 | N31: Jinkosolar | O31: =IF($A31="","",COUNTIF($A$2:$A31,$A31)) -> 5 | P31: =IF($A31="","",$O31+thousand*VLOOKUP($A31,$A$1:Q31,17,FALSE)) -> 4005 | Q31: =IF(O31=1,MAX(Q$1:Q30)+1,"") ->  | R31: BenQ Solar | S31: PM250M01_260 | T31: 30 | V31: 30030 | W31: JKMS 300P-72 | X31: 669 | Y31: 30030 | Z31: JKMS 300P-72 | AA31: 669 | AB31: 30030 | AC31: JKMS 300P-72 | AD31: 669 | AE31: 30030 | AF31: JKMS 300P-72 | AG31: 669 | AH31: 30 | AM31: 1000
A32: BenQ Solar | B32: PM250M01_265 | C32: 0.1644801156 | D32: 265 | E32: 38.2 | F32: 31.3 | G32: 8.98 | H32: 8.47 | I32: 5.388 | J32: -114.218 | K32: -93.587 | M32: 31 | N32: Kohima (Eternus) | O32: =IF($A32="","",COUNTIF($A$2:$A32,$A32)) -> 6 | P32: =IF($A32="","",$O32+thousand*VLOOKUP($A32,$A$1:Q32,17,FALSE)) -> 4006 | Q32: =IF(O32=1,MAX(Q$1:Q31)+1,"") ->  | R32: BenQ Solar | S32: PM250M01_265 | T32: 31 | V32: 30031 | W32: JKM 300P-72 | X32: 670 | Y32: 30031 | Z32: JKM 300P-72 | AA32: 670 | AB32: 30031 | AC32: JKM 300P-72 | AD32: 670 | AE32: 30031 | AF32: JKM 300P-72 | AG32: 670 | AH32: 31 | AM32: 1000
A33: BenQ Solar | B33: PM250M01_270 | C33: 0.167583514 | D33: 270 | E33: 38.5 | F33: 31.8 | G33: 9.01 | H33: 8.5 | I33: 5.406 | J33: -114.345 | K33: -94.446 | M33: 32 | N33: LDK Solar Co., Ltd. | O33: =IF($A33="","",COUNTIF($A$2:$A33,$A33)) -> 7 | P33: =IF($A33="","",$O33+thousand*VLOOKUP($A33,$A$1:Q33,17,FALSE)) -> 4007 | Q33: =IF(O33=1,MAX(Q$1:Q32)+1,"") ->  | R33: BenQ Solar | S33: PM250M01_270 | T33: 32 | V33: 30032 | W33: JKMS 305M-72 | X33: 671 | Y33: 30032 | Z33: JKMS 305M-72 | AA33: 671 | AB33: 30032 | AC33: JKMS 305M-72 | AD33: 671 | AE33: 30032 | AF33: JKMS 305M-72 | AG33: 671 | AH33: 32 | AM33: 1000
A34: BenQ Solar | B34: PM250M01_275 | C34: 0.1706869124 | D34: 275 | E34: 38.7 | F34: 32.3 | G34: 9.03 | H34: 8.52 | I34: 5.418 | J34: -114.552 | K34: -95.608 | M34: 33 | N34: LG Electronics | O34: =IF($A34="","",COUNTIF($A$2:$A34,$A34)) -> 8 | P34: =IF($A34="","",$O34+thousand*VLOOKUP($A34,$A$1:Q34,17,FALSE)) -> 4008 | Q34: =IF(O34=1,MAX(Q$1:Q33)+1,"") ->  | R34: BenQ Solar | S34: PM250M01_275 | T34: 33 | V34: 30033 | W34: =IF(COUNTIF($P$2:$P$7985,V34)>0,VLOOKUP(V34,$P$2:$S$7985,4,FALSE),"") -> JKM 305M-72 | X34: =IF(W34="","",VLOOKUP(V34,$P$2:$T$7985,5,FALSE)) -> 672 | Y34: 30033 | Z34: =IF(COUNTIF($P$2:$P$7985,Y34)>0,VLOOKUP(Y34,$P$2:$S$7985,4,FALSE),"") -> JKM 305M-72 | AA34: =IF(Z34="","",VLOOKUP(Y34,$P$2:$T$7985,5,FALSE)) -> 672 | AB34: 30033 | AC34: =IF(COUNTIF($P$2:$P$7985,AB34)>0,VLOOKUP(AB34,$P$2:$S$7985,4,FALSE),"") -> JKM 305M-72 | AD34: =IF(AC34="","",VLOOKUP(AB34,$P$2:$T$7985,5,FALSE)) -> 672 | AE34: 30033 | AF34: JKM 305M-72 | AG34: 672 | AH34: 33 | AJ34: =IF(AI34="","",VLOOKUP(AH34,$P$2:$T$7985,5,FALSE)) ->  | AM34: 1000
A35: BenQ Solar | B35: PM300P00_300 | C35: 0.1560266868 | D35: 300 | E35: 44.6 | F35: 35.9 | G35: 9.05 | H35: 8.46 | I35: 3.62 | J35: -145.842 | K35: -117.393 | M35: 34 | N35: Lightwaysolar | O35: =IF($A35="","",COUNTIF($A$2:$A35,$A35)) -> 9 | P35: =IF($A35="","",$O35+thousand*VLOOKUP($A35,$A$1:Q35,17,FALSE)) -> 4009 | Q35: =IF(O35=1,MAX(Q$1:Q34)+1,"") ->  | R35: BenQ Solar | S35: PM300P00_300 | T35: 34 | V35: 30034 | W35: JKM 305PP-72 | X35: 673 | Y35: 30034 | Z35: JKM 305PP-72 | AA35: 673 | AB35: 30034 | AC35: JKM 305PP-72 | AD35: 673 | AE35: 30034 | AF35: JKM 305PP-72 | AG35: 673 | AH35: 34 | AI35: =IF(COUNTIF($P$2:$P$7985,AH35)>0,VLOOKUP(AH35,$P$2:$S$7985,4,FALSE),"") ->  | AM35: 1000
A36: BenQ Solar | B36: PM300P00_305 | C36: 0.1586271316 | D36: 305 | E36: 44.9 | F36: 35.8 | G36: 9.09 | H36: 8.6 | I36: 3.636 | J36: -146.823 | K36: -117.066 | M36: 35 | N36: Masdar PV GmbH | O36: =IF($A36="","",COUNTIF($A$2:$A36,$A36)) -> 10 | P36: =IF($A36="","",$O36+thousand*VLOOKUP($A36,$A$1:Q36,17,FALSE)) -> 4010 | Q36: =IF(O36=1,MAX(Q$1:Q35)+1,"") ->  | R36: BenQ Solar | S36: PM300P00_305 | T36: 35 | V36: 30035 | W36: JKMS 305P-72 | X36: 674 | Y36: 30035 | Z36: JKMS 305P-72 | AA36: 674 | AB36: 30035 | AC36: JKMS 305P-72 | AD36: 674 | AE36: 30035 | AF36: JKMS 305P-72 | AG36: 674 | AH36: 35 | AM36: 1000
A37: BenQ Solar | B37: PM318B01_315 | C37: 0.1931669195 | D37: 315 | E37: 64.6 | F37: 54.7 | G37: 6.14 | H37: 5.76 | I37: 3.684 | J37: -211.242 | K37: -178.869 | M37: 36 | N37: Meyer Burger AG | O37: =IF($A37="","",COUNTIF($A$2:$A37,$A37)) -> 11 | P37: =IF($A37="","",$O37+thousand*VLOOKUP($A37,$A$1:Q37,17,FALSE)) -> 4011 | Q37: =IF(O37=1,MAX(Q$1:Q36)+1,"") ->  | R37: BenQ Solar | S37: PM318B01_315 | T37: 36 | V37: 30036 | W37: JKM 305P-72 | X37: 675 | Y37: 30036 | Z37: JKM 305P-72 | AA37: 675 | AB37: 30036 | AC37: JKM 305P-72 | AD37: 675 | AE37: 30036 | AF37: JKM 305P-72 | AG37: 675 | AH37: 36 | AM37: 1000
A38: BenQ Solar | B38: PM096B00_320 | C38: 0.1962330611 | D38: 320 | E38: 64.8 | F38: 54.7 | G38: 6.27 | H38: 5.86 | I38: 3.762 | J38: -211.896 | K38: -178.869 | M38: 37 | N38: Mitsubishi | O38: =IF($A38="","",COUNTIF($A$2:$A38,$A38)) -> 12 | P38: =IF($A38="","",$O38+thousand*VLOOKUP($A38,$A$1:Q38,17,FALSE)) -> 4012 | Q38: =IF(O38=1,MAX(Q$1:Q37)+1,"") ->  | R38: BenQ Solar | S38: PM096B00_320 | T38: 37 | V38: 30037 | W38: JKMS 310M-72 | X38: 676 | Y38: 30037 | Z38: JKMS 310M-72 | AA38: 676 | AB38: 30037 | AC38: JKMS 310M-72 | AD38: 676 | AE38: 30037 | AF38: JKMS 310M-72 | AG38: 676 | AH38: 37 | AM38: 1000
A39: BenQ Solar | B39: PM318B01_320 | C39: 0.1962330611 | D39: 320 | E39: 64.8 | F39: 54.7 | G39: 6.27 | H39: 5.86 | I39: 3.762 | J39: -211.896 | K39: -178.869 | M39: 38 | N39: MoserBaer | O39: =IF($A39="","",COUNTIF($A$2:$A39,$A39)) -> 13 | P39: =IF($A39="","",$O39+thousand*VLOOKUP($A39,$A$1:Q39,17,FALSE)) -> 4013 | Q39: =IF(O39=1,MAX(Q$1:Q38)+1,"") ->  | R39: BenQ Solar | S39: PM318B01_320 | T39: 38 | V39: 30038 | W39: JKM 310M-72 | X39: 677 | Y39: 30038 | Z39: JKM 310M-72 | AA39: 677 | AB39: 30038 | AC39: JKM 310M-72 | AD39: 677 | AE39: 30038 | AF39: JKM 310M-72 | AG39: 677 | AH39: 38 | AM39: 1000
A40: BenQ Solar | B40: PM318B00_320 | C40: 0.1962330611 | D40: 320 | E40: 64.8 | F40: 54.7 | G40: 6.27 | H40: 5.86 | I40: 3.762 | J40: -211.896 | K40: -178.869 | M40: 39 | N40: MPRIME Solar Solutions SA | O40: =IF($A40="","",COUNTIF($A$2:$A40,$A40)) -> 14 | P40: =IF($A40="","",$O40+thousand*VLOOKUP($A40,$A$1:Q40,17,FALSE)) -> 4014 | Q40: =IF(O40=1,MAX(Q$1:Q39)+1,"") ->  | R40: BenQ Solar | S40: PM318B00_320 | T40: 39 | V40: 30039 | W40: JKM 310PP-72 | X40: 678 | Y40: 30039 | Z40: JKM 310PP-72 | AA40: 678 | AB40: 30039 | AC40: JKM 310PP-72 | AD40: 678 | AE40: 30039 | AF40: JKM 310PP-72 | AG40: 678 | AH40: 39 | AM40: 1000
A41: BenQ Solar | B41: PM096B00_325 | C41: 0.1992992027 | D41: 325 | E41: 64.9 | F41: 54.7 | G41: 6.39 | H41: 5.94 | I41: 3.834 | J41: -210.276 | K41: -177.228 | M41: 40 | N41: NexPower | O41: =IF($A41="","",COUNTIF($A$2:$A41,$A41)) -> 15 | P41: =IF($A41="","",$O41+thousand*VLOOKUP($A41,$A$1:Q41,17,FALSE)) -> 4015 | Q41: =IF(O41=1,MAX(Q$1:Q40)+1,"") ->  | R41: BenQ Solar | S41: PM096B00_325 | T41: 40 | V41: 30040 | W41: JKM 310P-72 | X41: 679 | Y41: 30040 | Z41: JKM 310P-72 | AA41: 679 | AB41: 30040 | AC41: JKM 310P-72 | AD41: 679 | AE41: 30040 | AF41: JKM 310P-72 | AG41: 679 | AH41: 40 | AM41: 1000
A42: BenQ Solar | B42: PM318B01_325 | C42: 0.1992992027 | D42: 325 | E42: 64.9 | F42: 54.7 | G42: 6.39 | H42: 5.94 | I42: 3.834 | J42: -210.276 | K42: -177.228 | M42: 41 | N42: Ningbo Ulica Solar | O42: =IF($A42="","",COUNTIF($A$2:$A42,$A42)) -> 16 | P42: =IF($A42="","",$O42+thousand*VLOOKUP($A42,$A$1:Q42,17,FALSE)) -> 4016 | Q42: =IF(O42=1,MAX(Q$1:Q41)+1,"") ->  | R42: BenQ Solar | S42: PM318B01_325 | T42: 41 | V42: 30041 | W42: JKM 315M-72 | X42: 680 | Y42: 30041 | Z42: JKM 315M-72 | AA42: 680 | AB42: 30041 | AC42: JKM 315M-72 | AD42: 680 | AE42: 30041 | AF42: JKM 315M-72 | AG42: 680 | AH42: 41 | AM42: 1000
A43: BenQ Solar | B43: PM318B00_325 | C43: 0.1992992027 | D43: 325 | E43: 64.9 | F43: 54.7 | G43: 6.39 | H43: 5.94 | I43: 3.834 | J43: -210.276 | K43: -177.228 | M43: 42 | N43: Open Renewables | O43: =IF($A43="","",COUNTIF($A$2:$A43,$A43)) -> 17 | P43: =IF($A43="","",$O43+thousand*VLOOKUP($A43,$A$1:Q43,17,FALSE)) -> 4017 | Q43: =IF(O43=1,MAX(Q$1:Q42)+1,"") ->  | R43: BenQ Solar | S43: PM318B00_325 | T43: 42 | V43: 30042 | Y43: 30042 | AB43: 30042 | AE43: 30042 | AH43: 42 | AM43: 1000
A44: BenQ Solar | B44: PM096B00_327 | C44: 0.2005256593 | D44: 327 | E44: 64.9 | F44: 54.7 | G44: 6.46 | H44: 5.98 | I44: 3.876 | J44: -210.276 | K44: -177.228 | M44: 43 | N44: Panasonic | O44: =IF($A44="","",COUNTIF($A$2:$A44,$A44)) -> 18 | P44: =IF($A44="","",$O44+thousand*VLOOKUP($A44,$A$1:Q44,17,FALSE)) -> 4018 | Q44: =IF(O44=1,MAX(Q$1:Q43)+1,"") ->  | R44: BenQ Solar | S44: PM096B00_327 | T44: 43 | V44: 30043 | Y44: 30043 | AB44: 30043 | AE44: 30043 | AH44: 43 | AM44: 1000
A45: BenQ Solar | B45: PM318B01_327 | C45: 0.2005256593 | D45: 327 | E45: 64.9 | F45: 54.7 | G45: 6.46 | H45: 5.98 | I45: 3.876 | J45: -210.276 | K45: -177.228 | M45: 44 | N45: Phono Solar | O45: =IF($A45="","",COUNTIF($A$2:$A45,$A45)) -> 19 | P45: =IF($A45="","",$O45+thousand*VLOOKUP($A45,$A$1:Q45,17,FALSE)) -> 4019 | Q45: =IF(O45=1,MAX(Q$1:Q44)+1,"") ->  | R45: BenQ Solar | S45: PM318B01_327 | T45: 44 | V45: 30044 | Y45: 30044 | AB45: 30044 | AE45: 30044 | AH45: 44 | AM45: 1000
A46: BenQ Solar | B46: PM318B00_327 | C46: 0.2005256593 | D46: 327 | E46: 64.9 | F46: 54.7 | G46: 6.46 | H46: 5.98 | I46: 3.876 | J46: -210.276 | K46: -177.228 | M46: 45 | N46: Photonix | O46: =IF($A46="","",COUNTIF($A$2:$A46,$A46)) -> 20 | P46: =IF($A46="","",$O46+thousand*VLOOKUP($A46,$A$1:Q46,17,FALSE)) -> 4020 | Q46: =IF(O46=1,MAX(Q$1:Q45)+1,"") ->  | R46: BenQ Solar | S46: PM318B00_327 | T46: 45 | V46: 30045 | Y46: 30045 | AB46: 30045 | AE46: 30045 | AH46: 45 | AM46: 1000
A47: BenQ Solar | B47: PM096B00_330 | C47: 0.2023653443 | D47: 330 | E47: 64.9 | F47: 54.7 | G47: 6.52 | H47: 6.04 | I47: 3.912 | J47: -210.276 | K47: -177.228 | M47: 46 | N47: REC | O47: =IF($A47="","",COUNTIF($A$2:$A47,$A47)) -> 21 | P47: =IF($A47="","",$O47+thousand*VLOOKUP($A47,$A$1:Q47,17,FALSE)) -> 4021 | Q47: =IF(O47=1,MAX(Q$1:Q46)+1,"") ->  | R47: BenQ Solar | S47: PM096B00_330 | T47: 46 | V47: 30046 | Y47: 30046 | AB47: 30046 | AE47: 30046 | AH47: 46 | AM47: 1000
A48: Bisol | B48: BMU-215-2/225 | C48: 0.1376855006 | D48: 225 | E48: 37 | F48: 29 | G48: 8.3 | H48: 7.75 | I48: 3.901 | J48: -113.96 | K48: -89.32 | M48: 47 | N48: Renesola | O48: =IF($A48="","",COUNTIF($A$2:$A48,$A48)) -> 1 | P48: =IF($A48="","",$O48+thousand*VLOOKUP($A48,$A$1:Q48,17,FALSE)) -> 5001 | Q48: =IF(O48=1,MAX(Q$1:Q47)+1,"") -> 5 | R48: Bisol | S48: BMU-215-2/225 | T48: 47 | V48: 30047 | Y48: 30047 | AB48: 30047 | AE48: 30047 | AH48: 47 | AM48: 1000
A49: Bisol | B49: BMU-215-2/230 | C49: 0.1407451784 | D49: 230 | E49: 37.3 | F49: 29.3 | G49: 8.4 | H49: 7.85 | I49: 3.948 | J49: -114.884 | K49: -90.244 | M49: 48 | N49: Risen Energy Co., Ltd | O49: =IF($A49="","",COUNTIF($A$2:$A49,$A49)) -> 2 | P49: =IF($A49="","",$O49+thousand*VLOOKUP($A49,$A$1:Q49,17,FALSE)) -> 5002 | Q49: =IF(O49=1,MAX(Q$1:Q48)+1,"") ->  | R49: Bisol | S49: BMU-215-2/230 | T49: 48 | V49: 30048 | Y49: 30048 | AB49: 30048 | AE49: 30048 | AH49: 48 | AM49: 1000
A50: Bisol | B50: BMU-215-2/235 | C50: 0.1438048562 | D50: 235 | E50: 37.6 | F50: 29.6 | G50: 8.5 | H50: 7.95 | I50: 3.995 | J50: -115.808 | K50: -91.168 | M50: 49 | N50: Saint-Gobain | O50: =IF($A50="","",COUNTIF($A$2:$A50,$A50)) -> 3 | P50: =IF($A50="","",$O50+thousand*VLOOKUP($A50,$A$1:Q50,17,FALSE)) -> 5003 | Q50: =IF(O50=1,MAX(Q$1:Q49)+1,"") ->  | R50: Bisol | S50: BMU-215-2/235 | T50: 49 | V50: 30049 | Y50: 30049 | AB50: 30049 | AE50: 30049 | AH50: 49 | AM50: 1000
A51: Bisol | B51: BMU-215-2/240 | C51: 0.146864534 | D51: 240 | E51: 37.9 | F51: 29.9 | G51: 8.55 | H51: 8.03 | I51: 4.0185 | J51: -116.732 | K51: -92.092 | M51: 50 | N51: Saint-Gobain Luxra | O51: =IF($A51="","",COUNTIF($A$2:$A51,$A51)) -> 4 | P51: =IF($A51="","",$O51+thousand*VLOOKUP($A51,$A$1:Q51,17,FALSE)) -> 5004 | Q51: =IF(O51=1,MAX(Q$1:Q50)+1,"") ->  | R51: Bisol | S51: BMU-215-2/240 | T51: 50 | V51: 30050 | Y51: 30050 | AB51: 30050 | AE51: 30050 | AH51: 50 | AM51: 1000
A52: Bisol | B52: BMU-215-2/250 | C52: 0.1529838896 | D52: 250 | E52: 38.4 | F52: 30.3 | G52: 8.75 | H52: 8.25 | I52: 4.1125 | J52: -118.272 | K52: -93.324 | M52: 51 | N52: Samsung SDI. Co. Ltd. | O52: =IF($A52="","",COUNTIF($A$2:$A52,$A52)) -> 5 | P52: =IF($A52="","",$O52+thousand*VLOOKUP($A52,$A$1:Q52,17,FALSE)) -> 5005 | Q52: =IF(O52=1,MAX(Q$1:Q51)+1,"") ->  | R52: Bisol | S52: BMU-215-2/250 | T52: 51 | V52: 30051 | Y52: 30051 | AB52: 30051 | AE52: 30051 | AH52: 51 | AM52: 1000
A53: Bisol | B53: BMU-215-2/255 | C53: 0.1560435674 | D53: 255 | E53: 38.7 | F53: 30.5 | G53: 8.85 | H53: 8.35 | I53: 4.1595 | J53: -119.196 | K53: -93.94 | M53: 52 | N53: Selfa GE S.A. | O53: =IF($A53="","",COUNTIF($A$2:$A53,$A53)) -> 6 | P53: =IF($A53="","",$O53+thousand*VLOOKUP($A53,$A$1:Q53,17,FALSE)) -> 5006 | Q53: =IF(O53=1,MAX(Q$1:Q52)+1,"") ->  | R53: Bisol | S53: BMU-215-2/255 | T53: 52 | V53: 30052 | Y53: 30052 | AB53: 30052 | AE53: 30052 | AH53: 52 | AM53: 1000
A54: Bisol | B54: BMO-215-2/255 | C54: 0.1560435674 | D54: 255 | E54: 38.1 | F54: 30.7 | G54: 8.9 | H54: 8.3 | I54: 4.183 | J54: -117.348 | K54: -94.556 | M54: 53 | N54: Sharp | O54: =IF($A54="","",COUNTIF($A$2:$A54,$A54)) -> 7 | P54: =IF($A54="","",$O54+thousand*VLOOKUP($A54,$A$1:Q54,17,FALSE)) -> 5007 | Q54: =IF(O54=1,MAX(Q$1:Q53)+1,"") ->  | R54: Bisol | S54: BMO-215-2/255 | T54: 53 | V54: 30053 | Y54: 30053 | AB54: 30053 | AE54: 30053 | AH54: 53 | AM54: 1000
A55: Bisol | B55: BMU-260 | C55: 0.1591032452 | D55: 260 | E55: 39 | F55: 30.9 | G55: 8.9 | H55: 8.4 | I55: 4.183 | J55: -120.12 | K55: -95.172 | M55: 54 | N55: Sharp Corporation | O55: =IF($A55="","",COUNTIF($A$2:$A55,$A55)) -> 8 | P55: =IF($A55="","",$O55+thousand*VLOOKUP($A55,$A$1:Q55,17,FALSE)) -> 5008 | Q55: =IF(O55=1,MAX(Q$1:Q54)+1,"") ->  | R55: Bisol | S55: BMU-260 | T55: 54 | V55: 30054 | Y55: 30054 | AB55: 30054 | AE55: 30054 | AH55: 54 | AM55: 1000
A56: Bisol | B56: BMO-215-2/260 | C56: 0.1591032452 | D56: 260 | E56: 38.3 | F56: 31 | G56: 9 | H56: 8.4 | I56: 4.23 | J56: -117.964 | K56: -95.48 | M56: 55 | N56: SNAsolar | O56: =IF($A56="","",COUNTIF($A$2:$A56,$A56)) -> 9 | P56: =IF($A56="","",$O56+thousand*VLOOKUP($A56,$A$1:Q56,17,FALSE)) -> 5009 | Q56: =IF(O56=1,MAX(Q$1:Q55)+1,"") ->  | R56: Bisol | S56: BMO-215-2/260 | T56: 55 | V56: 30055 | Y56: 30055 | AB56: 30055 | AE56: 30055 | AH56: 55 | AM56: 1000
A57: Bisol | B57: BMU-265 | C57: 0.1621629229 | D57: 265 | E57: 39.3 | F57: 31.2 | G57: 9 | H57: 8.5 | I57: 4.23 | J57: -121.044 | K57: -96.096 | M57: 56 | N57: Solarclarity | O57: =IF($A57="","",COUNTIF($A$2:$A57,$A57)) -> 10 | P57: =IF($A57="","",$O57+thousand*VLOOKUP($A57,$A$1:Q57,17,FALSE)) -> 5010 | Q57: =IF(O57=1,MAX(Q$1:Q56)+1,"") ->  | R57: Bisol | S57: BMU-265 | T57: 56 | V57: 30056 | Y57: 30056 | AB57: 30056 | AE57: 30056 | AH57: 56 | AM57: 1000
A58: Bisol | B58: BMO-215-2/265 | C58: 0.1621629229 | D58: 265 | E58: 38.5 | F58: 31.2 | G58: 9.1 | H58: 8.5 | I58: 4.277 | J58: -118.58 | K58: -96.096 | M58: 57 | N58: Solarezo | O58: =IF($A58="","",COUNTIF($A$2:$A58,$A58)) -> 11 | P58: =IF($A58="","",$O58+thousand*VLOOKUP($A58,$A$1:Q58,17,FALSE)) -> 5011 | Q58: =IF(O58=1,MAX(Q$1:Q57)+1,"") ->  | R58: Bisol | S58: BMO-215-2/265 | T58: 57 | V58: 30057 | Y58: 30057 | AB58: 30057 | AE58: 30057 | AH58: 57 | AM58: 1000
A59: Bisol | B59: BMO-270 | C59: 0.1652226007 | D59: 270 | E59: 38.6 | F59: 31.5 | G59: 9.2 | H59: 8.57 | I59: 0 | J59: -118.888 | K59: -97.02 | M59: 58 | N59: Solar Frontier K. K. | O59: =IF($A59="","",COUNTIF($A$2:$A59,$A59)) -> 12 | P59: =IF($A59="","",$O59+thousand*VLOOKUP($A59,$A$1:Q59,17,FALSE)) -> 5012 | Q59: =IF(O59=1,MAX(Q$1:Q58)+1,"") ->  | R59: Bisol | S59: BMO-270 | T59: 58 | V59: 30058 | Y59: 30058 | AB59: 30058 | AE59: 30058 | AH59: 58 | AM59: 1000
A60: Bisol | B60: BMO-280 | C60: 0.1713419563 | D60: 280 | E60: 39 | F60: 31.8 | G60: 9.35 | H60: 8.8 | I60: 0 | J60: -120.12 | K60: -97.944 | M60: 59 | N60: Solarkauf | O60: =IF($A60="","",COUNTIF($A$2:$A60,$A60)) -> 13 | P60: =IF($A60="","",$O60+thousand*VLOOKUP($A60,$A$1:Q60,17,FALSE)) -> 5013 | Q60: =IF(O60=1,MAX(Q$1:Q59)+1,"") ->  | R60: Bisol | S60: BMO-280 | T60: 59 | V60: 30059 | Y60: 30059 | AB60: 30059 | AE60: 30059 | AH60: 59 | AM60: 1000
A61: Bisol | B61: BMO-285 | C61: 0.1744016341 | D61: 285 | E61: 39.1 | F61: 32.2 | G61: 9.5 | H61: 8.85 | I61: 0 | J61: -120.428 | K61: -99.176 | M61: 60 | N61: Solibro | O61: =IF($A61="","",COUNTIF($A$2:$A61,$A61)) -> 14 | P61: =IF($A61="","",$O61+thousand*VLOOKUP($A61,$A$1:Q61,17,FALSE)) -> 5014 | Q61: =IF(O61=1,MAX(Q$1:Q60)+1,"") ->  | R61: Bisol | S61: BMO-285 | T61: 60 | V61: 30060 | Y61: 30060 | AB61: 30060 | AE61: 30060 | AH61: 60 | AM61: 1000
A62: Bisol | B62: BMO-290 | C62: 0.1774613119 | D62: 290 | E62: 39.3 | F62: 32.4 | G62: 9.6 | H62: 8.95 | I62: 0 | J62: -121.044 | K62: -99.792 | M62: 61 | N62: Stion | O62: =IF($A62="","",COUNTIF($A$2:$A62,$A62)) -> 15 | P62: =IF($A62="","",$O62+thousand*VLOOKUP($A62,$A$1:Q62,17,FALSE)) -> 5015 | Q62: =IF(O62=1,MAX(Q$1:Q61)+1,"") ->  | R62: Bisol | S62: BMO-290 | T62: 61 | V62: 30061 | Y62: 30061 | AB62: 30061 | AE62: 30061 | AH62: 61 | AM62: 1000
A63: Bosch Solar Energy AG | B63: BSM c- Si M 48 S EU40123_V1_185 Wp | C63: 0.1392464135 | D63: 185 | E63: 29.9 | F63: 23.3 | G63: 8.58 | H63: 7.97 | I63: 2.574 | J63: -98.67 | K63: -76.89 | M63: 62 | N63: Sun Earth | O63: =IF($A63="","",COUNTIF($A$2:$A63,$A63)) -> 1 | P63: =IF($A63="","",$O63+thousand*VLOOKUP($A63,$A$1:Q63,17,FALSE)) -> 6001 | Q63: =IF(O63=1,MAX(Q$1:Q62)+1,"") -> 6 | R63: Bosch Solar Energy AG | S63: BSM c- Si M 48 S EU40123_V1_185 Wp | T63: 62 | V63: 30062 | Y63: 30062 | AB63: 30062 | AE63: 30062 | AH63: 62 | AM63: 1000
A64: Bosch Solar Energy AG | B64: BSM c- Si M 48 EU40123_V1_185 Wp | C64: 0.1392464135 | D64: 185 | E64: 29.9 | F64: 23.3 | G64: 8.58 | H64: 7.97 | I64: 2.574 | J64: -98.67 | K64: -76.89 | M64: 63 | N64: Suniva | O64: =IF($A64="","",COUNTIF($A$2:$A64,$A64)) -> 2 | P64: =IF($A64="","",$O64+thousand*VLOOKUP($A64,$A$1:Q64,17,FALSE)) -> 6002 | Q64: =IF(O64=1,MAX(Q$1:Q63)+1,"") ->  | R64: Bosch Solar Energy AG | S64: BSM c- Si M 48 EU40123_V1_185 Wp | T64: 63 | V64: 30063 | Y64: 30063 | AB64: 30063 | AE64: 30063 | AH64: 63 | AM64: 1000
A65: Bosch Solar Energy AG | B65: BSM c- Si M 48 S EU40123_V1_190 Wp | C65: 0.14300983 | D65: 190 | E65: 30 | F65: 23.5 | G65: 8.68 | H65: 8.08 | I65: 2.604 | J65: -99 | K65: -77.55 | M65: 64 | N65: SunPower | O65: =IF($A65="","",COUNTIF($A$2:$A65,$A65)) -> 3 | P65: =IF($A65="","",$O65+thousand*VLOOKUP($A65,$A$1:Q65,17,FALSE)) -> 6003 | Q65: =IF(O65=1,MAX(Q$1:Q64)+1,"") ->  | R65: Bosch Solar Energy AG | S65: BSM c- Si M 48 S EU40123_V1_190 Wp | T65: 64 | V65: 30064 | Y65: 30064 | AB65: 30064 | AE65: 30064 | AH65: 64 | AM65: 1000
A66: Bosch Solar Energy AG | B66: BSM c- Si M 48 EU40123_V1_190 Wp | C66: 0.14300983 | D66: 190 | E66: 30 | F66: 23.5 | G66: 8.68 | H66: 8.08 | I66: 2.604 | J66: -99 | K66: -77.55 | M66: 65 | N66: =IF(M66>MAX(Q$2:Q$7985),"",VLOOKUP(M66,Q$2:R$7985,2,FALSE)) -> Suntech | O66: =IF($A66="","",COUNTIF($A$2:$A66,$A66)) -> 4 | P66: =IF($A66="","",$O66+thousand*VLOOKUP($A66,$A$1:Q66,17,FALSE)) -> 6004 | Q66: =IF(O66=1,MAX(Q$1:Q65)+1,"") ->  | R66: Bosch Solar Energy AG | S66: BSM c- Si M 48 EU40123_V1_190 Wp | T66: 65 | V66: =V$1*thousand+$M66 -> 30065 | W66: =IF(COUNTIF($P$2:$P$7985,V66)>0,VLOOKUP(V66,$P$2:$S$7985,4,FALSE),"") ->  | X66: =IF(W66="","",VLOOKUP(V66,$P$2:$T$7985,5,FALSE)) ->  | Y66: =Y$1*thousand+$M66 -> 30065 | Z66: =IF(COUNTIF($P$2:$P$7985,Y66)>0,VLOOKUP(Y66,$P$2:$S$7985,4,FALSE),"") ->  | AA66: =IF(Z66="","",VLOOKUP(Y66,$P$2:$T$7985,5,FALSE)) ->  | AB66: =AB$1*thousand+$M66 -> 30065 | AC66: =IF(COUNTIF($P$2:$P$7985,AB66)>0,VLOOKUP(AB66,$P$2:$S$7985,4,FALSE),"") ->  | AD66: =IF(AC66="","",VLOOKUP(AB66,$P$2:$T$7985,5,FALSE)) ->  | AE66: =AE$1*thousand+$M66 -> 30065 | AF66: =IF(COUNTIF($P$2:$P$7985,AE66)>0,VLOOKUP(AE66,$P$2:$S$7985,4,FALSE),"") ->  | AG66: =IF(AF66="","",VLOOKUP(AE66,$P$2:$T$7985,5,FALSE)) ->  | AH66: =AH$1*thousand+$M66 -> 65 | AJ66: =IF(AI66="","",VLOOKUP(AH66,$P$2:$T$7985,5,FALSE)) ->  | AM66: 1000
A67: Bosch Solar Energy AG | B67: BSM c- Si M 48 S EU40123_V1_195Wp | C67: 0.1467732466 | D67: 195 | E67: 30.2 | F67: 23.8 | G67: 8.87 | H67: 8.3 | I67: 2.661 | J67: -102.68 | K67: =F67/E67*J67 -> -80.92 | M67: 66 | N67: Tamesol | O67: =IF($A67="","",COUNTIF($A$2:$A67,$A67)) -> 5 | P67: =IF($A67="","",$O67+thousand*VLOOKUP($A67,$A$1:Q67,17,FALSE)) -> 6005 | Q67: =IF(O67=1,MAX(Q$1:Q66)+1,"") ->  | R67: =IF(A67="","",A67) -> Bosch Solar Energy AG | S67: =IF(B67="","",B67) -> BSM c- Si M 48 S EU40123_V1_195Wp | T67: =$M67 -> 66 | V67: 30066 | Y67: 30066 | AB67: 30066 | AE67: 30066 | AH67: 66 | AI67: =IF(COUNTIF($P$2:$P$7985,AH67)>0,VLOOKUP(AH67,$P$2:$S$7985,4,FALSE),"") ->  | AM67: 1000
A68: Bosch Solar Energy AG | B68: BSM c- Si M 48 EU40123_V1_195 Wp | C68: 0.1467732466 | D68: 195 | E68: 30.2 | F68: 23.8 | G68: 8.87 | H68: 8.3 | I68: 2.661 | J68: -102.68 | K68: -80.92 | M68: 67 | N68: Tianwei New Energy | O68: =IF($A68="","",COUNTIF($A$2:$A68,$A68)) -> 6 | P68: =IF($A68="","",$O68+thousand*VLOOKUP($A68,$A$1:Q68,17,FALSE)) -> 6006 | Q68: =IF(O68=1,MAX(Q$1:Q67)+1,"") ->  | R68: Bosch Solar Energy AG | S68: BSM c- Si M 48 EU40123_V1_195 Wp | T68: 67 | V68: 30067 | Y68: 30067 | AB68: 30067 | AE68: 30067 | AH68: 67 | AM68: 1000
A69: Bosch Solar Energy AG | B69: BSM c- Si M 48 EU40123_V1_200Wp | C69: 0.1505366632 | D69: 200 | E69: 30.3 | F69: 24 | G69: 8.97 | H69: 8.41 | I69: 2.691 | J69: -103.02 | K69: -81.6 | M69: 68 | N69: TOPSUN | O69: =IF($A69="","",COUNTIF($A$2:$A69,$A69)) -> 7 | P69: =IF($A69="","",$O69+thousand*VLOOKUP($A69,$A$1:Q69,17,FALSE)) -> 6007 | Q69: =IF(O69=1,MAX(Q$1:Q68)+1,"") ->  | R69: Bosch Solar Energy AG | S69: BSM c- Si M 48 EU40123_V1_200Wp | T69: 68 | V69: 30068 | Y69: 30068 | AB69: 30068 | AE69: 30068 | AH69: 68 | AM69: 1000
A70: Bosch Solar Energy AG | B70: BSM c- Si M 48 S EU44123_V1_205Wp | C70: 0.1543000798 | D70: 205 | E70: 30.28 | F70: 24.37 | G70: 8.97 | H70: 8.42 | I70: 2.691 | J70: -102.952 | K70: -82.858 | M70: 69 | N70: Trina Solar | O70: =IF($A70="","",COUNTIF($A$2:$A70,$A70)) -> 8 | P70: =IF($A70="","",$O70+thousand*VLOOKUP($A70,$A$1:Q70,17,FALSE)) -> 6008 | Q70: =IF(O70=1,MAX(Q$1:Q69)+1,"") ->  | R70: Bosch Solar Energy AG | S70: BSM c- Si M 48 S EU44123_V1_205Wp | T70: 69 | V70: 30069 | Y70: 30069 | AB70: 30069 | AE70: 30069 | AH70: 69 | AM70: 1000
A71: Bosch Solar Energy AG | B71: BSM c- Si M 48 EU44123_V1_205Wp | C71: 0.1543000798 | D71: 205 | E71: 30.2 | F71: 24.28 | G71: 9 | H71: 8.45 | I71: 2.7 | J71: -102.68 | K71: -82.552 | M71: 70 | N71: TSMC Solar Ltd. | O71: =IF($A71="","",COUNTIF($A$2:$A71,$A71)) -> 9 | P71: =IF($A71="","",$O71+thousand*VLOOKUP($A71,$A$1:Q71,17,FALSE)) -> 6009 | Q71: =IF(O71=1,MAX(Q$1:Q70)+1,"") ->  | R71: Bosch Solar Energy AG | S71: BSM c- Si M 48 EU44123_V1_205Wp | T71: 70 | V71: 30070 | Y71: 30070 | AB71: 30070 | AE71: 30070 | AH71: 70 | AM71: 1000
A72: Bosch Solar Energy AG | B72: BSM c- Si M 48 S EU44123_V1_210Wp | C72: 0.1580634964 | D72: 210 | E72: 30.48 | F72: 24.59 | G72: 9.11 | H72: 8.55 | I72: 2.733 | J72: -103.632 | K72: -83.606 | M72: 71 | N72: Universal Energy | O72: =IF($A72="","",COUNTIF($A$2:$A72,$A72)) -> 10 | P72: =IF($A72="","",$O72+thousand*VLOOKUP($A72,$A$1:Q72,17,FALSE)) -> 6010 | Q72: =IF(O72=1,MAX(Q$1:Q71)+1,"") ->  | R72: Bosch Solar Energy AG | S72: BSM c- Si M 48 S EU44123_V1_210Wp | T72: 71 | V72: 30071 | Y72: 30071 | AB72: 30071 | AE72: 30071 | AH72: 71 | AM72: 1000
A73: Bosch Solar Energy AG | B73: BSM c- Si M 48 EU44123_V1_210Wp | C73: 0.1580634964 | D73: 210 | E73: 30.4 | F73: 24.5 | G73: 9.15 | H73: 8.58 | I73: 2.745 | J73: -103.36 | K73: -83.3 | M73: 72 | N73: Upsolar | O73: =IF($A73="","",COUNTIF($A$2:$A73,$A73)) -> 11 | P73: =IF($A73="","",$O73+thousand*VLOOKUP($A73,$A$1:Q73,17,FALSE)) -> 6011 | Q73: =IF(O73=1,MAX(Q$1:Q72)+1,"") ->  | R73: Bosch Solar Energy AG | S73: BSM c- Si M 48 EU44123_V1_210Wp | T73: 72 | V73: 30072 | Y73: 30072 | AB73: 30072 | AE73: 30072 | AH73: 72 | AM73: 1000
A74: Bosch Solar Energy AG | B74: BSM c- Si M 48 S EU44123_V1_215Wp | C74: 0.1618269129 | D74: 215 | E74: 30.69 | F74: 24.81 | G74: 9.26 | H74: 8.67 | I74: 2.778 | J74: -104.346 | K74: -84.354 | M74: 73 | N74: Voltec Solar | O74: =IF($A74="","",COUNTIF($A$2:$A74,$A74)) -> 12 | P74: =IF($A74="","",$O74+thousand*VLOOKUP($A74,$A$1:Q74,17,FALSE)) -> 6012 | Q74: =IF(O74=1,MAX(Q$1:Q73)+1,"") ->  | R74: Bosch Solar Energy AG | S74: BSM c- Si M 48 S EU44123_V1_215Wp | T74: 73 | V74: 30073 | Y74: 30073 | AB74: 30073 | AE74: 30073 | AH74: 73 | AM74: 1000
A75: Bosch Solar Energy AG | B75: BSM c- Si M 48 EU44123_V1_215Wp | C75: 0.1618269129 | D75: 215 | E75: 30.6 | F75: 24.71 | G75: 9.29 | H75: 8.71 | I75: 2.787 | J75: -104.04 | K75: -84.014 | M75: 74 | N75: Winaico | O75: =IF($A75="","",COUNTIF($A$2:$A75,$A75)) -> 13 | P75: =IF($A75="","",$O75+thousand*VLOOKUP($A75,$A$1:Q75,17,FALSE)) -> 6013 | Q75: =IF(O75=1,MAX(Q$1:Q74)+1,"") ->  | R75: Bosch Solar Energy AG | S75: BSM c- Si M 48 EU44123_V1_215Wp | T75: 74 | V75: 30074 | Y75: 30074 | AB75: 30074 | AE75: 30074 | AH75: 74 | AM75: 1000
A76: Bosch Solar Energy AG | B76: BSM c- Si M 48 S EU44123_V1_220Wp | C76: 0.1655903295 | D76: 220 | E76: 30.89 | F76: 25.03 | G76: 9.41 | H76: 8.8 | I76: 2.823 | J76: -108.115 | K76: -87.605 | M76: 75 | N76: Win Win | O76: =IF($A76="","",COUNTIF($A$2:$A76,$A76)) -> 14 | P76: =IF($A76="","",$O76+thousand*VLOOKUP($A76,$A$1:Q76,17,FALSE)) -> 6014 | Q76: =IF(O76=1,MAX(Q$1:Q75)+1,"") ->  | R76: Bosch Solar Energy AG | S76: BSM c- Si M 48 S EU44123_V1_220Wp | T76: 75 | V76: 30075 | Y76: 30075 | AB76: 30075 | AE76: 30075 | AH76: 75 | AM76: 1000
A77: Bosch Solar Energy AG | B77: BSM c- Si M 48 EU44123_V1_220Wp | C77: 0.1655903295 | D77: 220 | E77: 30.81 | F77: 24.93 | G77: 9.44 | H77: 8.83 | I77: 2.832 | J77: -104.754 | K77: -84.762 | M77: 76 | N77: Xunlight Corporation | O77: =IF($A77="","",COUNTIF($A$2:$A77,$A77)) -> 15 | P77: =IF($A77="","",$O77+thousand*VLOOKUP($A77,$A$1:Q77,17,FALSE)) -> 6015 | Q77: =IF(O77=1,MAX(Q$1:Q76)+1,"") ->  | R77: Bosch Solar Energy AG | S77: BSM c- Si M 48 EU44123_V1_220Wp | T77: 76 | V77: 30076 | Y77: 30076 | AB77: 30076 | AE77: 30076 | AH77: 76 | AM77: 1000
A78: Bosch Solar Energy AG | B78: BSM c- Si M 60 IN30125_V1_225 Wp | C78: 0.1369112815 | D78: 225 | E78: 36.9 | F78: 29.4 | G78: 8.3 | H78: 7.8 | I78: 2.49 | J78: -132.84 | K78: -105.84 | M78: 77 | N78: Yingli Solar | O78: =IF($A78="","",COUNTIF($A$2:$A78,$A78)) -> 16 | P78: =IF($A78="","",$O78+thousand*VLOOKUP($A78,$A$1:Q78,17,FALSE)) -> 6016 | Q78: =IF(O78=1,MAX(Q$1:Q77)+1,"") ->  | R78: Bosch Solar Energy AG | S78: BSM c- Si M 60 IN30125_V1_225 Wp | T78: 77 | V78: 30077 | Y78: 30077 | AB78: 30077 | AE78: 30077 | AH78: 77 | AM78: 1000
A79: Bosch Solar Energy AG | B79: BSM c- Si M 60 S NA30117_V2_225 Wp | C79: 0.1369112815 | D79: 225 | E79: 36.9 | F79: 29.4 | G79: 8.3 | H79: 7.8 | I79: 2.49 | J79: -132.84 | K79: -105.84 | M79: 78 | N79: Zebra Energy | O79: =IF($A79="","",COUNTIF($A$2:$A79,$A79)) -> 17 | P79: =IF($A79="","",$O79+thousand*VLOOKUP($A79,$A$1:Q79,17,FALSE)) -> 6017 | Q79: =IF(O79=1,MAX(Q$1:Q78)+1,"") ->  | R79: Bosch Solar Energy AG | S79: BSM c- Si M 60 S NA30117_V2_225 Wp | T79: 78 | V79: 30078 | Y79: 30078 | AB79: 30078 | AE79: 30078 | AH79: 78 | AM79: 1000
A80: Bosch Solar Energy AG | B80: BSM c- Si M 60 EU30123_V2_225 Wp | C80: 0.1369112815 | D80: 225 | E80: 36.9 | F80: 29.4 | G80: 8.3 | H80: 7.8 | I80: 2.49 | J80: -132.84 | K80: -105.84 | M80: 79 | N80: ZNshine Solar | O80: =IF($A80="","",COUNTIF($A$2:$A80,$A80)) -> 18 | P80: =IF($A80="","",$O80+thousand*VLOOKUP($A80,$A$1:Q80,17,FALSE)) -> 6018 | Q80: =IF(O80=1,MAX(Q$1:Q79)+1,"") ->  | R80: Bosch Solar Energy AG | S80: BSM c- Si M 60 EU30123_V2_225 Wp | T80: 79 | V80: 30079 | Y80: 30079 | AB80: 30079 | AE80: 30079 | AH80: 79 | AM80: 1000
A81: Bosch Solar Energy AG | B81: BSM c- Si M 60 NA30117_V2_225 Wp | C81: 0.1369112815 | D81: 225 | E81: 36.9 | F81: 29.4 | G81: 8.3 | H81: 7.8 | I81: 2.49 | J81: -132.84 | K81: -105.84 | M81: 80 | N81: Sunpreme | O81: =IF($A81="","",COUNTIF($A$2:$A81,$A81)) -> 19 | P81: =IF($A81="","",$O81+thousand*VLOOKUP($A81,$A$1:Q81,17,FALSE)) -> 6019 | Q81: =IF(O81=1,MAX(Q$1:Q80)+1,"") ->  | R81: Bosch Solar Energy AG | S81: BSM c- Si M 60 NA30117_V2_225 Wp | T81: 80 | V81: 30080 | Y81: 30080 | AB81: 30080 | AE81: 30080 | AH81: 80 | AM81: 1000
A82: Bosch Solar Energy AG | B82: BSM c- Si P 60 EU30123_V1_230 Wp | C82: 0.1399537544 | D82: 230 | E82: 37.1 | F82: 29.6 | G82: 8.43 | H82: 7.88 | I82: 3.372 | J82: -129.85 | K82: -103.6 | M82: 81 | O82: =IF($A82="","",COUNTIF($A$2:$A82,$A82)) -> 20 | P82: =IF($A82="","",$O82+thousand*VLOOKUP($A82,$A$1:Q82,17,FALSE)) -> 6020 | Q82: =IF(O82=1,MAX(Q$1:Q81)+1,"") ->  | R82: Bosch Solar Energy AG | S82: BSM c- Si P 60 EU30123_V1_230 Wp | T82: 81 | V82: 30081 | Y82: 30081 | AB82: 30081 | AE82: 30081 | AH82: 81 | AM82: 1000
A83: Bosch Solar Energy AG | B83: BSM c- Si M 60 IN30125_V1_230 Wp | C83: 0.1399537544 | D83: 230 | E83: 37 | F83: 29.7 | G83: 8.4 | H83: 7.9 | I83: 2.52 | J83: -133.2 | K83: -106.92 | M83: 82 | O83: =IF($A83="","",COUNTIF($A$2:$A83,$A83)) -> 21 | P83: =IF($A83="","",$O83+thousand*VLOOKUP($A83,$A$1:Q83,17,FALSE)) -> 6021 | Q83: =IF(O83=1,MAX(Q$1:Q82)+1,"") ->  | R83: Bosch Solar Energy AG | S83: BSM c- Si M 60 IN30125_V1_230 Wp | T83: 82 | V83: 30082 | Y83: 30082 | AB83: 30082 | AE83: 30082 | AH83: 82 | AM83: 1000
A84: Bosch Solar Energy AG | B84: BSM c- Si M 60 S NA30117_V2_230 Wp | C84: 0.1399537544 | D84: 230 | E84: 37 | F84: 29.7 | G84: 8.4 | H84: 7.9 | I84: 2.52 | J84: -133.2 | K84: -106.92 | M84: 83 | O84: =IF($A84="","",COUNTIF($A$2:$A84,$A84)) -> 22 | P84: =IF($A84="","",$O84+thousand*VLOOKUP($A84,$A$1:Q84,17,FALSE)) -> 6022 | Q84: =IF(O84=1,MAX(Q$1:Q83)+1,"") ->  | R84: Bosch Solar Energy AG | S84: BSM c- Si M 60 S NA30117_V2_230 Wp | T84: 83 | V84: 30083 | Y84: 30083 | AB84: 30083 | AE84: 30083 | AH84: 83 | AM84: 1000
A85: Bosch Solar Energy AG | B85: BSM c- Si M 60 EU30123_V2_230 Wp | C85: 0.1399537544 | D85: 230 | E85: 37 | F85: 29.7 | G85: 8.4 | H85: 7.9 | I85: 2.52 | J85: -133.2 | K85: -106.92 | M85: 84 | O85: =IF($A85="","",COUNTIF($A$2:$A85,$A85)) -> 23 | P85: =IF($A85="","",$O85+thousand*VLOOKUP($A85,$A$1:Q85,17,FALSE)) -> 6023 | Q85: =IF(O85=1,MAX(Q$1:Q84)+1,"") ->  | R85: Bosch Solar Energy AG | S85: BSM c- Si M 60 EU30123_V2_230 Wp | T85: 84 | V85: 30084 | Y85: 30084 | AB85: 30084 | AE85: 30084 | AH85: 84 | AM85: 1000
A86: Bosch Solar Energy AG | B86: BSM c- Si M 60 NA30117_V2_230 Wp | C86: 0.1399537544 | D86: 230 | E86: 37 | F86: 29.7 | G86: 8.4 | H86: 7.9 | I86: 2.52 | J86: -133.2 | K86: -106.92 | M86: 85 | O86: =IF($A86="","",COUNTIF($A$2:$A86,$A86)) -> 24 | P86: =IF($A86="","",$O86+thousand*VLOOKUP($A86,$A$1:Q86,17,FALSE)) -> 6024 | Q86: =IF(O86=1,MAX(Q$1:Q85)+1,"") ->  | R86: Bosch Solar Energy AG | S86: BSM c- Si M 60 NA30117_V2_230 Wp | T86: 85 | V86: 30085 | Y86: 30085 | AB86: 30085 | AE86: 30085 | AH86: 85 | AM86: 600
A87: Bosch Solar Energy AG | B87: BSM c- Si P 60 EU30123_V1_235 Wp | C87: 0.1429962273 | D87: 235 | E87: 37.3 | F87: 29.8 | G87: 8.53 | H87: 7.99 | I87: 3.412 | J87: -130.55 | K87: -104.3 | M87: 86 | O87: =IF($A87="","",COUNTIF($A$2:$A87,$A87)) -> 25 | P87: =IF($A87="","",$O87+thousand*VLOOKUP($A87,$A$1:Q87,17,FALSE)) -> 6025 | Q87: =IF(O87=1,MAX(Q$1:Q86)+1,"") ->  | R87: Bosch Solar Energy AG | S87: BSM c- Si P 60 EU30123_V1_235 Wp | T87: 86 | V87: 30086 | Y87: 30086 | AB87: 30086 | AE87: 30086 | AH87: 86 | AM87: 1000
A88: Bosch Solar Energy AG | B88: BSM c- Si M 60 IN30125_V1_235 Wp | C88: 0.1429962273 | D88: 235 | E88: 37.1 | F88: 29.9 | G88: 8.5 | H88: 8 | I88: 2.55 | J88: -133.56 | K88: -107.64 | M88: 87 | O88: =IF($A88="","",COUNTIF($A$2:$A88,$A88)) -> 26 | P88: =IF($A88="","",$O88+thousand*VLOOKUP($A88,$A$1:Q88,17,FALSE)) -> 6026 | Q88: =IF(O88=1,MAX(Q$1:Q87)+1,"") ->  | R88: Bosch Solar Energy AG | S88: BSM c- Si M 60 IN30125_V1_235 Wp | T88: 87 | V88: 30087 | Y88: 30087 | AB88: 30087 | AE88: 30087 | AH88: 87 | AM88: 600
A89: Bosch Solar Energy AG | B89: BSM c- Si M 60 S NA30117_V2_235 Wp | C89: 0.1429962273 | D89: 235 | E89: 37.1 | F89: 29.9 | G89: 8.5 | H89: 8 | I89: 2.55 | J89: -133.56 | K89: -107.64 | M89: 88 | O89: =IF($A89="","",COUNTIF($A$2:$A89,$A89)) -> 27 | P89: =IF($A89="","",$O89+thousand*VLOOKUP($A89,$A$1:Q89,17,FALSE)) -> 6027 | Q89: =IF(O89=1,MAX(Q$1:Q88)+1,"") ->  | R89: Bosch Solar Energy AG | S89: BSM c- Si M 60 S NA30117_V2_235 Wp | T89: 88 | V89: 30088 | Y89: 30088 | AB89: 30088 | AE89: 30088 | AH89: 88 | AM89: 1000
A90: Bosch Solar Energy AG | B90: BSM c- Si M 60 EU30123_V2_235 Wp | C90: 0.1429962273 | D90: 235 | E90: 37.1 | F90: 29.9 | G90: 8.5 | H90: 8 | I90: 2.55 | J90: -133.56 | K90: -107.64 | M90: 89 | O90: =IF($A90="","",COUNTIF($A$2:$A90,$A90)) -> 28 | P90: =IF($A90="","",$O90+thousand*VLOOKUP($A90,$A$1:Q90,17,FALSE)) -> 6028 | Q90: =IF(O90=1,MAX(Q$1:Q89)+1,"") ->  | R90: Bosch Solar Energy AG | S90: BSM c- Si M 60 EU30123_V2_235 Wp | T90: 89 | V90: 30089 | Y90: 30089 | AB90: 30089 | AE90: 30089 | AH90: 89 | AM90: 1000
A91: Bosch Solar Energy AG | B91: BSM c- Si M 60 NA30117_V2_235 Wp | C91: 0.1429962273 | D91: 235 | E91: 37.1 | F91: 29.9 | G91: 8.5 | H91: 8 | I91: 2.55 | J91: -133.56 | K91: -107.64 | M91: 90 | O91: =IF($A91="","",COUNTIF($A$2:$A91,$A91)) -> 29 | P91: =IF($A91="","",$O91+thousand*VLOOKUP($A91,$A$1:Q91,17,FALSE)) -> 6029 | Q91: =IF(O91=1,MAX(Q$1:Q90)+1,"") ->  | R91: Bosch Solar Energy AG | S91: BSM c- Si M 60 NA30117_V2_235 Wp | T91: 90 | V91: 30090 | Y91: 30090 | AB91: 30090 | AE91: 30090 | AH91: 90 | AM91: 600
A92: Bosch Solar Energy AG | B92: BSM c- Si P 60 EU30123_V1_240 Wp | C92: 0.1460387003 | D92: 240 | E92: 37.5 | F92: 30 | G92: 8.64 | H92: 8.11 | I92: 3.456 | J92: -131.25 | K92: -105 | M92: 91 | O92: =IF($A92="","",COUNTIF($A$2:$A92,$A92)) -> 30 | P92: =IF($A92="","",$O92+thousand*VLOOKUP($A92,$A$1:Q92,17,FALSE)) -> 6030 | Q92: =IF(O92=1,MAX(Q$1:Q91)+1,"") ->  | R92: Bosch Solar Energy AG | S92: BSM c- Si P 60 EU30123_V1_240 Wp | T92: 91 | V92: 30091 | Y92: 30091 | AB92: 30091 | AE92: 30091 | AH92: 91 | AM92: 1000
A93: Bosch Solar Energy AG | B93: BSM c- Si M 60 IN30125_V1_240 Wp | C93: 0.1460387003 | D93: 240 | E93: 37.4 | F93: 30 | G93: 8.6 | H93: 8.1 | I93: 2.58 | J93: -134.64 | K93: -108 | M93: 92 | O93: =IF($A93="","",COUNTIF($A$2:$A93,$A93)) -> 31 | P93: =IF($A93="","",$O93+thousand*VLOOKUP($A93,$A$1:Q93,17,FALSE)) -> 6031 | Q93: =IF(O93=1,MAX(Q$1:Q92)+1,"") ->  | R93: Bosch Solar Energy AG | S93: BSM c- Si M 60 IN30125_V1_240 Wp | T93: 92 | V93: 30092 | Y93: 30092 | AB93: 30092 | AE93: 30092 | AH93: 92 | AM93: 600
A94: Bosch Solar Energy AG | B94: BSM c- Si M 60 S NA30117_V2_240 Wp | C94: 0.1460387003 | D94: 240 | E94: 37.4 | F94: 30 | G94: 8.6 | H94: 8.1 | I94: 2.58 | J94: -134.64 | K94: -108 | M94: 93 | O94: =IF($A94="","",COUNTIF($A$2:$A94,$A94)) -> 32 | P94: =IF($A94="","",$O94+thousand*VLOOKUP($A94,$A$1:Q94,17,FALSE)) -> 6032 | Q94: =IF(O94=1,MAX(Q$1:Q93)+1,"") ->  | R94: Bosch Solar Energy AG | S94: BSM c- Si M 60 S NA30117_V2_240 Wp | T94: 93 | V94: 30093 | Y94: 30093 | AB94: 30093 | AE94: 30093 | AH94: 93 | AM94: 1000
A95: Bosch Solar Energy AG | B95: BSM c- Si M 60 EU30123_V2_240 Wp | C95: 0.1460387003 | D95: 240 | E95: 37.4 | F95: 30 | G95: 8.6 | H95: 8.1 | I95: 2.58 | J95: -134.64 | K95: -108 | M95: 94 | O95: =IF($A95="","",COUNTIF($A$2:$A95,$A95)) -> 33 | P95: =IF($A95="","",$O95+thousand*VLOOKUP($A95,$A$1:Q95,17,FALSE)) -> 6033 | Q95: =IF(O95=1,MAX(Q$1:Q94)+1,"") ->  | R95: Bosch Solar Energy AG | S95: BSM c- Si M 60 EU30123_V2_240 Wp | T95: 94 | V95: 30094 | Y95: 30094 | AB95: 30094 | AE95: 30094 | AH95: 94 | AM95: 1000
A96: Bosch Solar Energy AG | B96: BSM c- Si M 60 NA30117_V2_240 Wp | C96: 0.1460387003 | D96: 240 | E96: 37.4 | F96: 30 | G96: 8.6 | H96: 8.1 | I96: 2.58 | J96: -134.64 | K96: -108 | M96: 95 | O96: =IF($A96="","",COUNTIF($A$2:$A96,$A96)) -> 34 | P96: =IF($A96="","",$O96+thousand*VLOOKUP($A96,$A$1:Q96,17,FALSE)) -> 6034 | Q96: =IF(O96=1,MAX(Q$1:Q95)+1,"") ->  | R96: Bosch Solar Energy AG | S96: BSM c- Si M 60 NA30117_V2_240 Wp | T96: 95 | V96: 30095 | Y96: 30095 | AB96: 30095 | AE96: 30095 | AH96: 95 | AM96: 600
A97: Bosch Solar Energy AG | B97: BSM c- Si M 60 IN30125_V1_245 Wp | C97: 0.1490811732 | D97: 245 | E97: 37.7 | F97: 30.1 | G97: 8.7 | H97: 8.2 | I97: 2.61 | J97: -135.72 | K97: -108.36 | M97: 96 | O97: =IF($A97="","",COUNTIF($A$2:$A97,$A97)) -> 35 | P97: =IF($A97="","",$O97+thousand*VLOOKUP($A97,$A$1:Q97,17,FALSE)) -> 6035 | Q97: =IF(O97=1,MAX(Q$1:Q96)+1,"") ->  | R97: Bosch Solar Energy AG | S97: BSM c- Si M 60 IN30125_V1_245 Wp | T97: 96 | V97: 30096 | Y97: 30096 | AB97: 30096 | AE97: 30096 | AH97: 96 | AM97: 1000
A98: Bosch Solar Energy AG | B98: BSM c- Si M S 60 NA42117_V1_245 Wp | C98: 0.1490811732 | D98: 245 | E98: 37.8 | F98: 30.1 | G98: 8.72 | H98: 8.14 | I98: 2.616 | J98: -124.74 | K98: -99.33 | M98: 97 | O98: =IF($A98="","",COUNTIF($A$2:$A98,$A98)) -> 36 | P98: =IF($A98="","",$O98+thousand*VLOOKUP($A98,$A$1:Q98,17,FALSE)) -> 6036 | Q98: =IF(O98=1,MAX(Q$1:Q97)+1,"") ->  | R98: Bosch Solar Energy AG | S98: BSM c- Si M S 60 NA42117_V1_245 Wp | T98: 97 | V98: 30097 | W98: =IF(COUNTIF($P$2:$P$7985,V98)>0,VLOOKUP(V98,$P$2:$S$7985,4,FALSE),"") ->  | X98: =IF(W98="","",VLOOKUP(V98,$P$2:$T$7985,5,FALSE)) ->  | Y98: 30097 | Z98: =IF(COUNTIF($P$2:$P$7985,Y98)>0,VLOOKUP(Y98,$P$2:$S$7985,4,FALSE),"") ->  | AA98: =IF(Z98="","",VLOOKUP(Y98,$P$2:$T$7985,5,FALSE)) ->  | AB98: 30097 | AC98: =IF(COUNTIF($P$2:$P$7985,AB98)>0,VLOOKUP(AB98,$P$2:$S$7985,4,FALSE),"") ->  | AD98: =IF(AC98="","",VLOOKUP(AB98,$P$2:$T$7985,5,FALSE)) ->  | AE98: 30097 | AH98: 97 | AJ98: =IF(AI98="","",VLOOKUP(AH98,$P$2:$T$7985,5,FALSE)) ->  | AM98: 600
A99: Bosch Solar Energy AG | B99: BSM c- Si M 60 NA42117_V1_245 Wp | C99: 0.1490811732 | D99: 245 | E99: 37.8 | F99: 30.1 | G99: 8.72 | H99: 8.14 | I99: 2.616 | J99: -124.74 | K99: -99.33 | M99: 98 | O99: =IF($A99="","",COUNTIF($A$2:$A99,$A99)) -> 37 | P99: =IF($A99="","",$O99+thousand*VLOOKUP($A99,$A$1:Q99,17,FALSE)) -> 6037 | Q99: =IF(O99=1,MAX(Q$1:Q98)+1,"") ->  | R99: Bosch Solar Energy AG | S99: BSM c- Si M 60 NA42117_V1_245 Wp | T99: 98 | V99: 30098 | Y99: 30098 | AB99: 30098 | AE99: 30098 | AH99: 98 | AI99: =IF(COUNTIF($P$2:$P$7985,AH99)>0,VLOOKUP(AH99,$P$2:$S$7985,4,FALSE),"") ->  | AM99: 1000
A100: Bosch Solar Energy AG | B100: BSM c- Si M 60 S EU42123_V1_245 Wp | C100: 0.1490811732 | D100: 245 | E100: 37.8 | F100: 30.11 | G100: 8.72 | H100: 8.14 | I100: 2.616 | J100: -124.74 | K100: -99.363 | M100: 99 | O100: =IF($A100="","",COUNTIF($A$2:$A100,$A100)) -> 38 | P100: =IF($A100="","",$O100+thousand*VLOOKUP($A100,$A$1:Q100,17,FALSE)) -> 6038 | Q100: =IF(O100=1,MAX(Q$1:Q99)+1,"") ->  | R100: Bosch Solar Energy AG | S100: BSM c- Si M 60 S EU42123_V1_245 Wp | T100: 99 | V100: 30099 | Y100: 30099 | AB100: 30099 | AE100: 30099 | AH100: 99 | AM100: 1000
A101: Bosch Solar Energy AG | B101: BSM c- Si M 60 S EU42117_V1_245 Wp | C101: 0.1490811732 | D101: 245 | E101: 37.8 | F101: 30.11 | G101: 8.72 | H101: 8.14 | I101: 2.616 | J101: -124.74 | K101: -99.363 | M101: 100 | O101: =IF($A101="","",COUNTIF($A$2:$A101,$A101)) -> 39 | P101: =IF($A101="","",$O101+thousand*VLOOKUP($A101,$A$1:Q101,17,FALSE)) -> 6039 | Q101: =IF(O101=1,MAX(Q$1:Q100)+1,"") ->  | R101: Bosch Solar Energy AG | S101: BSM c- Si M 60 S EU42117_V1_245 Wp | T101: 100 | V101: 30100 | Y101: 30100 | AB101: 30100 | AE101: 30100 | AH101: 100 | AM101: 600
A102: Bosch Solar Energy AG | B102: BSM c- Si M 60 EU42123_V1_245 Wp | C102: 0.1490811732 | D102: 245 | E102: 37.8 | F102: 30.11 | G102: 8.72 | H102: 8.14 | I102: 2.616 | J102: -124.74 | K102: -99.363 | M102: 101 | O102: =IF($A102="","",COUNTIF($A$2:$A102,$A102)) -> 40 | P102: =IF($A102="","",$O102+thousand*VLOOKUP($A102,$A$1:Q102,17,FALSE)) -> 6040 | Q102: =IF(O102=1,MAX(Q$1:Q101)+1,"") ->  | R102: Bosch Solar Energy AG | S102: BSM c- Si M 60 EU42123_V1_245 Wp | T102: 101 | V102: 30101 | Y102: 30101 | AB102: 30101 | AE102: 30101 | AH102: 101 | AM102: 1000
A103: Bosch Solar Energy AG | B103: BSM c- Si M 60 EU30123_V2_245 Wp | C103: 0.1490811732 | D103: 245 | E103: 37.7 | F103: 30.1 | G103: 8.7 | H103: 8.2 | I103: 2.61 | J103: -135.72 | K103: -108.36 | M103: 102 | O103: =IF($A103="","",COUNTIF($A$2:$A103,$A103)) -> 41 | P103: =IF($A103="","",$O103+thousand*VLOOKUP($A103,$A$1:Q103,17,FALSE)) -> 6041 | Q103: =IF(O103=1,MAX(Q$1:Q102)+1,"") ->  | R103: Bosch Solar Energy AG | S103: BSM c- Si M 60 EU30123_V2_245 Wp | T103: 102 | V103: 30102 | Y103: 30102 | AB103: 30102 | AE103: 30102 | AH103: 102 | AM103: 600
A104: Bosch Solar Energy AG | B104: BSM c- Si M 60 NA30117_V2_245 Wp | C104: 0.1490811732 | D104: 245 | E104: 37.7 | F104: 30.1 | G104: 8.7 | H104: 8.2 | I104: 2.61 | J104: -135.72 | K104: -108.36 | M104: 103 | O104: =IF($A104="","",COUNTIF($A$2:$A104,$A104)) -> 42 | P104: =IF($A104="","",$O104+thousand*VLOOKUP($A104,$A$1:Q104,17,FALSE)) -> 6042 | Q104: =IF(O104=1,MAX(Q$1:Q103)+1,"") ->  | R104: Bosch Solar Energy AG | S104: BSM c- Si M 60 NA30117_V2_245 Wp | T104: 103 | V104: 30103 | Y104: 30103 | AB104: 30103 | AE104: 30103 | AH104: 103 | AM104: 1000
A105: Bosch Solar Energy AG | B105: BSM c- Si M 60 EU42117_V1_245 Wp | C105: 0.1490811732 | D105: 245 | E105: 37.8 | F105: 30.1 | G105: 8.72 | H105: 8.14 | I105: 2.616 | J105: -124.74 | K105: -99.33 | M105: 104 | O105: =IF($A105="","",COUNTIF($A$2:$A105,$A105)) -> 43 | P105: =IF($A105="","",$O105+thousand*VLOOKUP($A105,$A$1:Q105,17,FALSE)) -> 6043 | Q105: =IF(O105=1,MAX(Q$1:Q104)+1,"") ->  | R105: Bosch Solar Energy AG | S105: BSM c- Si M 60 EU42117_V1_245 Wp | T105: 104 | V105: 30104 | Y105: 30104 | AB105: 30104 | AE105: 30104 | AH105: 104 | AM105: 600
A106: Bosch Solar Energy AG | B106: BSM c- Si M S 60 NA42117_V1_250 Wp | C106: 0.1521236461 | D106: 250 | E106: 37.9 | F106: 30.3 | G106: 8.82 | H106: 8.25 | I106: 2.646 | J106: -128.86 | K106: -103.02 | M106: 105 | O106: =IF($A106="","",COUNTIF($A$2:$A106,$A106)) -> 44 | P106: =IF($A106="","",$O106+thousand*VLOOKUP($A106,$A$1:Q106,17,FALSE)) -> 6044 | Q106: =IF(O106=1,MAX(Q$1:Q105)+1,"") ->  | R106: Bosch Solar Energy AG | S106: BSM c- Si M S 60 NA42117_V1_250 Wp | T106: 105 | V106: 30105 | Y106: 30105 | AB106: 30105 | AE106: 30105 | AH106: 105 | AM106: 600
A107: Bosch Solar Energy AG | B107: BSM c- Si M 60 NA42117_V1_250 Wp | C107: 0.1521236461 | D107: 250 | E107: 37.9 | F107: 30.3 | G107: 8.82 | H107: 8.25 | I107: 2.646 | J107: -128.86 | K107: -103.02 | M107: 106 | O107: =IF($A107="","",COUNTIF($A$2:$A107,$A107)) -> 45 | P107: =IF($A107="","",$O107+thousand*VLOOKUP($A107,$A$1:Q107,17,FALSE)) -> 6045 | Q107: =IF(O107=1,MAX(Q$1:Q106)+1,"") ->  | R107: Bosch Solar Energy AG | S107: BSM c- Si M 60 NA42117_V1_250 Wp | T107: 106 | V107: 30106 | Y107: 30106 | AB107: 30106 | AE107: 30106 | AH107: 106 | AM107: 1000
A108: Bosch Solar Energy AG | B108: BSM c- Si M 60 S EU42123_V1_250 Wp | C108: 0.1521236461 | D108: 250 | E108: 37.9 | F108: 30.31 | G108: 8.82 | H108: 8.25 | I108: 2.646 | J108: -128.86 | K108: -103.054 | M108: 107 | O108: =IF($A108="","",COUNTIF($A$2:$A108,$A108)) -> 46 | P108: =IF($A108="","",$O108+thousand*VLOOKUP($A108,$A$1:Q108,17,FALSE)) -> 6046 | Q108: =IF(O108=1,MAX(Q$1:Q107)+1,"") ->  | R108: Bosch Solar Energy AG | S108: BSM c- Si M 60 S EU42123_V1_250 Wp | T108: 107 | V108: 30107 | Y108: 30107 | AB108: 30107 | AE108: 30107 | AH108: 107 | AM108: 1000
A109: Bosch Solar Energy AG | B109: BSM c- Si M 60 S EU42117_V1_250 Wp | C109: 0.1521236461 | D109: 250 | E109: 37.9 | F109: 30.31 | G109: 8.82 | H109: 8.25 | I109: 2.646 | J109: -128.86 | K109: -103.054 | M109: 108 | O109: =IF($A109="","",COUNTIF($A$2:$A109,$A109)) -> 47 | P109: =IF($A109="","",$O109+thousand*VLOOKUP($A109,$A$1:Q109,17,FALSE)) -> 6047 | Q109: =IF(O109=1,MAX(Q$1:Q108)+1,"") ->  | R109: Bosch Solar Energy AG | S109: BSM c- Si M 60 S EU42117_V1_250 Wp | T109: 108 | V109: 30108 | Y109: 30108 | AB109: 30108 | AE109: 30108 | AH109: 108 | AM109: 1000
A110: Bosch Solar Energy AG | B110: BSM c- Si M 60 EU42123_V1_250 Wp | C110: 0.1521236461 | D110: 250 | E110: 37.9 | F110: 30.31 | G110: 8.82 | H110: 8.25 | I110: 2.646 | J110: -128.86 | K110: -103.054 | M110: 109 | O110: =IF($A110="","",COUNTIF($A$2:$A110,$A110)) -> 48 | P110: =IF($A110="","",$O110+thousand*VLOOKUP($A110,$A$1:Q110,17,FALSE)) -> 6048 | Q110: =IF(O110=1,MAX(Q$1:Q109)+1,"") ->  | R110: Bosch Solar Energy AG | S110: BSM c- Si M 60 EU42123_V1_250 Wp | T110: 109 | V110: 30109 | Y110: 30109 | AB110: 30109 | AE110: 30109 | AH110: 109 | AM110: 1000
A111: Bosch Solar Energy AG | B111: BSM c- Si M 60 EU30123_V2_250 Wp | C111: 0.1521236461 | D111: 250 | E111: 37.9 | F111: 30.3 | G111: 8.82 | H111: 8.25 | I111: 2.646 | J111: -136.44 | K111: -109.08 | M111: 110 | O111: =IF($A111="","",COUNTIF($A$2:$A111,$A111)) -> 49 | P111: =IF($A111="","",$O111+thousand*VLOOKUP($A111,$A$1:Q111,17,FALSE)) -> 6049 | Q111: =IF(O111=1,MAX(Q$1:Q110)+1,"") ->  | R111: Bosch Solar Energy AG | S111: BSM c- Si M 60 EU30123_V2_250 Wp | T111: 110 | V111: 30110 | Y111: 30110 | AB111: 30110 | AE111: 30110 | AH111: 110 | AM111: 600
A112: Bosch Solar Energy AG | B112: BSM c- Si M 60 EU30117_V2_250 Wp | C112: 0.1521236461 | D112: 250 | E112: 37.9 | F112: 30.3 | G112: 8.82 | H112: 8.25 | I112: 2.646 | J112: -136.44 | K112: -109.08 | M112: 111 | O112: =IF($A112="","",COUNTIF($A$2:$A112,$A112)) -> 50 | P112: =IF($A112="","",$O112+thousand*VLOOKUP($A112,$A$1:Q112,17,FALSE)) -> 6050 | Q112: =IF(O112=1,MAX(Q$1:Q111)+1,"") ->  | R112: Bosch Solar Energy AG | S112: BSM c- Si M 60 EU30117_V2_250 Wp | T112: 111 | V112: 30111 | Y112: 30111 | AB112: 30111 | AE112: 30111 | AH112: 111 | AM112: 1000
A113: Bosch Solar Energy AG | B113: BSM c- Si m 60 EU42117_V1_250 Wp | C113: 0.1521236461 | D113: 250 | E113: 37.9 | F113: 30.3 | G113: 8.82 | H113: 8.25 | I113: 2.646 | J113: -128.86 | K113: -103.02 | M113: 112 | O113: =IF($A113="","",COUNTIF($A$2:$A113,$A113)) -> 51 | P113: =IF($A113="","",$O113+thousand*VLOOKUP($A113,$A$1:Q113,17,FALSE)) -> 6051 | Q113: =IF(O113=1,MAX(Q$1:Q112)+1,"") ->  | R113: Bosch Solar Energy AG | S113: BSM c- Si m 60 EU42117_V1_250 Wp | T113: 112 | V113: 30112 | Y113: 30112 | AB113: 30112 | AE113: 30112 | AH113: 112 | AM113: 600
A114: Bosch Solar Energy AG | B114: BSM c- Si M S 60 NA42117_V1_255 Wp | C114: 0.155166119 | D114: 255 | E114: 38 | F114: 30.5 | G114: 8.92 | H114: 8.36 | I114: 2.676 | J114: -129.2 | K114: -103.7 | M114: 113 | O114: =IF($A114="","",COUNTIF($A$2:$A114,$A114)) -> 52 | P114: =IF($A114="","",$O114+thousand*VLOOKUP($A114,$A$1:Q114,17,FALSE)) -> 6052 | Q114: =IF(O114=1,MAX(Q$1:Q113)+1,"") ->  | R114: Bosch Solar Energy AG | S114: BSM c- Si M S 60 NA42117_V1_255 Wp | T114: 113 | V114: 30113 | Y114: 30113 | AB114: 30113 | AE114: 30113 | AH114: 113 | AM114: 600
A115: Bosch Solar Energy AG | B115: BSM c- Si M 60 NA42117_V1_255 Wp | C115: 0.155166119 | D115: 255 | E115: 38 | F115: 30.5 | G115: 8.92 | H115: 8.36 | I115: 2.676 | J115: -129.2 | K115: -103.7 | M115: 114 | O115: =IF($A115="","",COUNTIF($A$2:$A115,$A115)) -> 53 | P115: =IF($A115="","",$O115+thousand*VLOOKUP($A115,$A$1:Q115,17,FALSE)) -> 6053 | Q115: =IF(O115=1,MAX(Q$1:Q114)+1,"") ->  | R115: Bosch Solar Energy AG | S115: BSM c- Si M 60 NA42117_V1_255 Wp | T115: 114 | V115: 30114 | Y115: 30114 | AB115: 30114 | AE115: 30114 | AH115: 114 | AM115: 1000
A116: Bosch Solar Energy AG | B116: BSM c- Si M 60 S EU441xx_V1_255 Wp | C116: 0.155166119 | D116: 255 | E116: 37.76 | F116: 30.47 | G116: 8.92 | H116: 8.38 | I116: 2.676 | J116: -128.384 | K116: -103.598 | M116: 115 | O116: =IF($A116="","",COUNTIF($A$2:$A116,$A116)) -> 54 | P116: =IF($A116="","",$O116+thousand*VLOOKUP($A116,$A$1:Q116,17,FALSE)) -> 6054 | Q116: =IF(O116=1,MAX(Q$1:Q115)+1,"") ->  | R116: Bosch Solar Energy AG | S116: BSM c- Si M 60 S EU441xx_V1_255 Wp | T116: 115 | V116: 30115 | Y116: 30115 | AB116: 30115 | AE116: 30115 | AH116: 115 | AM116: 1000
A117: Bosch Solar Energy AG | B117: BSM c- Si M 60 S EU42123_V1_255 Wp | C117: 0.155166119 | D117: 255 | E117: 38 | F117: 30.51 | G117: 8.92 | H117: 8.36 | I117: 2.676 | J117: -129.2 | K117: -103.734 | M117: 116 | O117: =IF($A117="","",COUNTIF($A$2:$A117,$A117)) -> 55 | P117: =IF($A117="","",$O117+thousand*VLOOKUP($A117,$A$1:Q117,17,FALSE)) -> 6055 | Q117: =IF(O117=1,MAX(Q$1:Q116)+1,"") ->  | R117: Bosch Solar Energy AG | S117: BSM c- Si M 60 S EU42123_V1_255 Wp | T117: 116 | V117: 30116 | Y117: 30116 | AB117: 30116 | AE117: 30116 | AH117: 116 | AM117: 1000
A118: Bosch Solar Energy AG | B118: BSM c- Si M 60 S EU42117_V1_255 Wp | C118: 0.155166119 | D118: 255 | E118: 38 | F118: 30.51 | G118: 8.92 | H118: 8.36 | I118: 2.676 | J118: -129.2 | K118: -103.734 | M118: 117 | O118: =IF($A118="","",COUNTIF($A$2:$A118,$A118)) -> 56 | P118: =IF($A118="","",$O118+thousand*VLOOKUP($A118,$A$1:Q118,17,FALSE)) -> 6056 | Q118: =IF(O118=1,MAX(Q$1:Q117)+1,"") ->  | R118: Bosch Solar Energy AG | S118: BSM c- Si M 60 S EU42117_V1_255 Wp | T118: 117 | V118: 30117 | Y118: 30117 | AB118: 30117 | AE118: 30117 | AH118: 117 | AM118: 1000
A119: Bosch Solar Energy AG | B119: BSM c- Si M 60 EU42123_V1_255 Wp | C119: 0.155166119 | D119: 255 | E119: 38 | F119: 30.51 | G119: 8.92 | H119: 8.36 | I119: 2.676 | J119: -129.2 | K119: -103.734 | M119: 118 | O119: =IF($A119="","",COUNTIF($A$2:$A119,$A119)) -> 57 | P119: =IF($A119="","",$O119+thousand*VLOOKUP($A119,$A$1:Q119,17,FALSE)) -> 6057 | Q119: =IF(O119=1,MAX(Q$1:Q118)+1,"") ->  | R119: Bosch Solar Energy AG | S119: BSM c- Si M 60 EU42123_V1_255 Wp | T119: 118 | V119: 30118 | Y119: 30118 | AB119: 30118 | AE119: 30118 | AH119: 118 | AM119: 1000
A120: Bosch Solar Energy AG | B120: BSM c- Si M 60 EU441xx_V1_255 Wp | C120: 0.155166119 | D120: 255 | E120: 37.3 | F120: 29.9 | G120: 9.12 | H120: 8.52 | I120: 2.736 | J120: -126.82 | K120: -101.66 | M120: 119 | O120: =IF($A120="","",COUNTIF($A$2:$A120,$A120)) -> 58 | P120: =IF($A120="","",$O120+thousand*VLOOKUP($A120,$A$1:Q120,17,FALSE)) -> 6058 | Q120: =IF(O120=1,MAX(Q$1:Q119)+1,"") ->  | R120: Bosch Solar Energy AG | S120: BSM c- Si M 60 EU441xx_V1_255 Wp | T120: 119 | V120: 30119 | Y120: 30119 | AB120: 30119 | AE120: 30119 | AH120: 119 | AM120: 1000
A121: Bosch Solar Energy AG | B121: BSM c- Si M 60 EU42117_V1_255 Wp | C121: 0.155166119 | D121: 255 | E121: 38 | F121: 30.5 | G121: 8.92 | H121: 8.36 | I121: 2.676 | J121: -129.2 | K121: -103.7 | M121: 120 | O121: =IF($A121="","",COUNTIF($A$2:$A121,$A121)) -> 59 | P121: =IF($A121="","",$O121+thousand*VLOOKUP($A121,$A$1:Q121,17,FALSE)) -> 6059 | Q121: =IF(O121=1,MAX(Q$1:Q120)+1,"") ->  | R121: Bosch Solar Energy AG | S121: BSM c- Si M 60 EU42117_V1_255 Wp | T121: 120 | V121: 30120 | Y121: 30120 | AB121: 30120 | AE121: 30120 | AH121: 120 | AM121: 600
A122: Bosch Solar Energy AG | B122: BSM c- Si M S 60 NA42117_V1_260 Wp | C122: 0.1582085919 | D122: 260 | E122: 38.1 | F122: 30.7 | G122: 9.02 | H122: 8.47 | I122: 2.706 | J122: -129.54 | K122: -104.38 | M122: 121 | O122: =IF($A122="","",COUNTIF($A$2:$A122,$A122)) -> 60 | P122: =IF($A122="","",$O122+thousand*VLOOKUP($A122,$A$1:Q122,17,FALSE)) -> 6060 | Q122: =IF(O122=1,MAX(Q$1:Q121)+1,"") ->  | R122: Bosch Solar Energy AG | S122: BSM c- Si M S 60 NA42117_V1_260 Wp | T122: 121 | V122: 30121 | Y122: 30121 | AB122: 30121 | AE122: 30121 | AH122: 121 | AM122: 600
A123: Bosch Solar Energy AG | B123: BSM c- Si M 60 NA42117_V1_260 Wp | C123: 0.1582085919 | D123: 260 | E123: 38.1 | F123: 30.7 | G123: 9.02 | H123: 8.47 | I123: 2.706 | J123: -129.54 | K123: -104.38 | M123: 122 | O123: =IF($A123="","",COUNTIF($A$2:$A123,$A123)) -> 61 | P123: =IF($A123="","",$O123+thousand*VLOOKUP($A123,$A$1:Q123,17,FALSE)) -> 6061 | Q123: =IF(O123=1,MAX(Q$1:Q122)+1,"") ->  | R123: Bosch Solar Energy AG | S123: BSM c- Si M 60 NA42117_V1_260 Wp | T123: 122 | V123: 30122 | Y123: 30122 | AB123: 30122 | AE123: 30122 | AH123: 122 | AM123: 1000
A124: Bosch Solar Energy AG | B124: BSM c- Si M 60 S EU441xx_V1_260 Wp | C124: 0.1582085919 | D124: 260 | E124: 37.97 | F124: 30.68 | G124: 9.04 | H124: 8.48 | I124: 2.712 | J124: -129.098 | K124: -104.312 | M124: 123 | O124: =IF($A124="","",COUNTIF($A$2:$A124,$A124)) -> 62 | P124: =IF($A124="","",$O124+thousand*VLOOKUP($A124,$A$1:Q124,17,FALSE)) -> 6062 | Q124: =IF(O124=1,MAX(Q$1:Q123)+1,"") ->  | R124: Bosch Solar Energy AG | S124: BSM c- Si M 60 S EU441xx_V1_260 Wp | T124: 123 | V124: 30123 | Y124: 30123 | AB124: 30123 | AE124: 30123 | AH124: 123 | AM124: 1000
A125: Bosch Solar Energy AG | B125: BSM c- Si M 60 S EU42123_V1_260 Wp | C125: 0.1582085919 | D125: 260 | E125: 38.1 | F125: 30.71 | G125: 9.02 | H125: 8.47 | I125: 2.706 | J125: -129.54 | K125: -104.414 | M125: 124 | O125: =IF($A125="","",COUNTIF($A$2:$A125,$A125)) -> 63 | P125: =IF($A125="","",$O125+thousand*VLOOKUP($A125,$A$1:Q125,17,FALSE)) -> 6063 | Q125: =IF(O125=1,MAX(Q$1:Q124)+1,"") ->  | R125: Bosch Solar Energy AG | S125: BSM c- Si M 60 S EU42123_V1_260 Wp | T125: 124 | V125: 30124 | Y125: 30124 | AB125: 30124 | AE125: 30124 | AH125: 124 | AM125: 1000
A126: Bosch Solar Energy AG | B126: BSM c- Si M 60 S EU42117_V1_260 Wp | C126: 0.1582085919 | D126: 260 | E126: 38.1 | F126: 30.71 | G126: 9.02 | H126: 8.47 | I126: 2.706 | J126: -129.54 | K126: -104.414 | M126: 125 | O126: =IF($A126="","",COUNTIF($A$2:$A126,$A126)) -> 64 | P126: =IF($A126="","",$O126+thousand*VLOOKUP($A126,$A$1:Q126,17,FALSE)) -> 6064 | Q126: =IF(O126=1,MAX(Q$1:Q125)+1,"") ->  | R126: Bosch Solar Energy AG | S126: BSM c- Si M 60 S EU42117_V1_260 Wp | T126: 125 | V126: 30125 | Y126: 30125 | AB126: 30125 | AE126: 30125 | AH126: 125 | AM126: 1000
A127: Bosch Solar Energy AG | B127: BSM c- Si M 60 EU42123_V1_260 Wp | C127: 0.1582085919 | D127: 260 | E127: 38.1 | F127: 30.71 | G127: 9.02 | H127: 8.47 | I127: 2.706 | J127: -129.54 | K127: -104.414 | M127: 126 | O127: =IF($A127="","",COUNTIF($A$2:$A127,$A127)) -> 65 | P127: =IF($A127="","",$O127+thousand*VLOOKUP($A127,$A$1:Q127,17,FALSE)) -> 6065 | Q127: =IF(O127=1,MAX(Q$1:Q126)+1,"") ->  | R127: Bosch Solar Energy AG | S127: BSM c- Si M 60 EU42123_V1_260 Wp | T127: 126 | V127: 30126 | Y127: 30126 | AB127: 30126 | AE127: 30126 | AH127: 126 | AM127: 1000
A128: Bosch Solar Energy AG | B128: BSM c- Si M 60 EU441xx_V1_260 Wp | C128: 0.1582085919 | D128: 260 | E128: 37.6 | F128: 30.3 | G128: 9.19 | H128: 8.6 | I128: 2.757 | J128: -127.84 | K128: -103.02 | M128: 127 | O128: =IF($A128="","",COUNTIF($A$2:$A128,$A128)) -> 66 | P128: =IF($A128="","",$O128+thousand*VLOOKUP($A128,$A$1:Q128,17,FALSE)) -> 6066 | Q128: =IF(O128=1,MAX(Q$1:Q127)+1,"") ->  | R128: Bosch Solar Energy AG | S128: BSM c- Si M 60 EU441xx_V1_260 Wp | T128: 127 | V128: 30127 | Y128: 30127 | AB128: 30127 | AE128: 30127 | AH128: 127 | AM128: 1000
A129: Bosch Solar Energy AG | B129: BSM c- Si M 60 EU42117_V1_260 Wp | C129: 0.1582085919 | D129: 260 | E129: 38.1 | F129: 30.7 | G129: 9.02 | H129: 8.47 | I129: 2.706 | J129: -129.54 | K129: -104.38 | M129: 128 | O129: =IF($A129="","",COUNTIF($A$2:$A129,$A129)) -> 67 | P129: =IF($A129="","",$O129+thousand*VLOOKUP($A129,$A$1:Q129,17,FALSE)) -> 6067 | Q129: =IF(O129=1,MAX(Q$1:Q128)+1,"") ->  | R129: Bosch Solar Energy AG | S129: BSM c- Si M 60 EU42117_V1_260 Wp | T129: 128 | V129: 30128 | Y129: 30128 | AB129: 30128 | AE129: 30128 | AH129: 128 | AM129: 600
A130: Bosch Solar Energy AG | B130: BSM c- Si M 60 S EU441xx_V1_265 Wp | C130: 0.1612510649 | D130: 265 | E130: 38.18 | F130: 30.9 | G130: 9.15 | H130: 8.58 | I130: 2.745 | J130: -133.63 | K130: -108.15 | M130: 129 | N130: =IF(M130>MAX(Q$2:Q$7985),"",VLOOKUP(M130,Q$2:R$7985,2,FALSE)) ->  | O130: =IF($A130="","",COUNTIF($A$2:$A130,$A130)) -> 68 | P130: =IF($A130="","",$O130+thousand*VLOOKUP($A130,$A$1:Q130,17,FALSE)) -> 6068 | Q130: =IF(O130=1,MAX(Q$1:Q129)+1,"") ->  | R130: Bosch Solar Energy AG | S130: BSM c- Si M 60 S EU441xx_V1_265 Wp | T130: 129 | V130: =V$1*thousand+$M130 -> 30129 | W130: =IF(COUNTIF($P$2:$P$7985,V130)>0,VLOOKUP(V130,$P$2:$S$7985,4,FALSE),"") ->  | X130: =IF(W130="","",VLOOKUP(V130,$P$2:$T$7985,5,FALSE)) ->  | Y130: =Y$1*thousand+$M130 -> 30129 | Z130: =IF(COUNTIF($P$2:$P$7985,Y130)>0,VLOOKUP(Y130,$P$2:$S$7985,4,FALSE),"") ->  | AA130: =IF(Z130="","",VLOOKUP(Y130,$P$2:$T$7985,5,FALSE)) ->  | AB130: =AB$1*thousand+$M130 -> 30129 | AC130: =IF(COUNTIF($P$2:$P$7985,AB130)>0,VLOOKUP(AB130,$P$2:$S$7985,4,FALSE),"") ->  | AD130: =IF(AC130="","",VLOOKUP(AB130,$P$2:$T$7985,5,FALSE)) ->  | AE130: =AE$1*thousand+$M130 -> 30129 | AF130: =IF(COUNTIF($P$2:$P$7985,AE130)>0,VLOOKUP(AE130,$P$2:$S$7985,4,FALSE),"") ->  | AG130: =IF(AF130="","",VLOOKUP(AE130,$P$2:$T$7985,5,FALSE)) ->  | AH130: =AH$1*thousand+$M130 -> 129 | AJ130: =IF(AI130="","",VLOOKUP(AH130,$P$2:$T$7985,5,FALSE)) ->  | AM130: 600
A131: Bosch Solar Energy AG | B131: BSM c- Si M 60 EU441xx_V1_265 Wp | C131: 0.1612510649 | D131: 265 | E131: 37.9 | F131: 30.5 | G131: 9.26 | H131: 8.68 | I131: 2.778 | J131: -128.86 | K131: =F131/E131*J131 -> -103.7 | M131: 130 | O131: =IF($A131="","",COUNTIF($A$2:$A131,$A131)) -> 69 | P131: =IF($A131="","",$O131+thousand*VLOOKUP($A131,$A$1:Q131,17,FALSE)) -> 6069 | Q131: =IF(O131=1,MAX(Q$1:Q130)+1,"") ->  | R131: =IF(A131="","",A131) -> Bosch Solar Energy AG | S131: =IF(B131="","",B131) -> BSM c- Si M 60 EU441xx_V1_265 Wp | T131: =$M131 -> 130 | V131: 30130 | Y131: 30130 | AB131: 30130 | AE131: 30130 | AH131: 130 | AI131: =IF(COUNTIF($P$2:$P$7985,AH131)>0,VLOOKUP(AH131,$P$2:$S$7985,4,FALSE),"") ->  | AM131: 1000
A132: Bosch Solar Energy AG | B132: BSM c- Si M 60 S EU441xx_V1_270 Wp | C132: 0.1642935378 | D132: 270 | E132: 38.38 | F132: 31.12 | G132: 9.27 | H132: 8.68 | I132: 2.781 | J132: -134.33 | K132: -108.92 | M132: 131 | O132: =IF($A132="","",COUNTIF($A$2:$A132,$A132)) -> 70 | P132: =IF($A132="","",$O132+thousand*VLOOKUP($A132,$A$1:Q132,17,FALSE)) -> 6070 | Q132: =IF(O132=1,MAX(Q$1:Q131)+1,"") ->  | R132: Bosch Solar Energy AG | S132: BSM c- Si M 60 S EU441xx_V1_270 Wp | T132: 131 | V132: 30131 | Y132: 30131 | AB132: 30131 | AE132: 30131 | AH132: 131 | AM132: 1000
A133: Bosch Solar Energy AG | B133: BSM c- Si M 60 EU441xx_V1_270 Wp | C133: 0.1642935378 | D133: 270 | E133: 38.2 | F133: 30.9 | G133: 9.33 | H133: 8.76 | I133: 2.799 | J133: -133.7 | K133: -108.15 | M133: 132 | O133: =IF($A133="","",COUNTIF($A$2:$A133,$A133)) -> 71 | P133: =IF($A133="","",$O133+thousand*VLOOKUP($A133,$A$1:Q133,17,FALSE)) -> 6071 | Q133: =IF(O133=1,MAX(Q$1:Q132)+1,"") ->  | R133: Bosch Solar Energy AG | S133: BSM c- Si M 60 EU441xx_V1_270 Wp | T133: 132 | V133: 30132 | Y133: 30132 | AB133: 30132 | AE133: 30132 | AH133: 132 | AM133: 1000
A134: Bosch Solar Energy AG | B134: BSM c- Si M 60plus S EU56117_V1_275 Wp | C134: 0.1659365459 | D134: 275 | E134: 38.61 | F134: 30.91 | G134: 9.38 | H134: 8.9 | I134: 4.69 | J134: -119.691 | K134: -95.821 | M134: 133 | O134: =IF($A134="","",COUNTIF($A$2:$A134,$A134)) -> 72 | P134: =IF($A134="","",$O134+thousand*VLOOKUP($A134,$A$1:Q134,17,FALSE)) -> 6072 | Q134: =IF(O134=1,MAX(Q$1:Q133)+1,"") ->  | R134: Bosch Solar Energy AG | S134: BSM c- Si M 60plus S EU56117_V1_275 Wp | T134: 133 | V134: 30133 | Y134: 30133 | AB134: 30133 | AE134: 30133 | AH134: 133 | AM134: 1000
A135: Bosch Solar Energy AG | B135: BSM c- Si M 60plus EU56117_V1_280Wp | C135: 0.168953574 | D135: 280 | E135: 38.52 | F135: 30.81 | G135: 9.59 | H135: 9.09 | I135: 4.3155 | J135: -131.3532 | K135: -105.0621 | M135: 134 | O135: =IF($A135="","",COUNTIF($A$2:$A135,$A135)) -> 73 | P135: =IF($A135="","",$O135+thousand*VLOOKUP($A135,$A$1:Q135,17,FALSE)) -> 6073 | Q135: =IF(O135=1,MAX(Q$1:Q134)+1,"") ->  | R135: Bosch Solar Energy AG | S135: BSM c- Si M 60plus EU56117_V1_280Wp | T135: 134 | V135: 30134 | Y135: 30134 | AB135: 30134 | AE135: 30134 | AH135: 134 | AM135: 1000
A136: Bosch Solar Energy AG | B136: BSM c- Si M 60plus S EU56117_V1_280Wp | C136: 0.168953574 | D136: 280 | E136: 38.87 | F136: 31.16 | G136: 9.47 | H136: 8.99 | I136: 4.735 | J136: -120.497 | K136: -96.596 | M136: 135 | O136: =IF($A136="","",COUNTIF($A$2:$A136,$A136)) -> 74 | P136: =IF($A136="","",$O136+thousand*VLOOKUP($A136,$A$1:Q136,17,FALSE)) -> 6074 | Q136: =IF(O136=1,MAX(Q$1:Q135)+1,"") ->  | R136: Bosch Solar Energy AG | S136: BSM c- Si M 60plus S EU56117_V1_280Wp | T136: 135 | V136: 30135 | Y136: 30135 | AB136: 30135 | AE136: 30135 | AH136: 135 | AM136: 1000
A137: Bosch Solar Energy AG | B137: BSM c- Si M 60plus EU56117_V1_285Wp | C137: 0.1719706021 | D137: 285 | E137: 38.78 | F137: 31.06 | G137: 9.67 | H137: 9.18 | I137: 4.2548 | J137: -133.4032 | K137: -106.8464 | M137: 136 | O137: =IF($A137="","",COUNTIF($A$2:$A137,$A137)) -> 75 | P137: =IF($A137="","",$O137+thousand*VLOOKUP($A137,$A$1:Q137,17,FALSE)) -> 6075 | Q137: =IF(O137=1,MAX(Q$1:Q136)+1,"") ->  | R137: Bosch Solar Energy AG | S137: BSM c- Si M 60plus EU56117_V1_285Wp | T137: 136 | V137: 30136 | Y137: 30136 | AB137: 30136 | AE137: 30136 | AH137: 136 | AM137: 1000
A138: Bosch Solar Energy AG | B138: BSM c- Si M 60plus S EU56117_V1_285Wp | C138: 0.1719706021 | D138: 285 | E138: 39.13 | F138: 31.42 | G138: 9.56 | H138: 9.08 | I138: 4.302 | J138: -121.303 | K138: -97.402 | M138: 137 | O138: =IF($A138="","",COUNTIF($A$2:$A138,$A138)) -> 76 | P138: =IF($A138="","",$O138+thousand*VLOOKUP($A138,$A$1:Q138,17,FALSE)) -> 6076 | Q138: =IF(O138=1,MAX(Q$1:Q137)+1,"") ->  | R138: Bosch Solar Energy AG | S138: BSM c- Si M 60plus S EU56117_V1_285Wp | T138: 137 | V138: 30137 | Y138: 30137 | AB138: 30137 | AE138: 30137 | AH138: 137 | AM138: 1000
A139: Bosch Solar Energy AG | B139: BSM c- Si M 60plus EU56117_V1_290Wp | C139: 0.1749876302 | D139: 290 | E139: 39.03 | F139: 31.31 | G139: 9.76 | H139: 9.27 | I139: 4.392 | J139: -135.4341 | K139: -108.6457 | M139: 138 | O139: =IF($A139="","",COUNTIF($A$2:$A139,$A139)) -> 77 | P139: =IF($A139="","",$O139+thousand*VLOOKUP($A139,$A$1:Q139,17,FALSE)) -> 6077 | Q139: =IF(O139=1,MAX(Q$1:Q138)+1,"") ->  | R139: Bosch Solar Energy AG | S139: BSM c- Si M 60plus EU56117_V1_290Wp | T139: 138 | V139: 30138 | Y139: 30138 | AB139: 30138 | AE139: 30138 | AH139: 138 | AM139: 1000
A140: BYD | B140: BYD 225P6-30 | C140: 0.1383015342 | D140: 225 | E140: 36.34 | F140: 28.7 | G140: 8.32 | H140: 7.84 | I140: 5.2416 | J140: -126.8266 | K140: -100.163 | M140: 139 | O140: =IF($A140="","",COUNTIF($A$2:$A140,$A140)) -> 1 | P140: =IF($A140="","",$O140+thousand*VLOOKUP($A140,$A$1:Q140,17,FALSE)) -> 7001 | Q140: =IF(O140=1,MAX(Q$1:Q139)+1,"") -> 7 | R140: BYD | S140: BYD 225P6-30 | T140: 139 | V140: 30139 | Y140: 30139 | AB140: 30139 | AE140: 30139 | AH140: 139 | AM140: 1000
A141: BYD | B141: BYD 290 P6-36 | C141: 0.149457418 | D141: 290 | E141: 44.77 | F141: 35.65 | G141: 8.58 | H141: 8.14 | I141: 5.2338 | J141: -159.3812 | K141: -126.914 | M141: 140 | O141: =IF($A141="","",COUNTIF($A$2:$A141,$A141)) -> 2 | P141: =IF($A141="","",$O141+thousand*VLOOKUP($A141,$A$1:Q141,17,FALSE)) -> 7002 | Q141: =IF(O141=1,MAX(Q$1:Q140)+1,"") ->  | R141: BYD | S141: BYD 290 P6-36 | T141: 140 | V141: 30140 | Y141: 30140 | AB141: 30140 | AE141: 30140 | AH141: 140 | AM141: 1000
A142: Canadian Solar Inc. | B142: CS6A - 195PM | C142: 0.1499806179 | D142: 195 | E142: 29.6 | F142: 24 | G142: 8.69 | H142: 8.13 | I142: 5.1271 | J142: -107.448 | K142: -87.12 | M142: 141 | O142: =IF($A142="","",COUNTIF($A$2:$A142,$A142)) -> 1 | P142: =IF($A142="","",$O142+thousand*VLOOKUP($A142,$A$1:Q142,17,FALSE)) -> 8001 | Q142: =IF(O142=1,MAX(Q$1:Q141)+1,"") -> 8 | R142: Canadian Solar Inc. | S142: CS6A - 195PM | T142: 141 | V142: 30141 | Y142: 30141 | AB142: 30141 | AE142: 30141 | AH142: 141 | AM142: 1000
A143: Canadian Solar Inc. | B143: CS6A - 200PM | C143: 0.1538262748 | D143: 200 | E143: 29.8 | F143: 24.1 | G143: 8.87 | H143: 8.3 | I143: 5.322 | J143: -108.174 | K143: -87.483 | M143: 142 | O143: =IF($A143="","",COUNTIF($A$2:$A143,$A143)) -> 2 | P143: =IF($A143="","",$O143+thousand*VLOOKUP($A143,$A$1:Q143,17,FALSE)) -> 8002 | Q143: =IF(O143=1,MAX(Q$1:Q142)+1,"") ->  | R143: Canadian Solar Inc. | S143: CS6A - 200PM | T143: 142 | V143: 30142 | Y143: 30142 | AB143: 30142 | AE143: 30142 | AH143: 142 | AM143: 1000
A144: Canadian Solar Inc. | B144: CS6A - 200MM | C144: 0.1538262748 | D144: 200 | E144: 30 | F144: 24.3 | G144: 8.74 | H144: 8.22 | I144: 5.0692 | J144: -115.5 | K144: -93.555 | M144: 143 | O144: =IF($A144="","",COUNTIF($A$2:$A144,$A144)) -> 3 | P144: =IF($A144="","",$O144+thousand*VLOOKUP($A144,$A$1:Q144,17,FALSE)) -> 8003 | Q144: =IF(O144=1,MAX(Q$1:Q143)+1,"") ->  | R144: Canadian Solar Inc. | S144: CS6A - 200MM | T144: 143 | V144: 30143 | Y144: 30143 | AB144: 30143 | AE144: 30143 | AH144: 143 | AM144: 1000
A145: Canadian Solar Inc. | B145: CS5A - 200M | C145: 0.1565441317 | D145: 200 | E145: 45.3 | F145: 37.4 | G145: 5.71 | H145: 5.35 | I145: 3.3118 | J145: -179.388 | K145: -148.104 | M145: 144 | O145: =IF($A145="","",COUNTIF($A$2:$A145,$A145)) -> 4 | P145: =IF($A145="","",$O145+thousand*VLOOKUP($A145,$A$1:Q145,17,FALSE)) -> 8004 | Q145: =IF(O145=1,MAX(Q$1:Q144)+1,"") ->  | R145: Canadian Solar Inc. | S145: CS5A - 200M | T145: 144 | V145: 30144 | Y145: 30144 | AB145: 30144 | AE145: 30144 | AH145: 144 | AM145: 1000
A146: Canadian Solar Inc. | B146: CS6A - 205PM | C146: 0.1576719316 | D146: 205 | E146: 29.9 | F146: 24.2 | G146: 9.03 | H146: 8.47 | I146: 5.418 | J146: -108.238 | K146: -87.604 | M146: 145 | O146: =IF($A146="","",COUNTIF($A$2:$A146,$A146)) -> 5 | P146: =IF($A146="","",$O146+thousand*VLOOKUP($A146,$A$1:Q146,17,FALSE)) -> 8005 | Q146: =IF(O146=1,MAX(Q$1:Q145)+1,"") ->  | R146: Canadian Solar Inc. | S146: CS6A - 205PM | T146: 145 | V146: 30145 | Y146: 30145 | AB146: 30145 | AE146: 30145 | AH146: 145 | AM146: 1000
A147: Canadian Solar Inc. | B147: CS6A - 205M | C147: 0.1573514602 | D147: 205 | E147: 30.2 | F147: 24.5 | G147: 8.9 | H147: 8.38 | I147: 5.34 | J147: -114.76 | K147: -93.1 | M147: 146 | O147: =IF($A147="","",COUNTIF($A$2:$A147,$A147)) -> 6 | P147: =IF($A147="","",$O147+thousand*VLOOKUP($A147,$A$1:Q147,17,FALSE)) -> 8006 | Q147: =IF(O147=1,MAX(Q$1:Q146)+1,"") ->  | R147: Canadian Solar Inc. | S147: CS6A - 205M | T147: 146 | V147: 30146 | Y147: 30146 | AB147: 30146 | AE147: 30146 | AH147: 146 | AM147: 1000
A148: Canadian Solar Inc. | B148: CS6A - 205MM | C148: 0.1576719316 | D148: 205 | E148: 30.2 | F148: 24.5 | G148: 8.9 | H148: 8.38 | I148: 5.429 | J148: -111.438 | K148: -90.405 | M148: 147 | O148: =IF($A148="","",COUNTIF($A$2:$A148,$A148)) -> 7 | P148: =IF($A148="","",$O148+thousand*VLOOKUP($A148,$A$1:Q148,17,FALSE)) -> 8007 | Q148: =IF(O148=1,MAX(Q$1:Q147)+1,"") ->  | R148: Canadian Solar Inc. | S148: CS6A - 205MM | T148: 147 | V148: 30147 | Y148: 30147 | AB148: 30147 | AE148: 30147 | AH148: 147 | AM148: 1000
A149: Canadian Solar Inc. | B149: CS5A - 205M | C149: 0.160457735 | D149: 205 | E149: 45.4 | F149: 37.7 | G149: 5.81 | H149: 5.43 | I149: 3.486 | J149: -181.6 | K149: -150.8 | M149: 148 | O149: =IF($A149="","",COUNTIF($A$2:$A149,$A149)) -> 8 | P149: =IF($A149="","",$O149+thousand*VLOOKUP($A149,$A$1:Q149,17,FALSE)) -> 8008 | Q149: =IF(O149=1,MAX(Q$1:Q148)+1,"") ->  | R149: Canadian Solar Inc. | S149: CS5A - 205M | T149: 148 | V149: 30148 | Y149: 30148 | AB149: 30148 | AE149: 30148 | AH149: 148 | AM149: 1000
A150: Canadian Solar Inc. | B150: CS6V - 210P | C150: 0.1552120196 | D150: 210 | E150: 31.1 | F150: 25.1 | G150: 8.92 | H150: 8.35 | I150: 5.798 | J150: -115.07 | K150: -92.87 | M150: 149 | O150: =IF($A150="","",COUNTIF($A$2:$A150,$A150)) -> 9 | P150: =IF($A150="","",$O150+thousand*VLOOKUP($A150,$A$1:Q150,17,FALSE)) -> 8009 | Q150: =IF(O150=1,MAX(Q$1:Q149)+1,"") ->  | R150: Canadian Solar Inc. | S150: CS6V - 210P | T150: 149 | V150: 30149 | Y150: 30149 | AB150: 30149 | AE150: 30149 | AH150: 149 | AM150: 1000
A151: Canadian Solar Inc. | B151: CS6A - 210PM | C151: 0.1615175885 | D151: 210 | E151: 30 | F151: 24.3 | G151: 9.19 | H151: 8.63 | I151: 5.0545 | J151: -109.2 | K151: -88.452 | M151: 150 | O151: =IF($A151="","",COUNTIF($A$2:$A151,$A151)) -> 10 | P151: =IF($A151="","",$O151+thousand*VLOOKUP($A151,$A$1:Q151,17,FALSE)) -> 8010 | Q151: =IF(O151=1,MAX(Q$1:Q150)+1,"") ->  | R151: Canadian Solar Inc. | S151: CS6A - 210PM | T151: 150 | V151: 30150 | Y151: 30150 | AB151: 30150 | AE151: 30150 | AH151: 150 | AM151: 1000
A152: Canadian Solar Inc. | B152: CS6A - 210M | C152: 0.1611893007 | D152: 210 | E152: 30.3 | F152: 24.6 | G152: 9.06 | H152: 8.54 | I152: 5.436 | J152: -115.14 | K152: -93.48 | M152: 151 | O152: =IF($A152="","",COUNTIF($A$2:$A152,$A152)) -> 11 | P152: =IF($A152="","",$O152+thousand*VLOOKUP($A152,$A$1:Q152,17,FALSE)) -> 8011 | Q152: =IF(O152=1,MAX(Q$1:Q151)+1,"") ->  | R152: Canadian Solar Inc. | S152: CS6A - 210M | T152: 151 | V152: 30151 | Y152: 30151 | AB152: 30151 | AE152: 30151 | AH152: 151 | AM152: 1000
A153: Canadian Solar Inc. | B153: CS5A - 210M | C153: 0.1643713383 | D153: 210 | E153: 45.4 | F153: 37.7 | G153: 5.81 | H153: 5.57 | I153: 3.3698 | J153: -179.784 | K153: -149.292 | M153: 152 | O153: =IF($A153="","",COUNTIF($A$2:$A153,$A153)) -> 12 | P153: =IF($A153="","",$O153+thousand*VLOOKUP($A153,$A$1:Q153,17,FALSE)) -> 8012 | Q153: =IF(O153=1,MAX(Q$1:Q152)+1,"") ->  | R153: Canadian Solar Inc. | S153: CS5A - 210M | T153: 152 | V153: 30152 | Y153: 30152 | AB153: 30152 | AE153: 30152 | AH153: 152 | AM153: 1000
A154: Canadian Solar Inc. | B154: CS6A - 210MM | C154: 0.1611893007 | D154: 210 | E154: 30.3 | F154: 24.6 | G154: 9.06 | H154: 8.54 | I154: 5.436 | J154: -112.11 | K154: -91.02 | M154: 153 | O154: =IF($A154="","",COUNTIF($A$2:$A154,$A154)) -> 13 | P154: =IF($A154="","",$O154+thousand*VLOOKUP($A154,$A$1:Q154,17,FALSE)) -> 8013 | Q154: =IF(O154=1,MAX(Q$1:Q153)+1,"") ->  | R154: Canadian Solar Inc. | S154: CS6A - 210MM | T154: 153 | V154: 30153 | Y154: 30153 | AB154: 30153 | AE154: 30153 | AH154: 153 | AM154: 1000
A155: Canadian Solar Inc. | B155: CS6V - 215P | C155: 0.1589075439 | D155: 215 | E155: 31.2 | F155: 25.3 | G155: 9.07 | H155: 8.51 | I155: 5.8955 | J155: -115.44 | K155: -93.61 | M155: 154 | O155: =IF($A155="","",COUNTIF($A$2:$A155,$A155)) -> 14 | P155: =IF($A155="","",$O155+thousand*VLOOKUP($A155,$A$1:Q155,17,FALSE)) -> 8014 | Q155: =IF(O155=1,MAX(Q$1:Q154)+1,"") ->  | R155: Canadian Solar Inc. | S155: CS6V - 215P | T155: 154 | V155: 30154 | Y155: 30154 | AB155: 30154 | AE155: 30154 | AH155: 154 | AM155: 1000
A156: Canadian Solar Inc. | B156: CS6A - 215PM | C156: 0.1653632454 | D156: 215 | E156: 30.2 | F156: 24.5 | G156: 9.35 | H156: 8.78 | I156: 5.61 | J156: -111.136 | K156: -90.16 | M156: 155 | O156: =IF($A156="","",COUNTIF($A$2:$A156,$A156)) -> 15 | P156: =IF($A156="","",$O156+thousand*VLOOKUP($A156,$A$1:Q156,17,FALSE)) -> 8015 | Q156: =IF(O156=1,MAX(Q$1:Q155)+1,"") ->  | R156: Canadian Solar Inc. | S156: CS6A - 215PM | T156: 155 | V156: 30155 | Y156: 30155 | AB156: 30155 | AE156: 30155 | AH156: 155 | AM156: 1000
A157: Canadian Solar Inc. | B157: CS6A - 215MM | C157: 0.1650271412 | D157: 215 | E157: 30.4 | F157: 24.7 | G157: 9.22 | H157: 8.7 | I157: 5.532 | J157: -112.784 | K157: -91.637 | M157: 156 | O157: =IF($A157="","",COUNTIF($A$2:$A157,$A157)) -> 16 | P157: =IF($A157="","",$O157+thousand*VLOOKUP($A157,$A$1:Q157,17,FALSE)) -> 8016 | Q157: =IF(O157=1,MAX(Q$1:Q156)+1,"") ->  | R157: Canadian Solar Inc. | S157: CS6A - 215MM | T157: 156 | V157: 30156 | Y157: 30156 | AB157: 30156 | AE157: 30156 | AH157: 156 | AM157: 1000
A158: Canadian Solar Inc. | B158: CS6V - 220P | C158: 0.1626030682 | D158: 220 | E158: 31.4 | F158: 25.5 | G158: 9.21 | H158: 8.64 | I158: 5.9865 | J158: -116.18 | K158: -94.35 | M158: 157 | O158: =IF($A158="","",COUNTIF($A$2:$A158,$A158)) -> 17 | P158: =IF($A158="","",$O158+thousand*VLOOKUP($A158,$A$1:Q158,17,FALSE)) -> 8017 | Q158: =IF(O158=1,MAX(Q$1:Q157)+1,"") ->  | R158: Canadian Solar Inc. | S158: CS6V - 220P | T158: 157 | V158: 30157 | Y158: 30157 | AB158: 30157 | AE158: 30157 | AH158: 157 | AM158: 1000
A159: Canadian Solar Inc. | B159: CS6P - 220PT | C159: 0.1367720309 | D159: 220 | E159: 36.6 | F159: 29.2 | G159: 8.09 | H159: 7.53 | I159: 5.3394 | J159: -132.126 | K159: -105.412 | M159: 158 | O159: =IF($A159="","",COUNTIF($A$2:$A159,$A159)) -> 18 | P159: =IF($A159="","",$O159+thousand*VLOOKUP($A159,$A$1:Q159,17,FALSE)) -> 8018 | Q159: =IF(O159=1,MAX(Q$1:Q158)+1,"") ->  | R159: Canadian Solar Inc. | S159: CS6P - 220PT | T159: 158 | V159: 30158 | Y159: 30158 | AB159: 30158 | AE159: 30158 | AH159: 158 | AM159: 1000
A160: Canadian Solar Inc. | B160: CS6V - 220MM | C160: 0.1626030682 | D160: 220 | E160: 31.6 | F160: 25.7 | G160: 9.08 | H160: 8.56 | I160: 5.448 | J160: -120.08 | K160: -97.66 | M160: 159 | O160: =IF($A160="","",COUNTIF($A$2:$A160,$A160)) -> 19 | P160: =IF($A160="","",$O160+thousand*VLOOKUP($A160,$A$1:Q160,17,FALSE)) -> 8019 | Q160: =IF(O160=1,MAX(Q$1:Q159)+1,"") ->  | R160: Canadian Solar Inc. | S160: CS6V - 220MM | T160: 159 | V160: 30159 | Y160: 30159 | AB160: 30159 | AE160: 30159 | AH160: 159 | AM160: 1000
A161: Canadian Solar Inc. | B161: CS6A - 220MM | C161: 0.1688649817 | D161: 220 | E161: 30.5 | F161: 24.8 | G161: 9.38 | H161: 8.86 | I161: 6.566 | J161: -120.475 | K161: -97.96 | M161: 160 | O161: =IF($A161="","",COUNTIF($A$2:$A161,$A161)) -> 20 | P161: =IF($A161="","",$O161+thousand*VLOOKUP($A161,$A$1:Q161,17,FALSE)) -> 8020 | Q161: =IF(O161=1,MAX(Q$1:Q160)+1,"") ->  | R161: Canadian Solar Inc. | S161: CS6A - 220MM | T161: 160 | V161: 30160 | Y161: 30160 | AB161: 30160 | AE161: 30160 | AH161: 160 | AM161: 1000
A162: Canadian Solar Inc. | B162: CS6V - 225P | C162: 0.1662985924 | D162: 225 | E162: 31.6 | F162: 25.7 | G162: 9.32 | H162: 8.75 | I162: 6.058 | J162: -116.92 | K162: -95.09 | M162: 161 | O162: =IF($A162="","",COUNTIF($A$2:$A162,$A162)) -> 21 | P162: =IF($A162="","",$O162+thousand*VLOOKUP($A162,$A$1:Q162,17,FALSE)) -> 8021 | Q162: =IF(O162=1,MAX(Q$1:Q161)+1,"") ->  | R162: Canadian Solar Inc. | S162: CS6V - 225P | T162: 161 | V162: 30161 | W162: =IF(COUNTIF($P$2:$P$7985,V162)>0,VLOOKUP(V162,$P$2:$S$7985,4,FALSE),"") ->  | X162: =IF(W162="","",VLOOKUP(V162,$P$2:$T$7985,5,FALSE)) ->  | Y162: 30161 | Z162: =IF(COUNTIF($P$2:$P$7985,Y162)>0,VLOOKUP(Y162,$P$2:$S$7985,4,FALSE),"") ->  | AA162: =IF(Z162="","",VLOOKUP(Y162,$P$2:$T$7985,5,FALSE)) ->  | AB162: 30161 | AC162: =IF(COUNTIF($P$2:$P$7985,AB162)>0,VLOOKUP(AB162,$P$2:$S$7985,4,FALSE),"") ->  | AD162: =IF(AC162="","",VLOOKUP(AB162,$P$2:$T$7985,5,FALSE)) ->  | AE162: 30161 | AH162: 161 | AJ162: =IF(AI162="","",VLOOKUP(AH162,$P$2:$T$7985,5,FALSE)) ->  | AM162: 1000
A163: Canadian Solar Inc. | B163: CS6P - 225PT | C163: 0.1398804861 | D163: 225 | E163: 36.7 | F163: 29.4 | G163: 8.19 | H163: 7.65 | I163: 5.3235 | J163: -133.221 | K163: -106.722 | M163: 162 | O163: =IF($A163="","",COUNTIF($A$2:$A163,$A163)) -> 22 | P163: =IF($A163="","",$O163+thousand*VLOOKUP($A163,$A$1:Q163,17,FALSE)) -> 8022 | Q163: =IF(O163=1,MAX(Q$1:Q162)+1,"") ->  | R163: Canadian Solar Inc. | S163: CS6P - 225PT | T163: 162 | V163: 30162 | Y163: 30162 | AB163: 30162 | AE163: 30162 | AH163: 162 | AI163: =IF(COUNTIF($P$2:$P$7985,AH163)>0,VLOOKUP(AH163,$P$2:$S$7985,4,FALSE),"") ->  | AM163: 1000
A164: Canadian Solar Inc. | B164: CS6V - 225MM | C164: 0.1662985924 | D164: 225 | E164: 31.8 | F164: 26 | G164: 9.19 | H164: 8.67 | I164: 5.514 | J164: -120.84 | K164: -98.8 | M164: 163 | O164: =IF($A164="","",COUNTIF($A$2:$A164,$A164)) -> 23 | P164: =IF($A164="","",$O164+thousand*VLOOKUP($A164,$A$1:Q164,17,FALSE)) -> 8023 | Q164: =IF(O164=1,MAX(Q$1:Q163)+1,"") ->  | R164: Canadian Solar Inc. | S164: CS6V - 225MM | T164: 163 | V164: 30163 | Y164: 30163 | AB164: 30163 | AE164: 30163 | AH164: 163 | AM164: 1000
A165: Canadian Solar Inc. | B165: CS6V - 230P | C165: 0.1699941167 | D165: 230 | E165: 31.8 | F165: 25.9 | G165: 9.42 | H165: 8.88 | I165: 6.123 | J165: -117.66 | K165: -95.83 | M165: 164 | O165: =IF($A165="","",COUNTIF($A$2:$A165,$A165)) -> 24 | P165: =IF($A165="","",$O165+thousand*VLOOKUP($A165,$A$1:Q165,17,FALSE)) -> 8024 | Q165: =IF(O165=1,MAX(Q$1:Q164)+1,"") ->  | R165: Canadian Solar Inc. | S165: CS6V - 230P | T165: 164 | V165: 30164 | Y165: 30164 | AB165: 30164 | AE165: 30164 | AH165: 164 | AM165: 1000
A166: Canadian Solar Inc. | B166: CS6P - 230PT | C166: 0.1429889414 | D166: 230 | E166: 36.8 | F166: 29.6 | G166: 8.34 | H166: 7.78 | I166: 5.421 | J166: -134.688 | K166: -108.336 | M166: 165 | O166: =IF($A166="","",COUNTIF($A$2:$A166,$A166)) -> 25 | P166: =IF($A166="","",$O166+thousand*VLOOKUP($A166,$A$1:Q166,17,FALSE)) -> 8025 | Q166: =IF(O166=1,MAX(Q$1:Q165)+1,"") ->  | R166: Canadian Solar Inc. | S166: CS6P - 230PT | T166: 165 | V166: 30165 | Y166: 30165 | AB166: 30165 | AE166: 30165 | AH166: 165 | AM166: 1000
A167: Canadian Solar Inc. | B167: CS6V - 230MM | C167: 0.1699941167 | D167: 230 | E167: 31.9 | F167: 26.1 | G167: 9.33 | H167: 8.81 | I167: 5.598 | J167: -121.22 | K167: -99.18 | M167: 166 | O167: =IF($A167="","",COUNTIF($A$2:$A167,$A167)) -> 26 | P167: =IF($A167="","",$O167+thousand*VLOOKUP($A167,$A$1:Q167,17,FALSE)) -> 8026 | Q167: =IF(O167=1,MAX(Q$1:Q166)+1,"") ->  | R167: Canadian Solar Inc. | S167: CS6V - 230MM | T167: 166 | V167: 30166 | Y167: 30166 | AB167: 30166 | AE167: 30166 | AH167: 166 | AM167: 1000
A168: Canadian Solar Inc. | B168: CS6P - 235PT | C168: 0.1460973966 | D168: 235 | E168: 36.9 | F168: 29.8 | G168: 8.46 | H168: 7.9 | I168: 5.499 | J168: -135.792 | K168: -109.664 | M168: 167 | O168: =IF($A168="","",COUNTIF($A$2:$A168,$A168)) -> 27 | P168: =IF($A168="","",$O168+thousand*VLOOKUP($A168,$A$1:Q168,17,FALSE)) -> 8027 | Q168: =IF(O168=1,MAX(Q$1:Q167)+1,"") ->  | R168: Canadian Solar Inc. | S168: CS6P - 235PT | T168: 167 | V168: 30167 | Y168: 30167 | AB168: 30167 | AE168: 30167 | AH168: 167 | AM168: 1000
A169: Canadian Solar Inc. | B169: ELPS CS6P - 235MM | C169: 0.1460973966 | D169: 235 | E169: 37.2 | F169: 30.1 | G169: 8.34 | H169: 7.82 | I169: 5.838 | J169: -146.196 | K169: -118.293 | M169: 168 | O169: =IF($A169="","",COUNTIF($A$2:$A169,$A169)) -> 28 | P169: =IF($A169="","",$O169+thousand*VLOOKUP($A169,$A$1:Q169,17,FALSE)) -> 8028 | Q169: =IF(O169=1,MAX(Q$1:Q168)+1,"") ->  | R169: Canadian Solar Inc. | S169: ELPS CS6P - 235MM | T169: 168 | V169: 30168 | Y169: 30168 | AB169: 30168 | AE169: 30168 | AH169: 168 | AM169: 1000
A170: Canadian Solar Inc. | B170: CS6P - 240PT | C170: 0.1492058519 | D170: 240 | E170: 37 | F170: 29.9 | G170: 8.59 | H170: 8.03 | I170: 5.5835 | J170: -137.64 | K170: -111.228 | M170: 169 | O170: =IF($A170="","",COUNTIF($A$2:$A170,$A170)) -> 29 | P170: =IF($A170="","",$O170+thousand*VLOOKUP($A170,$A$1:Q170,17,FALSE)) -> 8029 | Q170: =IF(O170=1,MAX(Q$1:Q169)+1,"") ->  | R170: Canadian Solar Inc. | S170: CS6P - 240PT | T170: 169 | V170: 30169 | Y170: 30169 | AB170: 30169 | AE170: 30169 | AH170: 169 | AM170: 1000
A171: Canadian Solar Inc. | B171: ELPS CS6P - 240PM | C171: 0.1492058519 | D171: 240 | E171: 37 | F171: 29.9 | G171: 8.59 | H171: 8.03 | I171: 5.5835 | J171: -136.9 | K171: -110.63 | M171: 170 | O171: =IF($A171="","",COUNTIF($A$2:$A171,$A171)) -> 30 | P171: =IF($A171="","",$O171+thousand*VLOOKUP($A171,$A$1:Q171,17,FALSE)) -> 8030 | Q171: =IF(O171=1,MAX(Q$1:Q170)+1,"") ->  | R171: Canadian Solar Inc. | S171: ELPS CS6P - 240PM | T171: 170 | V171: 30170 | Y171: 30170 | AB171: 30170 | AE171: 30170 | AH171: 170 | AM171: 1000
A172: Canadian Solar Inc. | B172: CS6P - 240P | C172: 0.1492058519 | D172: 240 | E172: 37 | F172: 29.9 | G172: 8.59 | H172: 8.03 | I172: 5.5835 | J172: -119.14 | K172: -96.278 | M172: 171 | O172: =IF($A172="","",COUNTIF($A$2:$A172,$A172)) -> 31 | P172: =IF($A172="","",$O172+thousand*VLOOKUP($A172,$A$1:Q172,17,FALSE)) -> 8031 | Q172: =IF(O172=1,MAX(Q$1:Q171)+1,"") ->  | R172: Canadian Solar Inc. | S172: CS6P - 240P | T172: 171 | V172: 30171 | Y172: 30171 | AB172: 30171 | AE172: 30171 | AH172: 171 | AM172: 1000
A173: Canadian Solar Inc. | B173: ELPS CS6P - 240MM | C173: 0.1492058519 | D173: 240 | E173: 37.3 | F173: 30.2 | G173: 8.46 | H173: 7.95 | I173: 5.076 | J173: -143.978 | K173: -116.572 | M173: 172 | O173: =IF($A173="","",COUNTIF($A$2:$A173,$A173)) -> 32 | P173: =IF($A173="","",$O173+thousand*VLOOKUP($A173,$A$1:Q173,17,FALSE)) -> 8032 | Q173: =IF(O173=1,MAX(Q$1:Q172)+1,"") ->  | R173: Canadian Solar Inc. | S173: ELPS CS6P - 240MM | T173: 172 | V173: 30172 | Y173: 30172 | AB173: 30172 | AE173: 30172 | AH173: 172 | AM173: 1000
A174: Canadian Solar Inc. | B174: CS6P - 245PT | C174: 0.1523143071 | D174: 245 | E174: 37.1 | F174: 30 | G174: 8.74 | H174: 8.17 | I174: 5.681 | J174: -137.27 | K174: -111 | M174: 173 | O174: =IF($A174="","",COUNTIF($A$2:$A174,$A174)) -> 33 | P174: =IF($A174="","",$O174+thousand*VLOOKUP($A174,$A$1:Q174,17,FALSE)) -> 8033 | Q174: =IF(O174=1,MAX(Q$1:Q173)+1,"") ->  | R174: Canadian Solar Inc. | S174: CS6P - 245PT | T174: 173 | V174: 30173 | Y174: 30173 | AB174: 30173 | AE174: 30173 | AH174: 173 | AM174: 1000
A175: Canadian Solar Inc. | B175: ELPS CS6P - 245PM | C175: 0.1523143071 | D175: 245 | E175: 37.1 | F175: 30 | G175: 8.74 | H175: 8.17 | I175: 5.681 | J175: -137.27 | K175: -111 | M175: 174 | O175: =IF($A175="","",COUNTIF($A$2:$A175,$A175)) -> 34 | P175: =IF($A175="","",$O175+thousand*VLOOKUP($A175,$A$1:Q175,17,FALSE)) -> 8034 | Q175: =IF(O175=1,MAX(Q$1:Q174)+1,"") ->  | R175: Canadian Solar Inc. | S175: ELPS CS6P - 245PM | T175: 174 | V175: 30174 | Y175: 30174 | AB175: 30174 | AE175: 30174 | AH175: 174 | AM175: 1000
A176: Canadian Solar Inc. | B176: CS6P - 245P | C176: 0.1523143071 | D176: 245 | E176: 37.1 | F176: 30 | G176: 8.74 | H176: 8.17 | I176: 5.681 | J176: -119.091 | K176: -96.3 | M176: 175 | O176: =IF($A176="","",COUNTIF($A$2:$A176,$A176)) -> 35 | P176: =IF($A176="","",$O176+thousand*VLOOKUP($A176,$A$1:Q176,17,FALSE)) -> 8035 | Q176: =IF(O176=1,MAX(Q$1:Q175)+1,"") ->  | R176: Canadian Solar Inc. | S176: CS6P - 245P | T176: 175 | V176: 30175 | Y176: 30175 | AB176: 30175 | AE176: 30175 | AH176: 175 | AM176: 1000
A177: Canadian Solar Inc. | B177: ELPS CS6P - 245MM | C177: 0.1523143071 | D177: 245 | E177: 37.4 | F177: 30.3 | G177: 8.61 | H177: 8.09 | I177: 6.027 | J177: -147.73 | K177: -119.685 | M177: 176 | O177: =IF($A177="","",COUNTIF($A$2:$A177,$A177)) -> 36 | P177: =IF($A177="","",$O177+thousand*VLOOKUP($A177,$A$1:Q177,17,FALSE)) -> 8036 | Q177: =IF(O177=1,MAX(Q$1:Q176)+1,"") ->  | R177: Canadian Solar Inc. | S177: ELPS CS6P - 245MM | T177: 176 | V177: 30176 | Y177: 30176 | AB177: 30176 | AE177: 30176 | AH177: 176 | AM177: 1000
A178: Canadian Solar Inc. | B178: CS6K - 250P | C178: 0.1527370479 | D178: 250 | E178: 37.2 | F178: 30.1 | G178: 8.87 | H178: 8.3 | I178: 5.7655 | J178: -137.64 | K178: -111.37 | M178: 177 | O178: =IF($A178="","",COUNTIF($A$2:$A178,$A178)) -> 37 | P178: =IF($A178="","",$O178+thousand*VLOOKUP($A178,$A$1:Q178,17,FALSE)) -> 8037 | Q178: =IF(O178=1,MAX(Q$1:Q177)+1,"") ->  | R178: Canadian Solar Inc. | S178: CS6K - 250P | T178: 177 | V178: 30177 | Y178: 30177 | AB178: 30177 | AE178: 30177 | AH178: 177 | AM178: 1000
A179: Canadian Solar Inc. | B179: CS6P - 250PT | C179: 0.1554227623 | D179: 250 | E179: 37.2 | F179: 30.1 | G179: 8.87 | H179: 8.3 | I179: 5.322 | J179: -136.524 | K179: -110.467 | M179: 178 | O179: =IF($A179="","",COUNTIF($A$2:$A179,$A179)) -> 38 | P179: =IF($A179="","",$O179+thousand*VLOOKUP($A179,$A$1:Q179,17,FALSE)) -> 8038 | Q179: =IF(O179=1,MAX(Q$1:Q178)+1,"") ->  | R179: Canadian Solar Inc. | S179: CS6P - 250PT | T179: 178 | V179: 30178 | Y179: 30178 | AB179: 30178 | AE179: 30178 | AH179: 178 | AM179: 1000
A180: Canadian Solar Inc. | B180: ELPS CS6P - 250PM | C180: 0.1554227623 | D180: 250 | E180: 37.2 | F180: 30.1 | G180: 8.87 | H180: 8.3 | I180: 5.7655 | J180: -138.012 | K180: -111.671 | M180: 179 | O180: =IF($A180="","",COUNTIF($A$2:$A180,$A180)) -> 39 | P180: =IF($A180="","",$O180+thousand*VLOOKUP($A180,$A$1:Q180,17,FALSE)) -> 8039 | Q180: =IF(O180=1,MAX(Q$1:Q179)+1,"") ->  | R180: Canadian Solar Inc. | S180: ELPS CS6P - 250PM | T180: 179 | V180: 30179 | Y180: 30179 | AB180: 30179 | AE180: 30179 | AH180: 179 | AM180: 1000
A181: Canadian Solar Inc. | B181: CS6P - 250P | C181: 0.1554227623 | D181: 250 | E181: 37.2 | F181: 30.1 | G181: 8.87 | H181: 8.3 | I181: 5.7655 | J181: -119.784 | K181: -96.922 | M181: 180 | O181: =IF($A181="","",COUNTIF($A$2:$A181,$A181)) -> 40 | P181: =IF($A181="","",$O181+thousand*VLOOKUP($A181,$A$1:Q181,17,FALSE)) -> 8040 | Q181: =IF(O181=1,MAX(Q$1:Q180)+1,"") ->  | R181: Canadian Solar Inc. | S181: CS6P - 250P | T181: 180 | V181: 30180 | Y181: 30180 | AB181: 30180 | AE181: 30180 | AH181: 180 | AM181: 1000
A182: Canadian Solar Inc. | B182: ELPS CS6P - 250MM | C182: 0.1554227623 | D182: 250 | E182: 37.5 | F182: 30.4 | G182: 8.74 | H182: 8.22 | I182: 6.118 | J182: -148.5 | K182: -120.384 | M182: 181 | O182: =IF($A182="","",COUNTIF($A$2:$A182,$A182)) -> 41 | P182: =IF($A182="","",$O182+thousand*VLOOKUP($A182,$A$1:Q182,17,FALSE)) -> 8041 | Q182: =IF(O182=1,MAX(Q$1:Q181)+1,"") ->  | R182: Canadian Solar Inc. | S182: ELPS CS6P - 250MM | T182: 181 | V182: 30181 | Y182: 30181 | AB182: 30181 | AE182: 30181 | AH182: 181 | AM182: 1000
A183: Canadian Solar Inc. | B183: CS6K - 255P | C183: 0.1557917889 | D183: 255 | E183: 37.4 | F183: 30.2 | G183: 9 | H183: 8.43 | I183: 5.85 | J183: -138.38 | K183: -111.74 | M183: 182 | O183: =IF($A183="","",COUNTIF($A$2:$A183,$A183)) -> 42 | P183: =IF($A183="","",$O183+thousand*VLOOKUP($A183,$A$1:Q183,17,FALSE)) -> 8042 | Q183: =IF(O183=1,MAX(Q$1:Q182)+1,"") ->  | R183: Canadian Solar Inc. | S183: CS6K - 255P | T183: 182 | V183: 30182 | Y183: 30182 | AB183: 30182 | AE183: 30182 | AH183: 182 | AM183: 1000
A184: Canadian Solar Inc. | B184: CS6P - 255PT | C184: 0.1585312176 | D184: 255 | E184: 37.4 | F184: 30.2 | G184: 9 | H184: 8.43 | I184: 6.3 | J184: -140.25 | K184: -113.25 | M184: 183 | O184: =IF($A184="","",COUNTIF($A$2:$A184,$A184)) -> 43 | P184: =IF($A184="","",$O184+thousand*VLOOKUP($A184,$A$1:Q184,17,FALSE)) -> 8043 | Q184: =IF(O184=1,MAX(Q$1:Q183)+1,"") ->  | R184: Canadian Solar Inc. | S184: CS6P - 255PT | T184: 183 | V184: 30183 | Y184: 30183 | AB184: 30183 | AE184: 30183 | AH184: 183 | AM184: 1000
A185: Canadian Solar Inc. | B185: ELPS CS6P - 255PM | C185: 0.1585312176 | D185: 255 | E185: 37.4 | F185: 30.2 | G185: 9 | H185: 8.43 | I185: 6.3 | J185: -130.526 | K185: -105.398 | M185: 184 | O185: =IF($A185="","",COUNTIF($A$2:$A185,$A185)) -> 44 | P185: =IF($A185="","",$O185+thousand*VLOOKUP($A185,$A$1:Q185,17,FALSE)) -> 8044 | Q185: =IF(O185=1,MAX(Q$1:Q184)+1,"") ->  | R185: Canadian Solar Inc. | S185: ELPS CS6P - 255PM | T185: 184 | V185: 30184 | Y185: 30184 | AB185: 30184 | AE185: 30184 | AH185: 184 | AM185: 1000
A186: Canadian Solar Inc. | B186: CS5P - 255M | C186: 0.1500245334 | D186: 255 | E186: 59.8 | F186: 49 | G186: 5.55 | H186: 5.21 | I186: 3.2745 | J186: -234.416 | K186: -192.08 | M186: 185 | O186: =IF($A186="","",COUNTIF($A$2:$A186,$A186)) -> 45 | P186: =IF($A186="","",$O186+thousand*VLOOKUP($A186,$A$1:Q186,17,FALSE)) -> 8045 | Q186: =IF(O186=1,MAX(Q$1:Q185)+1,"") ->  | R186: Canadian Solar Inc. | S186: CS5P - 255M | T186: 185 | V186: 30185 | Y186: 30185 | AB186: 30185 | AE186: 30185 | AH186: 185 | AM186: 1000
A187: Canadian Solar Inc. | B187: ELPS CS6P - 255MM | C187: 0.1585312176 | D187: 255 | E187: 37.7 | F187: 30.5 | G187: 8.87 | H187: 8.35 | I187: 6.209 | J187: -149.292 | K187: -120.78 | M187: 186 | O187: =IF($A187="","",COUNTIF($A$2:$A187,$A187)) -> 46 | P187: =IF($A187="","",$O187+thousand*VLOOKUP($A187,$A$1:Q187,17,FALSE)) -> 8046 | Q187: =IF(O187=1,MAX(Q$1:Q186)+1,"") ->  | R187: Canadian Solar Inc. | S187: ELPS CS6P - 255MM | T187: 186 | V187: 30186 | Y187: 30186 | AB187: 30186 | AE187: 30186 | AH187: 186 | AM187: 1000
A188: Canadian Solar Inc. | B188: CS6K - 260P | C188: 0.1588465298 | D188: 260 | E188: 37.5 | F188: 30.4 | G188: 9.12 | H188: 8.56 | I188: 5.928 | J188: -138.75 | K188: -112.48 | M188: 187 | O188: =IF($A188="","",COUNTIF($A$2:$A188,$A188)) -> 47 | P188: =IF($A188="","",$O188+thousand*VLOOKUP($A188,$A$1:Q188,17,FALSE)) -> 8047 | Q188: =IF(O188=1,MAX(Q$1:Q187)+1,"") ->  | R188: Canadian Solar Inc. | S188: CS6K - 260P | T188: 187 | V188: 30187 | Y188: 30187 | AB188: 30187 | AE188: 30187 | AH188: 187 | AM188: 1000
A189: Canadian Solar Inc. | B189: CS6P - 260PT | C189: 0.1616396728 | D189: 260 | E189: 37.5 | F189: 30.4 | G189: 9.12 | H189: 8.56 | I189: 6.2928 | J189: -141.75 | K189: -114.912 | M189: 188 | O189: =IF($A189="","",COUNTIF($A$2:$A189,$A189)) -> 48 | P189: =IF($A189="","",$O189+thousand*VLOOKUP($A189,$A$1:Q189,17,FALSE)) -> 8048 | Q189: =IF(O189=1,MAX(Q$1:Q188)+1,"") ->  | R189: Canadian Solar Inc. | S189: CS6P - 260PT | T189: 188 | V189: 30188 | Y189: 30188 | AB189: 30188 | AE189: 30188 | AH189: 188 | AM189: 1000
A190: Canadian Solar Inc. | B190: ELPS CS6P - 260PM | C190: 0.1616396728 | D190: 260 | E190: 37.5 | F190: 30.4 | G190: 9.12 | H190: 8.56 | I190: 6.2928 | J190: -132.75 | K190: -107.616 | M190: 189 | O190: =IF($A190="","",COUNTIF($A$2:$A190,$A190)) -> 49 | P190: =IF($A190="","",$O190+thousand*VLOOKUP($A190,$A$1:Q190,17,FALSE)) -> 8049 | Q190: =IF(O190=1,MAX(Q$1:Q189)+1,"") ->  | R190: Canadian Solar Inc. | S190: ELPS CS6P - 260PM | T190: 189 | V190: 30189 | Y190: 30189 | AB190: 30189 | AE190: 30189 | AH190: 189 | AM190: 1000
A191: Canadian Solar Inc. | B191: CS5P - 260M | C191: 0.1529661909 | D191: 260 | E191: 60 | F191: 49.3 | G191: 5.62 | H191: 5.27 | I191: 3.3158 | J191: -234.6 | K191: -192.763 | M191: 190 | O191: =IF($A191="","",COUNTIF($A$2:$A191,$A191)) -> 50 | P191: =IF($A191="","",$O191+thousand*VLOOKUP($A191,$A$1:Q191,17,FALSE)) -> 8050 | Q191: =IF(O191=1,MAX(Q$1:Q190)+1,"") ->  | R191: Canadian Solar Inc. | S191: CS5P - 260M | T191: 190 | V191: 30190 | Y191: 30190 | AB191: 30190 | AE191: 30190 | AH191: 190 | AM191: 1000
A192: Canadian Solar Inc. | B192: ELPS CS6P - 260MM | C192: 0.1616396728 | D192: 260 | E192: 37.8 | F192: 30.7 | G192: 8.99 | H192: 8.48 | I192: 6.293 | J192: -150.822 | K192: -122.493 | M192: 191 | O192: =IF($A192="","",COUNTIF($A$2:$A192,$A192)) -> 51 | P192: =IF($A192="","",$O192+thousand*VLOOKUP($A192,$A$1:Q192,17,FALSE)) -> 8051 | Q192: =IF(O192=1,MAX(Q$1:Q191)+1,"") ->  | R192: Canadian Solar Inc. | S192: ELPS CS6P - 260MM | T192: 191 | V192: 30191 | Y192: 30191 | AB192: 30191 | AE192: 30191 | AH192: 191 | AM192: 1000
A193: Canadian Solar Inc. | B193: CS6P - 265P | C193: 0.1647481281 | D193: 265 | E193: 37.7 | F193: 30.6 | G193: 9.1 | H193: 8.66 | I193: 5.915 | J193: -139.49 | K193: -113.22 | M193: 192 | O193: =IF($A193="","",COUNTIF($A$2:$A193,$A193)) -> 52 | P193: =IF($A193="","",$O193+thousand*VLOOKUP($A193,$A$1:Q193,17,FALSE)) -> 8052 | Q193: =IF(O193=1,MAX(Q$1:Q192)+1,"") ->  | R193: Canadian Solar Inc. | S193: CS6P - 265P | T193: 192 | V193: 30192 | Y193: 30192 | AB193: 30192 | AE193: 30192 | AH193: 192 | AM193: 1000
A194: Canadian Solar Inc. | B194: CS6P - 265M | C194: 0.1647481281 | D194: 265 | E194: 37.9 | F194: 30.9 | G194: 9.11 | H194: 8.61 | I194: 6.377 | J194: -151.221 | K194: -123.291 | M194: 193 | N194: =IF(M194>MAX(Q$2:Q$7985),"",VLOOKUP(M194,Q$2:R$7985,2,FALSE)) ->  | O194: =IF($A194="","",COUNTIF($A$2:$A194,$A194)) -> 53 | P194: =IF($A194="","",$O194+thousand*VLOOKUP($A194,$A$1:Q194,17,FALSE)) -> 8053 | Q194: =IF(O194=1,MAX(Q$1:Q193)+1,"") ->  | R194: Canadian Solar Inc. | S194: CS6P - 265M | T194: 193 | V194: =V$1*thousand+$M194 -> 30193 | W194: =IF(COUNTIF($P$2:$P$7985,V194)>0,VLOOKUP(V194,$P$2:$S$7985,4,FALSE),"") ->  | X194: =IF(W194="","",VLOOKUP(V194,$P$2:$T$7985,5,FALSE)) ->  | Y194: =Y$1*thousand+$M194 -> 30193 | Z194: =IF(COUNTIF($P$2:$P$7985,Y194)>0,VLOOKUP(Y194,$P$2:$S$7985,4,FALSE),"") ->  | AA194: =IF(Z194="","",VLOOKUP(Y194,$P$2:$T$7985,5,FALSE)) ->  | AB194: =AB$1*thousand+$M194 -> 30193 | AC194: =IF(COUNTIF($P$2:$P$7985,AB194)>0,VLOOKUP(AB194,$P$2:$S$7985,4,FALSE),"") ->  | AD194: =IF(AC194="","",VLOOKUP(AB194,$P$2:$T$7985,5,FALSE)) ->  | AE194: =AE$1*thousand+$M194 -> 30193 | AF194: =IF(COUNTIF($P$2:$P$7985,AE194)>0,VLOOKUP(AE194,$P$2:$S$7985,4,FALSE),"") ->  | AG194: =IF(AF194="","",VLOOKUP(AE194,$P$2:$T$7985,5,FALSE)) ->  | AH194: =AH$1*thousand+$M194 -> 193 | AJ194: =IF(AI194="","",VLOOKUP(AH194,$P$2:$T$7985,5,FALSE)) ->  | AM194: 1000
A195: Canadian Solar Inc. | B195: ELPS CS6P - 265MM | C195: 0.1647481281 | D195: 265 | E195: 37.9 | F195: 30.8 | G195: 9.12 | H195: 8.61 | I195: 6.384 | J195: -149.705 | K195: =F195/E195*J195 -> -121.66 | M195: 194 | O195: =IF($A195="","",COUNTIF($A$2:$A195,$A195)) -> 54 | P195: =IF($A195="","",$O195+thousand*VLOOKUP($A195,$A$1:Q195,17,FALSE)) -> 8054 | Q195: =IF(O195=1,MAX(Q$1:Q194)+1,"") ->  | R195: =IF(A195="","",A195) -> Canadian Solar Inc. | S195: =IF(B195="","",B195) -> ELPS CS6P - 265MM | T195: =$M195 -> 194 | V195: 30194 | Y195: 30194 | AB195: 30194 | AE195: 30194 | AH195: 194 | AI195: =IF(COUNTIF($P$2:$P$7985,AH195)>0,VLOOKUP(AH195,$P$2:$S$7985,4,FALSE),"") ->  | AM195: 1000
A196: Canadian Solar Inc. | B196: CS6P - 270P | C196: 0.1678565833 | D196: 270 | E196: 37.9 | F196: 30.8 | G196: 9.32 | H196: 8.75 | I196: 6.058 | J196: -140.23 | K196: -113.96 | M196: 195 | O196: =IF($A196="","",COUNTIF($A$2:$A196,$A196)) -> 55 | P196: =IF($A196="","",$O196+thousand*VLOOKUP($A196,$A$1:Q196,17,FALSE)) -> 8055 | Q196: =IF(O196=1,MAX(Q$1:Q195)+1,"") ->  | R196: Canadian Solar Inc. | S196: CS6P - 270P | T196: 195 | V196: 30195 | Y196: 30195 | AB196: 30195 | AE196: 30195 | AH196: 195 | AM196: 1000
A197: Canadian Solar Inc. | B197: CS6P - 270M | C197: 0.1678565833 | D197: 270 | E197: 38.2 | F197: 31.1 | G197: 9.19 | H197: 8.67 | I197: 6.433 | J197: -152.418 | K197: -124.089 | M197: 196 | O197: =IF($A197="","",COUNTIF($A$2:$A197,$A197)) -> 56 | P197: =IF($A197="","",$O197+thousand*VLOOKUP($A197,$A$1:Q197,17,FALSE)) -> 8056 | Q197: =IF(O197=1,MAX(Q$1:Q196)+1,"") ->  | R197: Canadian Solar Inc. | S197: CS6P - 270M | T197: 196 | V197: 30196 | Y197: 30196 | AB197: 30196 | AE197: 30196 | AH197: 196 | AM197: 1000
A198: Canadian Solar Inc. | B198: ELPS CS6P - 270MM | C198: 0.1678565833 | D198: 270 | E198: 38 | F198: 30.9 | G198: 9.25 | H198: 8.74 | I198: 6.475 | J198: -150.1 | K198: -122.055 | M198: 197 | O198: =IF($A198="","",COUNTIF($A$2:$A198,$A198)) -> 57 | P198: =IF($A198="","",$O198+thousand*VLOOKUP($A198,$A$1:Q198,17,FALSE)) -> 8057 | Q198: =IF(O198=1,MAX(Q$1:Q197)+1,"") ->  | R198: Canadian Solar Inc. | S198: ELPS CS6P - 270MM | T198: 197 | V198: 30197 | Y198: 30197 | AB198: 30197 | AE198: 30197 | AH198: 197 | AM198: 1000
A199: Canadian Solar Inc. | B199: CS6X - 290P | C199: 0.1511339213 | D199: 290 | E199: 44.4 | F199: 35.9 | G199: 8.64 | H199: 8.08 | I199: 5.616 | J199: -163.392 | K199: -132.112 | M199: 198 | O199: =IF($A199="","",COUNTIF($A$2:$A199,$A199)) -> 58 | P199: =IF($A199="","",$O199+thousand*VLOOKUP($A199,$A$1:Q199,17,FALSE)) -> 8058 | Q199: =IF(O199=1,MAX(Q$1:Q198)+1,"") ->  | R199: Canadian Solar Inc. | S199: CS6X - 290P | T199: 198 | V199: 30198 | Y199: 30198 | AB199: 30198 | AE199: 30198 | AH199: 198 | AM199: 1000
A200: Canadian Solar Inc. | B200: CS6X - 295P | C200: 0.1537396786 | D200: 295 | E200: 44.5 | F200: 36 | G200: 8.76 | H200: 8.19 | I200: 5.694 | J200: -164.205 | K200: -132.84 | M200: 199 | O200: =IF($A200="","",COUNTIF($A$2:$A200,$A200)) -> 59 | P200: =IF($A200="","",$O200+thousand*VLOOKUP($A200,$A$1:Q200,17,FALSE)) -> 8059 | Q200: =IF(O200=1,MAX(Q$1:Q199)+1,"") ->  | R200: Canadian Solar Inc. | S200: CS6X - 295P | T200: 199 | V200: 30199 | Y200: 30199 | AB200: 30199 | AE200: 30199 | AH200: 199 | AM200: 1000
... 2024 more rows

Sheet Inverter
A1: 12 | B1: max.DC input (W) | C1: max.input voltage (V) | D1: max.input current per mppt (A) | E1: min.MPP voltage range (V) | F1: max.MPP voltage range (V) | G1: operating voltage range | H1: rated voltage | I1: inputes num. | J1: mpp tracker num. | K1: AC output power | L1: max power | M1: max.output current | N1: max.eff | O1: euro.eff | P1: 工作温度 | Q1: 输出电压 | R1: 每路并联数 | S1: MPPT路数 | T1: 输出频率
A2: SUN2000-8KTL | B2: 9100 | C2: 1000 | D2: 18 | E2: 320 | F2: 800 | G2: 250-850 | H2: 620 | I2: 4 | J2: 2 | K2: 8800 | L2: =K2*1 -> 8800 | M2: 12.8 | N2: 0.985 | O2: 0.98 | P2: -25℃~+60℃ | Q2: 3×230/400V | R2: 2 | S2: =INDEX(R2:R15,A1,1) -> 2 | T2: 50/60
A3: SUN2000-12KTL | B3: 13700 | C3: 1000 | D3: 18 | E3: 380 | F3: 800 | G3: 250-850 | H3: 620 | I3: 4 | J3: 2 | K3: 13200 | L3: =K3*1 -> 13200 | M3: 19.2 | N3: 0.985 | O3: 0.98 | P3: -25℃~+60℃ | Q3: 3×230/400V | R3: 2 | T3: 50/60
A4: SUN2000-17KTL | B4: 19200 | C4: 1000 | D4: 18 | E4: 400 | F4: 800 | G4: 250-850 | H4: 620 | I4: 6 | J4: 3 | K4: 18700 | L4: 18700 | M4: 27.2 | N4: 0.986 | O4: 0.983 | P4: -25℃~+60℃ | Q4: 3×230/400V | R4: 2 | T4: 50/60
A5: SUN2000-20KTL | B5: 22500 | C5: 1000 | D5: 18 | E5: 480 | F5: 800 | G5: 250-850 | H5: 620 | I5: 6 | J5: 3 | K5: 22000 | L5: 22000 | M5: 32 | N5: 0.986 | O5: 0.983 | P5: -25℃~+60℃ | Q5: 3×230/400V | R5: 2 | T5: 50/60
A6: SUN2000-23KTL | B6: 23600 | C6: 1000 | D6: 18 | E6: 480 | F6: 800 | G6: 250-850 | H6: 620 | I6: 6 | J6: 3 | K6: 23000 | L6: 23000 | M6: 33.5 | N6: 0.986 | O6: 0.983 | P6: -25℃~+60℃ | Q6: 3×230/400V | R6: 2 | T6: 50/60
A7: SUN2000-28KTL | B7: 28200 | C7: 1000 | D7: 18 | E7: 480 | F7: 800 | G7: 250-850 | H7: 620 | I7: 6 | J7: 3 | K7: 27500 | L7: =K7*1 -> 27500 | M7: 33.5 | N7: 0.987 | O7: 0.984 | P7: -25℃~+60℃ | Q7: 3×277/480V | R7: 2 | T7: 50/60
A8: SUN2000-33KTL | B8: 33800 | C8: 1000 | D8: 23 | E8: 480 | F8: 850 | G8: 200-980 | H8: 620 | I8: 6 | J8: 3 | K8: 30000 | L8: 33000 | M8: 48 | N8: 0.986 | O8: 0.983 | P8: -25℃~+60℃ | Q8: 3×230/400V | R8: 2 | T8: 50/60
A9: SUN2000-40KTL | B9: 40800 | C9: 1000 | D9: 23 | E9: 580 | F9: 850 | G9: 250-850 | H9: 620 | I9: 6 | J9: 3 | K9: 40000 | L9: 40000 | M9: 48 | N9: 0.988 | O9: 0.984 | P9: -25℃~+60℃ | Q9: 3×277/480V | R9: 2 | T9: 50/60
A10: SUN2000-22KTL-US | B10: =K10+700 -> 22900 | C10: 1000 | D10: 25 | E10: 560 | F10: 850 | G10: 200-950 | H10: 730 | I10: 6 | J10: 3 | K10: 22200 | L10: 22200 | M10: 29.4 | N10: 0.986 | O10: 0.98 | P10: -25℃~+60℃ | Q10: 3×277/480V | R10: 2 | T10: 60
A11: SUN2000-25KTL-US | B11: =K11+800 -> 25800 | C11: 1000 | D11: 25 | E11: 560 | F11: 850 | G11: 200-950 | H11: 730 | I11: 6 | J11: 3 | K11: 25000 | L11: 25000 | M11: 33 | N11: 0.986 | O11: 0.98 | P11: -25℃~+60℃ | Q11: 3×277/480V | R11: 2 | T11: 60
A12: SUN2000-30KTL-US | B12: =K12+800 -> 30800 | C12: 1000 | D12: 25 | E12: 560 | F12: 850 | G12: 200-950 | H12: 730 | I12: 6 | J12: 3 | K12: 30000 | L12: 30000 | M12: 40 | N12: 0.986 | O12: 0.98 | P12: -25℃~+60℃ | Q12: 3×277/480V | R12: 2 | T12: 60
A13: SUN2000-33KTL-A | B13: 30600 | C13: 1100 | D13: 22 | E13: 480 | F13: 800 | G13: 200-1000 | H13: 620 | I13: 8 | J13: 4 | K13: 30000 | L13: 33000 | M13: 48 | N13: 0.986 | O13: 0.984 | P13: -25℃~+60℃ | Q13: 3×230/400V | R13: 2 | T13: 50/60
A14: SUN2000-36KTL | B14: 40800 | C14: 1100 | D14: 22 | E14: 480 | F14: 850 | G14: 200-1000 | H14: 620 | I14: 8 | J14: 4 | K14: 36000 | L14: 40000 | M14: 60.8 | N14: 0.986 | O14: 0.983 | P14: -25℃~+60℃ | Q14: 3×230/400V | R14: 2 | T14: 50/60
A15: SUN2000-42KTL | B15: 47900 | C15: 1100 | D15: 22 | E15: 580 | F15: 850 | G15: 200-1000 | H15: 720 | I15: 8 | J15: 4 | K15: 42000 | L15: 47000 | M15: 56.6 | N15: 0.988 | O15: 0.984 | P15: -25℃~+60℃ | Q15: 3×277/480V | R15: 2 | T15: 50/60
A16: ="" -> 
A17: ="" -> 
A18: ="" -> 
A19: ="" -> 
A20: ="" -> 
A21: ="" -> 
A22: ="" -> 
A23: ="" -> 
A24: ="" -> 
A25: ="" -> 
A26: ="" -> 
A27: ="" -> 
A28: ="" -> 
A29: ="" -> 
A30: ="" -> 
A31: ="" -> 
A32: ="" -> 
A33: ="" -> 
A34: ="" -> 
A35: ="" -> 
A36: ="" -> 
A37: ="" -> 
A38: ="" -> 
A39: ="" -> 

Sheet GeoMet (hidden)
D1: 1 | E1: 2 | F1: 3 | G1: 4 | H1: 5 | I1: 6 | J1: 7 | K1: 8 | L1: 9 | M1: 10 | N1: 11 | O1: 12 | P1: 13 | Q1: 14 | R1: 15 | S1: 16 | T1: 17 | U1: 18 | V1: 19 | W1: 20 | X1: 21 | Y1: 22 | Z1: 23 | AA1: 24 | AB1: 25 | AC1: 26 | AD1: 27 | AE1: 28 | AF1: 29 | AG1: 30 | AH1: 31 | AI1: 32 | AJ1: 33 | AK1: 34 | AL1: 35 | AM1: 36 | AN1: 37 | AO1: 38 | AP1: 39 | AQ1: 40 | AR1: 41 | AS1: 42 | AT1: 43 | AU1: 44 | AV1: 45 | AW1: 46 | AX1: 47 | AY1: 48 | AZ1: 49 | BA1: 50 | BB1: 51 | BC1: 52 | BD1: 53 | BE1: 54 | BF1: 55 | BH1: 70 | BU1: 11 | BV1: 328
G2: Global Horizon | T2: Diffuse | AG2: Temerature | AT2: Wind velocity | BH2: -1 | BU2: =MATCH(INDEX(GeoMet!$BU$4:$BU$348,GeoMet!BU3),GeoMet!$BO$4:$BO$940,0) -> 39
A3: Region | B3: Country | C3: City | D3: Latitude | E3: Longitude | F3: Altitude | G3: Jan | H3: Feb | I3: Mar | J3: Apr | K3: May | L3: June | M3: July | N3: Aug | O3: Sep | P3: Oct | Q3: Nov | R3: Dec | S3: Year | T3: Jan | U3: Feb | V3: Mar | W3: Apr | X3: May | Y3: June | Z3: July | AA3: Aug | AB3: Sep | AC3: Oct | AD3: Nov | AE3: Dec | AF3: Year | AG3: Jan | AH3: Feb | AI3: Mar | AJ3: Apr | AK3: May | AL3: June | AM3: July | AN3: Aug | AO3: Sep | AP3: Oct | AQ3: Nov | AR3: Dec | AS3: Year | AT3: Jan | AU3: Feb | AV3: Mar | AW3: Apr | AX3: May | AY3: June | AZ3: July | BA3: Aug | BB3: Sep | BC3: Oct | BD3: Nov | BE3: Dec | BF3: Year | BH3: 0 | BS3: 1 | BU3: 1
A4: Asia | B4: Afghanistan | C4: Kabul | D4: 34.52 | E4: 69.35 | F4: 1797 | G4: 95 | H4: 115 | I4: 151 | J4: 177 | K4: 211 | L4: 216 | M4: 197 | N4: 188 | O4: 174 | P4: 146 | Q4: 107 | R4: 95 | S4: 1872 | T4: 34 | U4: 37 | V4: 55 | W4: 63 | X4: 70 | Y4: 70 | Z4: 75 | AA4: 68 | AB4: 51 | AC4: 42 | AD4: 32 | AE4: 28 | AF4: 625 | AG4: -1 | AH4: 0.7 | AI4: 7.3 | AJ4: 13.9 | AK4: 17.9 | AL4: 22.8 | AM4: 25.6 | AN4: 24.4 | AO4: 20.6 | AP4: 13.9 | AQ4: 7.8 | AR4: 2.2 | AS4: 13.01 | AT4: 2.1 | AU4: 2.6 | AV4: 2.1 | AW4: 3.6 | AX4: 4.6 | AY4: 6.2 | AZ4: 5.7 | BA4: 5.1 | BB4: 4.1 | BC4: 3.6 | BD4: 2.1 | BE4: 2.1 | BF4: 3.66 | BH4: 1 | BI4: =IF(BH4>MAX(BK$4:BK$940),"",VLOOKUP(BH4,BK$4:BL$940,2,FALSE)) -> Afghanistan | BK4: =BM4 -> 1 | BL4: =IF(B4="","",B4) -> Afghanistan | BM4: =IF(BN4>1,"",MAX(BM$3:BM3)+1) -> 1 | BN4: =IF(BL4="","",COUNTIF(BL$4:BL4,BL4)) -> 1 | BO4: =IF(BL4="","",thousand*VLOOKUP(BL4,BL$4:BM$940,2,FALSE)+BN4) -> 1001 | BP4: =IF(C4="","",C4) -> Kabul | BS4: =country*thousand+BH4 -> 70001 | BT4: =IF(COUNTIF(BO$4:BO$940,BS4)>0,VLOOKUP(BS4,BO$4:BP$940,2,FALSE),"") -> Manila/Naia | BU4: =BU$1*thousand+BH4 -> 11001 | BV4: =IF(COUNTIF(BO$4:BO$940,BU4)>0,VLOOKUP(BU4,BO$4:BP$940,2,FALSE),"") -> La Paz
A5: Africa | B5: Algeria | C5: Alger | D5: 36.34 | E5: 2.57 | F5: 5 | G5: 65 | H5: 85 | I5: 127 | J5: 161 | K5: 196 | L5: 204 | M5: 227 | N5: 193 | O5: 153 | P5: 107 | Q5: 71 | R5: 65 | S5: 1654 | T5: 33 | U5: 38 | V5: 53 | W5: 61 | X5: 68 | Y5: 66 | Z5: 59 | AA5: 60 | AB5: 51 | AC5: 45 | AD5: 33 | AE5: 29 | AF5: 596 | AG5: 12.4 | AH5: 13.1 | AI5: 12.9 | AJ5: 14 | AK5: 17.2 | AL5: 21.1 | AM5: 24.7 | AN5: 25.6 | AO5: 23.8 | AP5: 20.1 | AQ5: 16.4 | AR5: 14 | AS5: 17.94 | AT5: 4.1 | AU5: 6.2 | AV5: 5.7 | AW5: 5.7 | AX5: 5.1 | AY5: 5.7 | AZ5: 6.2 | BA5: 5.1 | BB5: 5.1 | BC5: 5.7 | BD5: 5.7 | BE5: 6.2 | BF5: 5.54 | BH5: 2 | BI5: Algeria | BK5: =BM5 -> 2 | BL5: =IF(B5="","",B5) -> Algeria | BM5: =IF(BN5>1,"",MAX(BM$3:BM4)+1) -> 2 | BN5: =IF(BL5="","",COUNTIF(BL$4:BL5,BL5)) -> 1 | BO5: 2001 | BP5: =IF(C5="","",C5) -> Alger | BS5: 70002 | BT5: Calapan/Mindoro | BU5: 11002
A6: Africa | B6: Algeria | C6: Tamanrasset | D6: 22.47 | E6: 5.31 | F6: 1377 | G6: 164 | H6: 177 | I6: 217 | J6: 223 | K6: 225 | L6: 234 | M6: 236 | N6: 219 | O6: 193 | P6: 187 | Q6: 148 | R6: 142 | S6: 2365 | T6: 34 | U6: 32 | V6: 47 | W6: 54 | X6: 65 | Y6: 58 | Z6: 61 | AA6: 62 | AB6: 56 | AC6: 46 | AD6: 42 | AE6: 38 | AF6: 595 | AG6: 11.8 | AH6: 13.8 | AI6: 17.4 | AJ6: 21.8 | AK6: 25.4 | AL6: 28.1 | AM6: 28.4 | AN6: 27.9 | AO6: 25.9 | AP6: 22.3 | AQ6: 18.2 | AR6: 13.8 | AS6: 21.23 | AT6: 3.9 | AU6: 4.2 | AV6: 4.4 | AW6: 4.5 | AX6: 4.4 | AY6: 4.5 | AZ6: 4.2 | BA6: 4.1 | BB6: 3.9 | BC6: 3.9 | BD6: 3.8 | BE6: 3.8 | BF6: 4.13 | BH6: 3 | BI6: Angola | BL6: Algeria | BM6: =IF(BN6>1,"",MAX(BM$3:BM5)+1) ->  | BN6: =IF(BL6="","",COUNTIF(BL$4:BL6,BL6)) -> 2 | BO6: 2002 | BP6: Tamanrasset | BS6: 70003 | BU6: 11003
A7: Africa | B7: Angola | C7: Luanda | D7: -9.14 | E7: 13.24 | F7: 5 | G7: 160 | H7: 148 | I7: 169 | J7: 157 | K7: 153 | L7: 132 | M7: 134 | N7: 138 | O7: 151 | P7: 158 | Q7: 160 | R7: 160 | S7: 1820 | T7: 77 | U7: 69 | V7: 72 | W7: 63 | X7: 57 | Y7: 54 | Z7: 58 | AA7: 65 | AB7: 68 | AC7: 75 | AD7: 74 | AE7: 77 | AF7: 809 | AG7: 28.7 | AH7: 28.5 | AI7: 28.2 | AJ7: 27.5 | AK7: 26.1 | AL7: 23.7 | AM7: 23.6 | AN7: 26 | AO7: 28.9 | AP7: 29.6 | AQ7: 29.1 | AR7: 28.9 | AS7: 27.4 | AT7: 2.1 | AU7: 2.1 | AV7: 2.1 | AW7: 2.1 | AX7: 2.1 | AY7: 2.1 | AZ7: 2.1 | BA7: 2.1 | BB7: 2.1 | BC7: 2.1 | BD7: 2.1 | BE7: 2.1 | BF7: 2.1 | BH7: 4 | BI7: Argentina | BK7: 3 | BL7: Angola | BM7: =IF(BN7>1,"",MAX(BM$3:BM6)+1) -> 3 | BN7: =IF(BL7="","",COUNTIF(BL$4:BL7,BL7)) -> 1 | BO7: 3001 | BP7: Luanda | BS7: 70004 | BU7: 11004
A8: South_America | B8: Argentina | C8: Buenos Aires | D8: -34.45 | E8: -58.24 | F8: 5 | G8: 220 | H8: 181 | I8: 160 | J8: 113 | K8: 85 | L8: 65 | M8: 71 | N8: 99 | O8: 128 | P8: 164 | Q8: 202 | R8: 216 | S8: 1704 | T8: 80 | U8: 64 | V8: 61 | W8: 46 | X8: 36 | Y8: 31 | Z8: 34 | AA8: 43 | AB8: 55 | AC8: 71 | AD8: 76 | AE8: 84 | AF8: 681 | AG8: 22.4 | AH8: 22 | AI8: 21.1 | AJ8: 17.9 | AK8: 14.8 | AL8: 12.5 | AM8: 11.7 | AN8: 12.7 | AO8: 13 | AP8: 15.1 | AQ8: 17.6 | AR8: 20.5 | AS8: 16.78 | AT8: 4.1 | AU8: 4.1 | AV8: 3.6 | AW8: 3.1 | AX8: 3.1 | AY8: 3.6 | AZ8: 3.6 | BA8: 3.6 | BB8: 4.6 | BC8: 4.1 | BD8: 4.1 | BE8: 4.1 | BF8: 3.81 | BH8: 5 | BI8: Australia | BK8: 4 | BL8: Argentina | BM8: =IF(BN8>1,"",MAX(BM$3:BM7)+1) -> 4 | BN8: =IF(BL8="","",COUNTIF(BL$4:BL8,BL8)) -> 1 | BO8: 4001 | BP8: Buenos Aires | BS8: 70005 | BU8: 11005
A9: Australia | B9: Australia | C9: Adelaide | D9: -34.52 | E9: 139.09 | F9: 5 | G9: 238 | H9: 181 | I9: 164 | J9: 114 | K9: 77 | L9: 63 | M9: 75 | N9: 97 | O9: 140 | P9: 175 | Q9: 203 | R9: 230 | S9: 1757 | T9: 63 | U9: 56 | V9: 52 | W9: 41 | X9: 34 | Y9: 28 | Z9: 31 | AA9: 39 | AB9: 47 | AC9: 62 | AD9: 66 | AE9: 71 | AF9: 590 | AG9: 22.3 | AH9: 22.1 | AI9: 19.9 | AJ9: 16.2 | AK9: 12.9 | AL9: 10.9 | AM9: 10 | AN9: 11.2 | AO9: 13.5 | AP9: 15.7 | AQ9: 18.1 | AR9: 20.7 | AS9: 16.13 | AT9: 5.1 | AU9: 5.1 | AV9: 6.7 | AW9: 6.7 | AX9: 6.7 | AY9: 6.7 | AZ9: 7.2 | BA9: 7.2 | BB9: 7.2 | BC9: 7.2 | BD9: 5.1 | BE9: 4.6 | BF9: 6.29 | BH9: 6 | BI9: Austria | BK9: 5 | BL9: Australia | BM9: =IF(BN9>1,"",MAX(BM$3:BM8)+1) -> 5 | BN9: =IF(BL9="","",COUNTIF(BL$4:BL9,BL9)) -> 1 | BO9: 5001 | BP9: Adelaide | BS9: 70006 | BU9: 11006
A10: Australia | B10: Australia | C10: Brisbane | D10: -27.51 | E10: 153.21 | F10: 5 | G10: 197 | H10: 160 | I10: 149 | J10: 111 | K10: 90 | L10: 73 | M10: 90 | N10: 112 | O10: 148 | P10: 169 | Q10: 190 | R10: 196 | S10: 1685 | T10: 80 | U10: 68 | V10: 66 | W10: 53 | X10: 44 | Y10: 38 | Z10: 41 | AA10: 49 | AB10: 56 | AC10: 72 | AD10: 75 | AE10: 83 | AF10: 725 | AG10: 23.2 | AH10: 23.2 | AI10: 21.8 | AJ10: 19 | AK10: 15.8 | AL10: 13.4 | AM10: 12.3 | AN10: 13.4 | AO10: 15.7 | AP10: 17.9 | AQ10: 19.9 | AR10: 22.6 | AS10: 18.18 | AT10: 5.7 | AU10: 5.8 | AV10: 6.1 | AW10: 5.2 | AX10: 4 | AY10: 5.2 | AZ10: 5.7 | BA10: 5.8 | BB10: 5.8 | BC10: 5.8 | BD10: 6.1 | BE10: 5.2 | BF10: 5.53 | BH10: 7 | BI10: Azores | BL10: Australia | BM10: =IF(BN10>1,"",MAX(BM$3:BM9)+1) ->  | BN10: =IF(BL10="","",COUNTIF(BL$4:BL10,BL10)) -> 2 | BO10: 5002 | BP10: Brisbane | BS10: 70007 | BU10: 11007
A11: Australia | B11: Australia | C11: Broome Airport | D11: -17.57 | E11: 122.13 | F11: 17 | G11: 226.1 | H11: 202.7 | I11: 191.1 | J11: 194.5 | K11: 160.2 | L11: 135.8 | M11: 163.5 | N11: 178.7 | O11: 207.3 | P11: 234.5 | Q11: 249 | R11: 226.6 | S11: 2370 | AG11: 29.86 | AH11: 29.8 | AI11: 29.53 | AJ11: 27.7 | AK11: 24.78 | AL11: 21.53 | AM11: 21.15 | AN11: 22.65 | AO11: 24.77 | AP11: 27.65 | AQ11: 28.78 | AR11: 30.17 | AS11: 26.53 | AT11: 3.8 | AU11: 3.7 | AV11: 2.9 | AW11: 2.7 | AX11: 2.8 | AY11: 2.99 | AZ11: 2.99 | BA11: 3.1 | BB11: 3.39 | BC11: 3.69 | BD11: 4.19 | BE11: 4.5 | BF11: 3.4 | BH11: 8 | BI11: Barbados | BL11: Australia | BM11: =IF(BN11>1,"",MAX(BM$3:BM10)+1) ->  | BN11: =IF(BL11="","",COUNTIF(BL$4:BL11,BL11)) -> 3 | BO11: 5003 | BP11: Broome Airport | BS11: 70008 | BU11: 11008
A12: Australia | B12: Australia | C12: Canberra | D12: -35.34 | E12: 148.51 | F12: 559 | G12: 209 | H12: 170 | I12: 149 | J12: 105 | K12: 80 | L12: 66 | M12: 76 | N12: 101 | O12: 132 | P12: 170 | Q12: 193 | R12: 210 | S12: 1661 | T12: 85 | U12: 68 | V12: 65 | W12: 49 | X12: 39 | Y12: 32 | Z12: 35 | AA12: 44 | AB12: 56 | AC12: 73 | AD12: 81 | AE12: 90 | AF12: 717 | AG12: 20.5 | AH12: 21 | AI12: 18.9 | AJ12: 15.3 | AK12: 11.9 | AL12: 9.3 | AM12: 8.3 | AN12: 9.4 | AO12: 12 | AP12: 14.6 | AQ12: 16.9 | AR12: 19.5 | AS12: 14.8 | AT12: 5.6 | AU12: 5.9 | AV12: 6 | AW12: 5.8 | AX12: 3.5 | AY12: 4.6 | AZ12: 5.1 | BA12: 5.4 | BB12: 5.4 | BC12: 6.3 | BD12: 5.7 | BE12: 5.4 | BF12: 5.39 | BH12: 9 | BI12: Belgium | BL12: Australia | BM12: =IF(BN12>1,"",MAX(BM$3:BM11)+1) ->  | BN12: =IF(BL12="","",COUNTIF(BL$4:BL12,BL12)) -> 4 | BO12: 5004 | BP12: Canberra | BS12: 70009 | BU12: 11009
A13: Australia | B13: Australia | C13: Carnarvon Airp. | D13: -24.53 | E13: 113.4 | F13: 4 | G13: 252.8 | H13: 216.2 | I13: 203.6 | J13: 141 | K13: 129.2 | L13: 106.3 | M13: 121 | N13: 161.3 | O13: 192 | P13: 237.6 | Q13: 234.5 | R13: 273.3 | S13: 2268.6 | AG13: 26.92 | AH13: 26.77 | AI13: 26.53 | AJ13: 23.69 | AK13: 20.12 | AL13: 17.39 | AM13: 16.22 | AN13: 17.4 | AO13: 18.77 | AP13: 21.02 | AQ13: 22.59 | AR13: 25.11 | AS13: 21.88 | AT13: 7.51 | AU13: 6.9 | AV13: 6.5 | AW13: 5.2 | AX13: 4.5 | AY13: 4.3 | AZ13: 4.4 | BA13: 4.9 | BB13: 6.1 | BC13: 7 | BD13: 7.29 | BE13: 7.8 | BF13: 6.03 | BH13: 10 | BI13: Birmania | BL13: Australia | BM13: =IF(BN13>1,"",MAX(BM$3:BM12)+1) ->  | BN13: =IF(BL13="","",COUNTIF(BL$4:BL13,BL13)) -> 5 | BO13: 5005 | BP13: Carnarvon Airp. | BS13: 70010 | BU13: 11010
A14: Australia | B14: Australia | C14: Darwin Airport | D14: -12.24 | E14: 130.52 | F14: 31 | G14: 156.2 | H14: 145.8 | I14: 161.4 | J14: 169.8 | K14: 167.2 | L14: 160.6 | M14: 171.4 | N14: 189.8 | O14: 196.3 | P14: 200.8 | Q14: 185 | R14: 166.5 | S14: 2070.7 | AG14: 28.35 | AH14: 28.26 | AI14: 28.35 | AJ14: 28.49 | AK14: 27.8 | AL14: 25.23 | AM14: 24.85 | AN14: 26.08 | AO14: 27.44 | AP14: 29.48 | AQ14: 29 | AR14: 28.91 | AS14: 27.69 | AT14: 3.39 | AU14: 3.31 | AV14: 2.9 | AW14: 3.09 | AX14: 3.3 | AY14: 3.5 | AZ14: 3.3 | BA14: 3.1 | BB14: 3.3 | BC14: 3.3 | BD14: 3.21 | BE14: 3.5 | BF14: 3.27 | BH14: 11 | BI14: Bolivia | BL14: Australia | BM14: =IF(BN14>1,"",MAX(BM$3:BM13)+1) ->  | BN14: =IF(BL14="","",COUNTIF(BL$4:BL14,BL14)) -> 6 | BO14: 5006 | BP14: Darwin Airport | BS14: 70011 | BU14: 11011
A15: Australia | B15: Australia | C15: Geraldton Airp. | D15: -28.47 | E15: 114.42 | F15: 37 | G15: 232.8 | H15: 207.6 | I15: 181.4 | J15: 134.5 | K15: 112.8 | L15: 98.5 | M15: 108.4 | N15: 134.5 | O15: 166.7 | P15: 221.5 | Q15: 231.7 | R15: 252.8 | S15: 2083 | AG15: 24.43 | AH15: 24.4 | AI15: 23.76 | AJ15: 21.58 | AK15: 18.7 | AL15: 16.55 | AM15: 15.62 | AN15: 16 | AO15: 16.55 | AP15: 18.24 | AQ15: 20.74 | AR15: 22.75 | AS15: 19.94 | AT15: 6.59 | AU15: 6.69 | AV15: 5.9 | AW15: 4.9 | AX15: 4.4 | AY15: 4.69 | AZ15: 4.7 | BA15: 4.3 | BB15: 4.5 | BC15: 5.3 | BD15: 5.8 | BE15: 6.7 | BF15: 5.37 | BH15: 12 | BI15: Brazil | BL15: Australia | BM15: =IF(BN15>1,"",MAX(BM$3:BM14)+1) ->  | BN15: =IF(BL15="","",COUNTIF(BL$4:BL15,BL15)) -> 7 | BO15: 5007 | BP15: Geraldton Airp. | BS15: 70012 | BU15: 11012
A16: Australia | B16: Australia | C16: Griffith | D16: -34.17 | E16: 146.03 | F16: 131 | G16: 224.6 | H16: 182.7 | I16: 167.3 | J16: 120.7 | K16: 85.7 | L16: 65.3 | M16: 77.2 | N16: 101.6 | O16: 130.9 | P16: 168.1 | Q16: 202.9 | R16: 235.7 | S16: 1762.7 | AG16: 24.29 | AH16: 25.27 | AI16: 21.79 | AJ16: 16.99 | AK16: 12.78 | AL16: 10.07 | AM16: 9.4 | AN16: 10.47 | AO16: 13.66 | AP16: 17.29 | AQ16: 20.12 | AR16: 23.46 | AS16: 17.13 | AT16: 3.42 | AU16: 2.98 | AV16: 2.73 | AW16: 2.2 | AX16: 2.26 | AY16: 2.47 | AZ16: 2.56 | BA16: 2.45 | BB16: 3.01 | BC16: 3.08 | BD16: 3.56 | BE16: 3.04 | BF16: 2.81 | BH16: 13 | BI16: Bulgaria | BL16: Australia | BM16: =IF(BN16>1,"",MAX(BM$3:BM15)+1) ->  | BN16: =IF(BL16="","",COUNTIF(BL$4:BL16,BL16)) -> 8 | BO16: 5008 | BP16: Griffith | BS16: 70013 | BU16: 11013
A17: Australia | B17: Australia | C17: Hobart Airport | D17: -42.5 | E17: 147.3 | F17: 4 | G17: 203 | H17: 150.9 | I17: 133.7 | J17: 87.6 | K17: 56.5 | L17: 43 | M17: 54.9 | N17: 77.2 | O17: 116.5 | P17: 145.8 | Q17: 177.8 | R17: 209.7 | S17: 1456.5 | AG17: 17.39 | AH17: 17.13 | AI17: 15.62 | AJ17: 13.7 | AK17: 11.17 | AL17: 8.83 | AM17: 8.23 | AN17: 9.44 | AO17: 10.94 | AP17: 12.27 | AQ17: 14.19 | AR17: 15.69 | AS17: 12.88 | AT17: 4.5 | AU17: 4.3 | AV17: 4.29 | AW17: 4.4 | AX17: 4.3 | AY17: 3.9 | AZ17: 3.99 | BA17: 4.59 | BB17: 4.7 | BC17: 4.69 | BD17: 4.69 | BE17: 4.8 | BF17: 4.43 | BH17: 14 | BI17: Cambodge | BL17: Australia | BM17: =IF(BN17>1,"",MAX(BM$3:BM16)+1) ->  | BN17: =IF(BL17="","",COUNTIF(BL$4:BL17,BL17)) -> 9 | BO17: 5009 | BP17: Hobart Airport | BS17: 70014 | BU17: 11014
A18: Australia | B18: Australia | C18: Kalgoorlie Air. | D18: -30.46 | E18: 121.27 | F18: 360 | G18: 218.5 | H18: 196 | I18: 174 | J18: 121.5 | K18: 97.4 | L18: 89.6 | M18: 98.8 | N18: 129.2 | O18: 176.8 | P18: 226 | Q18: 226.6 | R18: 231.9 | S18: 1986.5 | AG18: 26.05 | AH18: 25.45 | AI18: 23.24 | AJ18: 19 | AK18: 15.2 | AL18: 12.19 | AM18: 11.63 | AN18: 12.8 | AO18: 15.78 | AP18: 18.57 | AQ18: 22.38 | AR18: 25.19 | AS18: 18.96 | AT18: 5.1 | AU18: 4.79 | AV18: 4.4 | AW18: 3.49 | AX18: 3.3 | AY18: 3.2 | AZ18: 3.6 | BA18: 3.5 | BB18: 4.01 | BC18: 4.4 | BD18: 4.59 | BE18: 5 | BF18: 4.11 | BH18: 15 | BI18: Canada | BL18: Australia | BM18: =IF(BN18>1,"",MAX(BM$3:BM17)+1) ->  | BN18: =IF(BL18="","",COUNTIF(BL$4:BL18,BL18)) -> 10 | BO18: 5010 | BP18: Kalgoorlie Air. | BS18: 70015 | BU18: 11015
A19: Australia | B19: Australia | C19: Learmonth Airp. | D19: -22.14 | E19: 114.05 | F19: 6 | G19: 252.6 | H19: 219.3 | I19: 213.1 | J19: 158.2 | K19: 148.1 | L19: 114 | M19: 135.3 | N19: 164.6 | O19: 205.8 | P19: 248 | Q19: 239.5 | R19: 269.9 | S19: 2368 | AG19: 29.92 | AH19: 29.75 | AI19: 29.27 | AJ19: 26.15 | AK19: 22.33 | AL19: 18.74 | AM19: 18.16 | AN19: 19.32 | AO19: 21.56 | AP19: 24.03 | AQ19: 26.48 | AR19: 28.43 | AS19: 24.51 | AT19: 6.1 | AU19: 5.59 | AV19: 5.2 | AW19: 4.1 | AX19: 3.9 | AY19: 3.89 | AZ19: 4 | BA19: 4.4 | BB19: 5.19 | BC19: 5.9 | BD19: 6.29 | BE19: 6.6 | BF19: 5.1 | BH19: 16 | BI19: Cape Verde | BL19: Australia | BM19: =IF(BN19>1,"",MAX(BM$3:BM18)+1) ->  | BN19: =IF(BL19="","",COUNTIF(BL$4:BL19,BL19)) -> 11 | BO19: 5011 | BP19: Learmonth Airp. | BS19: 70016 | BU19: 11016
A20: Australia | B20: Australia | C20: Meekatharra Airp. | D20: -26.36 | E20: 118.31 | F20: 522 | G20: 243.1 | H20: 196.8 | I20: 201.9 | J20: 140.2 | K20: 125.4 | L20: 107.3 | M20: 121.4 | N20: 163.5 | O20: 195 | P20: 246.9 | Q20: 241 | R20: 274.6 | S20: 2257 | AG20: 30.98 | AH20: 30.49 | AI20: 27.96 | AJ20: 22.64 | AK20: 17.43 | AL20: 12.99 | AM20: 12.32 | AN20: 14.6 | AO20: 18.42 | AP20: 21.28 | AQ20: 25.13 | AR20: 28.74 | AS20: 21.91 | AT20: 4.9 | AU20: 4.99 | AV20: 4.69 | AW20: 4.01 | AX20: 3.99 | AY20: 3.8 | AZ20: 3.9 | BA20: 3.9 | BB20: 4.3 | BC20: 4.69 | BD20: 4.78 | BE20: 5 | BF20: 4.41 | BH20: 17 | BI20: Centrafrica | BL20: Australia | BM20: =IF(BN20>1,"",MAX(BM$3:BM19)+1) ->  | BN20: =IF(BL20="","",COUNTIF(BL$4:BL20,BL20)) -> 12 | BO20: 5012 | BP20: Meekatharra Airp. | BS20: 70017 | BU20: 11017
A21: Australia | B21: Australia | C21: Melbourne | D21: -37.49 | E21: 144.58 | F21: 38 | G21: 214.9 | H21: 167.3 | I21: 136.1 | J21: 95.6 | K21: 64.6 | L21: 57.4 | M21: 60.8 | N21: 81.4 | O21: 119.4 | P21: 165.8 | Q21: 171.9 | R21: 197.1 | S21: 1532.4 | AG21: 19.07 | AH21: 19.32 | AI21: 17.79 | AJ21: 14.8 | AK21: 12.23 | AL21: 9.86 | AM21: 8.89 | AN21: 10.05 | AO21: 10.94 | AP21: 13.32 | AQ21: 14.82 | AR21: 17.29 | AS21: 14.03 | AT21: 5 | AU21: 4.8 | AV21: 4.39 | AW21: 4.4 | AX21: 4.69 | AY21: 5.21 | AZ21: 4.89 | BA21: 5.3 | BB21: 5.4 | BC21: 5.2 | BD21: 5.01 | BE21: 5.1 | BF21: 4.95 | BH21: 18 | BI21: Chile | BL21: Australia | BM21: =IF(BN21>1,"",MAX(BM$3:BM20)+1) ->  | BN21: =IF(BL21="","",COUNTIF(BL$4:BL21,BL21)) -> 13 | BO21: 5013 | BP21: Melbourne | BS21: 70018 | BU21: 11018
A22: Australia | B22: Australia | C22: Mildura Air. | D22: -34.13 | E22: 142.05 | F22: 51 | G22: 243.1 | H22: 192.7 | I22: 165.7 | J22: 124.8 | K22: 82.4 | L22: 68.9 | M22: 78.6 | N22: 104.7 | O22: 150.2 | P22: 188.7 | Q22: 209.3 | R22: 228.4 | S22: 1837.7 | AG22: 24.54 | AH22: 23.23 | AI22: 21.02 | AJ22: 16.28 | AK22: 12.94 | AL22: 10.62 | AM22: 9.88 | AN22: 11.24 | AO22: 13.81 | AP22: 16.57 | AQ22: 19.03 | AR22: 22.43 | AS22: 16.8 | AT22: 4.09 | AU22: 3.71 | AV22: 3.39 | AW22: 2.99 | AX22: 2.8 | AY22: 3.11 | AZ22: 3.1 | BA22: 3.3 | BB22: 3.7 | BC22: 3.9 | BD22: 3.91 | BE22: 4.01 | BF22: 3.5 | BH22: 19 | BI22: China | BL22: Australia | BM22: =IF(BN22>1,"",MAX(BM$3:BM21)+1) ->  | BN22: =IF(BL22="","",COUNTIF(BL$4:BL22,BL22)) -> 14 | BO22: 5014 | BP22: Mildura Air. | BS22: 70019 | BU22: 11019
A23: Australia | B23: Australia | C23: Mt Gambier | D23: -37.44 | E23: 140.47 | F23: 65 | G23: 237.1 | H23: 159.2 | I23: 165.8 | J23: 97.5 | K23: 66.9 | L23: 51.1 | M23: 70.4 | N23: 84.7 | O23: 126.6 | P23: 153.9 | Q23: 198.7 | R23: 239.4 | S23: 1651.4 | AG23: 18.04 | AH23: 18.7 | AI23: 17.21 | AJ23: 14.73 | AK23: 12.08 | AL23: 10.33 | AM23: 9.55 | AN23: 10.52 | AO23: 11.63 | AP23: 13.55 | AQ23: 15.05 | AR23: 16.86 | AS23: 14.02 | AT23: 5.1 | AU23: 4.71 | AV23: 4.38 | AW23: 3.91 | AX23: 3.79 | AY23: 4.1 | AZ23: 4.09 | BA23: 4.3 | BB23: 4.79 | BC23: 4.8 | BD23: 4.79 | BE23: 4.8 | BF23: 4.46 | BH23: 20 | BI23: Colombia | BL23: Australia | BM23: =IF(BN23>1,"",MAX(BM$3:BM22)+1) ->  | BN23: =IF(BL23="","",COUNTIF(BL$4:BL23,BL23)) -> 15 | BO23: 5015 | BP23: Mt Gambier | BS23: 70020 | BU23: 11020
A24: Australia | B24: Australia | C24: Perth | D24: -31.57 | E24: 115.52 | F24: 19 | G24: 241.7 | H24: 190.8 | I24: 185.9 | J24: 120.1 | K24: 99.5 | L24: 81 | M24: 84.7 | N24: 118.7 | O24: 149.7 | P24: 191.1 | Q24: 224.6 | R24: 249 | S24: 1936.6 | AG24: 24.5 | AH24: 24.32 | AI24: 22.87 | AJ24: 19.11 | AK24: 16.12 | AL24: 13.67 | AM24: 13.24 | AN24: 13.35 | AO24: 14.19 | AP24: 16.12 | AQ24: 19.2 | AR24: 21.71 | AS24: 18.2 | AT24: 4.1 | AU24: 4.49 | AV24: 3.9 | AW24: 3 | AX24: 2.8 | AY24: 2.7 | AZ24: 2.99 | BA24: 2.7 | BB24: 3.1 | BC24: 3.6 | BD24: 3.8 | BE24: 4.2 | BF24: 3.45 | BH24: 21 | BI24: Croatia | BL24: Australia | BM24: =IF(BN24>1,"",MAX(BM$3:BM23)+1) ->  | BN24: =IF(BL24="","",COUNTIF(BL$4:BL24,BL24)) -> 16 | BO24: 5016 | BP24: Perth | BS24: 70021 | BU24: 11021
A25: Australia | B25: Australia | C25: Sydney | D25: -33.52 | E25: 151.12 | F25: 42 | G25: 186.7 | H25: 155.2 | I25: 130.1 | J25: 91.4 | K25: 81 | L25: 69.6 | M25: 78.8 | N25: 110 | O25: 138.2 | P25: 182.1 | Q25: 194.9 | R25: 189.7 | S25: 1607.7 | AG25: 22.95 | AH25: 22.73 | AI25: 21.69 | AJ25: 18.66 | AK25: 16.18 | AL25: 13.21 | AM25: 12.28 | AN25: 13.35 | AO25: 15.35 | AP25: 17.85 | AQ25: 19.17 | AR25: 21.79 | AS25: 17.93 | AT25: 5.7 | AU25: 6.2 | AV25: 5.7 | AW25: 5.7 | AX25: 2.11 | AY25: 3.59 | AZ25: 4.1 | BA25: 4.6 | BB25: 4.6 | BC25: 6.19 | BD25: 5.7 | BE25: 5.69 | BF25: 4.99 | BH25: 22 | BI25: Cuba | BL25: Australia | BM25: =IF(BN25>1,"",MAX(BM$3:BM24)+1) ->  | BN25: =IF(BL25="","",COUNTIF(BL$4:BL25,BL25)) -> 17 | BO25: 5017 | BP25: Sydney | BS25: 70022 | BU25: 11022
A26: Australia | B26: Australia | C26: Townsville | D26: -19.15 | E26: 146.45 | F26: 5 | G26: 188.2 | H26: 167.3 | I26: 168.1 | J26: 162.5 | K26: 138.8 | L26: 132.8 | M26: 150.5 | N26: 172.4 | O26: 202.6 | P26: 223.1 | Q26: 213.7 | R26: 214.8 | S26: 2134.6 | AG26: 27.64 | AH26: 27.29 | AI26: 26.53 | AJ26: 24.82 | AK26: 22.92 | AL26: 20.43 | AM26: 19.56 | AN26: 20.79 | AO26: 22.54 | AP26: 25.16 | AQ26: 26.13 | AR26: 27.65 | AS26: 24.29 | AT26: 4.6 | AU26: 4.29 | AV26: 4.21 | AW26: 4.2 | AX26: 3.39 | AY26: 3.59 | AZ26: 3.4 | BA26: 4.1 | BB26: 4.2 | BC26: 4.7 | BD26: 4.7 | BE26: 4.61 | BF26: 4.17 | BH26: 23 | BI26: Czechoslovakia | BL26: Australia | BM26: =IF(BN26>1,"",MAX(BM$3:BM25)+1) ->  | BN26: =IF(BL26="","",COUNTIF(BL$4:BL26,BL26)) -> 18 | BO26: 5018 | BP26: Townsville | BS26: 70023 | BU26: 11023
A27: Australia | B27: Australia | C27: Williamtown Airp. | D27: -32.47 | E27: 151.49 | F27: 9 | G27: 200.1 | H27: 161.1 | I27: 154.7 | J27: 116.6 | K27: 92.7 | L27: 73.8 | M27: 93.3 | N27: 112.1 | O27: 150.4 | P27: 164.4 | Q27: 188.6 | R27: 198.4 | S27: 1706.2 | AG27: 23.45 | AH27: 23.25 | AI27: 21.71 | AJ27: 18.63 | AK27: 15.57 | AL27: 13.12 | AM27: 12.23 | AN27: 13.23 | AO27: 15.33 | AP27: 17.85 | AQ27: 19.62 | AR27: 22.85 | AS27: 18.07 | AT27: 4.09 | AU27: 3.89 | AV27: 3.59 | AW27: 2.9 | AX27: 3 | AY27: 3.5 | AZ27: 3.7 | BA27: 3.7 | BB27: 3.8 | BC27: 3.9 | BD27: 4.39 | BE27: 4.3 | BF27: 3.73 | BH27: 24 | BI27: Denmark | BL27: Australia | BM27: =IF(BN27>1,"",MAX(BM$3:BM26)+1) ->  | BN27: =IF(BL27="","",COUNTIF(BL$4:BL27,BL27)) -> 19 | BO27: 5019 | BP27: Williamtown Airp. | BS27: 70024 | BU27: 11024
A28: Australia | B28: Australia | C28: Willis Is | D28: -16.18 | E28: 149.59 | F28: 6 | G28: 201.5 | H28: 167.9 | I28: 193.1 | J28: 146.8 | K28: 133.1 | L28: 127.3 | M28: 130.1 | N28: 170.9 | O28: 194.2 | P28: 204.5 | Q28: 215.8 | R28: 214.1 | S28: 2099.6 | AG28: 28.33 | AH28: 28.3 | AI28: 27.85 | AJ28: 26.82 | AK28: 26.14 | AL28: 24.1 | AM28: 24.41 | AN28: 24.43 | AO28: 24.65 | AP28: 26.13 | AQ28: 27.45 | AR28: 28.31 | AS28: 26.41 | AT28: 6.99 | AU28: 6.6 | AV28: 7.99 | AW28: 8.8 | AX28: 8.71 | AY28: 9.11 | AZ28: 8.6 | BA28: 8.8 | BB28: 7.7 | BC28: 7.5 | BD28: 6.81 | BE28: 6.4 | BF28: 7.83 | BH28: 25 | BI28: Egypt | BL28: Australia | BM28: =IF(BN28>1,"",MAX(BM$3:BM27)+1) ->  | BN28: =IF(BL28="","",COUNTIF(BL$4:BL28,BL28)) -> 20 | BO28: 5020 | BP28: Willis Is | BS28: 70025 | BU28: 11025
A29: Australia | B29: Austria | C29: Alice Springs | D29: -23.48 | E29: 133.54 | F29: 545 | G29: 231.3 | H29: 200.2 | I29: 197.1 | J29: 166.7 | K29: 138.2 | L29: 128.4 | M29: 143.6 | N29: 170.4 | O29: 198.3 | P29: 221.6 | Q29: 220.9 | R29: 229 | S29: 2245.8 | AG29: 29 | AH29: 28.26 | AI29: 25.69 | AJ29: 20.22 | AK29: 16.28 | AL29: 12.61 | AM29: 12.23 | AN29: 15.21 | AO29: 18.66 | AP29: 22.98 | AQ29: 25.85 | AR29: 28.39 | AS29: 21.28 | AT29: 4.09 | AU29: 3.6 | AV29: 3.6 | AW29: 3.1 | AX29: 3.1 | AY29: 3.59 | AZ29: 3.09 | BA29: 3.1 | BB29: 3.6 | BC29: 3.61 | BD29: 3.6 | BE29: 3.59 | BF29: 3.47 | BH29: 26 | BI29: Equator | BK29: 6 | BL29: Austria | BM29: =IF(BN29>1,"",MAX(BM$3:BM28)+1) -> 6 | BN29: =IF(BL29="","",COUNTIF(BL$4:BL29,BL29)) -> 1 | BO29: 6001 | BP29: Alice Springs | BS29: 70026 | BU29: 11026
A30: Europe | B30: Austria | C30: Innsbruck Univ. | D30: 47.16 | E30: 11.24 | F30: 582 | G30: 37.9 | H30: 55.7 | I30: 98.1 | J30: 121 | K30: 149.5 | L30: 147.6 | M30: 152.5 | N30: 133.9 | O30: 99.3 | P30: 73.5 | Q30: 41.6 | R30: 29.7 | S30: 1140.4 | AG30: -2.67 | AH30: 0.05 | AI30: 5.21 | AJ30: 9.73 | AK30: 14.41 | AL30: 17.31 | AM30: 19.39 | AN30: 18.59 | AO30: 15.01 | AP30: 9.61 | AQ30: 3.97 | AR30: -0.87 | AS30: 9.14 | AT30: 1.2 | AU30: 1.3 | AV30: 1.39 | AW30: 1.6 | AX30: 1.51 | AY30: 1.4 | AZ30: 1.21 | BA30: 1.21 | BB30: 1.21 | BC30: 1.21 | BD30: 1.2 | BE30: 1.19 | BF30: 1.3 | BH30: 27 | BI30: Ethiopia | BL30: Austria | BM30: =IF(BN30>1,"",MAX(BM$3:BM29)+1) ->  | BN30: =IF(BL30="","",COUNTIF(BL$4:BL30,BL30)) -> 2 | BO30: 6002 | BP30: Innsbruck Univ. | BS30: 70027 | BU30: 11027
A31: Europe | B31: Austria | C31: Wien | D31: 48.19 | E31: 16.34 | F31: 170 | G31: 27 | H31: 43 | I31: 84 | J31: 114 | K31: 158 | L31: 161 | M31: 169 | N31: 145 | O31: 97 | P31: 65 | Q31: 29 | R31: 20 | S31: 1112 | T31: 19 | U31: 29 | V31: 50 | W31: 65 | X31: 81 | Y31: 84 | Z31: 84 | AA31: 72 | AB31: 54 | AC31: 38 | AD31: 21 | AE31: 15 | AF31: 612 | AG31: -1.1 | AH31: 0.6 | AI31: 5.5 | AJ31: 9.6 | AK31: 14.1 | AL31: 17.3 | AM31: 19.5 | AN31: 19.5 | AO31: 15.8 | AP31: 10.4 | AQ31: 5.1 | AR31: 0.5 | AS31: 9.73 | AT31: 3.3 | AU31: 3.2 | AV31: 3.2 | AW31: 3.2 | AX31: 3.1 | AY31: 3.1 | AZ31: 3.2 | BA31: 2.8 | BB31: 2.7 | BC31: 2.6 | BD31: 3.1 | BE31: 3 | BF31: 3.04 | BH31: 28 | BI31: Fidji | BL31: Austria | BM31: =IF(BN31>1,"",MAX(BM$3:BM30)+1) ->  | BN31: =IF(BL31="","",COUNTIF(BL$4:BL31,BL31)) -> 3 | BO31: 6003 | BP31: Wien | BS31: 70028 | BU31: 11028
A32: Europe | B32: Azores | C32: Angrado Heroism | D32: 38.39 | E32: -27.14 | F32: 90 | G32: 52.8 | H32: 61.1 | I32: 100.4 | J32: 127.4 | K32: 142.1 | L32: 141.8 | M32: 162.9 | N32: 145.1 | O32: 117.3 | P32: 83.3 | Q32: 55.4 | R32: 43.1 | S32: 1232.6 | AG32: 14.4 | AH32: 13.86 | AI32: 14.47 | AJ32: 14.86 | AK32: 16.77 | AL32: 18.65 | AM32: 21.16 | AN32: 22.19 | AO32: 20.81 | AP32: 18.92 | AQ32: 16.45 | AR32: 15.06 | AS32: 17.3 | AT32: 5.5 | AU32: 4.59 | AV32: 4.9 | AW32: 4.39 | AX32: 4.5 | AY32: 3.79 | AZ32: 3.6 | BA32: 3.49 | BB32: 3.7 | BC32: 4.5 | BD32: 4.69 | BE32: 5.5 | BF32: 4.43 | BH32: 29 | BI32: Finland | BK32: 7 | BL32: Azores | BM32: =IF(BN32>1,"",MAX(BM$3:BM31)+1) -> 7 | BN32: =IF(BL32="","",COUNTIF(BL$4:BL32,BL32)) -> 1 | BO32: 7001 | BP32: Angrado Heroism | BS32: 70029 | BU32: 11029
A33: Europe | B33: Azores | C33: Horta/Faial Island | D33: 38.31 | E33: -28.43 | F33: 41 | G33: 52.2 | H33: 60.9 | I33: 100.3 | J33: 127.1 | K33: 141.6 | L33: 141.5 | M33: 162.7 | N33: 144.2 | O33: 117.1 | P33: 82.5 | Q33: 55 | R33: 42.8 | S33: 1227.9 | AG33: 14.36 | AH33: 13.73 | AI33: 14.17 | AJ33: 14.75 | AK33: 16.64 | AL33: 18.55 | AM33: 21.25 | AN33: 22.41 | AO33: 21.2 | AP33: 19.23 | AQ33: 16.63 | AR33: 15.46 | AS33: 17.37 | AT33: 5.39 | AU33: 5.3 | AV33: 5.59 | AW33: 4.59 | AX33: 4.5 | AY33: 3.69 | AZ33: 3.2 | BA33: 3.01 | BB33: 3.8 | BC33: 4.29 | BD33: 4.89 | BE33: 5.6 | BF33: 4.49 | BH33: 30 | BI33: France | BL33: Azores | BM33: =IF(BN33>1,"",MAX(BM$3:BM32)+1) ->  | BN33: =IF(BL33="","",COUNTIF(BL$4:BL33,BL33)) -> 2 | BO33: 7002 | BP33: Horta/Faial Island | BS33: 70030 | BU33: 11030
A34: Europe | B34: Azores | C34: Ponta Delgada | D34: 37.45 | E34: -25.4 | F34: 36 | G34: 55.7 | H34: 65.1 | I34: 103.4 | J34: 128.9 | K34: 142.1 | L34: 141.8 | M34: 161.4 | N34: 141.3 | O34: 121.7 | P34: 85.5 | Q34: 59.7 | R34: 47.5 | S34: 1254.2 | AG34: 14.32 | AH34: 13.88 | AI34: 14.37 | AJ34: 14.91 | AK34: 16.58 | AL34: 18.39 | AM34: 20.84 | AN34: 22.01 | AO34: 20.9 | AP34: 18.97 | AQ34: 16.6 | AR34: 15.23 | AS34: 17.25 | AT34: 3.5 | AU34: 3.6 | AV34: 3.5 | AW34: 3.29 | AX34: 2.9 | AY34: 2.5 | AZ34: 2.49 | BA34: 2.49 | BB34: 2.6 | BC34: 3 | BD34: 3.3 | BE34: 3.3 | BF34: 3.04 | BH34: 31 | BI34: France - Guyane | BL34: Azores | BM34: =IF(BN34>1,"",MAX(BM$3:BM33)+1) ->  | BN34: =IF(BL34="","",COUNTIF(BL$4:BL34,BL34)) -> 3 | BO34: 7003 | BP34: Ponta Delgada | BS34: 70031 | BU34: 11031
A35: North_America | B35: Barbados | C35: Husbands | D35: 13.1 | E35: -59.6 | F35: 42 | G35: 154 | H35: 152 | I35: 184 | J35: 171 | K35: 186 | L35: 167 | M35: 190 | N35: 171 | O35: 165 | P35: 146 | Q35: 130 | R35: 135 | S35: 1951 | AG35: 25.6 | AH35: 26.1 | AI35: 26.1 | AJ35: 27.2 | AK35: 27.8 | AL35: 27.8 | AM35: 27.8 | AN35: 27.8 | AO35: 27.8 | AP35: 27.8 | AQ35: 27.2 | AR35: 26.1 | AS35: 27.09 | AT35: 5.7 | AU35: 5.7 | AV35: 5.7 | AW35: 5.7 | AX35: 5.7 | AY35: 6.2 | AZ35: 5.7 | BA35: 5.1 | BB35: 5.1 | BC35: 4.6 | BD35: 5.1 | BE35: 5.7 | BF35: 5.5 | BH35: 32 | BI35: France - La Réunion | BK35: 8 | BL35: Barbados | BM35: =IF(BN35>1,"",MAX(BM$3:BM34)+1) -> 8 | BN35: =IF(BL35="","",COUNTIF(BL$4:BL35,BL35)) -> 1 | BO35: 8001 | BP35: Husbands | BS35: 70032 | BU35: 11032
A36: Asia | B36: Belgium | C36: Oostende | D36: 51.14 | E36: 2.55 | F36: 12 | G36: 20.1 | H36: 41.6 | I36: 75.1 | J36: 116.5 | K36: 156.8 | L36: 161.2 | M36: 157.6 | N36: 131.6 | O36: 92 | P36: 55.6 | Q36: 25.9 | R36: 16.3 | S36: 1050.3 | AG36: 3.98 | AH36: 3.17 | AI36: 6.16 | AJ36: 7.73 | AK36: 11.05 | AL36: 13.71 | AM36: 16.21 | AN36: 16.68 | AO36: 14.19 | AP36: 11.14 | AQ36: 7.11 | AR36: 5.01 | AS36: 9.68 | AT36: 5.29 | AU36: 5.2 | AV36: 5.3 | AW36: 4.8 | AX36: 4.7 | AY36: 4.49 | AZ36: 4 | BA36: 4 | BB36: 4.39 | BC36: 4.7 | BD36: 4.6 | BE36: 5.1 | BF36: 4.71 | BH36: 33 | BI36: France - Martinique | BK36: 9 | BL36: Belgium | BM36: =IF(BN36>1,"",MAX(BM$3:BM35)+1) -> 9 | BN36: =IF(BL36="","",COUNTIF(BL$4:BL36,BL36)) -> 1 | BO36: 9001 | BP36: Oostende | BS36: 70033 | BU36: 11033
A37: Europe | B37: Belgium | C37: St Hubert | D37: 50.02 | E37: 5.24 | F37: 563 | G37: 20.1 | H37: 44.8 | I37: 68.3 | J37: 107.2 | K37: 142 | L37: 136.1 | M37: 154.7 | N37: 127.1 | O37: 86.4 | P37: 52 | Q37: 27.3 | R37: 15.6 | S37: 981.8 | AG37: -0.03 | AH37: 0.5 | AI37: 3.29 | AJ37: 5.58 | AK37: 10.18 | AL37: 12.69 | AM37: 15.09 | AN37: 15.66 | AO37: 12.02 | AP37: 8.37 | AQ37: 3.73 | AR37: 1.23 | AS37: 7.36 | AT37: 4 | AU37: 3.8 | AV37: 3.99 | AW37: 3.8 | AX37: 3.69 | AY37: 3.5 | AZ37: 3 | BA37: 2.8 | BB37: 3.3 | BC37: 3.6 | BD37: 3.4 | BE37: 3.9 | BF37: 3.56 | BH37: 34 | BI37: Gabon | BL37: Belgium | BM37: =IF(BN37>1,"",MAX(BM$3:BM36)+1) ->  | BN37: =IF(BL37="","",COUNTIF(BL$4:BL37,BL37)) -> 2 | BO37: 9002 | BP37: St Hubert | BS37: 70034 | BU37: 11034
A38: Europe | B38: Belgium | C38: Uccle | D38: 50.48 | E38: 4.21 | F38: 105 | G38: 20 | H38: 36.9 | I38: 66.2 | J38: 102.2 | K38: 139.6 | L38: 141 | M38: 142 | N38: 123.5 | O38: 84.2 | P38: 53.5 | Q38: 24.4 | R38: 15.6 | S38: 949.2 | AG38: 2.5 | AH38: 2.98 | AI38: 5.71 | AJ38: 8.55 | AK38: 12.75 | AL38: 15.36 | AM38: 17.36 | AN38: 17.08 | AO38: 14.15 | AP38: 10.39 | AQ38: 5.87 | AR38: 3.57 | AS38: 9.69 | AT38: 4.21 | AU38: 4.1 | AV38: 3.99 | AW38: 3.7 | AX38: 3.39 | AY38: 3.11 | AZ38: 3.1 | BA38: 3.01 | BB38: 3.2 | BC38: 3.4 | BD38: 3.8 | BE38: 4 | BF38: 3.58 | BH38: 35 | BI38: Germany | BL38: Belgium | BM38: =IF(BN38>1,"",MAX(BM$3:BM37)+1) ->  | BN38: =IF(BL38="","",COUNTIF(BL$4:BL38,BL38)) -> 3 | BO38: 9003 | BP38: Uccle | BS38: 70035 | BU38: 11035
A39: Europe | B39: Belgium | C39: Vlissingen | D39: 51.27 | E39: 3.36 | F39: 8 | G39: 22.3 | H39: 42.8 | I39: 75.7 | J39: 120.2 | K39: 154.6 | L39: 158.3 | M39: 162.7 | N39: 136.7 | O39: 89.9 | P39: 54.9 | Q39: 28 | R39: 16.3 | S39: 1062.3 | AG39: 3.33 | AH39: 3.17 | AI39: 5.29 | AJ39: 7.93 | AK39: 12.13 | AL39: 14.73 | AM39: 17.03 | AN39: 17.38 | AO39: 15.05 | AP39: 11.99 | AQ39: 7.24 | AR39: 4.64 | AS39: 9.99 | AT39: 6.99 | AU39: 6.49 | AV39: 6.49 | AW39: 5.8 | AX39: 5.6 | AY39: 5.5 | AZ39: 5.31 | BA39: 5.5 | BB39: 5.9 | BC39: 6.2 | BD39: 7 | BE39: 7.19 | BF39: 6.16 | BH39: 36 | BI39: Ghana | BL39: Belgium | BM39: =IF(BN39>1,"",MAX(BM$3:BM38)+1) ->  | BN39: =IF(BL39="","",COUNTIF(BL$4:BL39,BL39)) -> 4 | BO39: 9004 | BP39: Vlissingen | BS39: 70036 | BU39: 11036
A40: Europe | B40: Belgium | C40: Zuid-Limburg/Beek | D40: 50.55 | E40: 5.46 | F40: 114 | G40: 22.3 | H40: 43.5 | I40: 72 | J40: 112.2 | K40: 148.8 | L40: 142.4 | M40: 155.4 | N40: 130.8 | O40: 87.7 | P40: 55.5 | Q40: 28.8 | R40: 17.1 | S40: 1016.5 | AG40: 2.07 | AH40: 2.26 | AI40: 5.27 | AJ40: 8.15 | AK40: 12.59 | AL40: 15.32 | AM40: 17.31 | AN40: 17.16 | AO40: 14.04 | AP40: 10.48 | AQ40: 5.64 | AR40: 3.16 | AS40: 9.45 | AT40: 4.69 | AU40: 4.7 | AV40: 4.69 | AW40: 4.1 | AX40: 3.71 | AY40: 3.7 | AZ40: 3.3 | BA40: 3.19 | BB40: 3.7 | BC40: 4.09 | BD40: 3.9 | BE40: 4.59 | BF40: 4.03 | BH40: 37 | BI40: Greece | BL40: Belgium | BM40: =IF(BN40>1,"",MAX(BM$3:BM39)+1) ->  | BN40: =IF(BL40="","",COUNTIF(BL$4:BL40,BL40)) -> 5 | BO40: 9005 | BP40: Zuid-Limburg/Beek | BS40: 70037 | BU40: 11037
A41: Asia | B41: Birmania | C41: Rangoon | D41: 16.51 | E41: 96.37 | F41: 10 | G41: 145 | H41: 146 | I41: 173 | J41: 175 | K41: 179 | L41: 162 | M41: 171 | N41: 134 | O41: 141 | P41: 145 | Q41: 137 | R41: 146 | S41: 1854 | T41: 60 | U41: 60 | V41: 75 | W41: 78 | X41: 82 | Y41: 80 | Z41: 82 | AA41: 79 | AB41: 75 | AC41: 71 | AD41: 60 | AE41: 55 | AF41: 857 | AG41: 25.3 | AH41: 26.7 | AI41: 28.4 | AJ41: 29.7 | AK41: 28.9 | AL41: 27.9 | AM41: 27.7 | AN41: 28.3 | AO41: 29.1 | AP41: 29.3 | AQ41: 27.5 | AR41: 25.4 | AS41: 27.85 | AT41: 2.2 | AU41: 2.3 | AV41: 2.7 | AW41: 2.7 | AX41: 2.7 | AY41: 3.2 | AZ41: 2.8 | BA41: 2.7 | BB41: 2.3 | BC41: 3 | BD41: 3 | BE41: 2.6 | BF41: 2.68 | BH41: 38 | BI41: Guatemala | BK41: 10 | BL41: Birmania | BM41: =IF(BN41>1,"",MAX(BM$3:BM40)+1) -> 10 | BN41: =IF(BL41="","",COUNTIF(BL$4:BL41,BL41)) -> 1 | BO41: 10001 | BP41: Rangoon | BS41: 70038 | BU41: 11038
A42: South_America | B42: Bolivia | C42: La Paz | D42: -16.24 | E42: -67.39 | F42: 3630 | G42: 229 | H42: 179 | I42: 201 | J42: 196 | K42: 183 | L42: 165 | M42: 179 | N42: 202 | O42: 220 | P42: 248 | Q42: 241 | R42: 233 | S42: 2476 | T42: 68 | U42: 65 | V42: 62 | W42: 44 | X42: 36 | Y42: 32 | Z42: 32 | AA42: 37 | AB42: 42 | AC42: 50 | AD42: 57 | AE42: 68 | AF42: 593 | AG42: 10.2 | AH42: 10.8 | AI42: 10.2 | AJ42: 9.7 | AK42: 8.6 | AL42: 7.5 | AM42: 6.9 | AN42: 8 | AO42: 9.1 | AP42: 10.2 | AQ42: 10.8 | AR42: 10.8 | AS42: 9.4 | AT42: 3.6 | AU42: 3.6 | AV42: 3.6 | AW42: 3.1 | AX42: 5.1 | AY42: 5.7 | AZ42: 5.7 | BA42: 5.7 | BB42: 3.6 | BC42: 3.6 | BD42: 3.6 | BE42: 3.6 | BF42: 4.21 | BH42: 39 | BI42: Guyana | BK42: 11 | BL42: Bolivia | BM42: =IF(BN42>1,"",MAX(BM$3:BM41)+1) -> 11 | BN42: =IF(BL42="","",COUNTIF(BL$4:BL42,BL42)) -> 1 | BO42: 11001 | BP42: La Paz | BS42: 70039 | BU42: 11039
A43: South_America | B43: Brazil | C43: Rio de Janeiro | D43: -22.51 | E43: -43.32 | F43: 5 | G43: 181 | H43: 157 | I43: 162 | J43: 122 | K43: 119 | L43: 96 | M43: 118 | N43: 126 | O43: 127 | P43: 151 | Q43: 158 | R43: 174 | S43: 1691 | T43: 80 | U43: 68 | V43: 68 | W43: 55 | X43: 48 | Y43: 42 | Z43: 46 | AA43: 53 | AB43: 59 | AC43: 70 | AD43: 74 | AE43: 79 | AF43: 742 | AG43: 25.7 | AH43: 27 | AI43: 27.2 | AJ43: 26.8 | AK43: 25.4 | AL43: 24.1 | AM43: 23.9 | AN43: 23.8 | AO43: 22.5 | AP43: 23 | AQ43: 23.7 | AR43: 24.4 | AS43: 24.79 | AT43: 4.1 | AU43: 4.1 | AV43: 4.1 | AW43: 3.6 | AX43: 3.6 | AY43: 2.6 | AZ43: 2.6 | BA43: 3.6 | BB43: 3.6 | BC43: 4.1 | BD43: 4.1 | BE43: 4.1 | BF43: 3.68 | BH43: 40 | BI43: Hungary | BK43: 12 | BL43: Brazil | BM43: =IF(BN43>1,"",MAX(BM$3:BM42)+1) -> 12 | BN43: =IF(BL43="","",COUNTIF(BL$4:BL43,BL43)) -> 1 | BO43: 12001 | BP43: Rio de Janeiro | BS43: 70040 | BU43: 11040
A44: South_America | B44: Brazil | C44: Sao Paulo | D44: -23.43 | E44: -46.37 | F44: 850 | G44: 140 | H44: 140 | I44: 126 | J44: 108 | K44: 99 | L44: 89 | M44: 100 | N44: 115 | O44: 112 | P44: 125 | Q44: 150 | R44: 141 | S44: 1445 | T44: 72 | U44: 66 | V44: 62 | W44: 52 | X44: 45 | Y44: 40 | Z44: 44 | AA44: 52 | AB44: 56 | AC44: 64 | AD44: 72 | AE44: 73 | AF44: 698 | AG44: 22.7 | AH44: 23.5 | AI44: 23.1 | AJ44: 20.9 | AK44: 18.9 | AL44: 17.9 | AM44: 17.2 | AN44: 18.1 | AO44: 17.9 | AP44: 20.2 | AQ44: 21.1 | AR44: 21.5 | AS44: 20.25 | AT44: 3.6 | AU44: 3.6 | AV44: 3.6 | AW44: 3.6 | AX44: 3.1 | AY44: 3.1 | AZ44: 3.1 | BA44: 3.6 | BB44: 4.1 | BC44: 4.1 | BD44: 4.1 | BE44: 4.1 | BF44: 3.64 | BH44: 41 | BI44: Iceland | BL44: Brazil | BM44: =IF(BN44>1,"",MAX(BM$3:BM43)+1) ->  | BN44: =IF(BL44="","",COUNTIF(BL$4:BL44,BL44)) -> 2 | BO44: 12002 | BP44: Sao Paulo | BS44: 70041 | BU44: 11041
A45: Europe | B45: Bulgaria | C45: Sofia | D45: 42.55 | E45: 23.47 | F45: 550 | G45: 36 | H45: 56 | I45: 89 | J45: 120 | K45: 148 | L45: 160 | M45: 174 | N45: 155 | O45: 110 | P45: 75 | Q45: 40 | R45: 30 | S45: 1193 | T45: 26 | U45: 35 | V45: 55 | W45: 69 | X45: 83 | Y45: 85 | Z45: 84 | AA45: 74 | AB45: 59 | AC45: 44 | AD45: 28 | AE45: 22 | AF45: 664 | AG45: -1.2 | AH45: 0.9 | AI45: 5.6 | AJ45: 10.2 | AK45: 14.7 | AL45: 18.1 | AM45: 20.3 | AN45: 20.2 | AO45: 17 | AP45: 11.7 | AQ45: 4.4 | AR45: 0.6 | AS45: 10.21 | AT45: 4.2 | AU45: 3.8 | AV45: 3.8 | AW45: 4.7 | AX45: 4.2 | AY45: 4.2 | AZ45: 4.1 | BA45: 4.1 | BB45: 4.2 | BC45: 3.2 | BD45: 4.2 | BE45: 4.6 | BF45: 4.11 | BH45: 42 | BI45: India | BK45: 13 | BL45: Bulgaria | BM45: =IF(BN45>1,"",MAX(BM$3:BM44)+1) -> 13 | BN45: =IF(BL45="","",COUNTIF(BL$4:BL45,BL45)) -> 1 | BO45: 13001 | BP45: Sofia | BS45: 70042 | BU45: 11042
A46: Asia | B46: Cambodge | C46: Phnom Penh | D46: 11.45 | E46: 105 | F46: 10 | G46: 140 | H46: 138 | I46: 173 | J46: 167 | K46: 161 | L46: 144 | M46: 149 | N46: 145 | O46: 131 | P46: 132 | Q46: 129 | R46: 138 | S46: 1747 | T46: 60 | U46: 59 | V46: 69 | W46: 70 | X46: 74 | Y46: 71 | Z46: 74 | AA46: 74 | AB46: 70 | AC46: 68 | AD46: 60 | AE46: 57 | AF46: 806 | AG46: 28.2 | AH46: 28.8 | AI46: 28.5 | AJ46: 29 | AK46: 28.2 | AL46: 27.3 | AM46: 27.4 | AN46: 27.7 | AO46: 29 | AP46: 29.1 | AQ46: 28.4 | AR46: 27.8 | AS46: 28.28 | AT46: 2.6 | AU46: 3.1 | AV46: 3.1 | AW46: 3.1 | AX46: 3.1 | AY46: 3.6 | AZ46: 3.5 | BA46: 3.1 | BB46: 3.1 | BC46: 2.6 | BD46: 2.6 | BE46: 2.6 | BF46: 3.01 | BH46: 43 | BI46: Indonesia | BK46: 14 | BL46: Cambodge | BM46: =IF(BN46>1,"",MAX(BM$3:BM45)+1) -> 14 | BN46: =IF(BL46="","",COUNTIF(BL$4:BL46,BL46)) -> 1 | BO46: 14001 | BP46: Phnom Penh | BS46: 70043 | BU46: 11043
A47: North_America | B47: Canada | C47: Edmonton | D47: 53.25 | E47: -115.2 | F47: 206 | G47: 33 | H47: 55 | I47: 108 | J47: 148 | K47: 182 | L47: 193 | M47: 198 | N47: 165 | O47: 106 | P47: 69 | Q47: 34 | R47: 24 | S47: 1315 | T47: 16 | U47: 24 | V47: 40 | W47: 57 | X47: 77 | Y47: 80 | Z47: 76 | AA47: 65 | AB47: 50 | AC47: 33 | AD47: 18 | AE47: 13 | AF47: 549 | AG47: -8.7 | AH47: -7 | AI47: -0.9 | AJ47: 7.3 | AK47: 13.5 | AL47: 16.8 | AM47: 19.1 | AN47: 17.4 | AO47: 12.9 | AP47: 7.4 | AQ47: -2.5 | AR47: -7.5 | AS47: 5.65 | AT47: 3.7 | AU47: 3.2 | AV47: 3.2 | AW47: 3.2 | AX47: 3.7 | AY47: 4.2 | AZ47: 3.7 | BA47: 3.2 | BB47: 3.2 | BC47: 3.2 | BD47: 3.2 | BE47: 3.2 | BF47: 3.41 | BH47: 44 | BI47: Irak | BK47: 15 | BL47: Canada | BM47: =IF(BN47>1,"",MAX(BM$3:BM46)+1) -> 15 | BN47: =IF(BL47="","",COUNTIF(BL$4:BL47,BL47)) -> 1 | BO47: 15001 | BP47: Edmonton | BS47: 70044 | BU47: 11044
A48: North_America | B48: Canada | C48: Montreal | D48: 45.44 | E48: -73.36 | F48: 41 | G48: 50 | H48: 73 | I48: 120 | J48: 138 | K48: 176 | L48: 186 | M48: 186 | N48: 151 | O48: 121 | P48: 79 | Q48: 37 | R48: 37 | S48: 1354 | T48: 25 | U48: 32 | V48: 50 | W48: 67 | X48: 80 | Y48: 81 | Z48: 81 | AA48: 73 | AB48: 55 | AC48: 42 | AD48: 26 | AE48: 22 | AF48: 634 | AG48: -9.5 | AH48: -7.8 | AI48: -1.7 | AJ48: 6.5 | AK48: 13.7 | AL48: 18.7 | AM48: 21.5 | AN48: 20.4 | AO48: 14.9 | AP48: 8.3 | AQ48: 2.2 | AR48: -6.2 | AS48: 6.75 | AT48: 5.7 | AU48: 5.1 | AV48: 5.7 | AW48: 5.1 | AX48: 4.6 | AY48: 4.1 | AZ48: 4.1 | BA48: 3.6 | BB48: 4.1 | BC48: 4.6 | BD48: 5.1 | BE48: 5.1 | BF48: 4.74 | BH48: 45 | BI48: Ireland | BL48: Canada | BM48: =IF(BN48>1,"",MAX(BM$3:BM47)+1) ->  | BN48: =IF(BL48="","",COUNTIF(BL$4:BL48,BL48)) -> 2 | BO48: 15002 | BP48: Montreal | BS48: 70045 | BU48: 11045
A49: North_America | B49: Canada | C49: Ottawa | D49: 45.22 | E49: -76.02 | F49: 100 | G49: 52 | H49: 78 | I49: 123 | J49: 142 | K49: 180 | L49: 187 | M49: 187 | N49: 156 | O49: 117 | P49: 78 | Q49: 40 | R49: 39 | S49: 1379 | T49: 26 | U49: 31 | V49: 49 | W49: 66 | X49: 79 | Y49: 80 | Z49: 80 | AA49: 73 | AB49: 56 | AC49: 42 | AD49: 27 | AE49: 22 | AF49: 631 | AG49: -10.1 | AH49: -8.4 | AI49: -2.3 | AJ49: 6 | AK49: 13.2 | AL49: 18.2 | AM49: 21 | AN49: 19.9 | AO49: 14.3 | AP49: 7.7 | AQ49: 1 | AR49: -7.2 | AS49: 6.11 | AT49: 4.6 | AU49: 5.1 | AV49: 5.7 | AW49: 4.6 | AX49: 3.6 | AY49: 3.1 | AZ49: 3.6 | BA49: 2.6 | BB49: 3.1 | BC49: 4.1 | BD49: 4.1 | BE49: 4.6 | BF49: 4.07 | BH49: 46 | BI49: Israel | BL49: Canada | BM49: =IF(BN49>1,"",MAX(BM$3:BM48)+1) ->  | BN49: =IF(BL49="","",COUNTIF(BL$4:BL49,BL49)) -> 3 | BO49: 15003 | BP49: Ottawa | BS49: 70046 | BU49: 11046
A50: North_America | B50: Canada | C50: Quebec | D50: 46.49 | E50: -70.6 | F50: 5 | G50: 51 | H50: 75 | I50: 121 | J50: 143 | K50: 168 | L50: 180 | M50: 177 | N50: 152 | O50: 113 | P50: 72 | Q50: 39 | R50: 37 | S50: 1328 | T50: 23 | U50: 29 | V50: 47 | W50: 65 | X50: 81 | Y50: 82 | Z50: 83 | AA50: 73 | AB50: 55 | AC50: 41 | AD50: 26 | AE50: 20 | AF50: 625 | AG50: -10.9 | AH50: -9.4 | AI50: -3.1 | AJ50: 4.7 | AK50: 12 | AL50: 17.2 | AM50: 20.2 | AN50: 18.9 | AO50: 14 | AP50: 7.8 | AQ50: 0.9 | AR50: -7.1 | AS50: 5.43 | AT50: 6.1 | AU50: 5.8 | AV50: 6.3 | AW50: 5.9 | AX50: 5.8 | AY50: 4.4 | AZ50: 4.2 | BA50: 4.3 | BB50: 4.5 | BC50: 4.8 | BD50: 5.4 | BE50: 5.9 | BF50: 5.28 | BH50: 47 | BI50: Italy | BL50: Canada | BM50: =IF(BN50>1,"",MAX(BM$3:BM49)+1) ->  | BN50: =IF(BL50="","",COUNTIF(BL$4:BL50,BL50)) -> 4 | BO50: 15004 | BP50: Quebec | BS50: 70047 | BU50: 11047
A51: North_America | B51: Canada | C51: Toronto | D51: 43.48 | E51: -79.12 | F51: 75 | G51: 49 | H51: 71 | I51: 111 | J51: 139 | K51: 179 | L51: 189 | M51: 195 | N51: 169 | O51: 121 | P51: 83 | Q51: 41 | R51: 36 | S51: 1383 | T51: 28 | U51: 35 | V51: 55 | W51: 68 | X51: 80 | Y51: 80 | Z51: 78 | AA51: 70 | AB51: 57 | AC51: 44 | AD51: 28 | AE51: 24 | AF51: 647 | AG51: -5.7 | AH51: -5.2 | AI51: 0.4 | AJ51: 7.1 | AK51: 13.2 | AL51: 18.2 | AM51: 21.5 | AN51: 20.4 | AO51: 15.4 | AP51: 9.3 | AQ51: 3.7 | AR51: -2.4 | AS51: 7.99 | AT51: 5.7 | AU51: 5.1 | AV51: 5.7 | AW51: 5.7 | AX51: 4.1 | AY51: 4.1 | AZ51: 3.6 | BA51: 3.1 | BB51: 4.1 | BC51: 4.6 | BD51: 5.1 | BE51: 5.7 | BF51: 4.72 | BH51: 48 | BI51: Japan | BL51: Canada | BM51: =IF(BN51>1,"",MAX(BM$3:BM50)+1) ->  | BN51: =IF(BL51="","",COUNTIF(BL$4:BL51,BL51)) -> 5 | BO51: 15005 | BP51: Toronto | BS51: 70048 | BU51: 11048
A52: North_America | B52: Canada | C52: Vancouver | D52: 49.28 | E52: -122.5 | F52: 5 | G52: 26 | H52: 49 | I52: 93 | J52: 128 | K52: 188 | L52: 195 | M52: 202 | N52: 169 | O52: 115 | P52: 65 | Q52: 31 | R52: 20 | S52: 1281 | T52: 16 | U52: 26 | V52: 45 | W52: 60 | X52: 74 | Y52: 77 | Z52: 75 | AA52: 65 | AB52: 49 | AC52: 34 | AD52: 18 | AE52: 13 | AF52: 552 | AG52: 3.6 | AH52: 5.2 | AI52: 7 | AJ52: 9.7 | AK52: 12.7 | AL52: 15.5 | AM52: 17.7 | AN52: 18.2 | AO52: 14.8 | AP52: 11 | AQ52: 6.5 | AR52: 4.3 | AS52: 10.52 | AT52: 3.1 | AU52: 3.6 | AV52: 3.6 | AW52: 3.6 | AX52: 3.1 | AY52: 3.1 | AZ52: 3.1 | BA52: 3.1 | BB52: 3.1 | BC52: 3.1 | BD52: 3.6 | BE52: 3.1 | BF52: 3.27 | BH52: 49 | BI52: Jordania | BL52: Canada | BM52: =IF(BN52>1,"",MAX(BM$3:BM51)+1) ->  | BN52: =IF(BL52="","",COUNTIF(BL$4:BL52,BL52)) -> 6 | BO52: 15006 | BP52: Vancouver | BS52: 70049 | BU52: 11049
A53: Africa | B53: Cape Verde | C53: Sal Island | D53: 16.44 | E53: -22.57 | F53: 55 | G53: 150.9 | H53: 170.4 | I53: 205.7 | J53: 217.1 | K53: 188.5 | L53: 154.7 | M53: 170.9 | N53: 199.2 | O53: 161 | P53: 166.1 | Q53: 161.1 | R53: 154.2 | S53: 2099.9 | AG53: 21.4 | AH53: 21.1 | AI53: 21.6 | AJ53: 21.6 | AK53: 22.5 | AL53: 23.1 | AM53: 24.7 | AN53: 26 | AO53: 26.3 | AP53: 26.1 | AQ53: 24.2 | AR53: 22.7 | AS53: 23.44 | AT53: 6.69 | AU53: 6.7 | AV53: 6.8 | AW53: 6.79 | AX53: 7.1 | AY53: 6.8 | AZ53: 5.3 | BA53: 5.09 | BB53: 5.4 | BC53: 5.69 | BD53: 5.8 | BE53: 6.4 | BF53: 6.21 | BH53: 50 | BI53: Kenya | BK53: 16 | BL53: Cape Verde | BM53: =IF(BN53>1,"",MAX(BM$3:BM52)+1) -> 16 | BN53: =IF(BL53="","",COUNTIF(BL$4:BL53,BL53)) -> 1 | BO53: 16001 | BP53: Sal Island | BS53: 70050 | BU53: 11050
A54: Africa | B54: Centrafrica | C54: Bangui | D54: 4.26 | E54: 18.41 | F54: 385 | G54: 139 | H54: 138 | I54: 166 | J54: 168 | K54: 169 | L54: 145 | M54: 135 | N54: 133 | O54: 143 | P54: 158 | Q54: 140 | R54: 140 | S54: 1774 | T54: 68 | U54: 64 | V54: 73 | W54: 68 | X54: 67 | Y54: 66 | Z54: 70 | AA54: 72 | AB54: 71 | AC54: 70 | AD54: 66 | AE54: 66 | AF54: 821 | AG54: 26.1 | AH54: 26.9 | AI54: 27.2 | AJ54: 27.2 | AK54: 26.4 | AL54: 25.8 | AM54: 25.3 | AN54: 25.5 | AO54: 25.3 | AP54: 25.3 | AQ54: 25.8 | AR54: 25.5 | AS54: 26.02 | AT54: 0.9 | AU54: 0.9 | AV54: 1.2 | AW54: 1.2 | AX54: 0.9 | AY54: 0.9 | AZ54: 0.9 | BA54: 1.2 | BB54: 1.2 | BC54: 1.2 | BD54: 0.9 | BE54: 0.9 | BF54: 1.03 | BH54: 51 | BI54: Korea | BK54: 17 | BL54: Centrafrica | BM54: =IF(BN54>1,"",MAX(BM$3:BM53)+1) -> 17 | BN54: =IF(BL54="","",COUNTIF(BL$4:BL54,BL54)) -> 1 | BO54: 17001 | BP54: Bangui | BS54: 70051 | BU54: 11051
A55: South_America | B55: Chile | C55: Santiago | D55: -33.23 | E55: -70.41 | F55: 520 | G55: 199 | H55: 157 | I55: 134 | J55: 92 | K55: 58 | L55: 40 | M55: 47 | N55: 70 | O55: 80 | P55: 142 | Q55: 174 | R55: 201 | S55: 1394 | T55: 87 | U55: 72 | V55: 68 | W55: 51 | X55: 38 | Y55: 29 | Z55: 33 | AA55: 45 | AB55: 55 | AC55: 76 | AD55: 83 | AE55: 89 | AF55: 726 | AG55: 20.5 | AH55: 19.6 | AI55: 18.1 | AJ55: 14.9 | AK55: 11.8 | AL55: 9.1 | AM55: 8.4 | AN55: 9.9 | AO55: 11.4 | AP55: 14.1 | AQ55: 16.6 | AR55: 18.7 | AS55: 14.43 | AT55: 3.1 | AU55: 3.6 | AV55: 3.1 | AW55: 3.1 | AX55: 2.6 | AY55: 2.6 | AZ55: 2.1 | BA55: 2.6 | BB55: 3.1 | BC55: 3.6 | BD55: 3.6 | BE55: 3.6 | BF55: 3.06 | BH55: 52 | BI55: Lebanon | BK55: 18 | BL55: Chile | BM55: =IF(BN55>1,"",MAX(BM$3:BM54)+1) -> 18 | BN55: =IF(BL55="","",COUNTIF(BL$4:BL55,BL55)) -> 1 | BO55: 18001 | BP55: Santiago | BS55: 70052 | BU55: 11052
A56: Asia | B56: China | C56: Beijing | D56: 39.56 | E56: 116.17 | F56: 55 | G56: 64.7 | H56: 80.6 | I56: 115.3 | J56: 150.5 | K56: 168.9 | L56: 164.2 | M56: 130.2 | N56: 130.9 | O56: 117.4 | P56: 98.2 | Q56: 66.2 | R56: 55.8 | S56: 1343 | AG56: -4.3 | AH56: -1.9 | AI56: 5.1 | AJ56: 13.6 | AK56: 20 | AL56: 24.2 | AM56: 25.9 | AN56: 24.6 | AO56: 19.6 | AP56: 12.7 | AQ56: 4.3 | AR56: -2.2 | AS56: 11.8 | AT56: 2.79 | AU56: 2.89 | AV56: 3.2 | AW56: 3.4 | AX56: 2.89 | AY56: 2.49 | AZ56: 1.9 | BA56: 1.59 | BB56: 1.89 | BC56: 2.1 | BD56: 2.6 | BE56: 2.7 | BF56: 2.54 | BH56: 53 | BI56: Lettonia | BK56: 19 | BL56: China | BM56: =IF(BN56>1,"",MAX(BM$3:BM55)+1) -> 19 | BN56: =IF(BL56="","",COUNTIF(BL$4:BL56,BL56)) -> 1 | BO56: 19001 | BP56: Beijing | BS56: 70053 | BU56: 11053
A57: Asia | B57: China | C57: Chengdu | D57: 30.4 | E57: 104.01 | F57: 508 | G57: 40.9 | H57: 45 | I57: 62.5 | J57: 91.4 | K57: 107.1 | L57: 119.5 | M57: 107.1 | N57: 101.2 | O57: 77.8 | P57: 56.5 | Q57: 48.2 | R57: 35.7 | S57: 893.1 | AG57: 5.5 | AH57: 7.2 | AI57: 11.6 | AJ57: 16.5 | AK57: 21 | AL57: 23.51 | AM57: 25.2 | AN57: 24.9 | AO57: 21 | AP57: 16.9 | AQ57: 11.8 | AR57: 7.1 | AS57: 16.02 | AT57: 0.9 | AU57: 1.1 | AV57: 1.29 | AW57: 1.3 | AX57: 1.3 | AY57: 1.2 | AZ57: 1.09 | BA57: 1.1 | BB57: 1.1 | BC57: 0.89 | BD57: 0.88 | BE57: 0.81 | BF57: 1.08 | BH57: 54 | BI57: Madagascar | BL57: China | BM57: =IF(BN57>1,"",MAX(BM$3:BM56)+1) ->  | BN57: =IF(BL57="","",COUNTIF(BL$4:BL57,BL57)) -> 2 | BO57: 19002 | BP57: Chengdu | BS57: 70054 | BU57: 11054
A58: Asia | B58: China | C58: Guangzhou | D58: 23.08 | E58: 113.19 | F58: 7 | G58: 67 | H58: 58.5 | I58: 55.1 | J58: 62.6 | K58: 88.5 | L58: 103 | M58: 133.9 | N58: 120.5 | O58: 112.3 | P58: 118.3 | Q58: 99.4 | R58: 89.3 | S58: 1108.3 | AG58: 13.3 | AH58: 14.3 | AI58: 17.7 | AJ58: 21.9 | AK58: 25.6 | AL58: 27.3 | AM58: 28.5 | AN58: 28.3 | AO58: 27.1 | AP58: 24 | AQ58: 19.4 | AR58: 15 | AS58: 21.87 | AT58: 1.99 | AU58: 2.1 | AV58: 1.9 | AW58: 1.8 | AX58: 1.79 | AY58: 1.8 | AZ58: 1.91 | BA58: 1.6 | BB58: 1.7 | BC58: 1.9 | BD58: 2.1 | BE58: 1.88 | BF58: 1.87 | BH58: 55 | BI58: Malaysia | BL58: China | BM58: =IF(BN58>1,"",MAX(BM$3:BM57)+1) ->  | BN58: =IF(BL58="","",COUNTIF(BL$4:BL58,BL58)) -> 3 | BO58: 19003 | BP58: Guangzhou | BS58: 70055 | BU58: 11055
A59: Asia | B59: China | C59: Hong Kong | D59: 22.19 | E59: 114.1 | F59: 0 | G59: 105 | H59: 64 | I59: 78 | J59: 94 | K59: 130 | L59: 147 | M59: 168 | N59: 158 | O59: 138 | P59: 131 | Q59: 109 | R59: 104 | S59: 1426 | T59: 48 | U59: 37 | V59: 46 | W59: 54 | X59: 67 | Y59: 70 | Z59: 75 | AA59: 72 | AB59: 64 | AC59: 59 | AD59: 49 | AE59: 46 | AF59: 687 | AG59: 16.7 | AH59: 17.2 | AI59: 19.4 | AJ59: 22.8 | AK59: 26.1 | AL59: 28.3 | AM59: 29.4 | AN59: 29.4 | AO59: 28.3 | AP59: 26.1 | AQ59: 22.2 | AR59: 18.3 | AS59: 23.68 | AT59: 5.1 | AU59: 5.7 | AV59: 5.7 | AW59: 5.7 | AX59: 5.1 | AY59: 5.7 | AZ59: 3.6 | BA59: 5.1 | BB59: 5.1 | BC59: 5.1 | BD59: 4.6 | BE59: 4.6 | BF59: 5.09 | BH59: 56 | BI59: Mali | BL59: China | BM59: =IF(BN59>1,"",MAX(BM$3:BM58)+1) ->  | BN59: =IF(BL59="","",COUNTIF(BL$4:BL59,BL59)) -> 4 | BO59: 19004 | BP59: Hong Kong | BS59: 70056 | BU59: 11056
A60: Asia | B60: China | C60: King's Park | D60: 22.19 | E60: 114.1 | F60: 66 | G60: 93 | H60: 65.2 | I60: 71.4 | J60: 90 | K60: 123.5 | L60: 129.6 | M60: 157 | N60: 141.4 | O60: 124.6 | P60: 118.3 | Q60: 100.8 | R60: 96 | S60: 1310.7 | AG60: 16 | AH60: 16.2 | AI60: 18.8 | AJ60: 22.5 | AK60: 26.2 | AL60: 28 | AM60: 29 | AN60: 28.7 | AO60: 27.8 | AP60: 25.4 | AQ60: 21.6 | AR60: 17.8 | AS60: 23.17 | AT60: 5.1 | AU60: 5.7 | AV60: 5.7 | AW60: 5.7 | AX60: 5.1 | AY60: 5.7 | AZ60: 3.59 | BA60: 5.1 | BB60: 5.11 | BC60: 5.11 | BD60: 4.6 | BE60: 4.6 | BF60: 5.09 | BH60: 57 | BI60: Mexico | BL60: China | BM60: =IF(BN60>1,"",MAX(BM$3:BM59)+1) ->  | BN60: =IF(BL60="","",COUNTIF(BL$4:BL60,BL60)) -> 5 | BO60: 19005 | BP60: King's Park | BS60: 70057 | BU60: 11057
A61: Asia | B61: China | C61: Kunming | D61: 25.01 | E61: 102.41 | F61: 1891 | G61: 105.6 | H61: 114.2 | I61: 148.8 | J61: 158.4 | K61: 142.9 | L61: 131 | M61: 117.6 | N61: 141.4 | O61: 110.9 | P61: 81.1 | Q61: 103 | R61: 102.7 | S61: 1457.5 | AG61: 7.6 | AH61: 9.5 | AI61: 12.6 | AJ61: 16.1 | AK61: 18.9 | AL61: 19.6 | AM61: 19.7 | AN61: 19.1 | AO61: 17.5 | AP61: 15 | AQ61: 11.3 | AR61: 7.9 | AS61: 14.57 | AT61: 2.4 | AU61: 3 | AV61: 3.1 | AW61: 2.9 | AX61: 2.69 | AY61: 2.3 | AZ61: 1.9 | BA61: 1.4 | BB61: 1.51 | BC61: 1.7 | BD61: 1.9 | BE61: 2 | BF61: 2.23 | BH61: 58 | BI61: Morocco | BL61: China | BM61: =IF(BN61>1,"",MAX(BM$3:BM60)+1) ->  | BN61: =IF(BL61="","",COUNTIF(BL$4:BL61,BL61)) -> 6 | BO61: 19006 | BP61: Kunming | BS61: 70058 | BU61: 11058
A62: Asia | B62: China | C62: Lanzhou | D62: 36.03 | E62: 103.53 | F62: 1517 | G62: 64.7 | H62: 83.3 | I62: 107.1 | J62: 145.5 | K62: 166.7 | L62: 172.1 | M62: 171.9 | N62: 154.7 | O62: 124.6 | P62: 91.5 | Q62: 72.7 | R62: 58 | S62: 1412.8 | AG62: -6.1 | AH62: -2 | AI62: 5 | AJ62: 11.7 | AK62: 16.8 | AL62: 20.1 | AM62: 22.1 | AN62: 21 | AO62: 15.7 | AP62: 9.7 | AQ62: 1.9 | AR62: -4.8 | AS62: 9.26 | AT62: 0.31 | AU62: 0.59 | AV62: 0.98 | AW62: 1.3 | AX62: 1.29 | AY62: 1.2 | AZ62: 1.1 | BA62: 1 | BB62: 0.7 | BC62: 0.59 | BD62: 0.4 | BE62: 0.31 | BF62: 0.81 | BH62: 59 | BI62: Namibia | BL62: China | BM62: =IF(BN62>1,"",MAX(BM$3:BM61)+1) ->  | BN62: =IF(BL62="","",COUNTIF(BL$4:BL62,BL62)) -> 7 | BO62: 19007 | BP62: Lanzhou | BS62: 70059 | BU62: 11059
A63: Asia | B63: China | C63: Macau | D63: 22.12 | E63: 113.33 | F63: 57 | G63: 100.4 | H63: 60.5 | I63: 69.9 | J63: 87.8 | K63: 130.2 | L63: 151.2 | M63: 176.3 | N63: 158.5 | O63: 144 | P63: 129.5 | Q63: 111.6 | R63: 102.7 | S63: 1422.6 | AG63: 15.1 | AH63: 15.4 | AI63: 18.2 | AJ63: 21.8 | AK63: 26 | AL63: 27.8 | AM63: 28.5 | AN63: 28.2 | AO63: 27.5 | AP63: 24.5 | AQ63: 20.8 | AR63: 16.5 | AS63: 22.52 | AT63: 4.28 | AU63: 4.75 | AV63: 4.69 | AW63: 4.65 | AX63: 4.22 | AY63: 4.66 | AZ63: 3.16 | BA63: 4.17 | BB63: 4.19 | BC63: 4.25 | BD63: 3.93 | BE63: 3.9 | BF63: 4.24 | BH63: 60 | BI63: Nepal | BL63: China | BM63: =IF(BN63>1,"",MAX(BM$3:BM62)+1) ->  | BN63: =IF(BL63="","",COUNTIF(BL$4:BL63,BL63)) -> 8 | BO63: 19008 | BP63: Macau | BS63: 70060 | BU63: 11060
A64: Asia | B64: China | C64: Shanghai | D64: 31.1 | E64: 121.26 | F64: 7 | G64: 59.5 | H64: 67.9 | I64: 89.3 | J64: 118.1 | K64: 129.5 | L64: 133.2 | M64: 152.5 | N64: 126.5 | O64: 105.8 | P64: 108.6 | Q64: 81.4 | R64: 70.7 | S64: 1242.9 | AG64: 3.7 | AH64: 4.6 | AI64: 8.5 | AJ64: 14.2 | AK64: 19.2 | AL64: 23.4 | AM64: 27.8 | AN64: 27.7 | AO64: 23.6 | AP64: 18.3 | AQ64: 12.4 | AR64: 6.1 | AS64: 15.79 | AT64: 3 | AU64: 3.09 | AV64: 3.3 | AW64: 3.3 | AX64: 3.09 | AY64: 3.01 | AZ64: 3.1 | BA64: 3.2 | BB64: 2.9 | BC64: 2.69 | BD64: 2.7 | BE64: 2.7 | BF64: 3.01 | BH64: 61 | BI64: Netherlands | BL64: China | BM64: =IF(BN64>1,"",MAX(BM$3:BM63)+1) ->  | BN64: =IF(BL64="","",COUNTIF(BL$4:BL64,BL64)) -> 9 | BO64: 19009 | BP64: Shanghai | BS64: 70061 | BU64: 11061
A65: Asia | B65: China | C65: Shenyang | D65: 41.46 | E65: 123.26 | F65: 42 | G65: 61 | H65: 78.6 | I65: 125 | J65: 141.1 | K65: 160.7 | L65: 151.2 | M65: 136.9 | N65: 130.2 | O65: 112.3 | P65: 91.5 | Q65: 54.7 | R65: 48.4 | S65: 1291.6 | AG65: -11.5 | AH65: -7.8 | AI65: 0.7 | AJ65: 9.8 | AK65: 17.2 | AL65: 21.7 | AM65: 24.5 | AN65: 23.6 | AO65: 17.3 | AP65: 9.5 | AQ65: 0.3 | AR65: -7.9 | AS65: 8.12 | AT65: 2.59 | AU65: 2.9 | AV65: 3.4 | AW65: 4 | AX65: 3.69 | AY65: 3.1 | AZ65: 2.6 | BA65: 2.38 | BB65: 2.5 | BC65: 2.79 | BD65: 3.01 | BE65: 2.7 | BF65: 2.97 | BH65: 62 | BI65: New Zealand | BL65: China | BM65: =IF(BN65>1,"",MAX(BM$3:BM64)+1) ->  | BN65: =IF(BL65="","",COUNTIF(BL$4:BL65,BL65)) -> 10 | BO65: 19010 | BP65: Shenyang | BS65: 70062 | BU65: 11062
A66: Asia | B66: China | C66: Taipei | D66: 24.5 | E66: 121.43 | F66: 10 | G66: 80 | H66: 71 | I66: 103 | J66: 123 | K66: 141 | L66: 162 | M66: 186 | N66: 166 | O66: 146 | P66: 121 | Q66: 85 | R66: 74 | S66: 1458 | T66: 45 | U66: 44 | V66: 60 | W66: 67 | X66: 75 | Y66: 76 | Z66: 77 | AA66: 74 | AB66: 65 | AC66: 58 | AD66: 46 | AE66: 42 | AF66: 729 | AG66: 18.2 | AH66: 18.6 | AI66: 20.2 | AJ66: 23 | AK66: 25.6 | AL66: 27.3 | AM66: 29 | AN66: 28.7 | AO66: 27.8 | AP66: 26 | AQ66: 22.8 | AR66: 20 | AS66: 23.93 | AT66: 5.1 | AU66: 5.1 | AV66: 4.6 | AW66: 4.6 | AX66: 4.6 | AY66: 5.1 | AZ66: 5.6 | BA66: 5.1 | BB66: 4.1 | BC66: 5.1 | BD66: 5.6 | BE66: 5 | BF66: 4.97 | BH66: 63 | BI66: New-Guinea | BL66: China | BM66: =IF(BN66>1,"",MAX(BM$3:BM65)+1) ->  | BN66: =IF(BL66="","",COUNTIF(BL$4:BL66,BL66)) -> 11 | BO66: 19011 | BP66: Taipei | BS66: 70063 | BU66: 11063
A67: Asia | B67: China | C67: Taiyuan | D67: 37.42 | E67: 112.39 | F67: 782 | G67: 60 | H67: 89 | I67: 97 | J67: 115 | K67: 138 | L67: 151 | M67: 172 | N67: 141 | O67: 129 | P67: 88 | Q67: 64 | R67: 71 | S67: 1315 | T67: 30 | U67: 38 | V67: 49 | W67: 59 | X67: 70 | Y67: 73 | Z67: 77 | AA67: 67 | AB67: 57 | AC67: 43 | AD67: 31 | AE67: 29 | AF67: 623 | AG67: -6.5 | AH67: -3.8 | AI67: 2.8 | AJ67: 10.5 | AK67: 16.5 | AL67: 20.9 | AM67: 22.7 | AN67: 21.6 | AO67: 17.2 | AP67: 10.5 | AQ67: 1.8 | AR67: -4.3 | AS67: 9.16 | AT67: 4.1 | AU67: 5.6 | AV67: 3.6 | AW67: 4.1 | AX67: 3.6 | AY67: 3.6 | AZ67: 2.6 | BA67: 2.6 | BB67: 2.6 | BC67: 3.1 | BD67: 5.6 | BE67: 4.1 | BF67: 3.77 | BH67: 64 | BI67: Nicaragua | BL67: China | BM67: =IF(BN67>1,"",MAX(BM$3:BM66)+1) ->  | BN67: =IF(BL67="","",COUNTIF(BL$4:BL67,BL67)) -> 12 | BO67: 19012 | BP67: Taiyuan | BS67: 70064 | BU67: 11064
A68: Asia | B68: China | C68: Yechang | D68: 30.42 | E68: 111.15 | F68: 70 | G68: 59.5 | H68: 89.4 | I68: 96 | J68: 113.8 | K68: 137.6 | L68: 150.5 | M68: 171.9 | N68: 140.6 | O68: 128.9 | P68: 87.8 | Q68: 64.1 | R68: 71.4 | S68: 1311.4 | AG68: 4.8 | AH68: 6.2 | AI68: 10.9 | AJ68: 16.8 | AK68: 21.7 | AL68: 25.31 | AM68: 27.9 | AN68: 27.6 | AO68: 23.1 | AP68: 18 | AQ68: 12.4 | AR68: 6.9 | AS68: 16.8 | AT68: 1.09 | AU68: 1.2 | AV68: 1.31 | AW68: 1.4 | AX68: 1.31 | AY68: 1.3 | AZ68: 1.3 | BA68: 1.3 | BB68: 1.19 | BC68: 1 | BD68: 1.1 | BE68: 1.1 | BF68: 1.22 | BH68: 65 | BI68: =IF(BH68>MAX(BK$4:BK$940),"",VLOOKUP(BH68,BK$4:BL$940,2,FALSE)) -> Nigeria | BL68: China | BM68: =IF(BN68>1,"",MAX(BM$3:BM67)+1) ->  | BN68: =IF(BL68="","",COUNTIF(BL$4:BL68,BL68)) -> 13 | BO68: =IF(BL68="","",thousand*VLOOKUP(BL68,BL$4:BM$940,2,FALSE)+BN68) -> 19013 | BP68: Yechang | BS68: =country*thousand+BH68 -> 70065 | BT68: =IF(COUNTIF(BO$4:BO$940,BS68)>0,VLOOKUP(BS68,BO$4:BP$940,2,FALSE),"") ->  | BU68: =BU$1*thousand+BH68 -> 11065 | BV68: =IF(COUNTIF(BO$4:BO$940,BU68)>0,VLOOKUP(BU68,BO$4:BP$940,2,FALSE),"") -> 
A69: South_America | B69: Colombia | C69: Bogota | D69: 4.23 | E69: -73.49 | F69: 2650 | G69: 150 | H69: 141 | I69: 154 | J69: 144 | K69: 151 | L69: 141 | M69: 153 | N69: 159 | O69: 155 | P69: 148 | Q69: 133 | R69: 140 | S69: 1769 | T69: 66 | U69: 62 | V69: 70 | W69: 67 | X69: 68 | Y69: 64 | Z69: 67 | AA69: 70 | AB69: 68 | AC69: 68 | AD69: 62 | AE69: 63 | AF69: 795 | AG69: 13.5 | AH69: 14 | AI69: 14.9 | AJ69: 16 | AK69: 16 | AL69: 16 | AM69: 15.8 | AN69: 16.1 | AO69: 16.5 | AP69: 15.6 | AQ69: 14.9 | AR69: 14.6 | AS69: 15.33 | AT69: 3.6 | AU69: 3.6 | AV69: 3.6 | AW69: 3.5 | AX69: 3.1 | AY69: 3.1 | AZ69: 3.7 | BA69: 3.7 | BB69: 3.5 | BC69: 3.2 | BD69: 3.2 | BE69: 3.2 | BF69: 3.42 | BH69: 66 | BI69: Norway | BK69: =BM69 -> 20 | BL69: =IF(B69="","",B69) -> Colombia | BM69: =IF(BN69>1,"",MAX(BM$3:BM68)+1) -> 20 | BN69: =IF(BL69="","",COUNTIF(BL$4:BL69,BL69)) -> 1 | BO69: 20001 | BP69: =IF(C69="","",C69) -> Bogota | BS69: 70066 | BU69: 11066
A70: Europe | B70: Croatia | C70: Parg | D70: 45.36 | E70: 14.38 | F70: 863 | G70: 36.5 | H70: 49.4 | I70: 85.6 | J70: 101.5 | K70: 145.8 | L70: 147.6 | M70: 166.7 | N70: 144.3 | O70: 92.9 | P70: 59.5 | Q70: 36.7 | R70: 32 | S70: 1098.5 | AG70: -3.9 | AH70: -2.5 | AI70: 1.3 | AJ70: 6 | AK70: 10.2 | AL70: 13.8 | AM70: 15.4 | AN70: 15.2 | AO70: 12.1 | AP70: 7.1 | AQ70: 2.5 | AR70: -1.1 | AS70: 6.34 | AT70: 2.9 | AU70: 3 | AV70: 2.8 | AW70: 2.7 | AX70: 2.6 | AY70: 2.3 | AZ70: 2.4 | BA70: 2.1 | BB70: 2.4 | BC70: 2.7 | BD70: 2.8 | BE70: 3.2 | BF70: 2.66 | BH70: 67 | BI70: Ouganda | BK70: 21 | BL70: Croatia | BM70: =IF(BN70>1,"",MAX(BM$3:BM69)+1) -> 21 | BN70: =IF(BL70="","",COUNTIF(BL$4:BL70,BL70)) -> 1 | BO70: 21001 | BP70: Parg | BS70: 70067 | BU70: 11067
A71: North_America | B71: Cuba | C71: Havana | D71: 23.01 | E71: -82.12 | F71: 5 | G71: 120 | H71: 126 | I71: 165 | J71: 186 | K71: 183 | L71: 133 | M71: 188 | N71: 173 | O71: 143 | P71: 131 | Q71: 97 | R71: 102 | S71: 1747 | T71: 54 | U71: 56 | V71: 71 | W71: 75 | X71: 84 | Y71: 80 | Z71: 84 | AA71: 81 | AB71: 73 | AC71: 66 | AD71: 54 | AE71: 51 | AF71: 829 | AG71: 22.4 | AH71: 22.4 | AI71: 23.5 | AJ71: 24.7 | AK71: 26.3 | AL71: 27.5 | AM71: 28.1 | AN71: 28.1 | AO71: 28 | AP71: 26.3 | AQ71: 25.2 | AR71: 23.5 | AS71: 25.5 | AT71: 3.7 | AU71: 5.7 | AV71: 4.2 | AW71: 4.2 | AX71: 3.7 | AY71: 2.7 | AZ71: 2.7 | BA71: 2.7 | BB71: 2.7 | BC71: 5.1 | BD71: 3.7 | BE71: 3.7 | BF71: 3.73 | BH71: 68 | BI71: Pakistan | BK71: 22 | BL71: Cuba | BM71: =IF(BN71>1,"",MAX(BM$3:BM70)+1) -> 22 | BN71: =IF(BL71="","",COUNTIF(BL$4:BL71,BL71)) -> 1 | BO71: 22001 | BP71: Havana | BS71: 70068 | BU71: 11068
A72: Europe | B72: Czechoslovakia | C72: Praha | D72: 49.55 | E72: 13.57 | F72: 187 | G72: 21 | H72: 38 | I72: 72 | J72: 114 | K72: 149 | L72: 146 | M72: 145 | N72: 136 | O72: 87 | P72: 57 | Q72: 25 | R72: 15 | S72: 1005 | T72: 16 | U72: 26 | V72: 46 | W72: 64 | X72: 81 | Y72: 84 | Z72: 83 | AA72: 72 | AB72: 52 | AC72: 35 | AD72: 19 | AE72: 12 | AF72: 590 | AG72: -1.4 | AH72: -0.8 | AI72: 4.2 | AJ72: 7.6 | AK72: 13.1 | AL72: 15.9 | AM72: 17.5 | AN72: 17.5 | AO72: 14.3 | AP72: 8.7 | AQ72: 3.3 | AR72: 0.3 | AS72: 8.35 | AT72: 6.7 | AU72: 6.2 | AV72: 5.7 | AW72: 4.6 | AX72: 3.6 | AY72: 4.6 | AZ72: 4.6 | BA72: 4.1 | BB72: 5.1 | BC72: 5.1 | BD72: 6.2 | BE72: 6.7 | BF72: 5.27 | BH72: 69 | BI72: Peru | BK72: 23 | BL72: Czechoslovakia | BM72: =IF(BN72>1,"",MAX(BM$3:BM71)+1) -> 23 | BN72: =IF(BL72="","",COUNTIF(BL$4:BL72,BL72)) -> 1 | BO72: 23001 | BP72: Praha | BS72: 70069 | BU72: 11069
A73: Europe | B73: Denmark | C73: Kobenhavn | D73: 55.39 | E73: 12.35 | F73: 5 | G73: 16 | H73: 32 | I73: 63 | J73: 115 | K73: 156 | L73: 154 | M73: 165 | N73: 132 | O73: 80 | P73: 44 | Q73: 20 | R73: 11 | S73: 988 | T73: 11 | U73: 21 | V73: 40 | W73: 60 | X73: 79 | Y73: 83 | Z73: 82 | AA73: 68 | AB73: 47 | AC73: 28 | AD73: 14 | AE73: 8 | AF73: 541 | AG73: 2.3 | AH73: 1 | AI73: 2.5 | AJ73: 5.1 | AK73: 10.4 | AL73: 13.3 | AM73: 15.2 | AN73: 15.9 | AO73: 13.8 | AP73: 10.5 | AQ73: 6.5 | AR73: 4 | AS73: 8.37 | AT73: 7.2 | AU73: 6.3 | AV73: 6.6 | AW73: 6.3 | AX73: 5.8 | AY73: 5.7 | AZ73: 5.7 | BA73: 5.1 | BB73: 5.8 | BC73: 5.8 | BD73: 6.3 | BE73: 6.3 | BF73: 6.08 | BH73: 70 | BI73: Philippines | BK73: 24 | BL73: Denmark | BM73: =IF(BN73>1,"",MAX(BM$3:BM72)+1) -> 24 | BN73: =IF(BL73="","",COUNTIF(BL$4:BL73,BL73)) -> 1 | BO73: 24001 | BP73: Kobenhavn | BS73: 70070 | BU73: 11070
A74: Africa | B74: Egypt | C74: Cairo | D74: 30.12 | E74: 31.24 | F74: 16 | G74: 106 | H74: 124 | I74: 172 | J74: 198 | K74: 232 | L74: 239 | M74: 242 | N74: 224 | O74: 188 | P74: 157 | Q74: 113 | R74: 96 | S74: 2091 | T74: 39 | U74: 41 | V74: 55 | W74: 60 | X74: 64 | Y74: 60 | Z74: 62 | AA74: 58 | AB74: 51 | AC74: 46 | AD74: 39 | AE74: 37 | AF74: 612 | AG74: 14.2 | AH74: 15.1 | AI74: 17.7 | AJ74: 21.6 | AK74: 24.7 | AL74: 27.4 | AM74: 28 | AN74: 27.7 | AO74: 26.8 | AP74: 24 | AQ74: 19.7 | AR74: 16 | AS74: 21.91 | AT74: 4.1 | AU74: 4.6 | AV74: 3.6 | AW74: 4.1 | AX74: 4.1 | AY74: 4.1 | AZ74: 3.6 | BA74: 3.6 | BB74: 3.6 | BC74: 3.6 | BD74: 3.1 | BE74: 3.6 | BF74: 3.81 | BH74: 71 | BI74: Poland | BK74: 25 | BL74: Egypt | BM74: =IF(BN74>1,"",MAX(BM$3:BM73)+1) -> 25 | BN74: =IF(BL74="","",COUNTIF(BL$4:BL74,BL74)) -> 1 | BO74: 25001 | BP74: Cairo | BS74: 70071 | BU74: 11071
A75: South_America | B75: Equator | C75: Quito | D75: -0.11 | E75: -78.21 | F75: 2818 | G75: 155 | H75: 147 | I75: 164 | J75: 152 | K75: 153 | L75: 141 | M75: 146 | N75: 154 | O75: 157 | P75: 166 | Q75: 156 | R75: 155 | S75: 1846 | T75: 71 | U75: 65 | V75: 73 | W75: 69 | X75: 67 | Y75: 62 | Z75: 66 | AA75: 69 | AB75: 70 | AC75: 72 | AD75: 68 | AE75: 69 | AF75: 821 | AG75: 14.4 | AH75: 14.4 | AI75: 14.4 | AJ75: 15 | AK75: 14.4 | AL75: 14.4 | AM75: 14.4 | AN75: 14.4 | AO75: 14.4 | AP75: 14.4 | AQ75: 14.4 | AR75: 14.4 | AS75: 14.45 | AT75: 3.6 | AU75: 3.6 | AV75: 3.6 | AW75: 3.1 | AX75: 3.1 | AY75: 3.1 | AZ75: 4.1 | BA75: 4.1 | BB75: 3.1 | BC75: 3.6 | BD75: 3.6 | BE75: 3.6 | BF75: 3.52 | BH75: 72 | BI75: Portugal | BK75: 26 | BL75: Equator | BM75: =IF(BN75>1,"",MAX(BM$3:BM74)+1) -> 26 | BN75: =IF(BL75="","",COUNTIF(BL$4:BL75,BL75)) -> 1 | BO75: 26001 | BP75: Quito | BS75: 70072 | BU75: 11072
A76: Africa | B76: Ethiopia | C76: Addis Ababa | D76: 9.12 | E76: 38.39 | F76: 2450 | G76: 171 | H76: 170 | I76: 191 | J76: 171 | K76: 167 | L76: 140 | M76: 119 | N76: 126 | O76: 142 | P76: 182 | Q76: 186 | R76: 170 | S76: 1935 | T76: 66 | U76: 63 | V76: 75 | W76: 77 | X76: 79 | Y76: 75 | Z76: 74 | AA76: 76 | AB76: 76 | AC76: 73 | AD76: 59 | AE76: 62 | AF76: 855 | AG76: 16.2 | AH76: 17.1 | AI76: 17.5 | AJ76: 17.5 | AK76: 17.8 | AL76: 16.6 | AM76: 15.1 | AN76: 15.8 | AO76: 16 | AP76: 16.6 | AQ76: 15.7 | AR76: 15.8 | AS76: 16.48 | AT76: 5.1 | AU76: 5.1 | AV76: 5.7 | AW76: 5.7 | AX76: 5.7 | AY76: 4.1 | AZ76: 4.1 | BA76: 4.1 | BB76: 5.7 | BC76: 6.2 | BD76: 5.7 | BE76: 5.7 | BF76: 5.24 | BH76: 73 | BI76: Puerto Rico | BK76: 27 | BL76: Ethiopia | BM76: =IF(BN76>1,"",MAX(BM$3:BM75)+1) -> 27 | BN76: =IF(BL76="","",COUNTIF(BL$4:BL76,BL76)) -> 1 | BO76: 27001 | BP76: Addis Ababa | BS76: 70073 | BU76: 11073
A77: Africa | B77: Ethiopia | C77: Mandera | D77: 3.57 | E77: 41.52 | F77: 230 | G77: 192 | H77: 177 | I77: 187 | J77: 167 | K77: 167 | L77: 143 | M77: 138 | N77: 153 | O77: 164 | P77: 161 | Q77: 168 | R77: 189 | S77: 2006 | T77: 67 | U77: 65 | V77: 78 | W77: 76 | X77: 76 | Y77: 72 | Z77: 75 | AA77: 78 | AB77: 77 | AC77: 78 | AD77: 71 | AE77: 66 | AF77: 879 | AG77: 29.2 | AH77: 30.6 | AI77: 30.9 | AJ77: 30.3 | AK77: 29.5 | AL77: 28.4 | AM77: 27.9 | AN77: 28.1 | AO77: 29 | AP77: 28.4 | AQ77: 28.4 | AR77: 28.7 | AS77: 29.12 | AT77: 3.4 | AU77: 3 | AV77: 3.5 | AW77: 4.3 | AX77: 5.1 | AY77: 5.9 | AZ77: 5.9 | BA77: 5.9 | BB77: 5.7 | BC77: 4.8 | BD77: 3.4 | BE77: 3 | BF77: 4.49 | BH77: 74 | BI77: Qatar | BL77: Ethiopia | BM77: =IF(BN77>1,"",MAX(BM$3:BM76)+1) ->  | BN77: =IF(BL77="","",COUNTIF(BL$4:BL77,BL77)) -> 2 | BO77: 27002 | BP77: Mandera | BS77: 70074 | BU77: 11074
A78: Pacific | B78: Fidji | C78: Nandi | D78: -17.45 | E78: 177.27 | F78: 16 | G78: 196.3 | H78: 156.5 | I78: 165.1 | J78: 145.9 | K78: 126.4 | L78: 117.1 | M78: 129.9 | N78: 148 | O78: 169.1 | P78: 192.5 | Q78: 188.6 | R78: 188.9 | S78: 1924.2 | AG78: 27.1 | AH78: 27.19 | AI78: 26.92 | AJ78: 25.81 | AK78: 24.95 | AL78: 23.87 | AM78: 23.35 | AN78: 23.63 | AO78: 24.06 | AP78: 25.36 | AQ78: 25.86 | AR78: 26.74 | AS78: 25.4 | AT78: 2.8 | AU78: 2.6 | AV78: 2.6 | AW78: 2.51 | AX78: 2.8 | AY78: 2.7 | AZ78: 2.9 | BA78: 3.2 | BB78: 3.19 | BC78: 3.3 | BD78: 3 | BE78: 3 | BF78: 2.88 | BH78: 75 | BI78: Romania | BK78: 28 | BL78: Fidji | BM78: =IF(BN78>1,"",MAX(BM$3:BM77)+1) -> 28 | BN78: =IF(BL78="","",COUNTIF(BL$4:BL78,BL78)) -> 1 | BO78: 28001 | BP78: Nandi | BS78: 70075 | BU78: 11075
A79: Australia | B79: Fidji | C79: Suva/Laucala Bay | D79: -18.09 | E79: 178.27 | F79: 6 | G79: 189.7 | H79: 149.1 | I79: 148.7 | J79: 126.6 | K79: 99.5 | L79: 95.7 | M79: 101.2 | N79: 115.3 | O79: 149.5 | P79: 147.3 | Q79: 159.8 | R79: 166.6 | S79: 1649 | AG79: 27.14 | AH79: 27.37 | AI79: 27.01 | AJ79: 26.01 | AK79: 25.13 | AL79: 24.17 | AM79: 23.44 | AN79: 23.51 | AO79: 23.59 | AP79: 24.84 | AQ79: 25.31 | AR79: 26.49 | AS79: 25.33 | AT79: 3.48 | AU79: 3 | AV79: 3.39 | AW79: 3.28 | AX79: 3.49 | AY79: 3.3 | AZ79: 3.3 | BA79: 3.79 | BB79: 4.08 | BC79: 3.89 | BD79: 3.49 | BE79: 3.69 | BF79: 3.51 | BH79: 76 | BI79: Russia | BL79: Fidji | BM79: =IF(BN79>1,"",MAX(BM$3:BM78)+1) ->  | BN79: =IF(BL79="","",COUNTIF(BL$4:BL79,BL79)) -> 2 | BO79: 28002 | BP79: Suva/Laucala Bay | BS79: 70076 | BU79: 11076
A80: Europe | B80: Finland | C80: Helsinki | D80: 59.57 | E80: 24.07 | F80: 5 | G80: 8 | H80: 25 | I80: 64 | J80: 107 | K80: 164 | L80: 182 | M80: 169 | N80: 125 | O80: 69 | P80: 33 | Q80: 9 | R80: 5 | S80: 960 | T80: 6 | U80: 16 | V80: 37 | W80: 57 | X80: 76 | Y80: 80 | Z80: 80 | AA80: 65 | AB80: 42 | AC80: 22 | AD80: 7 | AE80: 4 | AF80: 492 | AG80: -4.1 | AH80: -5 | AI80: -2.5 | AJ80: 2.3 | AK80: 8.7 | AL80: 12.2 | AM80: 15.3 | AN80: 14.3 | AO80: 10.6 | AP80: 6.3 | AQ80: 1.6 | AR80: -2 | AS80: 4.81 | AT80: 3.6 | AU80: 3.6 | AV80: 5.7 | AW80: 4.6 | AX80: 4.6 | AY80: 4.6 | AZ80: 4.1 | BA80: 4.6 | BB80: 3.1 | BC80: 3.1 | BD80: 5.7 | BE80: 6.2 | BF80: 4.46 | BH80: 77 | BI80: Saudi Arabia | BK80: 29 | BL80: Finland | BM80: =IF(BN80>1,"",MAX(BM$3:BM79)+1) -> 29 | BN80: =IF(BL80="","",COUNTIF(BL$4:BL80,BL80)) -> 1 | BO80: 29001 | BP80: Helsinki | BS80: 70077 | BU80: 11077
A81: Europe | B81: France | C81: Ajaccio | D81: 41.55 | E81: 8.48 | F81: 4 | G81: 54 | H81: 70 | I81: 115 | J81: 150 | K81: 186 | L81: 212 | M81: 222 | N81: 193 | O81: 144 | P81: 100 | Q81: 62 | R81: 48 | S81: 1556 | T81: 26 | U81: 33 | V81: 49 | W81: 59 | X81: 69 | Y81: 64 | Z81: 62 | AA81: 57 | AB81: 48 | AC81: 39 | AD81: 28 | AE81: 23 | AF81: 557 | AG81: 8.6 | AH81: 9 | AI81: 10.1 | AJ81: 12.3 | AK81: 15.7 | AL81: 19.1 | AM81: 21.9 | AN81: 22.1 | AO81: 19.9 | AP81: 16.7 | AQ81: 12.6 | AR81: 9.6 | AS81: 14.8 | AT81: 3.1 | AU81: 3.3 | AV81: 3.3 | AW81: 3.4 | AX81: 3.3 | AY81: 3.4 | AZ81: 3.6 | BA81: 3.6 | BB81: 3.2 | BC81: 3 | BD81: 3.2 | BE81: 3.2 | BF81: 3.3 | BH81: 78 | BI81: Senegal | BK81: 30 | BL81: France | BM81: =IF(BN81>1,"",MAX(BM$3:BM80)+1) -> 30 | BN81: =IF(BL81="","",COUNTIF(BL$4:BL81,BL81)) -> 1 | BO81: 30001 | BP81: Ajaccio | BS81: 70078 | BU81: 11078
A82: Europe | B82: France | C82: Aurillac | D82: 44.54 | E82: 2.25 | F82: 639 | G82: 41 | H82: 55.9 | I82: 97.3 | J82: 132.2 | K82: 158 | L82: 177.5 | M82: 198.9 | N82: 162.5 | O82: 123.2 | P82: 80 | Q82: 44.8 | R82: 34.1 | S82: 1305.4 | AG82: 3 | AH82: 3.8 | AI82: 7.5 | AJ82: 9.9 | AK82: 13.7 | AL82: 16.7 | AM82: 19 | AN82: 18.7 | AO82: 15.8 | AP82: 11.6 | AQ82: 6.9 | AR82: 4.1 | AS82: 10.89 | AT82: 3.5 | AU82: 3.2 | AV82: 3.19 | AW82: 3.59 | AX82: 3.19 | AY82: 2.89 | AZ82: 2.8 | BA82: 2.6 | BB82: 2.8 | BC82: 3 | BD82: 3.3 | BE82: 3.3 | BF82: 3.11 | BH82: 79 | BI82: Singapore | BL82: France | BM82: =IF(BN82>1,"",MAX(BM$3:BM81)+1) ->  | BN82: =IF(BL82="","",COUNTIF(BL$4:BL82,BL82)) -> 2 | BO82: 30002 | BP82: Aurillac | BS82: 70079 | BU82: 11079
A83: Europe | B83: France | C83: Auxerre | D83: 47.48 | E83: 3.33 | F83: 212 | G83: 28 | H83: 48 | I83: 86 | J83: 125 | K83: 152 | L83: 164 | M83: 182 | N83: 154 | O83: 107 | P83: 66 | Q83: 37 | R83: 24 | S83: 1173 | T83: 20 | U83: 30 | V83: 50 | W83: 66 | X83: 81 | Y83: 84 | Z83: 82 | AA83: 72 | AB83: 55 | AC83: 39 | AD83: 24 | AE83: 17 | AF83: 620 | AG83: 2.6 | AH83: 3.4 | AI83: 7.5 | AJ83: 10.5 | AK83: 14 | AL83: 17 | AM83: 19 | AN83: 18.8 | AO83: 16.2 | AP83: 11.2 | AQ83: 6.5 | AR83: 3.5 | AS83: 10.85 | AT83: 4.2 | AU83: 3.9 | AV83: 4.2 | AW83: 4 | AX83: 3.6 | AY83: 3.4 | AZ83: 3.3 | BA83: 3.1 | BB83: 3.4 | BC83: 3.4 | BD83: 3.9 | BE83: 4.1 | BF83: 3.71 | BH83: 80 | BI83: Slovenia | BL83: France | BM83: =IF(BN83>1,"",MAX(BM$3:BM82)+1) ->  | BN83: =IF(BL83="","",COUNTIF(BL$4:BL83,BL83)) -> 3 | BO83: 30003 | BP83: Auxerre | BS83: 70080 | BU83: 11080
A84: Europe | B84: France | C84: Biscarrosse | D84: 44.26 | E84: -1.14 | F84: 33 | G84: 42 | H84: 60 | I84: 106 | J84: 143 | K84: 172 | L84: 184 | M84: 194 | N84: 170 | O84: 130 | P84: 82 | Q84: 50 | R84: 36 | S84: 1369 | T84: 28 | U84: 36 | V84: 54 | W84: 66 | X84: 80 | Y84: 80 | Z84: 76 | AA84: 68 | AB84: 54 | AC84: 45 | AD84: 30 | AE84: 24 | AF84: 641 | AG84: 6.3 | AH84: 6.9 | AI84: 10.2 | AJ84: 12.1 | AK84: 14.6 | AL84: 17.9 | AM84: 19.8 | AN84: 20.1 | AO84: 18.2 | AP84: 14 | AQ84: 9.6 | AR84: 7.1 | AS84: 13.07 | AT84: 3.3 | AU84: 3.5 | AV84: 3.6 | AW84: 3.6 | AX84: 3.3 | AY84: 3.1 | AZ84: 3 | BA84: 2.8 | BB84: 2.6 | BC84: 2.8 | BD84: 2.9 | BE84: 3.2 | BF84: 3.14 | BH84: 81 | BI84: South Africa | BL84: France | BM84: =IF(BN84>1,"",MAX(BM$3:BM83)+1) ->  | BN84: =IF(BL84="","",COUNTIF(BL$4:BL84,BL84)) -> 4 | BO84: 30004 | BP84: Biscarrosse | BS84: 70081 | BU84: 11081
A85: Europe | B85: France | C85: Bordeaux | D85: 45.07 | E85: -0.32 | F85: 10 | G85: 39 | H85: 56 | I85: 97 | J85: 131 | K85: 156 | L85: 171 | M85: 184 | N85: 160 | O85: 125 | P85: 80 | Q85: 48 | R85: 34 | S85: 1281 | T85: 27 | U85: 36 | V85: 56 | W85: 69 | X85: 84 | Y85: 84 | Z85: 80 | AA85: 71 | AB85: 54 | AC85: 43 | AD85: 29 | AE85: 23 | AF85: 656 | AG85: 6.3 | AH85: 7.3 | AI85: 9.6 | AJ85: 11.3 | AK85: 15.1 | AL85: 18 | AM85: 20.7 | AN85: 20.7 | AO85: 18.4 | AP85: 14.1 | AQ85: 9.6 | AR85: 7.3 | AS85: 13.2 | AT85: 4.5 | AU85: 5.6 | AV85: 5.1 | AW85: 4.6 | AX85: 4.1 | AY85: 4.1 | AZ85: 3.6 | BA85: 3.6 | BB85: 3.6 | BC85: 4 | BD85: 3.1 | BE85: 5.6 | BF85: 4.29 | BH85: 82 | BI85: Spain | BL85: France | BM85: =IF(BN85>1,"",MAX(BM$3:BM84)+1) ->  | BN85: =IF(BL85="","",COUNTIF(BL$4:BL85,BL85)) -> 5 | BO85: 30005 | BP85: Bordeaux | BS85: 70082 | BU85: 11082
A86: Europe | B86: France | C86: Bourges | D86: 47.04 | E86: 2.22 | F86: 161 | G86: 28 | H86: 50 | I86: 85 | J86: 122 | K86: 151 | L86: 167 | M86: 183 | N86: 150 | O86: 108 | P86: 68 | Q86: 38 | R86: 25 | S86: 1175 | T86: 20 | U86: 31 | V86: 50 | W86: 66 | X86: 81 | Y86: 84 | Z86: 82 | AA86: 73 | AB86: 56 | AC86: 40 | AD86: 25 | AE86: 18 | AF86: 626 | AG86: 3.2 | AH86: 4.4 | AI86: 6.7 | AJ86: 9.7 | AK86: 13.2 | AL86: 16.7 | AM86: 19.2 | AN86: 18.6 | AO86: 16 | AP86: 11.7 | AQ86: 6.5 | AR86: 3.8 | AS86: 10.81 | AT86: 4.2 | AU86: 4.4 | AV86: 4.3 | AW86: 4 | AX86: 3.5 | AY86: 3.3 | AZ86: 3.3 | BA86: 3.2 | BB86: 3.3 | BC86: 3.5 | BD86: 4 | BE86: 4.2 | BF86: 3.77 | BH86: 83 | BI86: Sri Lanka | BL86: France | BM86: =IF(BN86>1,"",MAX(BM$3:BM85)+1) ->  | BN86: =IF(BL86="","",COUNTIF(BL$4:BL86,BL86)) -> 6 | BO86: 30006 | BP86: Bourges | BS86: 70083 | BU86: 11083
A87: Europe | B87: France | C87: Brest | D87: 48.48 | E87: 7.38 | F87: 150 | G87: 30.4 | H87: 42.6 | I87: 92.4 | J87: 129 | K87: 167.1 | L87: 169.2 | M87: 169.9 | N87: 137.3 | O87: 90 | P87: 67.9 | Q87: 35.4 | R87: 24.2 | S87: 1155.3 | T87: 20.5 | U87: 29 | V87: 50.8 | W87: 67.5 | X87: 83.4 | Y87: 87.6 | Z87: 86.8 | AA87: 74.7 | AB87: 54.3 | AC87: 37.8 | AD87: 22.8 | AE87: 17.1 | AF87: 632.3 | AG87: 6.1 | AH87: 6 | AI87: 8.1 | AJ87: 9.3 | AK87: 11.7 | AL87: 14.4 | AM87: 15.7 | AN87: 16.1 | AO87: 14.8 | AP87: 12 | AQ87: 8.9 | AR87: 6.9 | AS87: 10.83 | AT87: 4.3 | AU87: 4.4 | AV87: 4.3 | AW87: 4.2 | AX87: 3.8 | AY87: 3.5 | AZ87: 3.5 | BA87: 3.3 | BB87: 3.3 | BC87: 3.4 | BD87: 3.8 | BE87: 4.3 | BF87: 3.84 | BH87: 84 | BI87: Sweden | BL87: France | BM87: =IF(BN87>1,"",MAX(BM$3:BM86)+1) ->  | BN87: =IF(BL87="","",COUNTIF(BL$4:BL87,BL87)) -> 7 | BO87: 30007 | BP87: Brest | BS87: 70084 | BU87: 11084
A88: Europe | B88: France | C88: Caen | D88: 49.11 | E88: -0.28 | F88: 64 | G88: 28 | H88: 46 | I88: 83 | J88: 120 | K88: 150 | L88: 158 | M88: 167 | N88: 134 | O88: 99 | P88: 60 | Q88: 34 | R88: 22 | S88: 1101 | T88: 19 | U88: 28 | V88: 48 | W88: 65 | X88: 81 | Y88: 84 | Z88: 84 | AA88: 73 | AB88: 54 | AC88: 37 | AD88: 22 | AE88: 16 | AF88: 611 | AG88: 4.4 | AH88: 4.7 | AI88: 6.6 | AJ88: 8.5 | AK88: 11.7 | AL88: 14.6 | AM88: 16.7 | AN88: 16.6 | AO88: 14.7 | AP88: 11.5 | AQ88: 7.5 | AR88: 5.3 | AS88: 10.23 | AT88: 5.4 | AU88: 5.2 | AV88: 5.4 | AW88: 5.1 | AX88: 4.5 | AY88: 4.1 | AZ88: 4 | BA88: 4 | BB88: 4.1 | BC88: 4.2 | BD88: 5 | BE88: 5.3 | BF88: 4.69 | BH88: 85 | BI88: Switzerland | BL88: France | BM88: =IF(BN88>1,"",MAX(BM$3:BM87)+1) ->  | BN88: =IF(BL88="","",COUNTIF(BL$4:BL88,BL88)) -> 8 | BO88: 30008 | BP88: Caen | BS88: 70085 | BU88: 11085
A89: Europe | B89: France | C89: Carcassonne | D89: 43.13 | E89: 2.19 | F89: 130 | G89: 45.3 | H89: 60.9 | I89: 107.7 | J89: 135.3 | K89: 169.4 | L89: 186.4 | M89: 198.4 | N89: 169.5 | O89: 129.5 | P89: 89.5 | Q89: 51 | R89: 40.1 | S89: 1383.1 | AG89: 5.88 | AH89: 6.92 | AI89: 8.8 | AJ89: 11.22 | AK89: 14.99 | AL89: 18.38 | AM89: 21.74 | AN89: 21.08 | AO89: 18.33 | AP89: 14.53 | AQ89: 8.77 | AR89: 6.66 | AS89: 13.11 | AT89: 5.1 | AU89: 5.3 | AV89: 5.3 | AW89: 5.5 | AX89: 4.99 | AY89: 4.9 | AZ89: 4.69 | BA89: 4.39 | BB89: 4.39 | BC89: 4.4 | BD89: 4.69 | BE89: 4.6 | BF89: 4.85 | BH89: 86 | BI89: Tanzania | BL89: France | BM89: =IF(BN89>1,"",MAX(BM$3:BM88)+1) ->  | BN89: =IF(BL89="","",COUNTIF(BL$4:BL89,BL89)) -> 9 | BO89: 30009 | BP89: Carcassonne | BS89: 70086 | BU89: 11086
A90: Europe | B90: France | C90: Carpentras | D90: 44.02 | E90: 5.05 | F90: 109 | G90: 53 | H90: 67 | I90: 118 | J90: 146 | K90: 184 | L90: 206 | M90: 218 | N90: 188 | O90: 138 | P90: 87 | Q90: 55 | R90: 44 | S90: 1504 | T90: 24 | U90: 31 | V90: 46 | W90: 58 | X90: 69 | Y90: 66 | Z90: 63 | AA90: 57 | AB90: 47 | AC90: 38 | AD90: 26 | AE90: 21 | AF90: 546 | AG90: 5.5 | AH90: 5.8 | AI90: 9.8 | AJ90: 11.3 | AK90: 15.1 | AL90: 18.9 | AM90: 22.9 | AN90: 21.3 | AO90: 18.4 | AP90: 13.9 | AQ90: 8.7 | AR90: 5.4 | AS90: 13.08 | AT90: 4.1 | AU90: 4.3 | AV90: 4.6 | AW90: 4.8 | AX90: 4.2 | AY90: 4.3 | AZ90: 4.3 | BA90: 4.1 | BB90: 3.7 | BC90: 3.7 | BD90: 4 | BE90: 4 | BF90: 4.18 | BH90: 87 | BI90: Thailand | BL90: France | BM90: =IF(BN90>1,"",MAX(BM$3:BM89)+1) ->  | BN90: =IF(BL90="","",COUNTIF(BL$4:BL90,BL90)) -> 10 | BO90: 30010 | BP90: Carpentras | BS90: 70087 | BU90: 11087
A91: Europe | B91: France | C91: Clermont-Ferrand | D91: 45.48 | E91: 3.09 | F91: 329 | G91: 37 | H91: 54 | I91: 94 | J91: 126 | K91: 144 | L91: 167 | M91: 185 | N91: 154 | O91: 116 | P91: 72 | Q91: 43 | R91: 32 | S91: 1224 | T91: 26 | U91: 34 | V91: 55 | W91: 69 | X91: 86 | Y91: 85 | Z91: 80 | AA91: 73 | AB91: 57 | AC91: 44 | AD91: 28 | AE91: 22 | AF91: 659 | AG91: 3 | AH91: 4.4 | AI91: 7.1 | AJ91: 9.9 | AK91: 13.8 | AL91: 17.1 | AM91: 19 | AN91: 18.7 | AO91: 16.3 | AP91: 11.6 | AQ91: 6.9 | AR91: 4.4 | AS91: 11.02 | AT91: 2.8 | AU91: 3 | AV91: 3.5 | AW91: 3.3 | AX91: 2.6 | AY91: 2.4 | AZ91: 2.3 | BA91: 2 | BB91: 2.2 | BC91: 2.6 | BD91: 2.8 | BE91: 3.2 | BF91: 2.72 | BH91: 88 | BI91: Tunisia | BL91: France | BM91: =IF(BN91>1,"",MAX(BM$3:BM90)+1) ->  | BN91: =IF(BL91="","",COUNTIF(BL$4:BL91,BL91)) -> 11 | BO91: 30011 | BP91: Clermont-Ferrand | BS91: 70088 | BU91: 11088
A92: Europe | B92: France | C92: Dijon | D92: 47.16 | E92: 5.05 | F92: 222 | G92: 28 | H92: 48 | I92: 86 | J92: 124 | K92: 151 | L92: 170 | M92: 185 | N92: 152 | O92: 109 | P92: 65 | Q92: 39 | R92: 23 | S92: 1180 | T92: 20 | U92: 30 | V92: 50 | W92: 66 | X92: 81 | Y92: 84 | Z92: 82 | AA92: 73 | AB92: 55 | AC92: 39 | AD92: 24 | AE92: 17 | AF92: 621 | AG92: 1.4 | AH92: 3.2 | AI92: 6.2 | AJ92: 9.7 | AK92: 13.6 | AL92: 17.1 | AM92: 19.6 | AN92: 18.9 | AO92: 15.7 | AP92: 10.9 | AQ92: 5.3 | AR92: 2.1 | AS92: 10.31 | AT92: 3.2 | AU92: 3.7 | AV92: 3.9 | AW92: 3.7 | AX92: 3.1 | AY92: 2.9 | AZ92: 3 | BA92: 2.9 | BB92: 2.9 | BC92: 2.9 | BD92: 3.2 | BE92: 3.3 | BF92: 3.23 | BH92: 89 | BI92: Turkey | BL92: France | BM92: =IF(BN92>1,"",MAX(BM$3:BM91)+1) ->  | BN92: =IF(BL92="","",COUNTIF(BL$4:BL92,BL92)) -> 12 | BO92: 30012 | BP92: Dijon | BS92: 70089 | BU92: 11089
A93: Europe | B93: France | C93: Grenoble FR | D93: 45.11 | E93: 5.43 | F93: 392 | G93: 48.5 | H93: 64 | I93: 104.1 | J93: 132.7 | K93: 164.8 | L93: 180.9 | M93: 196.4 | N93: 166.7 | O93: 119.9 | P93: 80 | Q93: 49.5 | R93: 43 | S93: 1350.6 | AG93: 1.44 | AH93: 3.12 | AI93: 6.16 | AJ93: 9.16 | AK93: 13.42 | AL93: 16.73 | AM93: 19.89 | AN93: 19.11 | AO93: 15.92 | AP93: 11.52 | AQ93: 5.58 | AR93: 2.52 | AS93: 10.38 | AT93: 3.47 | AU93: 3.19 | AV93: 3.3 | AW93: 3.4 | AX93: 2.99 | AY93: 2.98 | AZ93: 2.8 | BA93: 2.68 | BB93: 2.78 | BC93: 2.81 | BD93: 3.22 | BE93: 3.37 | BF93: 3.08 | BH93: 90 | BI93: Ukrainia | BL93: France | BM93: =IF(BN93>1,"",MAX(BM$3:BM92)+1) ->  | BN93: =IF(BL93="","",COUNTIF(BL$4:BL93,BL93)) -> 13 | BO93: 30013 | BP93: Grenoble FR | BS93: 70090 | BU93: 11090
A94: Europe | B94: France | C94: Hyeres/Ile Levant | D94: 43.02 | E94: 6.28 | F94: 133 | G94: 57 | H94: 71 | I94: 120 | J94: 153 | K94: 191 | L94: 213 | M94: 217 | N94: 193 | O94: 142 | P94: 93 | Q94: 58 | R94: 48 | S94: 1556 | T94: 25 | U94: 31 | V94: 47 | W94: 57 | X94: 67 | Y94: 64 | Z94: 63 | AA94: 56 | AB94: 47 | AC94: 39 | AD94: 27 | AE94: 22 | AF94: 545 | AG94: 8.9 | AH94: 9.4 | AI94: 11.1 | AJ94: 12.8 | AK94: 16.7 | AL94: 20.6 | AM94: 23.3 | AN94: 23.3 | AO94: 20.6 | AP94: 16.7 | AQ94: 12.2 | AR94: 10 | AS94: 15.47 | AT94: 4.6 | AU94: 6.7 | AV94: 5.7 | AW94: 6.2 | AX94: 5.7 | AY94: 5.1 | AZ94: 5.1 | BA94: 5.1 | BB94: 5.1 | BC94: 6.2 | BD94: 3.6 | BE94: 4.1 | BF94: 5.27 | BH94: 91 | BI94: United Kingdom | BL94: France | BM94: =IF(BN94>1,"",MAX(BM$3:BM93)+1) ->  | BN94: =IF(BL94="","",COUNTIF(BL$4:BL94,BL94)) -> 14 | BO94: 30014 | BP94: Hyeres/Ile Levant | BS94: 70091 | BU94: 11091
A95: Europe | B95: France | C95: Jersey Island | D95: 49.13 | E95: -2.12 | F95: 83 | G95: 26 | H95: 47 | I95: 86 | J95: 133 | K95: 168 | L95: 176 | M95: 179 | N95: 152 | O95: 102 | P95: 59 | Q95: 33 | R95: 22 | S95: 1183 | T95: 18 | U95: 28 | V95: 49 | W95: 64 | X95: 80 | Y95: 83 | Z95: 82 | AA95: 71 | AB95: 54 | AC95: 37 | AD95: 22 | AE95: 15 | AF95: 603 | AG95: 6.1 | AH95: 5.6 | AI95: 7.2 | AJ95: 8.9 | AK95: 11.7 | AL95: 14.4 | AM95: 16.7 | AN95: 17.2 | AO95: 15.6 | AP95: 12.8 | AQ95: 9.4 | AR95: 7.2 | AS95: 11.07 | AT95: 8.2 | AU95: 6.2 | AV95: 7.2 | AW95: 7.2 | AX95: 5.7 | AY95: 6.2 | AZ95: 5.7 | BA95: 5.7 | BB95: 6.7 | BC95: 8.2 | BD95: 8.7 | BE95: 6.7 | BF95: 6.87 | BH95: 92 | BI95: Uruguay | BL95: France | BM95: =IF(BN95>1,"",MAX(BM$3:BM94)+1) ->  | BN95: =IF(BL95="","",COUNTIF(BL$4:BL95,BL95)) -> 15 | BO95: 30015 | BP95: Jersey Island | BS95: 70092 | BU95: 11092
A96: Europe | B96: France | C96: La Rochelle | D96: 46.09 | E96: -1.09 | F96: 4 | G96: 36 | H96: 56 | I96: 103 | J96: 143 | K96: 170 | L96: 186 | M96: 196 | N96: 167 | O96: 125 | P96: 77 | Q96: 47 | R96: 32 | S96: 1338 | T96: 25 | U96: 34 | V96: 53 | W96: 64 | X96: 80 | Y96: 79 | Z96: 75 | AA96: 68 | AB96: 53 | AC96: 43 | AD96: 28 | AE96: 22 | AF96: 624 | AG96: 6.1 | AH96: 7.2 | AI96: 9.4 | AJ96: 11.1 | AK96: 15 | AL96: 17.8 | AM96: 20 | AN96: 20 | AO96: 17.8 | AP96: 14.4 | AQ96: 10 | AR96: 7.2 | AS96: 13 | AT96: 3.1 | AU96: 3.1 | AV96: 5.7 | AW96: 5.7 | AX96: 5.1 | AY96: 5.1 | AZ96: 5.1 | BA96: 4.6 | BB96: 4.6 | BC96: 2.6 | BD96: 3.1 | BE96: 3.1 | BF96: 4.24 | BH96: 93 | BI96: USA | BL96: France | BM96: =IF(BN96>1,"",MAX(BM$3:BM95)+1) ->  | BN96: =IF(BL96="","",COUNTIF(BL$4:BL96,BL96)) -> 16 | BO96: 30016 | BP96: La Rochelle | BS96: 70093 | BU96: 11093
A97: Europe | B97: France | C97: Le Puy-en-Velay | D97: 45.03 | E97: 3.54 | F97: 715 | G97: 42 | H97: 56 | I97: 95 | J97: 132 | K97: 163 | L97: 178 | M97: 201 | N97: 162 | O97: 122 | P97: 83 | Q97: 44 | R97: 33 | S97: 1311 | T97: 27 | U97: 35 | V97: 55 | W97: 68 | X97: 83 | Y97: 82 | Z97: 73 | AA97: 71 | AB97: 56 | AC97: 43 | AD97: 29 | AE97: 23 | AF97: 645 | AG97: 1 | AH97: 2 | AI97: 5.5 | AJ97: 8.3 | AK97: 11.9 | AL97: 15.6 | AM97: 17.9 | AN97: 17.6 | AO97: 14.9 | AP97: 9.9 | AQ97: 5.4 | AR97: 2 | AS97: 9.33 | AT97: 2.2 | AU97: 2.5 | AV97: 2.9 | AW97: 2.8 | AX97: 2.7 | AY97: 2.7 | AZ97: 2.4 | BA97: 2.3 | BB97: 2.4 | BC97: 2.7 | BD97: 2.3 | BE97: 2.9 | BF97: 2.57 | BH97: 94 | BI97: Venezuela | BL97: France | BM97: =IF(BN97>1,"",MAX(BM$3:BM96)+1) ->  | BN97: =IF(BL97="","",COUNTIF(BL$4:BL97,BL97)) -> 17 | BO97: 30017 | BP97: Le Puy-en-Velay | BS97: 70094 | BU97: 11094
A98: Europe | B98: France | C98: Limoges | D98: 45.49 | E98: 1.17 | F98: 282 | G98: 35 | H98: 53 | I98: 92 | J98: 135 | K98: 145 | L98: 171 | M98: 192 | N98: 159 | O98: 120 | P98: 74 | Q98: 48 | R98: 33 | S98: 1257 | T98: 25 | U98: 34 | V98: 55 | W98: 67 | X98: 85 | Y98: 84 | Z98: 77 | AA98: 72 | AB98: 56 | AC98: 44 | AD98: 28 | AE98: 22 | AF98: 649 | AG98: 3.1 | AH98: 3.9 | AI98: 7.4 | AJ98: 9.9 | AK98: 13.3 | AL98: 16.8 | AM98: 18.4 | AN98: 17.8 | AO98: 15.3 | AP98: 10.7 | AQ98: 6.7 | AR98: 3.8 | AS98: 10.59 | AT98: 3.6 | AU98: 3.4 | AV98: 2.6 | AW98: 3.9 | AX98: 2.5 | AY98: 2.8 | AZ98: 2.4 | BA98: 2.8 | BB98: 1.5 | BC98: 2.8 | BD98: 2.9 | BE98: 3.6 | BF98: 2.9 | BH98: 95 | BI98: Vietnam | BL98: France | BM98: =IF(BN98>1,"",MAX(BM$3:BM97)+1) ->  | BN98: =IF(BL98="","",COUNTIF(BL$4:BL98,BL98)) -> 18 | BO98: 30018 | BP98: Limoges | BS98: 70095 | BU98: 11095
A99: Europe | B99: France | C99: Lyon | D99: 45.58 | E99: 4.54 | F99: 163 | G99: 31 | H99: 47 | I99: 91 | J99: 125 | K99: 151 | L99: 174 | M99: 190 | N99: 158 | O99: 114 | P99: 66 | Q99: 36 | R99: 25 | S99: 1208 | T99: 22 | U99: 31 | V99: 52 | W99: 67 | X99: 82 | Y99: 83 | Z99: 81 | AA99: 72 | AB99: 56 | AC99: 40 | AD99: 25 | AE99: 18 | AF99: 629 | AG99: 2.9 | AH99: 4.2 | AI99: 6.7 | AJ99: 9.9 | AK99: 14.2 | AL99: 17.5 | AM99: 20.1 | AN99: 19.5 | AO99: 15.8 | AP99: 11 | AQ99: 6.2 | AR99: 2.8 | AS99: 10.9 | AT99: 2.6 | AU99: 2.2 | AV99: 3.7 | AW99: 3.3 | AX99: 3 | AY99: 2.6 | AZ99: 2.8 | BA99: 3 | BB99: 2.3 | BC99: 2.2 | BD99: 2.7 | BE99: 2.5 | BF99: 2.74 | BH99: 96 | BI99: Yugoslavia | BL99: France | BM99: =IF(BN99>1,"",MAX(BM$3:BM98)+1) ->  | BN99: =IF(BL99="","",COUNTIF(BL$4:BL99,BL99)) -> 19 | BO99: 30019 | BP99: Lyon | BS99: 70096 | BU99: 11096
A100: Europe | B100: France | C100: Macon | D100: 46.18 | E100: 4.48 | F100: 218 | G100: 31 | H100: 47 | I100: 91 | J100: 125 | K100: 150 | L100: 175 | M100: 190 | N100: 158 | O100: 114 | P100: 65 | Q100: 36 | R100: 25 | S100: 1207 | T100: 22 | U100: 31 | V100: 52 | W100: 67 | X100: 82 | Y100: 83 | Z100: 81 | AA100: 73 | AB100: 56 | AC100: 40 | AD100: 25 | AE100: 18 | AF100: 630 | AG100: 2.7 | AH100: 4.1 | AI100: 6.3 | AJ100: 9.5 | AK100: 13.8 | AL100: 17.2 | AM100: 19.7 | AN100: 19 | AO100: 15.3 | AP100: 10.5 | AQ100: 5.8 | AR100: 2.3 | AS100: 10.52 | AT100: 2.6 | AU100: 2.1 | AV100: 3.9 | AW100: 3.4 | AX100: 3.1 | AY100: 2.7 | AZ100: 2.9 | BA100: 3.1 | BB100: 2.3 | BC100: 2.2 | BD100: 2.8 | BE100: 2.5 | BF100: 2.8 | BH100: 97 | BI100: Zairean | BL100: France | BM100: =IF(BN100>1,"",MAX(BM$3:BM99)+1) ->  | BN100: =IF(BL100="","",COUNTIF(BL$4:BL100,BL100)) -> 20 | BO100: 30020 | BP100: Macon | BS100: 70097 | BU100: 11097
A101: Europe | B101: France | C101: Marseille | D101: 43.28 | E101: 5.12 | F101: 5 | G101: 56 | H101: 69 | I101: 121 | J101: 154 | K101: 192 | L101: 209 | M101: 219 | N101: 189 | O101: 139 | P101: 93 | Q101: 58 | R101: 46 | S101: 1545 | T101: 25 | U101: 31 | V101: 47 | W101: 57 | X101: 67 | Y101: 65 | Z101: 62 | AA101: 57 | AB101: 47 | AC101: 38 | AD101: 26 | AE101: 22 | AF101: 544 | AG101: 7.9 | AH101: 8.6 | AI101: 10.6 | AJ101: 12.3 | AK101: 16.5 | AL101: 20.4 | AM101: 23.5 | AN101: 23.8 | AO101: 21 | AP101: 16.2 | AQ101: 11.3 | AR101: 8.9 | AS101: 15.08 | AT101: 4 | AU101: 4.3 | AV101: 4.6 | AW101: 5.2 | AX101: 4.8 | AY101: 5 | AZ101: 4.4 | BA101: 4 | BB101: 3.9 | BC101: 4.1 | BD101: 4.2 | BE101: 4.4 | BF101: 4.41 | BH101: 98 | BI101: Zambia | BL101: France | BM101: =IF(BN101>1,"",MAX(BM$3:BM100)+1) ->  | BN101: =IF(BL101="","",COUNTIF(BL$4:BL101,BL101)) -> 21 | BO101: 30021 | BP101: Marseille | BS101: 70098 | BU101: 11098
A102: Europe | B102: France | C102: Millau | D102: 44.07 | E102: 3.31 | F102: 715 | G102: 44 | H102: 58 | I102: 105 | J102: 134 | K102: 157 | L102: 185 | M102: 205 | N102: 169 | O102: 130 | P102: 79 | Q102: 47 | R102: 38 | S102: 1351 | T102: 28 | U102: 36 | V102: 55 | W102: 69 | X102: 84 | Y102: 80 | Z102: 71 | AA102: 69 | AB102: 54 | AC102: 46 | AD102: 30 | AE102: 25 | AF102: 647 | AG102: 3.6 | AH102: 4.7 | AI102: 8.3 | AJ102: 10.7 | AK102: 14 | AL102: 17.9 | AM102: 20.1 | AN102: 20.1 | AO102: 17.1 | AP102: 12.4 | AQ102: 7.7 | AR102: 4.4 | AS102: 11.75 | AT102: 5.3 | AU102: 6.3 | AV102: 6.2 | AW102: 6.5 | AX102: 5.6 | AY102: 5 | AZ102: 5 | BA102: 4.8 | BB102: 4.7 | BC102: 5.3 | BD102: 5 | BE102: 5.1 | BF102: 5.4 | BH102: 99 | BL102: France | BM102: =IF(BN102>1,"",MAX(BM$3:BM101)+1) ->  | BN102: =IF(BL102="","",COUNTIF(BL$4:BL102,BL102)) -> 22 | BO102: 30022 | BP102: Millau | BS102: 70099 | BU102: 11099
A103: Europe | B103: France | C103: Montpellier | D103: 43.35 | E103: 3.58 | F103: 3 | G103: 54 | H103: 66 | I103: 114 | J103: 143 | K103: 179 | L103: 196 | M103: 208 | N103: 179 | O103: 130 | P103: 84 | Q103: 53 | R103: 44 | S103: 1450 | T103: 28 | U103: 36 | V103: 54 | W103: 67 | X103: 79 | Y103: 78 | Z103: 74 | AA103: 68 | AB103: 56 | AC103: 45 | AD103: 30 | AE103: 25 | AF103: 640 | AG103: 6 | AH103: 7.1 | AI103: 10.2 | AJ103: 12.9 | AK103: 16 | AL103: 19.8 | AM103: 22.3 | AN103: 22.1 | AO103: 19.3 | AP103: 14.9 | AQ103: 10.5 | AR103: 6.9 | AS103: 14 | AT103: 4 | AU103: 4.1 | AV103: 4.4 | AW103: 4.4 | AX103: 4 | AY103: 3.9 | AZ103: 4 | BA103: 3.7 | BB103: 3.5 | BC103: 3.5 | BD103: 3.7 | BE103: 3.9 | BF103: 3.93 | BH103: 100 | BL103: France | BM103: =IF(BN103>1,"",MAX(BM$3:BM102)+1) ->  | BN103: =IF(BL103="","",COUNTIF(BL$4:BL103,BL103)) -> 23 | BO103: 30023 | BP103: Montpellier | BS103: 70100 | BU103: 11100
A104: Europe | B104: France | C104: Nancy | D104: 48.41 | E104: 6.13 | F104: 212 | G104: 25 | H104: 44 | I104: 80 | J104: 116 | K104: 148 | L104: 158 | M104: 173 | N104: 144 | O104: 99 | P104: 58 | Q104: 31 | R104: 20 | S104: 1096 | T104: 18 | U104: 28 | V104: 48 | W104: 65 | X104: 81 | Y104: 84 | Z104: 83 | AA104: 73 | AB104: 54 | AC104: 37 | AD104: 21 | AE104: 15 | AF104: 607 | AG104: 1.1 | AH104: 2.3 | AI104: 5.2 | AJ104: 8.7 | AK104: 12.8 | AL104: 16.1 | AM104: 18.1 | AN104: 17.5 | AO104: 14.4 | AP104: 9.9 | AQ104: 4.9 | AR104: 2.1 | AS104: 9.42 | AT104: 2.9 | AU104: 3.1 | AV104: 3.3 | AW104: 3.1 | AX104: 2.8 | AY104: 2.7 | AZ104: 2.5 | BA104: 2.4 | BB104: 2.4 | BC104: 2.3 | BD104: 2.9 | BE104: 3 | BF104: 2.78 | BH104: 101 | BL104: France | BM104: =IF(BN104>1,"",MAX(BM$3:BM103)+1) ->  | BN104: =IF(BL104="","",COUNTIF(BL$4:BL104,BL104)) -> 24 | BO104: 30024 | BP104: Nancy | BS104: 70101 | BU104: 11101
A105: Europe | B105: France | C105: Nantes | D105: 47.18 | E105: -1.39 | F105: 10 | G105: 31 | H105: 51 | I105: 90 | J105: 129 | K105: 151 | L105: 179 | M105: 182 | N105: 157 | O105: 114 | P105: 70 | Q105: 40 | R105: 28 | S105: 1222 | T105: 19 | U105: 28 | V105: 46 | W105: 61 | X105: 75 | Y105: 78 | Z105: 78 | AA105: 68 | AB105: 51 | AC105: 36 | AD105: 22 | AE105: 16 | AF105: 578 | AG105: 6.9 | AH105: 7 | AI105: 8.4 | AJ105: 10.2 | AK105: 13.3 | AL105: 16.6 | AM105: 19.1 | AN105: 19.4 | AO105: 17.2 | AP105: 13.5 | AQ105: 9.7 | AR105: 7.9 | AS105: 12.43 | AT105: 5.7 | AU105: 4.1 | AV105: 5.7 | AW105: 4.6 | AX105: 4.6 | AY105: 4.1 | AZ105: 4.6 | BA105: 4.1 | BB105: 4.1 | BC105: 4.6 | BD105: 5.1 | BE105: 5.7 | BF105: 4.75 | BH105: 102 | BL105: France | BM105: =IF(BN105>1,"",MAX(BM$3:BM104)+1) ->  | BN105: =IF(BL105="","",COUNTIF(BL$4:BL105,BL105)) -> 25 | BO105: 30025 | BP105: Nantes | BS105: 70102 | BU105: 11102
A106: Europe | B106: France | C106: Nice | D106: 43.4 | E106: 7.12 | F106: 5 | G106: 54 | H106: 67 | I106: 113 | J106: 141 | K106: 183 | L106: 197 | M106: 207 | N106: 183 | O106: 135 | P106: 90 | Q106: 55 | R106: 46 | S106: 1471 | T106: 28 | U106: 36 | V106: 54 | W106: 67 | X106: 78 | Y106: 78 | Z106: 74 | AA106: 66 | AB106: 54 | AC106: 44 | AD106: 30 | AE106: 25 | AF106: 634 | AG106: 8.7 | AH106: 9.4 | AI106: 10.9 | AJ106: 13.2 | AK106: 16.4 | AL106: 19.9 | AM106: 22.9 | AN106: 23 | AO106: 20.5 | AP106: 17 | AQ106: 12.4 | AR106: 9.6 | AS106: 15.32 | AT106: 4.5 | AU106: 4.4 | AV106: 4.1 | AW106: 4 | AX106: 3.7 | AY106: 3.4 | AZ106: 3.4 | BA106: 3.4 | BB106: 3.5 | BC106: 4 | BD106: 4.3 | BE106: 4.6 | BF106: 3.94 | BH106: 103 | BL106: France | BM106: =IF(BN106>1,"",MAX(BM$3:BM105)+1) ->  | BN106: =IF(BL106="","",COUNTIF(BL$4:BL106,BL106)) -> 26 | BO106: 30026 | BP106: Nice | BS106: 70103 | BU106: 11103
A107: Europe | B107: France | C107: Paris | D107: 49.12 | E107: 2.1 | F107: 26 | G107: 24 | H107: 43 | I107: 76 | J107: 114 | K107: 140 | L107: 153 | M107: 163 | N107: 139 | O107: 96 | P107: 59 | Q107: 32 | R107: 20 | S107: 1059 | T107: 18 | U107: 28 | V107: 48 | W107: 65 | X107: 81 | Y107: 84 | Z107: 84 | AA107: 72 | AB107: 53 | AC107: 37 | AD107: 21 | AE107: 15 | AF107: 606 | AG107: 4.6 | AH107: 4.7 | AI107: 7 | AJ107: 9.8 | AK107: 13.5 | AL107: 16.3 | AM107: 18.9 | AN107: 19 | AO107: 16 | AP107: 11.8 | AQ107: 7.3 | AR107: 5.1 | AS107: 11.17 | AT107: 5.4 | AU107: 3.2 | AV107: 4.5 | AW107: 4.3 | AX107: 4.2 | AY107: 3.9 | AZ107: 3.9 | BA107: 3.3 | BB107: 4.3 | BC107: 3.7 | BD107: 4.8 | BE107: 4.9 | BF107: 4.2 | BH107: 104 | BL107: France | BM107: =IF(BN107>1,"",MAX(BM$3:BM106)+1) ->  | BN107: =IF(BL107="","",COUNTIF(BL$4:BL107,BL107)) -> 27 | BO107: 30027 | BP107: Paris | BS107: 70104 | BU107: 11104
A108: Europe | B108: France | C108: Paris/Montsouris | D108: 48.49 | E108: 2.2 | F108: 75 | G108: 23.8 | H108: 41.6 | I108: 73.7 | J108: 111.6 | K108: 136.1 | L108: 150.5 | M108: 158.5 | N108: 136.8 | O108: 94.2 | P108: 58.7 | Q108: 32.2 | R108: 19.3 | S108: 1036.8 | AG108: 3.96 | AH108: 4.14 | AI108: 7.18 | AJ108: 9.93 | AK108: 13.94 | AL108: 16.49 | AM108: 19.46 | AN108: 19.47 | AO108: 15.87 | AP108: 11.75 | AQ108: 6.59 | AR108: 5.04 | AS108: 11.15 | AT108: 6.19 | AU108: 3.09 | AV108: 5.1 | AW108: 4.6 | AX108: 4.6 | AY108: 4.6 | AZ108: 4.59 | BA108: 4.1 | BB108: 4.6 | BC108: 4.6 | BD108: 5.7 | BE108: 5.7 | BF108: 4.79 | BH108: 105 | BL108: France | BM108: =IF(BN108>1,"",MAX(BM$3:BM107)+1) ->  | BN108: =IF(BL108="","",COUNTIF(BL$4:BL108,BL108)) -> 28 | BO108: 30028 | BP108: Paris/Montsouris | BS108: 70105 | BU108: 11105
A109: Europe | B109: France | C109: Pau | D109: 43.22 | E109: -0.25 | F109: 189 | G109: 44 | H109: 60 | I109: 103 | J109: 128 | K109: 152 | L109: 163 | M109: 167 | N109: 148 | O109: 123 | P109: 83 | Q109: 53 | R109: 39 | S109: 1263 | T109: 29 | U109: 37 | V109: 57 | W109: 71 | X109: 85 | Y109: 86 | Z109: 86 | AA109: 77 | AB109: 58 | AC109: 46 | AD109: 31 | AE109: 26 | AF109: 689 | AG109: 5.5 | AH109: 6.3 | AI109: 9.6 | AJ109: 11.6 | AK109: 14.6 | AL109: 17.9 | AM109: 19.6 | AN109: 19.6 | AO109: 17.9 | AP109: 13.2 | AQ109: 9.1 | AR109: 6.3 | AS109: 12.6 | AT109: 3.4 | AU109: 3.8 | AV109: 3.9 | AW109: 3.9 | AX109: 3.4 | AY109: 3.1 | AZ109: 3.1 | BA109: 2.9 | BB109: 2.8 | BC109: 3.1 | BD109: 3.1 | BE109: 3.3 | BF109: 3.32 | BH109: 106 | BL109: France | BM109: =IF(BN109>1,"",MAX(BM$3:BM108)+1) ->  | BN109: =IF(BL109="","",COUNTIF(BL$4:BL109,BL109)) -> 29 | BO109: 30029 | BP109: Pau | BS109: 70106 | BU109: 11106
A110: Europe | B110: France | C110: Perpignan | D110: 42.44 | E110: 2.52 | F110: 42 | G110: 54 | H110: 70 | I110: 118 | J110: 142 | K110: 165 | L110: 186 | M110: 199 | N110: 175 | O110: 134 | P110: 93 | Q110: 60 | R110: 49 | S110: 1445 | T110: 25 | U110: 32 | V110: 51 | W110: 62 | X110: 74 | Y110: 78 | Z110: 79 | AA110: 70 | AB110: 55 | AC110: 41 | AD110: 27 | AE110: 23 | AF110: 617 | AG110: 8.1 | AH110: 9.1 | AI110: 10.8 | AJ110: 13.4 | AK110: 16.8 | AL110: 20.8 | AM110: 23.7 | AN110: 23.2 | AO110: 20.5 | AP110: 16.4 | AQ110: 11.6 | AR110: 8.8 | AS110: 15.27 | AT110: 4.9 | AU110: 5.4 | AV110: 5.7 | AW110: 5.6 | AX110: 4.8 | AY110: 4.5 | AZ110: 4.6 | BA110: 4.3 | BB110: 3.7 | BC110: 4.1 | BD110: 4.7 | BE110: 5.2 | BF110: 4.79 | BH110: 107 | BL110: France | BM110: =IF(BN110>1,"",MAX(BM$3:BM109)+1) ->  | BN110: =IF(BL110="","",COUNTIF(BL$4:BL110,BL110)) -> 30 | BO110: 30030 | BP110: Perpignan | BS110: 70107 | BU110: 11107
A111: Europe | B111: France | C111: Reims | D111: 49.18 | E111: 4.02 | F111: 94 | G111: 25.3 | H111: 46.9 | I111: 78 | J111: 115.9 | K111: 147.3 | L111: 157.6 | M111: 172.5 | N111: 141.9 | O111: 99.9 | P111: 60.2 | Q111: 33.7 | R111: 20 | S111: 1099.2 | AG111: 1.81 | AH111: 3.38 | AI111: 5.49 | AJ111: 10.12 | AK111: 13.54 | AL111: 16.93 | AM111: 19.09 | AN111: 18.64 | AO111: 15.25 | AP111: 10.5 | AQ111: 5.64 | AR111: 2.77 | AS111: 10.27 | AT111: 4.2 | AU111: 4.19 | AV111: 4 | AW111: 4 | AX111: 3.3 | AY111: 3.2 | AZ111: 3.09 | BA111: 2.9 | BB111: 3.11 | BC111: 3.2 | BD111: 4.01 | BE111: 3.8 | BF111: 3.58 | BH111: 108 | BL111: France | BM111: =IF(BN111>1,"",MAX(BM$3:BM110)+1) ->  | BN111: =IF(BL111="","",COUNTIF(BL$4:BL111,BL111)) -> 31 | BO111: 30031 | BP111: Reims | BS111: 70108 | BU111: 11108
A112: Europe | B112: France | C112: Rennes | D112: 48.04 | E112: -1.43 | F112: 35 | G112: 29 | H112: 48 | I112: 86 | J112: 125 | K112: 151 | L112: 165 | M112: 170 | N112: 145 | O112: 106 | P112: 65 | Q112: 37 | R112: 24 | S112: 1151 | T112: 20 | U112: 29 | V112: 50 | W112: 65 | X112: 81 | Y112: 84 | Z112: 84 | AA112: 73 | AB112: 55 | AC112: 39 | AD112: 23 | AE112: 17 | AF112: 620 | AG112: 4.9 | AH112: 5.8 | AI112: 7.7 | AJ112: 10.2 | AK112: 13.5 | AL112: 16.3 | AM112: 18.5 | AN112: 18.2 | AO112: 15.7 | AP112: 11.8 | AQ112: 7.7 | AR112: 5.8 | AS112: 11.34 | AT112: 5.3 | AU112: 4.9 | AV112: 5.1 | AW112: 5 | AX112: 4.3 | AY112: 4.2 | AZ112: 4.1 | BA112: 4 | BB112: 4.2 | BC112: 4.6 | BD112: 5.1 | BE112: 4.9 | BF112: 4.64 | BH112: 109 | BL112: France | BM112: =IF(BN112>1,"",MAX(BM$3:BM111)+1) ->  | BN112: =IF(BL112="","",COUNTIF(BL$4:BL112,BL112)) -> 32 | BO112: 30032 | BP112: Rennes | BS112: 70109 | BU112: 11109
A113: Europe | B113: France | C113: Saint-Quentin | D113: 49.49 | E113: 3.12 | F113: 101 | G113: 23.8 | H113: 45.6 | I113: 76.6 | J113: 121.6 | K113: 153.9 | L113: 155.4 | M113: 165.9 | N113: 136.1 | O113: 93.5 | P113: 57.8 | Q113: 30.8 | R113: 18.6 | S113: 1079.7 | AG113: 1.9 | AH113: 2.91 | AI113: 5.03 | AJ113: 8.73 | AK113: 12.34 | AL113: 15.05 | AM113: 17.29 | AN113: 16.79 | AO113: 14.31 | AP113: 9.92 | AQ113: 5.55 | AR113: 2.63 | AS113: 9.37 | AT113: 5.2 | AU113: 5 | AV113: 4.9 | AW113: 4.6 | AX113: 4.2 | AY113: 3.8 | AZ113: 3.69 | BA113: 3.7 | BB113: 4.29 | BC113: 4.6 | BD113: 4.59 | BE113: 5 | BF113: 4.46 | BH113: 110 | BL113: France | BM113: =IF(BN113>1,"",MAX(BM$3:BM112)+1) ->  | BN113: =IF(BL113="","",COUNTIF(BL$4:BL113,BL113)) -> 33 | BO113: 30033 | BP113: Saint-Quentin | BS113: 70110 | BU113: 11110
A114: Europe | B114: France | C114: Strasbourg | D114: 48.33 | E114: 7.38 | F114: 150 | G114: 25 | H114: 45 | I114: 80 | J114: 114 | K114: 150 | L114: 158 | M114: 171 | N114: 144 | O114: 99 | P114: 56 | Q114: 32 | R114: 20 | S114: 1094 | T114: 18 | U114: 29 | V114: 48 | W114: 65 | X114: 81 | Y114: 84 | Z114: 84 | AA114: 73 | AB114: 54 | AC114: 37 | AD114: 22 | AE114: 15 | AF114: 610 | AG114: 0.8 | AH114: 2.2 | AI114: 5.6 | AJ114: 9.4 | AK114: 13.7 | AL114: 16.9 | AM114: 19 | AN114: 18.3 | AO114: 15 | AP114: 10.1 | AQ114: 4.9 | AR114: 1.8 | AS114: 9.81 | AT114: 4.3 | AU114: 4.4 | AV114: 4.3 | AW114: 4.2 | AX114: 3.8 | AY114: 3.5 | AZ114: 3.5 | BA114: 3.3 | BB114: 3.3 | BC114: 3.4 | BD114: 3.8 | BE114: 4.3 | BF114: 3.84 | BH114: 111 | BL114: France | BM114: =IF(BN114>1,"",MAX(BM$3:BM113)+1) ->  | BN114: =IF(BL114="","",COUNTIF(BL$4:BL114,BL114)) -> 34 | BO114: 30034 | BP114: Strasbourg | BS114: 70111 | BU114: 11111
A115: Europe | B115: France | C115: Toulouse | D115: 43.38 | E115: 1.22 | F115: 152 | G115: 43.8 | H115: 59.9 | I115: 105.2 | J115: 134.7 | K115: 163.4 | L115: 178.7 | M115: 191.1 | N115: 164.6 | O115: 127.8 | P115: 84.7 | Q115: 50.2 | R115: 37.8 | S115: 1341.9 | AG115: 5.14 | AH115: 6.78 | AI115: 8.71 | AJ115: 11.11 | AK115: 14.73 | AL115: 18.21 | AM115: 21.41 | AN115: 20.87 | AO115: 18.21 | AP115: 14.31 | AQ115: 8.69 | AR115: 5.96 | AS115: 12.84 | AT115: 4.21 | AU115: 4.3 | AV115: 4.2 | AW115: 4.49 | AX115: 4 | AY115: 4 | AZ115: 3.7 | BA115: 3.49 | BB115: 3.6 | BC115: 3.7 | BD115: 3.7 | BE115: 3.69 | BF115: 3.92 | BH115: 112 | BL115: France | BM115: =IF(BN115>1,"",MAX(BM$3:BM114)+1) ->  | BN115: =IF(BL115="","",COUNTIF(BL$4:BL115,BL115)) -> 35 | BO115: 30035 | BP115: Toulouse | BS115: 70112 | BU115: 11112
A116: Europe | B116: France | C116: Tours | D116: 47.27 | E116: 0.43 | F116: 108 | G116: 33 | H116: 52 | I116: 96 | J116: 138 | K116: 163 | L116: 179 | M116: 190 | N116: 164 | O116: 116 | P116: 69 | Q116: 40 | R116: 25 | S116: 1265 | T116: 19 | U116: 28 | V116: 47 | W116: 61 | X116: 75 | Y116: 78 | Z116: 78 | AA116: 68 | AB116: 51 | AC116: 36 | AD116: 22 | AE116: 15 | AF116: 578 | AG116: 3.8 | AH116: 4.7 | AI116: 8.3 | AJ116: 10.7 | AK116: 14.3 | AL116: 17.6 | AM116: 19.6 | AN116: 19 | AO116: 16.8 | AP116: 12.1 | AQ116: 7.7 | AR116: 4.7 | AS116: 11.61 | AT116: 4.2 | AU116: 4.4 | AV116: 4.1 | AW116: 4.2 | AX116: 3.6 | AY116: 3.2 | AZ116: 3.6 | BA116: 3.2 | BB116: 3 | BC116: 2.9 | BD116: 3.6 | BE116: 4 | BF116: 3.67 | BH116: 113 | BL116: France | BM116: =IF(BN116>1,"",MAX(BM$3:BM115)+1) ->  | BN116: =IF(BL116="","",COUNTIF(BL$4:BL116,BL116)) -> 36 | BO116: 30036 | BP116: Tours | BS116: 70113 | BU116: 11113
A117: Europe | B117: France | C117: Trappes | D117: 48.46 | E117: 2.01 | F117: 168 | G117: 25 | H117: 44 | I117: 80 | J117: 117 | K117: 144 | L117: 157 | M117: 172 | N117: 145 | O117: 100 | P117: 61 | Q117: 32 | R117: 20 | S117: 1097 | T117: 18 | U117: 28 | V117: 48 | W117: 65 | X117: 81 | Y117: 84 | Z117: 83 | AA117: 72 | AB117: 54 | AC117: 37 | AD117: 22 | AE117: 15 | AF117: 607 | AG117: 3.9 | AH117: 3.9 | AI117: 5.9 | AJ117: 8.6 | AK117: 12.5 | AL117: 15.7 | AM117: 17.8 | AN117: 17.6 | AO117: 14.5 | AP117: 10.7 | AQ117: 6.3 | AR117: 3.3 | AS117: 10.06 | AT117: 4.2 | AU117: 3.3 | AV117: 3.5 | AW117: 3.9 | AX117: 3.6 | AY117: 2.8 | AZ117: 2.6 | BA117: 1.9 | BB117: 3.9 | BC117: 2.2 | BD117: 3.3 | BE117: 3.7 | BF117: 3.24 | BH117: 114 | BL117: France | BM117: =IF(BN117>1,"",MAX(BM$3:BM116)+1) ->  | BN117: =IF(BL117="","",COUNTIF(BL$4:BL117,BL117)) -> 37 | BO117: 30037 | BP117: Trappes | BS117: 70114 | BU117: 11114
A118: South_America | B118: France - Guyane | C118: Cayenne-Rochea. | D118: 4.5 | E118: -52.22 | F118: 5 | G118: 118.9 | H118: 116.2 | I118: 137.6 | J118: 136.7 | K118: 134.6 | L118: 138.2 | M118: 163.6 | N118: 177.7 | O118: 185.6 | P118: 185.1 | Q118: 157.4 | R118: 129.4 | S118: 1781 | AG118: 26.18 | AH118: 26.06 | AI118: 26.11 | AJ118: 26.31 | AK118: 26.72 | AL118: 25.79 | AM118: 26.15 | AN118: 26.71 | AO118: 26.82 | AP118: 27.24 | AQ118: 26.35 | AR118: 26.11 | AS118: 26.38 | AT118: 4.1 | AU118: 4.61 | AV118: 4.59 | AW118: 4.09 | AX118: 3.59 | AY118: 3.6 | AZ118: 3.61 | BA118: 4.1 | BB118: 4.1 | BC118: 4.11 | BD118: 4.1 | BE118: 4.1 | BF118: 4.06 | BH118: 115 | BK118: 31 | BL118: France - Guyane | BM118: =IF(BN118>1,"",MAX(BM$3:BM117)+1) -> 31 | BN118: =IF(BL118="","",COUNTIF(BL$4:BL118,BL118)) -> 1 | BO118: 31001 | BP118: Cayenne-Rochea. | BS118: 70115 | BU118: 11115
A119: Pacific | B119: France - La Réunion | C119: St Denis | D119: -20.52 | E119: 55.31 | F119: 14 | G119: 199.3 | H119: 162.4 | I119: 178.4 | J119: 140.2 | K119: 129.6 | L119: 117 | M119: 124.7 | N119: 146.9 | O119: 158.9 | P119: 181.5 | Q119: 192.8 | R119: 197.1 | S119: 1928.7 | AG119: 27.3 | AH119: 27.6 | AI119: 27 | AJ119: 26.1 | AK119: 24.5 | AL119: 22.3 | AM119: 22.1 | AN119: 22.3 | AO119: 22.9 | AP119: 24.3 | AQ119: 25.9 | AR119: 26.3 | AS119: 24.88 | AT119: 6.2 | AU119: 6 | AV119: 5.7 | AW119: 5.5 | AX119: 5.61 | AY119: 5.7 | AZ119: 6.79 | BA119: 6.79 | BB119: 6.2 | BC119: 6.4 | BD119: 6.11 | BE119: 5.1 | BF119: 6.01 | BH119: 116 | BK119: 32 | BL119: France - La Réunion | BM119: =IF(BN119>1,"",MAX(BM$3:BM118)+1) -> 32 | BN119: =IF(BL119="","",COUNTIF(BL$4:BL119,BL119)) -> 1 | BO119: 32001 | BP119: St Denis | BS119: 70116 | BU119: 11116
A120: North_America | B120: France - Martinique | C120: Le Lamentin | D120: 14.36 | E120: -61 | F120: 7 | G120: 149 | H120: 149 | I120: 182 | J120: 181 | K120: 182 | L120: 171 | M120: 180 | N120: 177 | O120: 163 | P120: 155 | Q120: 138 | R120: 139 | S120: 1966 | T120: 58 | U120: 57 | V120: 69 | W120: 72 | X120: 78 | Y120: 76 | Z120: 78 | AA120: 78 | AB120: 74 | AC120: 71 | AD120: 61 | AE120: 57 | AF120: 829 | AG120: 24.9 | AH120: 24.8 | AI120: 25.2 | AJ120: 25.9 | AK120: 26.8 | AL120: 27.3 | AM120: 27.2 | AN120: 27.2 | AO120: 27 | AP120: 26.7 | AQ120: 26.3 | AR120: 25.4 | AS120: 26.22 | AT120: 3.9 | AU120: 4.4 | AV120: 4.4 | AW120: 4.1 | AX120: 4.4 | AY120: 5.3 | AZ120: 4.8 | BA120: 4.1 | BB120: 3.2 | BC120: 2.9 | BD120: 3.3 | BE120: 3.7 | BF120: 4.04 | BH120: 117 | BK120: 33 | BL120: France - Martinique | BM120: =IF(BN120>1,"",MAX(BM$3:BM119)+1) -> 33 | BN120: =IF(BL120="","",COUNTIF(BL$4:BL120,BL120)) -> 1 | BO120: 33001 | BP120: Le Lamentin | BS120: 70117 | BU120: 11117
A121: Africa | B121: Gabon | C121: Libreville | D121: 0.27 | E121: 9.25 | F121: 15 | G121: 144.2 | H121: 137.7 | I121: 162.1 | J121: 151.7 | K121: 161.2 | L121: 148.9 | M121: 154.6 | N121: 155.4 | O121: 149.7 | P121: 150.2 | Q121: 126.6 | R121: 130.9 | S121: 1773.4 | AG121: 26.79 | AH121: 26.97 | AI121: 27.12 | AJ121: 26.24 | AK121: 26.73 | AL121: 25.07 | AM121: 24.32 | AN121: 24.3 | AO121: 25.09 | AP121: 25.71 | AQ121: 25.54 | AR121: 26.22 | AS121: 25.84 | AT121: 2.6 | AU121: 2.99 | AV121: 3.1 | AW121: 3.2 | AX121: 3.59 | AY121: 3.9 | AZ121: 4.2 | BA121: 4.21 | BB121: 4.39 | BC121: 3.59 | BD121: 3 | BE121: 2.9 | BF121: 3.47 | BH121: 118 | BK121: 34 | BL121: Gabon | BM121: =IF(BN121>1,"",MAX(BM$3:BM120)+1) -> 34 | BN121: =IF(BL121="","",COUNTIF(BL$4:BL121,BL121)) -> 1 | BO121: 34001 | BP121: Libreville | BS121: 70118 | BU121: 11118
A122: Europe | B122: Germany | C122: Berlin | D122: 52.25 | E122: 13.15 | F122: 33 | G122: 19 | H122: 34 | I122: 71 | J122: 107 | K122: 150 | L122: 158 | M122: 156 | N122: 134 | O122: 89 | P122: 51 | Q122: 22 | R122: 13 | S122: 1004 | T122: 14 | U122: 23 | V122: 44 | W122: 62 | X122: 80 | Y122: 84 | Z122: 83 | AA122: 70 | AB122: 50 | AC122: 32 | AD122: 16 | AE122: 10 | AF122: 568 | AG122: -0.6 | AH122: 0.6 | AI122: 4.4 | AJ122: 7.8 | AK122: 12.8 | AL122: 16.7 | AM122: 18.3 | AN122: 17.8 | AO122: 14.4 | AP122: 9.4 | AQ122: 4.4 | AR122: 1.1 | AS122: 8.92 | AT122: 5.1 | AU122: 3.6 | AV122: 6.2 | AW122: 4.6 | AX122: 3.6 | AY122: 4.1 | AZ122: 4.6 | BA122: 4.1 | BB122: 4.6 | BC122: 3.6 | BD122: 5.1 | BE122: 5.7 | BF122: 4.57 | BH122: 119 | BK122: 35 | BL122: Germany | BM122: =IF(BN122>1,"",MAX(BM$3:BM121)+1) -> 35 | BN122: =IF(BL122="","",COUNTIF(BL$4:BL122,BL122)) -> 1 | BO122: 35001 | BP122: Berlin | BS122: 70119 | BU122: 11119
A123: Europe | B123: Germany | C123: Bocholt | D123: 51.5 | E123: 6.32 | F123: 24 | G123: 19.3 | H123: 38.9 | I123: 67.6 | J123: 113.7 | K123: 150.2 | L123: 144.5 | M123: 151 | N123: 127.8 | O123: 82.6 | P123: 53.4 | Q123: 25.9 | R123: 14.9 | S123: 989.9 | AG123: 2.02 | AH123: 2.3 | AI123: 5.13 | AJ123: 8.45 | AK123: 12.99 | AL123: 16.01 | AM123: 17.51 | AN123: 17.25 | AO123: 14.24 | AP123: 10.39 | AQ123: 5.59 | AR123: 3.16 | AS123: 9.59 | AT123: 3.51 | AU123: 3.75 | AV123: 3.46 | AW123: 2.75 | AX123: 2.41 | AY123: 2.39 | AZ123: 2.24 | BA123: 2.13 | BB123: 2.37 | BC123: 2.91 | BD123: 2.62 | BE123: 3.21 | BF123: 2.81 | BH123: 120 | BL123: Germany | BM123: =IF(BN123>1,"",MAX(BM$3:BM122)+1) ->  | BN123: =IF(BL123="","",COUNTIF(BL$4:BL123,BL123)) -> 2 | BO123: 35002 | BP123: Bocholt | BS123: 70120 | BU123: 11120
A124: Europe | B124: Germany | C124: Bonn | D124: 50.42 | E124: 7.09 | F124: 65 | G124: 22.3 | H124: 40.8 | I124: 69 | J124: 106.4 | K124: 137.5 | L124: 138.9 | M124: 150.2 | N124: 126.4 | O124: 82.1 | P124: 54.1 | Q124: 28.7 | R124: 17 | S124: 973.4 | AG124: 2.18 | AH124: 2.68 | AI124: 6.11 | AJ124: 8.3 | AK124: 12.9 | AL124: 15.84 | AM124: 17.93 | AN124: 17.9 | AO124: 14.78 | AP124: 10.59 | AQ124: 5.95 | AR124: 4.03 | AS124: 9.93 | AT124: 4.1 | AU124: 3.1 | AV124: 3.1 | AW124: 2.59 | AX124: 2.6 | AY124: 3.59 | AZ124: 3.59 | BA124: 2.11 | BB124: 2.11 | BC124: 3.1 | BD124: 3.58 | BE124: 4.1 | BF124: 3.14 | BH124: 121 | BL124: Germany | BM124: =IF(BN124>1,"",MAX(BM$3:BM123)+1) ->  | BN124: =IF(BL124="","",COUNTIF(BL$4:BL124,BL124)) -> 3 | BO124: 35003 | BP124: Bonn | BS124: 70121 | BU124: 11121
A125: Europe | B125: Germany | C125: Braunlage | D125: 51.43 | E125: 10.37 | F125: 615 | G125: 21.5 | H125: 39.6 | I125: 70.6 | J125: 103.6 | K125: 138.1 | L125: 143.2 | M125: 142.1 | N125: 123.5 | O125: 82.1 | P125: 52.1 | Q125: 23 | R125: 15.6 | S125: 954.9 | AG125: -2.3 | AH125: -2.11 | AI125: 0.56 | AJ125: 4.68 | AK125: 9.22 | AL125: 12.79 | AM125: 14.07 | AN125: 13.85 | AO125: 10.87 | AP125: 7.13 | AQ125: 1.92 | AR125: -0.85 | AS125: 5.82 | AT125: 3.62 | AU125: 4 | AV125: 3.84 | AW125: 3.41 | AX125: 2.98 | AY125: 2.87 | AZ125: 2.9 | BA125: 2.68 | BB125: 3.01 | BC125: 3.44 | BD125: 3.26 | BE125: 3.89 | BF125: 3.32 | BH125: 122 | BL125: Germany | BM125: =IF(BN125>1,"",MAX(BM$3:BM124)+1) ->  | BN125: =IF(BL125="","",COUNTIF(BL$4:BL125,BL125)) -> 4 | BO125: 35004 | BP125: Braunlage | BS125: 70122 | BU125: 11122
